Workbook

Sheet Увязка1 (hidden)
A2: =ЗАПОЛНИТЬ!B3 -> Львівський національний аграрний університет
A3: Довідка відповідності показників за доходною частиною
A4: =CONCATENATE("За ",ЗАПОЛНИТЬ!B17," ",ЗАПОЛНИТЬ!C17) -> За 2015 р.
A6: Нараховано доходів (ф.№4-1, гр.8, ряд.010) | B6: Дт заборгованість за доходами на початок року (ф.№7, гр.4, ряд.010+дод№18, гр.3, ряд.080) | C6: Дт заборгованість за доходами на звітну дату (ф.№7, гр.4, ряд.010+дод№18, гр.5, ряд.080) | D6: Кт заборгованість за доходами на початок року (ф.№7, гр.8, ряд.010+дод№18, гр.4, ряд.080) | E6: Кт заборгованість за доходами на звітну дату (ф.№7, гр.9, ряд.010+дод№18, гр.6, ряд.080) | F6: Надійшло коштів (ф.№4-1, гр.9, ряд.010) | G6: Всього (повинно бути "0")
A7: 1 | B7: 2 | C7: 3 | D7: 4 | E7: 5 | F7: 6 | G7: 7
A8: =Ф.4.1.ЗВЕД!H21 -> 26460272.97 | B8: ='Ф.7(СФ).ЗВЕД'!D26 -> 0 | C8: ='Ф.7(СФ).ЗВЕД'!E26 -> 2370975.43 | D8: ='Ф.7(СФ).ЗВЕД'!H26 -> 0 | E8: ='Ф.7(СФ).ЗВЕД'!I26 -> 3115584.14 | F8: =Ф.4.1.ЗВЕД!I21 -> 27204881.68 | G8: =SUM(A8)+SUM(B8)-SUM(C8)-SUM(D8)+SUM(E8)-SUM(F8) -> 0
A10: колонка 7 (повинно бути значення "0"(якщо ні, в цій же довідці надавати пояснення) = к.1 + к.2 - к.3 - к.4 + к.5 - к.6
A12: =ЗАПОЛНИТЬ!F30 -> Ректор | F12: =ЗАПОЛНИТЬ!F26 -> В.В.Снітинський
D13: підпис | F13: ПІБ
A14: =ЗАПОЛНИТЬ!F31 -> Головний бухгалтер | F14: =ЗАПОЛНИТЬ!F28 -> Г.І.Козлова
D15: підпис | F15: ПІБ

Sheet ЗАПОЛНИТЬ (hidden)
B1: Жовтим кольором виділені поля для обов'язкового заповнення
B2: Назва установи повинна бути повна без скорочень та співпадати з назвою в МЕРЕЖІ
A3: Установа | B3: Львівський національний аграрний університет
A4: Назва казначейства де обслуговуєтесь | D4: ГУДКСУ у Львівській області | O4: змінити на ваше УДК
A5: Територія | B5: м.Дубляни Жовківського р-ну Львівської обл. | G5: наприклад -смт.Слов'яносербськ (Згідно довідника КОАТУУ)
A7: Вид бюджету | F7: 1 | L7: Державний
L8: Місцевий
A9: Код відомчої класифікації видатків та кредитування державного бюджету | H9: 220 | I9: сюда ставят распорядители госбюджетных средств к примеру - 670,280,350
A10: Код типової відомчої класифікації видатків місцевих бюджетів | H10: - | I10: - | Q10: вписати назву КВК
A12: КОДИ | D12: если видите #Н/Д значит неправильно ввели код КОПФГ, код брать в довидке из статистики состоит из трёх знаков к примеру для советов 420
A13: за ЄДРПОУ | B13: 00493735
A14: за КОАТУУ | B14: 4622710200
A15: за КОПФГ | B15: 425 | D15: =VLOOKUP(B15,КОПФГ!A:B,2,FALSE) -> Державна організація (установа, заклад)
A16: за КВЕД
A17: Звіт за | B17: 2015 р.
A18: Звіт на | B18: 1 січня | C18: 2016 р.
A19: Дата подання звіту | C19: "12" січня 2016 року | F19: дата стоїть для прикладу, необхідно змінити на Вашу, але не пізніше 22 січня
A26: Ініціали та прізвище КЕРІВНИКА | F26: В.В.Снітинський
A28: Ініціали та прізвище ГОЛОВНОГО БУХГАЛТЕРА | F28: Г.І.Козлова
A30: Посада першого підпису | F30: Ректор
A31: Посада другого підпису | F31: Головний бухгалтер
A35: Для відкриття скритих листів треба зайти ФОРМАТ -ЛИСТ - ОТОБРАЗИТЬ
A36: ДЛЯ НОРМАЛЬНОЇ РОБОТИ ФОРМУЛ ЛИСТИ НЕОБХІДНО СКРИВАТИ А НЕ ВИДАЛЯТИ!!!!!
A37: БАЛАНС ЗАПОВНЮЄТЬСЯ В ОСТАННЮ ЧЕРГУ, СПОЧАТКУ ЗАПОВНІТЬ ВСІ ФОРМИ ПОТІМ БАЛАНС!!
A38: Ці та інші корисні бланки можно завантажити на https://buhgalter.com.ua
A39: автор розробки: Токарев Євген Васильович
A40: Gorg1310@mail.ru
A43: Для того чтоб писало суму прописью необходимо разрешить выполнение МАКРОСОВ
A44: в 2003 офисе заходим СЕРВИС-ПАРАМЕТРЫ-БЕЗОПАСНОТЬ-БЕЗОПАСНОСТЬ МАКРОСОВ и установите уровень безопасности либо низкий либо средний
A45: в 2007 офисе ФАЙЛ (слева в углу) -ПАРАМЕТРЫ - ЦЕНТР УПРАВЛЕНИЯ БЕЗОПАСНОТЬЮ - ПАРАМЕТРЫ ЦЕНТРА - БЕЗОПАСНОСТЬ МАКРОСОВ и разрешить выполнение макросов
A47: Про помилки та побажання пишіть на форумі
A48: http://budget.factor.ua/viewtopic.php?f=144&t=2762

Sheet И ЭТО ЗАПОЛНИТЬ (hidden)
A1: Цей лист необхідний для автоматичного заповнення Додатка 20 та Додатка 21 к пояснювальній записці, подання цих додатків обов'язкове при складанні звітності за рік (роздруковувати цей лист не потрібно)
B2: Для 20-го Додатка | E2: Для 21-го Додатка
A3: №п/п | B3: Перелік відкритих реєстраційних рахунків в казначействі | C3: Залишок коштів на рахунку | E3: Перелік відкритих інших рахунків в казначействі | F3: Залишок коштів на рахунку
A4: 1 | B4: 35220236000052
A5: 2 | B5: 35227347000052
A6: 3 | B6: 35220247000052 | C6: 418761.56
A7: 4 | B7: 35227347000052
A8: 5 | B8: 35220247000052
A9: 6 | B9: 35220247000052
A10: 7 | B10: 35220247000052
A11: 8 | B11: 35227347000052 | C11: 20768
A12: 9 | B12: 31254236100052
A13: 10 | B13: 31255347300052
A14: 11 | B14: 31254247100052
A15: 12 | B15: 31251347100052
A16: 13 | B16: 31251247200052
A17: 14 | B17: 31258247300052
A18: 15 | B18: 31255247400052
A19: 16 | B19: 31258347200052
A20: 17
A21: 18
A22: 19
A23: 20
A24: 21
A25: 22
A26: 23
A27: 24
A28: 25
A29: 26
A30: 27
A31: 28
A32: 29
A33: 30
A34: 31
A35: 32
A36: 33
A37: 34
A38: 35
A39: 36
A40: 37
A41: 38
A42: 39
A43: 40
A44: 41
A45: 42
A46: 43
A47: 44
A48: 45
A49: 46
A50: 47
A51: 48
A52: 49
A53: 50
A54: 51
A55: 52
A56: 53
A57: 54
A58: 55
A59: 56

Sheet Ф1(титул)
E1: Додаток 1 до Порядку складання фінансової, бюджетної та іншої звітності розпорядниками та одержувачами бюджетних коштів (абзац другий підпункту 2.1.1 пункту 2.1)
A20: БАЛАНС (форма №1)
A21: =CONCATENATE("на ",ЗАПОЛНИТЬ!$B$18," ",ЗАПОЛНИТЬ!$C$18) -> на 1 січня 2016 р.
H22: коди
A23: Установа | B23: =ЗАПОЛНИТЬ!B3 -> Львівський національний аграрний університет | G23: за ЄДРПОУ | H23: =ЗАПОЛНИТЬ!B13 -> 00493735
A24: Територія | B24: =ЗАПОЛНИТЬ!B5 -> м.Дубляни Жовківського р-ну Львівської обл. | G24: =ЗАПОЛНИТЬ!A14 -> за КОАТУУ | H24: =ЗАПОЛНИТЬ!B14 -> 4622710200
A25: Організаційно-правова форма господарювання | H25: =ЗАПОЛНИТЬ!B15 -> 425
A26: =ЗАПОЛНИТЬ!D15 -> Державна організація (установа, заклад) | G26: =ЗАПОЛНИТЬ!A15 -> за КОПФГ
A27: Код та назва відомчої класифікації видатків та кредитування державного бюджету
A28: =ЗАПОЛНИТЬ!H9 -> 220 | B28: =Ф.2.ЗВЕД!E12 -> Міністерство освіти і науки України
A29: Код та назва типової відомчої класифікації видатків та кредитування місцевих бюджетів
A30: =ЗАПОЛНИТЬ!H10 -> - | B30: =ЗАПОЛНИТЬ!I10 -> -
A32: Періодичність: квартальна, річна.
A33: Одиниця виміру: грн. коп.

Sheet Ф1
B1: 2 | C1: Продовження додатка 1
B2: АКТИВ | C2: Код рядка | D2: На початок звітного року | E2: На кінець звітного періоду (року)
B4: 1 | C4: 2 | D4: 3 | E4: 4
B5: І. НЕОБОРОТНІ АКТИВИ
B6: Нематеріальні активи
B7: Балансова (залишкова) вартість | C7: 110 | D7: =D9-D8 -> 0 | E7: =E9-E8 -> 208379
B8: Накопичена амортизація | C8: 111 | D8: 0 | E8: 0
B9: Первісна (переоцінена) вартість | C9: 112 | D9: ='д15_ф5(стр1)'!D34 -> 0 | E9: =SUM('д15_ф5(стр1)'!E34:F34) -> 208379
B10: Основні засоби
B11: Балансова (залишкова) вартість | C11: 120 | D11: =D13-D12 -> 0 | E11: =E13-E12 -> 251694961.2
B12: Знос | C12: 121 | D12: 0 | E12: 93340614
B13: Первісна (переоцінена) вартість | C13: 122 | D13: ='д15_ф5(стр1)'!D20 -> 0 | E13: =SUM('д15_ф5(стр1)'!E20:F20) -> 345035575.2
B14: Інші необоротні матеріальні активи
B15: Балансова (залишкова) вартість | C15: 130 | D15: =D17-D16 -> 0 | E15: =E17-E16 -> 3658674.72
B16: Знос | C16: 131 | D16: 0 | E16: 3545282
B17: Первісна (переоцінена) вартість | C17: 132 | D17: ='д15_ф5(стр1)'!D30 -> 0 | E17: =SUM('д15_ф5(стр1)'!E30:F30) -> 7203956.72
B18: Незавершені капітальні інвестиції в необоротні активи | C18: 140 | D18: ='д15_ф5(стр1)'!D39 -> 0 | E18: =SUM('д15_ф5(стр1)'!E39:F39) -> 6891470
B19: Довгострокові фінансові інвестиції | C19: 145 | D19: ='д15_ф5(стр1)'!D44 -> 0 | E19: =SUM('д15_ф5(стр1)'!E44:F44) -> 0
B20: ІІ. ОБОРОТНІ АКТИВИ
B21: Матеріали і продукти харчування | C21: 150 | D21: ='д16_ф6(стр1)'!D32 -> 0 | E21: ='д16_ф6(стр1)'!E32 -> 2252644.94
B22: Малоцінні та швидкозношувані предмети | C22: 160 | D22: 0 | E22: 116243.42
B23: Інші запаси | C23: 170 | D23: 0 | E23: 3997712.66
B24: Дебіторська заборгованість | C24: 180 | D24: =SUM(D25:D31) -> 0 | E24: =SUM(E25:E31) -> 2407368.71 | F24: =IF(ROUND((SUM(D24)+SUM(D32)+SUM(D33)),2)=ROUND((SUM('Ф.7(ЗФ).ЗВЕД'!D26)+SUM('Ф.7(ЗФ).ЗВЕД'!D27)+SUM('Ф.7(СФ).ЗВЕД'!D26)+SUM('Ф.7(СФ).ЗВЕД'!D27)+SUM('Ф.7.1(ЗФ).ЗВЕД'!D25)+SUM('Ф.7.1(СФ).ЗВЕД'!D25)+SUM(д18!D45)),2),"","УВАГА НА ПОЧАТОК РОКУ В БАЛАНСІ не виконується рівняння: Форма N 1, рядок 180, графа 3 плюс рядок 190, графа 3 плюс рядок 210, графа 3 = Форма N 7д, N 7м, рядок 010, графа 4 плюс рядок 020, графа 4 плюс додаток 18, рядок 130, графа 3") -> 
B25: Розрахунки з постачальниками, підрядниками за товари, роботи й послуги | C25: 181 | D25: 0 | E25: 0
B26: Розрахунки із податків і зборів | C26: 182 | D26: 0 | E26: 0 | F26: =IF(ROUND((SUM(E24)+SUM(E32)+SUM(E33)),2)=ROUND((SUM('Ф.7(ЗФ).ЗВЕД'!E26)+SUM('Ф.7(ЗФ).ЗВЕД'!E27)+SUM('Ф.7(СФ).ЗВЕД'!E26)+SUM('Ф.7(СФ).ЗВЕД'!E27)+SUM('Ф.7.1(ЗФ).ЗВЕД'!E25:F25)+SUM('Ф.7.1(СФ).ЗВЕД'!E25:F25)+SUM(д18!F45)),2),"","УВАГА НА ЗВІТНУ ДАТУ В БАЛАНСІ не виконується рівняння:Форма N 1, рядок 180, графа 4 плюс рядок 190, графа 4 плюс рядок 210, графа 4 = Форма N 7д, N 7м, рядок 010, графа 5 плюс рядок 020, графа 5 плюс додаток 18, рядок 130, графа 5") -> УВАГА НА ЗВІТНУ ДАТУ В БАЛАНСІ не виконується рівняння:Форма N 1, рядок 180, графа 4 плюс рядок 190, графа 4 плюс рядок 210, графа 4 = Форма N 7д, N 7м, рядок 010, графа 5 плюс рядок 020, графа 5 плюс додаток 18, рядок 130, графа 5
B27: Розрахунки із страхування | C27: 183 | D27: 0 | E27: 0
B28: Розрахунки з відшкодування завданих збитків | C28: 184 | D28: =д17!F17 -> - | E28: =д17!F29 -> 0
B29: Розрахунки за спеціальними видами платежів | C29: 185 | D29: 0 | E29: 2380227.79
B30: Розрахунки з підзвітними особами | C30: 186 | D30: 0 | E30: 0
B31: Розрахунки за іншими операціями | C31: 187 | D31: 0 | E31: 27140.92 | G31: =IF(('Ф.7(ЗФ).ЗВЕД'!J27)=SUM(д29!M29:O29),"","У вас есть просроченная кредиторка в ЗАГАЛЬНОМ ФОНДЕ и не заполнен (либо не правильно заполнен) додаток 29") -> 
B32: Розрахунки за операціями з внутрівідомчої передачі запасів | C32: 190 | D32: =д18!D21 -> 0 | E32: =д18!F21 -> 0
B33: Розрахунки за окремими програмами | C33: 200 | D33: =SUM('Ф.7.1(ЗФ).ЗВЕД'!D25)+SUM('Ф.7.1(СФ).ЗВЕД'!D25) -> 0 | E33: =((SUM('Ф.7.1(ЗФ).ЗВЕД'!E25:F25))+(SUM('Ф.7.1(СФ).ЗВЕД'!E25:F25))) -> 357127.55
B34: Витрати майбутніх періодів | C34: 205 | D34: 0 | E34: 10856.29
B35: Короткострокові векселі одержані | C35: 210 | D35: =д18!D28 -> 0 | E35: =д18!F28 -> 0
B36: Інші кошти | C36: 220 | D36: =SUM(D37:D38) -> 0 | E36: =SUM(E37:E38) -> 0
B37: Грошові документи | C37: 221 | D37: 0 | E37: 0
B38: Грошові кошти в дорозі | C38: 222 | D38: 0 | E38: 0
B39: Рахунки в банках | C39: 240 | D39: =IF(SUM(D40:D43)>0,SUM(D40:D43),"-") -> - | E39: =IF(SUM(E40:E43)>0,SUM(E40:E43),"-") -> 118953.61
B40: Рахунки загального фонду | C40: 241 | D40: - | E40: -
B41: Рахунки спеціального фонду | C41: 242 | D41: - | E41: -
B42: Рахунки в іноземній валюті | C42: 243 | D42: - | E42: =д24!I33 -> 118953.61
B43: Інші поточні рахунки | C43: 244 | D43: =д3!D44 -> 0 | E43: =д3!I44 -> 0
B44: Рахунки в казначействі загального фонду | C44: 250 | D44: 0 | E44: 0
B45: Рахунки в казначействі спеціального фонду | C45: 260 | D45: =SUM(D46:D49) -> 0 | E45: =SUM(E46:E49) -> 558483.17
B46: Спеціальні реєстраційні рахунки для обліку коштів, отриманих як плата за послуги | C46: 261 | D46: =Ф.4.1.ЗВЕД!E21 -> 0 | E46: =Ф.4.1.ЗВЕД!N21 -> 537715.17
B47: Спеціальні реєстраційні рахунки для обліку коштів, отриманих за іншими джерелами власних надходжень | C47: 262 | D47: =Ф.4.2.ЗВЕД!E22 -> 0 | E47: =Ф.4.2.ЗВЕД!K22 -> 20768
B48: Спеціальні реєстраційні рахунки для обліку інших надходжень спеціального фонду | C48: 263 | D48: =Ф.4.3.ЗВЕД!F22 -> 0 | E48: =Ф.4.3.ЗВЕД!K22 -> 0
B49: Спеціальні реєстраційні рахунки для обліку коштів, отриманих на виконання програм соціально-економічного та культурного розвитку регіонів | C49: 264 | D49: =Ф.4.4.ЗВЕД!E20 -> 0 | E49: =Ф.4.4.ЗВЕД!J20 -> 0
B50: Інші рахунки в казначействі | C50: 270 | D50: =д3!D43 -> 0 | E50: =д3!I43 -> 0
B51: Каса | C51: 280 | D51: 0 | E51: 0
B52: Поточні фінансові інвестиції | C52: 285 | D52: 0 | E52: 0
B53: ІІІ. ВИТРАТИ
B54: Видатки та надання кредитів загального фонду | C54: 290 | D54: 0 | E54: 0
B55: Видатки та надання кредитів спеціального фонду | C55: 300 | D55: 0 | E55: 0
B56: Видатки за коштами, отриманими як плата за послуги | C56: 301 | D56: 0 | E56: 0
B57: Видатки та надання кредитів за іншими джерелами власних надходжень | C57: 302 | D57: - | E57: 0
B58: Видатки та надання кредитів за іншими надходженнями спеціального фонду | C58: 303 | D58: 0 | E58: -
B59: Видатки за коштами, отриманими на виконання програм соціально-економічного та культурного розвитку регіонів | C59: 304 | D59: - | E59: - | G59: =IF(E63=E109,"","УВАГА АКТИВ НЕ ДОРІВНЮЄ ПАСИВУ (на звітну дату)") -> УВАГА АКТИВ НЕ ДОРІВНЮЄ ПАСИВУ (на звітну дату)
B60: Інші витрати | C60: 305 | D60: 0 | E60: 0 | G60: =IF(ROUND(Увязка1!G8,2)=0," ","ЗВЕРНІТЬ УВАГУ НА ЛИСТ -Увязка1- У ВАС НЕВІДПОВІДНІСТЬ ПОКАЗИНИКІВ ЗА ДОХОДНОЮ ЧАСТИНОЮ") -> 
B63: БАЛАНС | C63: 310 | D63: =(SUM(D62))+(SUM(D51))+(SUM(D50))+(SUM(D45))+(SUM(D44))+(SUM(D39))+(SUM(D36))+(SUM(D35))+(SUM(D33))+(SUM(D32))+(SUM(D24))+(SUM(D23))+(SUM(D22))+(SUM(D21))+(SUM(D18))+(SUM(D15))+(SUM(D11))+(SUM(D7))+D52+D19+D60+D34 -> 0 | E63: =(SUM(E62))+(SUM(E51))+(SUM(E50))+(SUM(E45))+(SUM(E44))+(SUM(E39))+(SUM(E36))+(SUM(E35))+(SUM(E33))+(SUM(E32))+(SUM(E24))+(SUM(E23))+(SUM(E22))+(SUM(E21))+(SUM(E18))+(SUM(E15))+(SUM(E11))+(SUM(E7))+E52+E19+E60+E34 -> 272272875.3 | G63: =IF(D63=D109,"","УВАГА АКТИВ НЕ ДОРІВНЮЄ ПАСИВУ (на початок року)") -> 
B68: 3 | C68: Продовження додатка 1
B69: ПАСИВ | C69: Код рядка | D69: На початок звітного року | E69: На кінець звітного періоду (року)
B71: 1 | C71: 2 | D71: 3 | E71: 4
B72: І. ВЛАСНИЙ КАПІТАЛ
B73: Фонд у необоротних активах | C73: 330 | D73: =IF((SUM(D7))+(SUM(D11))+(SUM(D15))+(SUM(D18))>0,(SUM(D7))+(SUM(D11))+(SUM(D15))+(SUM(D18)),"-") -> - | E73: =IF((SUM(E7))+(SUM(E11))+(SUM(E15))+(SUM(E18))>0,(SUM(E7))+(SUM(E11))+(SUM(E15))+(SUM(E18)),"-") -> 262453485
B74: Фонд у малоцінних та швидкозношуваних предметах | C74: 340 | D74: =D22 -> 0 | E74: =E22 -> 116243.42
B75: Фонд у фінансових інвестиціях | C75: 345 | D75: =D19+D52 -> 0 | E75: =E19+E52 -> 0
B76: Результат виконання кошторису за загальним фондом | C76: 350 | D76: ='д2(ф9)'!D34 -> 0 | E76: ='д2(ф9)'!G34 -> 432357.21
B77: Результат виконання кошторису за спеціальним фондом | C77: 360 | D77: ='д2(ф9)'!D72 -> 0 | E77: ='д2(ф9)'!G72 -> 5658356.42
B78: Капітал у дооцінках | C78: 370 | D78: - | E78: -
B80: ІІ. ЗОБОВ’ЯЗАННЯ
B81: Довгострокові зобов'язання | C81: 380 | D81: - | E81: -
B82: Короткострокові позики | C82: 390 | D82: - | E82: -
B83: Поточна заборгованість за довгостроковими зобов'язаннями | C83: 400 | D83: - | E83: -
B84: Короткострокові векселі видані | C84: 410 | D84: - | E84: -
B85: Кредиторська заборгованість | C85: 420 | D85: =IF(SUM(D86:D94)>0,SUM(D86:D94),"-") -> - | E85: =IF(SUM(E86:E94)>0,SUM(E86:E94),"-") -> 3136352.14 | F85: =IF((SUM(D81)+SUM(D82)+SUM(D83)+SUM(D84)+SUM(D85)+SUM(D95))=(SUM('Ф.7(ЗФ).ЗВЕД'!H26)+SUM('Ф.7(ЗФ).ЗВЕД'!H27)+SUM('Ф.7(СФ).ЗВЕД'!H26)+SUM('Ф.7(СФ).ЗВЕД'!H27)+SUM(д18!E45)+SUM(д34зф!E30)+SUM(д34сф!E30)),"","УВАГА НА ПОЧАТОК РОКУ НЕ ВІДБУВАЄТЬСЯ РІВНЯННЯ: Рядок 380 плюс рядок 390 плюс рядок 400 плюс рядок 410 плюс рядок 420 плюс рядок 430, графа 3=Ф N7д,N7м,рядок 010,графа 8 плюс рядок 020,графа 8 плюс дод 18,рядок 130,графа 4плюс рядок разом, графа 2 дод 33") -> 
B86: Розрахунки з постачальниками, підрядниками за товари, роботи й послуги | C86: 421 | D86: - | E86: -
B87: Розрахунки за спеціальними видами платежів | C87: 422 | D87: - | E87: 3115584.14 | F87: =IF((SUM(E81)+SUM(E82)+SUM(E83)+SUM(E84)+SUM(E85)+SUM(E95))=(SUM('Ф.7(ЗФ).ЗВЕД'!I26)+SUM('Ф.7(ЗФ).ЗВЕД'!I27)+SUM('Ф.7(СФ).ЗВЕД'!I26)+SUM('Ф.7(СФ).ЗВЕД'!I27)+SUM(д18!G45)+SUM(д34зф!F30)+SUM(д34сф!F30)),"","УВАГА НА ЗВІТНУ ДАТУ НЕ ВІДБУВАЄТЬСЯ РІВНЯННЯ:Рядок 380 плюс рядок 390 плюс рядок 400 плюс рядок 410 плюс рядок 420 плюс рядок 430, графа 4=ФN 7д,N 7м,рядок 010,графа 9 плюс рядок 020,графа 9 плюс дод18,рядок 130,графа 6 плюс рядок разом,графа 3 дод33") -> 
B88: Розрахунки із податків і зборів | C88: 423 | D88: - | E88: -
B89: Розрахунки із страхування | C89: 424 | D89: - | E89: -
B90: Розрахунки із заробітної плати та інших виплат | C90: 425 | D90: - | E90: -
B91: Розрахунки зі стипендіатами | C91: 426 | D91: - | E91: 20768
B92: Розрахунки з підзвітними особами | C92: 427 | D92: - | E92: -
B93: Розрахунки за депозитними сумами | C93: 428 | D93: - | E93: -
B94: Розрахунки за іншими операціями | C94: 429 | D94: - | E94: -
B95: Розрахунки за операціями з внутрівідомчої передачі запасів | C95: 430 | D95: =д18!E21 -> 0 | E95: =д18!G21 -> 0
B96: Розрахунки за окремими програмами | C96: 440 | D96: =((SUM('Ф.7.1(ЗФ).ЗВЕД'!G25:H25))+(SUM('Ф.7.1(СФ).ЗВЕД'!G25:H25))) -> 0 | E96: =((SUM('Ф.7.1(СФ).ЗВЕД'!I25:J25))+(SUM('Ф.7.1(ЗФ).ЗВЕД'!I25:J25))) -> 357127.55
B97: Доходи майбутніх періодів | C97: 445 | D97: 0 | E97: 0
B98: ІІІ. ДОХОДИ
B99: Доходи загального фонду | C99: 450 | D99: 0 | E99: 0
B102: Доходи спеціального фонду | C102: 460 | D102: 0 | E102: 0
B103: Доходи за коштами, отриманими як плата за послуги | C103: 461 | D103: 0 | E103: 0
B104: Доходи за іншими джерелами власних надходжень | C104: 462 | D104: 0 | E104: 0
B105: Доходи за іншими надходженнями спеціального фонду | C105: 463 | D105: 0 | E105: 0
B106: Доходи за коштами, отриманими на виконання програм соціально-економічного та культурного розвитку регіонів | C106: 464 | D106: 0 | E106: 0
B107: Інші доходи | C107: 465 | D107: 0 | E107: 0
D108: - | E108: -
B109: БАЛАНС | C109: 470 | D109: =(SUM(D108))+(SUM(D96))+(SUM(D95))+(SUM(D85))+(SUM(D84))+(SUM(D83))+(SUM(D82))+(SUM(D81))+(SUM(D78))+(SUM(D77))+(SUM(D76))+(SUM(D74))+(SUM(D73))+D75+D107+D97 -> 0 | E109: =(SUM(E108))+(SUM(E96))+(SUM(E95))+(SUM(E85))+(SUM(E84))+(SUM(E83))+(SUM(E82))+(SUM(E81))+(SUM(E78))+(SUM(E77))+(SUM(E76))+(SUM(E74))+(SUM(E73))+E75+E107+E97 -> 272153921.7

Sheet Ф1(4стр)
A1: 4 Продовження додатка 1
A2: РОЗШИФРОВКА ПОЗАБАЛАНСОВИХ РАХУНКІВ
A3: Назва рахунку позабалансового обліку | B3: Код рядка | C3: Залишок на початок звітного року | D3: Надходження | E3: Вибуття | F3: Залишок на кінець звітного періоду (року)
C5: сума | D5: сума | E5: сума | F5: сума
A6: 2 | C6: 3 | D6: 4 | E6: 5 | F6: 6
A7: 01 «Орендовані необоротні активи» | B7: 10 | C7: 0 | D7: 0 | E7: 0 | F7: =SUM(C7)+SUM(D7)-SUM(E7) -> 0
A8: 02 «Активи на відповідальному зберіганні» | B8: 20 | C8: 0 | D8: 90770 | E8: 0 | F8: =SUM(C8)+SUM(D8)-SUM(E8) -> 90770
A9: 04 «Непередбачені активи і зобов’язання» | B9: 30 | C9: =SUM(C10:C11) -> 0 | D9: =SUM(D10:D11) -> 0 | E9: =SUM(E10:E11) -> 0 | F9: 0
A10: 041 «Непередбачені активи» | B10: 31 | C10: 0 | D10: 0 | E10: 0 | F10: 0
A11: 042 «Непередбачені зобов’язання» | B11: 32 | C11: 0 | D11: 0 | E11: 0 | F11: 0
A12: 05 «Гарантії та забезпечення» | B12: 40 | C12: 0 | D12: 0 | E12: 0 | F12: 0
A13: 06 «Передані (видані) активи відповідно до законодавства» | B13: 50 | C13: 0 | D13: 0 | E13: 0 | F13: 0
A14: 07 «Списані активи та зобов’язання» | B14: 60 | C14: =SUM(C15:C16) -> 0 | D14: =SUM(D15:D16) -> 97976.27 | E14: =SUM(E15:E16) -> 0 | F14: 97976.27
A15: 071 «Списана дебіторська заборгованість» | B15: 61 | C15: 0 | D15: 18962.27 | E15: 0 | F15: 18962.27
A16: 072 «Невідшкодовані нестачі і втрати від псування цінностей» | B16: 62 | C16: 0 | D16: 79014 | E16: 0 | F16: 79014
A17: 08 «Бланки документів суворої звітності» | B17: 70 | C17: 0 | D17: 0 | E17: 0 | F17: 0
C18: - | D18: - | E18: - | F18: =SUM(C18)+SUM(D18)-SUM(E18) -> 0
C19: - | D19: - | E19: - | F19: =SUM(C19)+SUM(D19)-SUM(E19) -> 0
C20: - | D20: - | E20: - | F20: =SUM(C20)+SUM(D20)-SUM(E20) -> 0
A21: Разом (10+20+30+40+50+60+70) | C21: =SUM(C7:C9)+C12+C13+C14+C17 -> 0 | D21: =SUM(D7:D9)+D12+D13+D14+D17 -> 188746.27 | E21: 0 | F21: 188746.27
A23: =ЗАПОЛНИТЬ!F30 -> Ректор | E23: =ЗАПОЛНИТЬ!$F$26 -> В.В.Снітинський
C24: (підпис) | E24: (ініціали, прізвище)
A25: =ЗАПОЛНИТЬ!F31 -> Головний бухгалтер | E25: =ЗАПОЛНИТЬ!$F$28 -> Г.І.Козлова
C26: (підпис) | E26: (ініціали, прізвище)
A27: =ЗАПОЛНИТЬ!$C$19 -> "12" січня 2016 року

Sheet д2(ф9)
D1: Додаток 2 до Порядку складання фінансової, бюджетної та іншої звітності розпорядниками та одержувачами бюджетних коштів (абзац третій підпункту 2.1.1 пункту 2.1)
A4: Звіт
A5: =IF(ЗАПОЛНИТЬ!$F$7=1,CONCATENATE(шапки!A7),CONCATENATE(шапки!A7,шапки!C7)) -> про результати фінансової діяльності (форма | C5: =IF(ЗАПОЛНИТЬ!$F$7=1,шапки!C7,шапки!D7) -> № 9д, | D5: =IF(ЗАПОЛНИТЬ!$F$7=1,шапки!D7,"") -> № 9м)
A6: =CONCATENATE("за ",ЗАПОЛНИТЬ!$B$17," ",ЗАПОЛНИТЬ!$C$17) -> за 2015 р.
A7: Установа | B7: =ЗАПОЛНИТЬ!$B$3 -> Львівський національний аграрний університет | F7: =ЗАПОЛНИТЬ!$A$13 -> за ЄДРПОУ | H7: =ЗАПОЛНИТЬ!$B$13 -> 00493735
A8: Територія | B8: =ЗАПОЛНИТЬ!$B$5 -> м.Дубляни Жовківського р-ну Львівської обл. | F8: =ЗАПОЛНИТЬ!$A$14 -> за КОАТУУ | H8: =ЗАПОЛНИТЬ!$B$14 -> 4622710200
A9: Організаційно-правова форма господарювання | B9: =ЗАПОЛНИТЬ!$D$15 -> Державна організація (установа, заклад) | F9: =ЗАПОЛНИТЬ!$A$15 -> за КОПФГ | H9: =ЗАПОЛНИТЬ!$B$15 -> 425
A10: Код та назва відомчої класифікації видатків та кредитування державного бюджету | D10: =ЗАПОЛНИТЬ!$H$9 -> 220 | E10: =IF(D10>0,VLOOKUP(D10,'ДовидникКВК(ГОС)'!A:B,2,FALSE),"") -> Міністерство освіти і науки України
A11: Код та назва типової відомчої класифікації видатків та кредитування місцевих бюджетів | D11: =ЗАПОЛНИТЬ!$H$10 -> - | E11: =ЗАПОЛНИТЬ!I10 -> -
A12: Періодичність: річна.
A13: Одиниця виміру: грн коп.
A15: Показники | C15: Код рядка | D15: За попередній звітний рік | G15: За звітний рік
A17: 1 | C17: 2 | D17: 3 | G17: 4
A18: Загальний фонд | D18: Х | G18: Х
A19: Отримані доходи | C19: 010 | D19: Х | G19: 52903800
A20: Видатки та надання кредитів | C20: 020 | D20: Х | G20: =SUM(G21:I24) -> 52903800
A21: у тому числі:
A22: поточні | C22: 021 | D22: Х | G22: =Ф.2.ЗВЕД!I24 -> 52903800
A23: капітальні | C23: 022 | D23: Х | G23: =Ф.2.ЗВЕД!I58 -> 0
A24: надання кредитів | C24: 023 | D24: Х | G24: =Ф.2.ЗВЕД!I78+Ф.2.ЗВЕД!I83 -> 0
A25: Списані недостачі | C25: 030 | D25: Х | G25: -
A26: Списана заборгованість (+; -) | C26: 040 | D26: Х | G26: =SUM(G28)+SUM(G29) -> 0
A27: у тому числі:
A28: дебіторська | C28: 041 | D28: Х | G28: ='Ф.7(ЗФ).ЗВЕД'!G26+'Ф.7(ЗФ).ЗВЕД'!G27 -> 0
A29: кредиторська | C29: 042 | D29: Х | G29: =SUM('Ф.7(ЗФ).ЗВЕД'!L26)+SUM('Ф.7(ЗФ).ЗВЕД'!L27) -> 0
A30: Капітал у дооцінках (+; - ) | C30: 050 | D30: Х | G30: 0
A31: у тому числі: уцінка | C31: 051 | D31: Х | G31: 0
A32: дооцінка | C32: 052 | D32: Х | G32: 0
A33: Інші видатки | C33: 060 | D33: Х | G33: -432357.21
A34: Фінансовий результат за загальним фондом (профіцит “+”; дефіцит “-”) | C34: 090 | G34: 432357.21
B36: 2 | D36: Продовження додатка 2
A37: 1 | C37: 2 | D37: 3 | G37: 4
A38: Спеціальний фонд | D38: Х | G38: Х
A39: Отримані доходи | C39: 100 | D39: Х | G39: =IF((SUM(G40)+SUM(G46)+SUM(G52)+SUM(G53)+SUM(G54)+G55)>0,SUM(G40)+SUM(G46)+SUM(G52)+SUM(G53)+SUM(G54)+G55,"-") -> 26538446.32
A40: Плата за послуги, що надаються бюджетними установами згідно із законодавством | C40: 110 | D40: Х | G40: =SUM(G41:I45) -> 26460272.97
A41: у тому числі: плата за послуги, що надаються бюджетними установами згідно з їх основною діяльністю | C41: 111 | D41: Х | G41: =Ф.4.1.ЗВЕД!H22 -> 14075837.27
A43: надходження бюджетних установ від додаткової (господарської) діяльності | C43: 112 | D43: Х | G43: =Ф.4.1.ЗВЕД!H23 -> 12075568.79
A44: плата за оренду майна бюджетних установ | C44: 113 | D44: Х | G44: =Ф.4.1.ЗВЕД!H24 -> 290622.16
A45: надходження бюджетних установ від реалізації в установленому порядку майна (крім нерухомого майна) | C45: 114 | D45: Х | G45: =Ф.4.1.ЗВЕД!H25 -> 18244.75
A46: Інші джерела власних надходжень бюджетних установ | C46: 120 | D46: Х | G46: =SUM(G47:I50) -> 78173.35
A47: у тому числі: благодійні внески, гранти та дарунки | C47: 121 | D47: Х | G47: =Ф.4.2.ЗВЕД!H23 -> 46891.35
A49: кошти, що отримують бюджетні установи від підприємств, організацій, фізичних осіб та від інших бюджетних установ для виконання цільових заходів, у тому числі заходів з відчуження для суспільних потреб земельних ділянок та розміщення на них інших об’єктів нерухомого майна, що перебувають у приватній власності фізичних або юридичних осіб | C49: 122 | D49: Х | G49: =Ф.4.2.ЗВЕД!H24 -> 31282
A50: кошти, що отримують вищі та професійно-технічні навчальні заклади від розміщення на депозитах тимчасово вільних бюджетних коштів, отриманих за надання платних послуг, якщо таким закладам законом надано відповідне право | C50: 123 | D50: Х | G50: =Ф.4.2.ЗВЕД!G25 -> 0
A51: кошти, отримані від реалізації майнових прав на фільми, вихідні матеріали фільмів та фільмокопій, створені за бюджетні кошти за державним замовленням або на умовах фінансової підтримки | C51: 124 | D51: Х | G51: =Ф.4.2.ЗВЕД!H26 -> 0
A52: Інші надходження спеціального фонду | C52: 130 | D52: Х
A53: Надходження коштів на виконання програм соціально-економічного та культурного розвитку регіонів | C53: 140 | D53: Х | G53: =Ф.4.4.ЗВЕД!G21 -> 0
A54: Надходження позик міжнародних фінансових організацій | C54: 150 | D54: Х | G54: =Ф.4.3.1.ЗВЕД!J22 -> 0
A56: Перераховано залишок | C56: 200 | D56: Х | G56: =SUM(Ф.4.1.ЗВЕД!F21)+SUM(Ф.4.2.ЗВЕД!F22)+SUM(Ф.4.3.ЗВЕД!G22)+SUM(Ф.4.4.ЗВЕД!F20)+SUM(Ф.4.3.1.ЗВЕД!H22) -> 40171.5
A57: Отримано залишок | C57: 300 | D57: Х | G57: 173427.38
A58: Видатки та надання кредитів | C58: 400 | D58: Х | G58: =SUM(G59)+SUM(G61)+SUM(G62) -> 25034473.01
A59: у тому числі: поточні | C59: 401 | D59: Х | G59: =Ф.4.1.ЗВЕД!L29+Ф.4.2.ЗВЕД!J30+Ф.4.3.ЗВЕД!J24+Ф.4.4.ЗВЕД!I25+Ф.4.3.1.ЗВЕД!P23 -> 24416803.69
A61: капітальні | C61: 402 | D61: Х | G61: =Ф.4.1.ЗВЕД!L63+Ф.4.2.ЗВЕД!J64+Ф.4.3.ЗВЕД!J58+Ф.4.4.ЗВЕД!I59+Ф.4.3.1.ЗВЕД!P57 -> 617669.32
A62: надання кредитів | C62: 403 | D62: Х | G62: =Ф.4.3.ЗВЕД!J78+Ф.4.3.ЗВЕД!J83+Ф.4.3.1.ЗВЕД!P77+Ф.4.3.1.ЗВЕД!P82+Ф.4.2.ЗВЕД!J87+Ф.4.2.ЗВЕД!J96 -> 0
A63: Списані недостачі | C63: 500 | D63: Х | G63: 0
A64: Списана заборгованість (+; -) | C64: 600 | D64: Х
A65: у тому числі: дебіторська | C65: 601 | D65: Х
A67: кредиторська | C67: 602 | D67: Х | G67: =SUM('Ф.7(СФ).ЗВЕД'!L26)+SUM('Ф.7(СФ).ЗВЕД'!L27) -> 0
A68: Капітал у дооцінках (+; - ) | C68: 700 | D68: Х | G68: =SUM(G69:I70) -> 0
A69: у тому числі уцінка | C69: 701 | D69: Х | G69: 0
A70: дооцінка | C70: 702 | D70: Х | G70: 0
A71: Інші видатки | C71: 800 | D71: Х | G71: -4021127.23
A72: Фінансовий результат за спеціальним фондом (профіцит “+”; дефіцит “-”) | C72: 900 | G72: 5658356.42
A75: =ЗАПОЛНИТЬ!$F$30 -> Ректор | D75: =ЗАПОЛНИТЬ!$F$26 -> В.В.Снітинський
B76: (підпис) | D76: (ініціали, прізвище)
A77: =ЗАПОЛНИТЬ!$F$31 -> Головний бухгалтер | D77: =ЗАПОЛНИТЬ!$F$28 -> Г.І.Козлова
B78: (підпис) | D78: (ініціали, прізвище)
A79: =ЗАПОЛНИТЬ!$C$19 -> "12" січня 2016 року

Sheet д3
F1: Додаток 3 до Порядку складання фінансової, бюджетної та іншої звітності розпорядниками та одержувачами бюджетних коштів (абзац четвертий підпункту 2.1.1 пункту 2.1)
A5: Звіт про рух грошових коштів
A6: =CONCATENATE("за ",ЗАПОЛНИТЬ!$B$17," ",ЗАПОЛНИТЬ!$C$17) -> за 2015 р.
A9: Установа | B9: =ЗАПОЛНИТЬ!$B$3 -> Львівський національний аграрний університет | G9: =ЗАПОЛНИТЬ!$A$13 -> за ЄДРПОУ | H9: =ЗАПОЛНИТЬ!$B$13 -> 00493735
A10: Територія | B10: =ЗАПОЛНИТЬ!$B$5 -> м.Дубляни Жовківського р-ну Львівської обл. | G10: =ЗАПОЛНИТЬ!$A$14 -> за КОАТУУ | H10: =ЗАПОЛНИТЬ!$B$14 -> 4622710200
A11: Організаційно-правова форма господарювання | C11: =ЗАПОЛНИТЬ!$D$15 -> Державна організація (установа, заклад) | G11: =ЗАПОЛНИТЬ!$A$15 -> за КОПФГ | H11: =ЗАПОЛНИТЬ!$B$15 -> 425
A12: Код та назва відомчої класифікації видатків та кредитування державного бюджету | D12: =ЗАПОЛНИТЬ!$H$9 -> 220 | E12: =IF(D12>0,VLOOKUP(D12,'ДовидникКВК(ГОС)'!A:B,2,FALSE),"") -> Міністерство освіти і науки України
A13: Код та назва типової відомчої класифікації видатків та кредитування місцевих бюджетів | D13: =ЗАПОЛНИТЬ!$H$10 -> - | E13: =ЗАПОЛНИТЬ!I10 -> -
B14: Періодичність: річна
B15: Одиниця виміру: грн. коп.
A16: Показники | C16: Код рядка | D16: Залишок на початок звітного року | E16: Перераховано залишок | F16: Отримано залишок | G16: Надходження за звітний рік | H16: Касові (перераховано з інших рахунків) за звітний рік | I16: Залишок на кінець звітного року
A18: 1 | C18: 2 | D18: 3 | E18: 4 | F18: 5 | G18: 6 | H18: 7 | I18: 8
A19: Загальний фонд - усього: | C19: 100 | D19: =D22 -> - | E19: Х | F19: Х | G19: =SUM(G20:G22) -> 52903800 | H19: =SUM(H20:H22) -> 52903800 | I19: =I22 -> 0
A20: у тому числі: рахунки в органах Державної казначейської служби України | C20: 101 | D20: Х | E20: Х | F20: Х | G20: =Ф.2.ЗВЕД!G23 -> 52903800 | H20: =Ф.2.ЗВЕД!H23 -> 52903800 | I20: Х
A22: рахунки в установах банків | C22: 102 | D22: - | E22: Х | F22: Х | G22: - | H22: - | I22: =SUM(D22)+SUM(G22)-SUM(H22) -> 0
A23: Спеціальний фонд - усього: | C23: 200 | D23: =IF(SUM(D24:D25)>0,SUM(D24:D25),"-") -> - | E23: =IF(SUM(E24:E25)>0,SUM(E24:E25),"-") -> 40171.5 | F23: =IF(SUM(F24:F25)>0,SUM(F24:F25),"-") -> 173427.38 | G23: =IF(SUM(G24:G25)>0,SUM(G24:G25),"-") -> 27283055.03 | H23: =IF(SUM(H24:H25)>0,SUM(H24:H25),"-") -> 26857827.74 | I23: 558483.17
A24: у тому числі: рахунки в органах Державної казначейської служби України | C24: 201 | D24: =SUM(D26)+SUM(D32)+SUM(D38)+SUM(D39)+SUM(D40) -> 0 | E24: =SUM(E26)+SUM(E32)+SUM(E38)+SUM(E39)+SUM(E40) -> 40171.5 | F24: =SUM(F26)+SUM(F32)+SUM(F38)+SUM(F39)+SUM(F40) -> 173427.38 | G24: 27164101.42 | H24: 26857827.74 | I24: 439529.56
A25: рахунки в установах банків | C25: 202 | D25: - | E25: - | F25: - | G25: 118953.61 | H25: - | I25: =SUM(D25)-SUM(E25)+SUM(F25)+SUM(G25)-SUM(H25) -> 118953.61
A26: Власні надходження бюджетних установ - перша група | C26: 210 | D26: =Ф.4.1.ЗВЕД!E21 -> 0 | E26: =Ф.4.1.ЗВЕД!F21 -> 40171.5 | F26: =Ф.4.1.ЗВЕД!G21 -> 173427.38 | G26: =Ф.4.1.ЗВЕД!I21 -> 27204881.68 | H26: =Ф.4.1.ЗВЕД!J27 -> 26800422.39 | I26: =Ф.4.1.ЗВЕД!N21 -> 537715.17
A27: у тому числі: плата за послуги, що надаються бюджетними установами згідно з їх основною діяльністю | C27: 211 | D27: Х | E27: Х | F27: Х | G27: =Ф.4.1.ЗВЕД!I22 -> 13858247.68 | H27: Х | I27: Х
A29: надходження бюджетних установ від додаткової (господарської) діяльності | C29: 212 | D29: Х | E29: Х | F29: Х | G29: 13037767.09 | H29: Х | I29: Х
A30: плата за оренду майна бюджетних установ | C30: 213 | D30: Х | E30: Х | F30: Х | G30: =Ф.4.1.ЗВЕД!I24 -> 290622.16 | H30: Х | I30: Х
A31: надходження бюджетних установ від реалізації в установленому порядку майна (крім нерухомого майна) | C31: 214 | D31: Х | E31: Х | F31: Х | G31: =Ф.4.1.ЗВЕД!I25 -> 18244.75 | H31: Х | I31: Х
A32: Власні надходження бюджетних установ - друга група | C32: 220 | D32: =Ф.4.2.ЗВЕД!E22 -> 0 | E32: =Ф.4.2.ЗВЕД!F22 -> 0 | F32: X | G32: =Ф.4.2.ЗВЕД!H22 -> 78173.35 | H32: =Ф.4.2.ЗВЕД!I28 -> 57405.35 | I32: =Ф.4.2.ЗВЕД!K22 -> 20768
A33: у тому числі: благодійні внески, гранти та дарунки | C33: 221 | D33: Х | E33: Х | F33: Х | G33: =Ф.4.2.ЗВЕД!H23 -> 46891.35 | H33: X | I33: Х
A35: кошти, що отримують бюджетні установи від підприємств, організацій, фізичних осіб та від інших бюджетних установ для виконання цільових заходів, у тому числі заходів з відчуження для суспільних потреб земельних ділянок та розміщення на них інших об’єктів нерухомого майна, що перебувають у приватній власності фізичних або юридичних осіб | C35: 222 | D35: Х | E35: Х | F35: Х | G35: =Ф.4.2.ЗВЕД!H24 -> 31282 | H35: X | I35: Х
A36: кошти, що отримують вищі та професійно-технічні навчальні заклади від розміщення на депозитах тимчасово вільних бюджетних коштів, отриманих за надання платних послуг, якщо таким закладам законом надано відповідне право | C36: 223 | D36: Х | E36: Х | F36: Х | G36: =Ф.4.2.ЗВЕД!H25 -> 0 | H36: X | I36: Х
A37: кошти, отримані від реалізації майнових прав на фільми, вихідні матеріали фільмів та фільмокопій, створені за бюджетні кошти за державним замовленням або на умовах фінансової підтримки | C37: 224 | D37: Х | E37: Х | F37: Х | G37: =Ф.4.2.ЗВЕД!H26 -> 0 | H37: X | I37: Х
A38: Інші надходження спеціального фонду (крім власних) | C38: 230 | D38: =Ф.4.3.ЗВЕД!F22 -> 0 | E38: =Ф.4.3.ЗВЕД!G22 -> 0 | F38: Х | G38: =Ф.4.3.ЗВЕД!H22 -> 0 | H38: =Ф.4.3.ЗВЕД!I22 -> 0 | I38: =Ф.4.3.ЗВЕД!K22 -> 0
A39: Кошти, отримані на виконання програм соціально-економічного та культурного розвитку регіонів* | C39: 240 | D39: =Ф.4.4.ЗВЕД!E20 -> 0 | E39: =Ф.4.4.ЗВЕД!F20 -> 0 | F39: Х | G39: =Ф.4.4.ЗВЕД!G20 -> 0 | H39: =Ф.4.4.ЗВЕД!H23 -> 0 | I39: =Ф.4.4.ЗВЕД!J20 -> 0
A40: Кошти міжнародних фінансових організацій | C40: 250 | D40: =Ф.4.3.1.ЗВЕД!G22 -> 0 | E40: =Ф.4.3.1.ЗВЕД!I22 -> 0 | F40: Х | G40: =Ф.4.3.1.ЗВЕД!K22 -> 0 | H40: =Ф.4.3.1.ЗВЕД!N22 -> 0 | I40: =Ф.4.3.1.ЗВЕД!R22 -> 0
A42: Інші рахунки: | C42: 300 | D42: =SUM(D43:D44) -> 0 | E42: Х | F42: Х | G42: =SUM(G43:G44) -> 370995.25 | H42: =SUM(H43:H44) -> 370995.25 | I42: =SUM(I43:I44) -> 0
A43: в органах Державної казначейської служби України | C43: 301 | D43: 0 | E43: Х | F43: Х | G43: 370995.25 | H43: 370995.25 | I43: =SUM(D43)+SUM(G43)-SUM(H43) -> 0
A44: в установах банків | C44: 302 | D44: 0 | E44: Х | F44: Х | G44: 0 | H44: 0 | I44: =SUM(D44)+SUM(G44)-SUM(H44) -> 0
A45: Усього (100+200+300) | C45: 400 | D45: =SUM(D19)+SUM(D23)+SUM(D42) -> 0 | E45: 40171.5 | F45: 173427.38 | G45: 80557850.28 | H45: 80132622.99 | I45: 558483.17
A46: * За коштами державного бюджету
B48: =ЗАПОЛНИТЬ!$F$30 -> Ректор | F48: =ЗАПОЛНИТЬ!$F$26 -> В.В.Снітинський
D49: (підпис) | F49: (ініціали, прізвище)
B50: =ЗАПОЛНИТЬ!$F$31 -> Головний бухгалтер | F50: =ЗАПОЛНИТЬ!$F$28 -> Г.І.Козлова
D51: (підпис) | F51: (ініціали, прізвище)
B52: =ЗАПОЛНИТЬ!$C$19 -> "12" січня 2016 року

Sheet Ф.2.ЗВЕД
H1: Додаток 4 до Порядку складання фінансової, бюджетної та іншої звітності розпорядниками та одержувачами бюджетних коштів
A4: ЗВІТ
A5: =IF(ЗАПОЛНИТЬ!$F$7=1,CONCATENATE(шапки!A2),CONCATENATE(шапки!A2,шапки!C2)) -> про надходження та використання коштів загального фонду (форма | G5: =IF(ЗАПОЛНИТЬ!$F$7=1,шапки!C2,шапки!D2) -> №2д, | H5: =IF(ЗАПОЛНИТЬ!$F$7=1,шапки!D2,"") -> №2м)
A6: =CONCATENATE("за ",ЗАПОЛНИТЬ!$B$17," ",ЗАПОЛНИТЬ!$C$17) -> за 2015 р.
J7: коди
A9: Установа | B9: =ЗАПОЛНИТЬ!B3 -> Львівський національний аграрний університет | I9: за ЄДРПОУ | J9: =ЗАПОЛНИТЬ!B13 -> 00493735
A10: Територія | B10: =ЗАПОЛНИТЬ!B5 -> м.Дубляни Жовківського р-ну Львівської обл. | I10: за КОАТУУ | J10: =ЗАПОЛНИТЬ!B14 -> 4622710200
A11: Організаційно-правова форма господарювання | B11: =ЗАПОЛНИТЬ!D15 -> Державна організація (установа, заклад) | I11: за КОПФГ | J11: =ЗАПОЛНИТЬ!B15 -> 425
A12: Код та назва відомчої класифікації видатків та кредитування державного бюджету | D12: =ЗАПОЛНИТЬ!H9 -> 220 | E12: =IF(D12>0,VLOOKUP(D12,'ДовидникКВК(ГОС)'!A:B,2,FALSE),"") -> Міністерство освіти і науки України
A13: Код та назва програмної класифікації видатків та кредитування державного бюджету | D13: 2201160 | E13: =IF(D13>0,VLOOKUP(D13,ДовидникКПК!B:C,2,FALSE),"") -> Підготовка кадрів вищими навчальними закладами ІІІ і ІV рівнів акредитації та забезпечення діяльності їх баз практики
A14: Код та назва типової відомчої класифікації видатків та кредитування місцевих бюджетів | D14: =ЗАПОЛНИТЬ!H10 -> - | E14: =ЗАПОЛНИТЬ!I10 -> -
A15: Код та назва програмної класифікації видатків та кредитування місцевих бюджетів (код та назва Типової програмної класифікації видатків та кредитування місцевих бюджетів / Тимчасової класифікації видатків та кредитування для бюджетів місцевого самоврядування, які не застосовують програмно-цільового методу)*
A16: Періодичність: квартальна, річна
A17: Одиниця виміру: грн. коп.
A19: Показники | B19: КЕКВ та/або ККК | C19: Код рядка | D19: Затверджено на звітний рік | E19: Затверджено на звітний період (рік)1 | F19: Залишок на початок звітного року | G19: Надійшло коштів за звітний період (рік) | H19: Касові за звітний період (рік) | I19: Фактичні за звітний період (рік) | J19: Залишок на кінець звітного періоду (року)
A22: 1 | B22: 2 | C22: 3 | D22: 4 | E22: 5 | F22: 6 | G22: 7 | H22: 8 | I22: 9 | J22: 10
A23: Видатки та надання кредитів - усього | B23: Х | C23: 010 | D23: =SUM(Ф.2.1:Ф.2.50!D23) -> 52903800 | E23: =SUM(Ф.2.1:Ф.2.50!E23) -> 52903800 | F23: =SUM(Ф.2.1:Ф.2.50!F23) -> 0 | G23: =SUM(Ф.2.1:Ф.2.50!G23) -> 52903800 | H23: =SUM(Ф.2.1:Ф.2.50!H23) -> 52903800 | I23: =SUM(Ф.2.1:Ф.2.50!I23) -> 52903800 | J23: =SUM(Ф.2.1:Ф.2.50!J23) -> 0
A24: у тому числі: Поточні видатки | B24: 2000 | C24: 020 | D24: =SUM(Ф.2.1:Ф.2.50!D24) -> 52903800 | E24: =SUM(Ф.2.1:Ф.2.50!E24) -> 0 | F24: =SUM(Ф.2.1:Ф.2.50!F24) -> 0 | G24: =SUM(Ф.2.1:Ф.2.50!G24) -> 52903800 | H24: =SUM(Ф.2.1:Ф.2.50!H24) -> 52903800 | I24: =SUM(Ф.2.1:Ф.2.50!I24) -> 52903800 | J24: =SUM(Ф.2.1:Ф.2.50!J24) -> 0
A25: Оплата праці і нарахування на заробітну плату | B25: 2100 | C25: 030 | D25: =SUM(Ф.2.1:Ф.2.50!D25) -> 0 | E25: =SUM(Ф.2.1:Ф.2.50!E25) -> 0 | F25: =SUM(Ф.2.1:Ф.2.50!F25) -> 0 | G25: =SUM(Ф.2.1:Ф.2.50!G25) -> 0 | H25: =SUM(Ф.2.1:Ф.2.50!H25) -> 0 | I25: =SUM(Ф.2.1:Ф.2.50!I25) -> 0 | J25: =SUM(Ф.2.1:Ф.2.50!J25) -> 0
A26: Оплата праці | B26: 2110 | C26: 040 | D26: =SUM(Ф.2.1:Ф.2.50!D26) -> 0 | E26: =SUM(Ф.2.1:Ф.2.50!E26) -> 0 | F26: =SUM(Ф.2.1:Ф.2.50!F26) -> 0 | G26: =SUM(Ф.2.1:Ф.2.50!G26) -> 0 | H26: =SUM(Ф.2.1:Ф.2.50!H26) -> 0 | I26: =SUM(Ф.2.1:Ф.2.50!I26) -> 0 | J26: =SUM(Ф.2.1:Ф.2.50!J26) -> 0
A27: Заробітна плата | B27: 2111 | C27: 050 | D27: =SUM(Ф.2.1:Ф.2.50!D27) -> 0 | E27: =SUM(Ф.2.1:Ф.2.50!E27) -> 0 | F27: =SUM(Ф.2.1:Ф.2.50!F27) -> 0 | G27: =SUM(Ф.2.1:Ф.2.50!G27) -> 0 | H27: =SUM(Ф.2.1:Ф.2.50!H27) -> 0 | I27: =SUM(Ф.2.1:Ф.2.50!I27) -> 0 | J27: =SUM(Ф.2.1:Ф.2.50!J27) -> 0
A28: Грошове забезпечення військовослужбовців | B28: 2112 | C28: 060 | D28: =SUM(Ф.2.1:Ф.2.50!D28) -> 0 | E28: =SUM(Ф.2.1:Ф.2.50!E28) -> 0 | F28: =SUM(Ф.2.1:Ф.2.50!F28) -> 0 | G28: =SUM(Ф.2.1:Ф.2.50!G28) -> 0 | H28: =SUM(Ф.2.1:Ф.2.50!H28) -> 0 | I28: =SUM(Ф.2.1:Ф.2.50!I28) -> 0 | J28: =SUM(Ф.2.1:Ф.2.50!J28) -> 0
A29: Нарахування на оплату праці | B29: 2120 | C29: 070 | D29: =SUM(Ф.2.1:Ф.2.50!D29) -> 0 | E29: =SUM(Ф.2.1:Ф.2.50!E29) -> 0 | F29: =SUM(Ф.2.1:Ф.2.50!F29) -> 0 | G29: =SUM(Ф.2.1:Ф.2.50!G29) -> 0 | H29: =SUM(Ф.2.1:Ф.2.50!H29) -> 0 | I29: =SUM(Ф.2.1:Ф.2.50!I29) -> 0 | J29: =SUM(Ф.2.1:Ф.2.50!J29) -> 0
A30: Використання товарів і послуг | B30: 2200 | C30: 080 | D30: =SUM(Ф.2.1:Ф.2.50!D30) -> 52903800 | E30: =SUM(Ф.2.1:Ф.2.50!E30) -> 0 | F30: =SUM(Ф.2.1:Ф.2.50!F30) -> 0 | G30: =SUM(Ф.2.1:Ф.2.50!G30) -> 52903800 | H30: =SUM(Ф.2.1:Ф.2.50!H30) -> 52903800 | I30: =SUM(Ф.2.1:Ф.2.50!I30) -> 52903800 | J30: =SUM(Ф.2.1:Ф.2.50!J30) -> 0
A31: Предмети, матеріали, обладнання та інвентар | B31: 2210 | C31: 090 | D31: =SUM(Ф.2.1:Ф.2.50!D31) -> 0 | E31: =SUM(Ф.2.1:Ф.2.50!E31) -> 0 | F31: =SUM(Ф.2.1:Ф.2.50!F31) -> 0 | G31: =SUM(Ф.2.1:Ф.2.50!G31) -> 0 | H31: =SUM(Ф.2.1:Ф.2.50!H31) -> 0 | I31: =SUM(Ф.2.1:Ф.2.50!I31) -> 0 | J31: =SUM(Ф.2.1:Ф.2.50!J31) -> 0
A32: Медикаменти та перев’язувальні матеріали | B32: 2220 | C32: 100 | D32: =SUM(Ф.2.1:Ф.2.50!D32) -> 0 | E32: =SUM(Ф.2.1:Ф.2.50!E32) -> 0 | F32: =SUM(Ф.2.1:Ф.2.50!F32) -> 0 | G32: =SUM(Ф.2.1:Ф.2.50!G32) -> 0 | H32: =SUM(Ф.2.1:Ф.2.50!H32) -> 0 | I32: =SUM(Ф.2.1:Ф.2.50!I32) -> 0 | J32: =SUM(Ф.2.1:Ф.2.50!J32) -> 0
A33: Продукти харчування | B33: 2230 | C33: 110 | D33: =SUM(Ф.2.1:Ф.2.50!D33) -> 0 | E33: =SUM(Ф.2.1:Ф.2.50!E33) -> 0 | F33: =SUM(Ф.2.1:Ф.2.50!F33) -> 0 | G33: =SUM(Ф.2.1:Ф.2.50!G33) -> 0 | H33: =SUM(Ф.2.1:Ф.2.50!H33) -> 0 | I33: =SUM(Ф.2.1:Ф.2.50!I33) -> 0 | J33: =SUM(Ф.2.1:Ф.2.50!J33) -> 0
A34: Оплата послуг (крім комунальних) | B34: 2240 | C34: 120 | D34: =SUM(Ф.2.1:Ф.2.50!D34) -> 0 | E34: =SUM(Ф.2.1:Ф.2.50!E34) -> 0 | F34: =SUM(Ф.2.1:Ф.2.50!F34) -> 0 | G34: =SUM(Ф.2.1:Ф.2.50!G34) -> 0 | H34: =SUM(Ф.2.1:Ф.2.50!H34) -> 0 | I34: =SUM(Ф.2.1:Ф.2.50!I34) -> 0 | J34: =SUM(Ф.2.1:Ф.2.50!J34) -> 0
A35: Видатки на відрядження | B35: 2250 | C35: 130 | D35: =SUM(Ф.2.1:Ф.2.50!D35) -> 0 | E35: =SUM(Ф.2.1:Ф.2.50!E35) -> 0 | F35: =SUM(Ф.2.1:Ф.2.50!F35) -> 0 | G35: =SUM(Ф.2.1:Ф.2.50!G35) -> 0 | H35: =SUM(Ф.2.1:Ф.2.50!H35) -> 0 | I35: =SUM(Ф.2.1:Ф.2.50!I35) -> 0 | J35: =SUM(Ф.2.1:Ф.2.50!J35) -> 0
A36: Видатки та заходи спеціального призначення | B36: 2260 | C36: 140 | D36: =SUM(Ф.2.1:Ф.2.50!D36) -> 0 | E36: =SUM(Ф.2.1:Ф.2.50!E36) -> 0 | F36: =SUM(Ф.2.1:Ф.2.50!F36) -> 0 | G36: =SUM(Ф.2.1:Ф.2.50!G36) -> 0 | H36: =SUM(Ф.2.1:Ф.2.50!H36) -> 0 | I36: =SUM(Ф.2.1:Ф.2.50!I36) -> 0 | J36: =SUM(Ф.2.1:Ф.2.50!J36) -> 0
A37: Оплата комунальних послуг та енергоносіїв | B37: 2270 | C37: 150 | D37: =SUM(Ф.2.1:Ф.2.50!D37) -> 0 | E37: =SUM(Ф.2.1:Ф.2.50!E37) -> 0 | F37: =SUM(Ф.2.1:Ф.2.50!F37) -> 0 | G37: =SUM(Ф.2.1:Ф.2.50!G37) -> 0 | H37: =SUM(Ф.2.1:Ф.2.50!H37) -> 0 | I37: =SUM(Ф.2.1:Ф.2.50!I37) -> 0 | J37: =SUM(Ф.2.1:Ф.2.50!J37) -> 0
A38: Оплата теплопостачання | B38: 2271 | C38: 160 | D38: =SUM(Ф.2.1:Ф.2.50!D38) -> 0 | E38: =SUM(Ф.2.1:Ф.2.50!E38) -> 0 | F38: =SUM(Ф.2.1:Ф.2.50!F38) -> 0 | G38: =SUM(Ф.2.1:Ф.2.50!G38) -> 0 | H38: =SUM(Ф.2.1:Ф.2.50!H38) -> 0 | I38: =SUM(Ф.2.1:Ф.2.50!I38) -> 0 | J38: =SUM(Ф.2.1:Ф.2.50!J38) -> 0
A39: Оплата водопостачання та водовідведення | B39: 2272 | C39: 170 | D39: =SUM(Ф.2.1:Ф.2.50!D39) -> 0 | E39: =SUM(Ф.2.1:Ф.2.50!E39) -> 0 | F39: =SUM(Ф.2.1:Ф.2.50!F39) -> 0 | G39: =SUM(Ф.2.1:Ф.2.50!G39) -> 0 | H39: =SUM(Ф.2.1:Ф.2.50!H39) -> 0 | I39: =SUM(Ф.2.1:Ф.2.50!I39) -> 0 | J39: =SUM(Ф.2.1:Ф.2.50!J39) -> 0
A40: Оплата електроенергії | B40: 2273 | C40: 180 | D40: =SUM(Ф.2.1:Ф.2.50!D40) -> 0 | E40: =SUM(Ф.2.1:Ф.2.50!E40) -> 0 | F40: =SUM(Ф.2.1:Ф.2.50!F40) -> 0 | G40: =SUM(Ф.2.1:Ф.2.50!G40) -> 0 | H40: =SUM(Ф.2.1:Ф.2.50!H40) -> 0 | I40: =SUM(Ф.2.1:Ф.2.50!I40) -> 0 | J40: =SUM(Ф.2.1:Ф.2.50!J40) -> 0
A41: Оплата природного газу | B41: 2274 | C41: 190 | D41: =SUM(Ф.2.1:Ф.2.50!D41) -> 0 | E41: =SUM(Ф.2.1:Ф.2.50!E41) -> 0 | F41: =SUM(Ф.2.1:Ф.2.50!F41) -> 0 | G41: =SUM(Ф.2.1:Ф.2.50!G41) -> 0 | H41: =SUM(Ф.2.1:Ф.2.50!H41) -> 0 | I41: =SUM(Ф.2.1:Ф.2.50!I41) -> 0 | J41: =SUM(Ф.2.1:Ф.2.50!J41) -> 0
A42: Оплата інших енергоносіїв | B42: 2275 | C42: 200 | D42: =SUM(Ф.2.1:Ф.2.50!D42) -> 0 | E42: =SUM(Ф.2.1:Ф.2.50!E42) -> 0 | F42: =SUM(Ф.2.1:Ф.2.50!F42) -> 0 | G42: =SUM(Ф.2.1:Ф.2.50!G42) -> 0 | H42: =SUM(Ф.2.1:Ф.2.50!H42) -> 0 | I42: =SUM(Ф.2.1:Ф.2.50!I42) -> 0 | J42: =SUM(Ф.2.1:Ф.2.50!J42) -> 0
A43: Дослідження і розробки, окремі заходи по реалізації державних (регіональних) програм | B43: 2280 | C43: 210 | D43: =SUM(Ф.2.1:Ф.2.50!D43) -> 52903800 | E43: =SUM(Ф.2.1:Ф.2.50!E43) -> 0 | F43: =SUM(Ф.2.1:Ф.2.50!F43) -> 0 | G43: =SUM(Ф.2.1:Ф.2.50!G43) -> 52903800 | H43: =SUM(Ф.2.1:Ф.2.50!H43) -> 52903800 | I43: =SUM(Ф.2.1:Ф.2.50!I43) -> 52903800 | J43: =SUM(Ф.2.1:Ф.2.50!J43) -> 0
A44: Дослідження і розробки, окремі заходи розвитку по реалізації державних (регіональних) програм | B44: 2281 | C44: 220 | D44: =SUM(Ф.2.1:Ф.2.50!D44) -> 0 | E44: =SUM(Ф.2.1:Ф.2.50!E44) -> 0 | F44: =SUM(Ф.2.1:Ф.2.50!F44) -> 0 | G44: =SUM(Ф.2.1:Ф.2.50!G44) -> 0 | H44: =SUM(Ф.2.1:Ф.2.50!H44) -> 0 | I44: =SUM(Ф.2.1:Ф.2.50!I44) -> 0 | J44: =SUM(Ф.2.1:Ф.2.50!J44) -> 0
A45: Окремі заходи по реалізації державних (регіональних) програм, не віднесені до заходів розвитку | B45: 2282 | C45: 230 | D45: =SUM(Ф.2.1:Ф.2.50!D45) -> 52903800 | E45: =SUM(Ф.2.1:Ф.2.50!E45) -> 52903800 | F45: =SUM(Ф.2.1:Ф.2.50!F45) -> 0 | G45: =SUM(Ф.2.1:Ф.2.50!G45) -> 52903800 | H45: =SUM(Ф.2.1:Ф.2.50!H45) -> 52903800 | I45: =SUM(Ф.2.1:Ф.2.50!I45) -> 52903800 | J45: =SUM(Ф.2.1:Ф.2.50!J45) -> 0
A46: Обслуговування боргових зобов’язань | B46: 2400 | C46: 240 | D46: =SUM(Ф.2.1:Ф.2.50!D46) -> 0 | E46: =SUM(Ф.2.1:Ф.2.50!E46) -> 0 | F46: =SUM(Ф.2.1:Ф.2.50!F46) -> 0 | G46: =SUM(Ф.2.1:Ф.2.50!G46) -> 0 | H46: =SUM(Ф.2.1:Ф.2.50!H46) -> 0 | I46: =SUM(Ф.2.1:Ф.2.50!I46) -> 0 | J46: =SUM(Ф.2.1:Ф.2.50!J46) -> 0
A47: Обслуговування внутрішніх боргових зобов’язань | B47: 2410 | C47: 250 | D47: =SUM(Ф.2.1:Ф.2.50!D47) -> 0 | E47: =SUM(Ф.2.1:Ф.2.50!E47) -> 0 | F47: =SUM(Ф.2.1:Ф.2.50!F47) -> 0 | G47: =SUM(Ф.2.1:Ф.2.50!G47) -> 0 | H47: =SUM(Ф.2.1:Ф.2.50!H47) -> 0 | I47: =SUM(Ф.2.1:Ф.2.50!I47) -> 0 | J47: =SUM(Ф.2.1:Ф.2.50!J47) -> 0
A48: Обслуговування зовнішніх боргових зобов’язань | B48: 2420 | C48: 260 | D48: =SUM(Ф.2.1:Ф.2.50!D48) -> 0 | E48: =SUM(Ф.2.1:Ф.2.50!E48) -> 0 | F48: =SUM(Ф.2.1:Ф.2.50!F48) -> 0 | G48: =SUM(Ф.2.1:Ф.2.50!G48) -> 0 | H48: =SUM(Ф.2.1:Ф.2.50!H48) -> 0 | I48: =SUM(Ф.2.1:Ф.2.50!I48) -> 0 | J48: =SUM(Ф.2.1:Ф.2.50!J48) -> 0
A49: Поточні трансферти | B49: 2600 | C49: 270 | D49: =SUM(Ф.2.1:Ф.2.50!D49) -> 0 | E49: =SUM(Ф.2.1:Ф.2.50!E49) -> 0 | F49: =SUM(Ф.2.1:Ф.2.50!F49) -> 0 | G49: =SUM(Ф.2.1:Ф.2.50!G49) -> 0 | H49: =SUM(Ф.2.1:Ф.2.50!H49) -> 0 | I49: =SUM(Ф.2.1:Ф.2.50!I49) -> 0 | J49: =SUM(Ф.2.1:Ф.2.50!J49) -> 0
A50: Субсидії та поточні трансферти підприємствам (установам, організаціям) | B50: 2610 | C50: 280 | D50: =SUM(Ф.2.1:Ф.2.50!D50) -> 0 | E50: =SUM(Ф.2.1:Ф.2.50!E50) -> 0 | F50: =SUM(Ф.2.1:Ф.2.50!F50) -> 0 | G50: =SUM(Ф.2.1:Ф.2.50!G50) -> 0 | H50: =SUM(Ф.2.1:Ф.2.50!H50) -> 0 | I50: =SUM(Ф.2.1:Ф.2.50!I50) -> 0 | J50: =SUM(Ф.2.1:Ф.2.50!J50) -> 0
A51: Поточні трансферти органам державного управління інших рівнів | B51: 2620 | C51: 290 | D51: =SUM(Ф.2.1:Ф.2.50!D51) -> 0 | E51: =SUM(Ф.2.1:Ф.2.50!E51) -> 0 | F51: =SUM(Ф.2.1:Ф.2.50!F51) -> 0 | G51: =SUM(Ф.2.1:Ф.2.50!G51) -> 0 | H51: =SUM(Ф.2.1:Ф.2.50!H51) -> 0 | I51: =SUM(Ф.2.1:Ф.2.50!I51) -> 0 | J51: =SUM(Ф.2.1:Ф.2.50!J51) -> 0
A52: Поточні трансферти урядам іноземних держав та міжнародним організаціям | B52: 2630 | C52: 300 | D52: =SUM(Ф.2.1:Ф.2.50!D52) -> 0 | E52: =SUM(Ф.2.1:Ф.2.50!E52) -> 0 | F52: =SUM(Ф.2.1:Ф.2.50!F52) -> 0 | G52: =SUM(Ф.2.1:Ф.2.50!G52) -> 0 | H52: =SUM(Ф.2.1:Ф.2.50!H52) -> 0 | I52: =SUM(Ф.2.1:Ф.2.50!I52) -> 0 | J52: =SUM(Ф.2.1:Ф.2.50!J52) -> 0
A53: Соціальне забезпечення | B53: 2700 | C53: 310 | D53: =SUM(Ф.2.1:Ф.2.50!D53) -> 0 | E53: =SUM(Ф.2.1:Ф.2.50!E53) -> 0 | F53: =SUM(Ф.2.1:Ф.2.50!F53) -> 0 | G53: =SUM(Ф.2.1:Ф.2.50!G53) -> 0 | H53: =SUM(Ф.2.1:Ф.2.50!H53) -> 0 | I53: =SUM(Ф.2.1:Ф.2.50!I53) -> 0 | J53: =SUM(Ф.2.1:Ф.2.50!J53) -> 0
A54: Виплата пенсій і допомоги | B54: 2710 | C54: 320 | D54: =SUM(Ф.2.1:Ф.2.50!D54) -> 0 | E54: =SUM(Ф.2.1:Ф.2.50!E54) -> 0 | F54: =SUM(Ф.2.1:Ф.2.50!F54) -> 0 | G54: =SUM(Ф.2.1:Ф.2.50!G54) -> 0 | H54: =SUM(Ф.2.1:Ф.2.50!H54) -> 0 | I54: =SUM(Ф.2.1:Ф.2.50!I54) -> 0 | J54: =SUM(Ф.2.1:Ф.2.50!J54) -> 0
A55: Стипендії | B55: 2720 | C55: 330 | D55: =SUM(Ф.2.1:Ф.2.50!D55) -> 0 | E55: =SUM(Ф.2.1:Ф.2.50!E55) -> 0 | F55: =SUM(Ф.2.1:Ф.2.50!F55) -> 0 | G55: =SUM(Ф.2.1:Ф.2.50!G55) -> 0 | H55: =SUM(Ф.2.1:Ф.2.50!H55) -> 0 | I55: =SUM(Ф.2.1:Ф.2.50!I55) -> 0 | J55: =SUM(Ф.2.1:Ф.2.50!J55) -> 0
A56: Інші виплати населенню | B56: 2730 | C56: 340 | D56: =SUM(Ф.2.1:Ф.2.50!D56) -> 0 | E56: =SUM(Ф.2.1:Ф.2.50!E56) -> 0 | F56: =SUM(Ф.2.1:Ф.2.50!F56) -> 0 | G56: =SUM(Ф.2.1:Ф.2.50!G56) -> 0 | H56: =SUM(Ф.2.1:Ф.2.50!H56) -> 0 | I56: =SUM(Ф.2.1:Ф.2.50!I56) -> 0 | J56: =SUM(Ф.2.1:Ф.2.50!J56) -> 0
A57: Інші поточні видатки | B57: 2800 | C57: 350 | D57: =SUM(Ф.2.1:Ф.2.50!D57) -> 0 | E57: =SUM(Ф.2.1:Ф.2.50!E57) -> 0 | F57: =SUM(Ф.2.1:Ф.2.50!F57) -> 0 | G57: =SUM(Ф.2.1:Ф.2.50!G57) -> 0 | H57: =SUM(Ф.2.1:Ф.2.50!H57) -> 0 | I57: =SUM(Ф.2.1:Ф.2.50!I57) -> 0 | J57: =SUM(Ф.2.1:Ф.2.50!J57) -> 0
A58: Капітальні видатки | B58: 3000 | C58: 360 | D58: =SUM(Ф.2.1:Ф.2.50!D58) -> 0 | E58: =SUM(Ф.2.1:Ф.2.50!E58) -> 0 | F58: =SUM(Ф.2.1:Ф.2.50!F58) -> 0 | G58: =SUM(Ф.2.1:Ф.2.50!G58) -> 0 | H58: =SUM(Ф.2.1:Ф.2.50!H58) -> 0 | I58: =SUM(Ф.2.1:Ф.2.50!I58) -> 0 | J58: =SUM(Ф.2.1:Ф.2.50!J58) -> 0
A59: Придбання основного капіталу | B59: 3100 | C59: 370 | D59: =SUM(Ф.2.1:Ф.2.50!D59) -> 0 | E59: =SUM(Ф.2.1:Ф.2.50!E59) -> 0 | F59: =SUM(Ф.2.1:Ф.2.50!F59) -> 0 | G59: =SUM(Ф.2.1:Ф.2.50!G59) -> 0 | H59: =SUM(Ф.2.1:Ф.2.50!H59) -> 0 | I59: =SUM(Ф.2.1:Ф.2.50!I59) -> 0 | J59: =SUM(Ф.2.1:Ф.2.50!J59) -> 0
A60: Придбання обладнання і предметів довгострокового користування | B60: 3110 | C60: 380 | D60: =SUM(Ф.2.1:Ф.2.50!D60) -> 0 | E60: =SUM(Ф.2.1:Ф.2.50!E60) -> 0 | F60: =SUM(Ф.2.1:Ф.2.50!F60) -> 0 | G60: =SUM(Ф.2.1:Ф.2.50!G60) -> 0 | H60: =SUM(Ф.2.1:Ф.2.50!H60) -> 0 | I60: =SUM(Ф.2.1:Ф.2.50!I60) -> 0 | J60: =SUM(Ф.2.1:Ф.2.50!J60) -> 0
A61: Капітальне будівництво (придбання) | B61: 3120 | C61: 390 | D61: =SUM(Ф.2.1:Ф.2.50!D61) -> 0 | E61: =SUM(Ф.2.1:Ф.2.50!E61) -> 0 | F61: =SUM(Ф.2.1:Ф.2.50!F61) -> 0 | G61: =SUM(Ф.2.1:Ф.2.50!G61) -> 0 | H61: =SUM(Ф.2.1:Ф.2.50!H61) -> 0 | I61: =SUM(Ф.2.1:Ф.2.50!I61) -> 0 | J61: =SUM(Ф.2.1:Ф.2.50!J61) -> 0
A62: Капітальне будівництво (придбання) житла | B62: 3121 | C62: 400 | D62: =SUM(Ф.2.1:Ф.2.50!D62) -> 0 | E62: =SUM(Ф.2.1:Ф.2.50!E62) -> 0 | F62: =SUM(Ф.2.1:Ф.2.50!F62) -> 0 | G62: =SUM(Ф.2.1:Ф.2.50!G62) -> 0 | H62: =SUM(Ф.2.1:Ф.2.50!H62) -> 0 | I62: =SUM(Ф.2.1:Ф.2.50!I62) -> 0 | J62: =SUM(Ф.2.1:Ф.2.50!J62) -> 0
A63: Капітальне будівництво (придбання) інших об’єктів | B63: 3122 | C63: 410 | D63: =SUM(Ф.2.1:Ф.2.50!D63) -> 0 | E63: =SUM(Ф.2.1:Ф.2.50!E63) -> 0 | F63: =SUM(Ф.2.1:Ф.2.50!F63) -> 0 | G63: =SUM(Ф.2.1:Ф.2.50!G63) -> 0 | H63: =SUM(Ф.2.1:Ф.2.50!H63) -> 0 | I63: =SUM(Ф.2.1:Ф.2.50!I63) -> 0 | J63: =SUM(Ф.2.1:Ф.2.50!J63) -> 0
A64: Капітальний ремонт | B64: 3130 | C64: 420 | D64: =SUM(Ф.2.1:Ф.2.50!D64) -> 0 | E64: =SUM(Ф.2.1:Ф.2.50!E64) -> 0 | F64: =SUM(Ф.2.1:Ф.2.50!F64) -> 0 | G64: =SUM(Ф.2.1:Ф.2.50!G64) -> 0 | H64: =SUM(Ф.2.1:Ф.2.50!H64) -> 0 | I64: =SUM(Ф.2.1:Ф.2.50!I64) -> 0 | J64: =SUM(Ф.2.1:Ф.2.50!J64) -> 0
A65: Капітальний ремонт житлового фонду (приміщень) | B65: 3131 | C65: 430 | D65: =SUM(Ф.2.1:Ф.2.50!D65) -> 0 | E65: =SUM(Ф.2.1:Ф.2.50!E65) -> 0 | F65: =SUM(Ф.2.1:Ф.2.50!F65) -> 0 | G65: =SUM(Ф.2.1:Ф.2.50!G65) -> 0 | H65: =SUM(Ф.2.1:Ф.2.50!H65) -> 0 | I65: =SUM(Ф.2.1:Ф.2.50!I65) -> 0 | J65: =SUM(Ф.2.1:Ф.2.50!J65) -> 0
A66: Капітальний ремонт інших об’єктів | B66: 3132 | C66: 440 | D66: =SUM(Ф.2.1:Ф.2.50!D66) -> 0 | E66: =SUM(Ф.2.1:Ф.2.50!E66) -> 0 | F66: =SUM(Ф.2.1:Ф.2.50!F66) -> 0 | G66: =SUM(Ф.2.1:Ф.2.50!G66) -> 0 | H66: =SUM(Ф.2.1:Ф.2.50!H66) -> 0 | I66: =SUM(Ф.2.1:Ф.2.50!I66) -> 0 | J66: =SUM(Ф.2.1:Ф.2.50!J66) -> 0
A67: Реконструкція та реставрація | B67: 3140 | C67: 450 | D67: =SUM(Ф.2.1:Ф.2.50!D67) -> 0 | E67: =SUM(Ф.2.1:Ф.2.50!E67) -> 0 | F67: =SUM(Ф.2.1:Ф.2.50!F67) -> 0 | G67: =SUM(Ф.2.1:Ф.2.50!G67) -> 0 | H67: =SUM(Ф.2.1:Ф.2.50!H67) -> 0 | I67: =SUM(Ф.2.1:Ф.2.50!I67) -> 0 | J67: =SUM(Ф.2.1:Ф.2.50!J67) -> 0
A68: Реконструкція житлового фонду (приміщень) | B68: 3141 | C68: 460 | D68: =SUM(Ф.2.1:Ф.2.50!D68) -> 0 | E68: =SUM(Ф.2.1:Ф.2.50!E68) -> 0 | F68: =SUM(Ф.2.1:Ф.2.50!F68) -> 0 | G68: =SUM(Ф.2.1:Ф.2.50!G68) -> 0 | H68: =SUM(Ф.2.1:Ф.2.50!H68) -> 0 | I68: =SUM(Ф.2.1:Ф.2.50!I68) -> 0 | J68: =SUM(Ф.2.1:Ф.2.50!J68) -> 0
A69: Реконструкція та реставрація інших об’єктів | B69: 3142 | C69: 470 | D69: =SUM(Ф.2.1:Ф.2.50!D69) -> 0 | E69: =SUM(Ф.2.1:Ф.2.50!E69) -> 0 | F69: =SUM(Ф.2.1:Ф.2.50!F69) -> 0 | G69: =SUM(Ф.2.1:Ф.2.50!G69) -> 0 | H69: =SUM(Ф.2.1:Ф.2.50!H69) -> 0 | I69: =SUM(Ф.2.1:Ф.2.50!I69) -> 0 | J69: =SUM(Ф.2.1:Ф.2.50!J69) -> 0
A70: Реставрація пам’яток культури, історії та архітектури | B70: 3143 | C70: 480 | D70: =SUM(Ф.2.1:Ф.2.50!D70) -> 0 | E70: =SUM(Ф.2.1:Ф.2.50!E70) -> 0 | F70: =SUM(Ф.2.1:Ф.2.50!F70) -> 0 | G70: =SUM(Ф.2.1:Ф.2.50!G70) -> 0 | H70: =SUM(Ф.2.1:Ф.2.50!H70) -> 0 | I70: =SUM(Ф.2.1:Ф.2.50!I70) -> 0 | J70: =SUM(Ф.2.1:Ф.2.50!J70) -> 0
A71: Створення державних запасів і резервів | B71: 3150 | C71: 490 | D71: =SUM(Ф.2.1:Ф.2.50!D71) -> 0 | E71: =SUM(Ф.2.1:Ф.2.50!E71) -> 0 | F71: =SUM(Ф.2.1:Ф.2.50!F71) -> 0 | G71: =SUM(Ф.2.1:Ф.2.50!G71) -> 0 | H71: =SUM(Ф.2.1:Ф.2.50!H71) -> 0 | I71: =SUM(Ф.2.1:Ф.2.50!I71) -> 0 | J71: =SUM(Ф.2.1:Ф.2.50!J71) -> 0
A72: Придбання землі та нематеріальних активів | B72: 3160 | C72: 500 | D72: =SUM(Ф.2.1:Ф.2.50!D72) -> 0 | E72: =SUM(Ф.2.1:Ф.2.50!E72) -> 0 | F72: =SUM(Ф.2.1:Ф.2.50!F72) -> 0 | G72: =SUM(Ф.2.1:Ф.2.50!G72) -> 0 | H72: =SUM(Ф.2.1:Ф.2.50!H72) -> 0 | I72: =SUM(Ф.2.1:Ф.2.50!I72) -> 0 | J72: =SUM(Ф.2.1:Ф.2.50!J72) -> 0
A73: Капітальні трансферти | B73: 3200 | C73: 510 | D73: =SUM(Ф.2.1:Ф.2.50!D73) -> 0 | E73: =SUM(Ф.2.1:Ф.2.50!E73) -> 0 | F73: =SUM(Ф.2.1:Ф.2.50!F73) -> 0 | G73: =SUM(Ф.2.1:Ф.2.50!G73) -> 0 | H73: =SUM(Ф.2.1:Ф.2.50!H73) -> 0 | I73: =SUM(Ф.2.1:Ф.2.50!I73) -> 0 | J73: =SUM(Ф.2.1:Ф.2.50!J73) -> 0
A74: Капітальні трансферти підприємствам (установам, організаціям) | B74: 3210 | C74: 520 | D74: =SUM(Ф.2.1:Ф.2.50!D74) -> 0 | E74: =SUM(Ф.2.1:Ф.2.50!E74) -> 0 | F74: =SUM(Ф.2.1:Ф.2.50!F74) -> 0 | G74: =SUM(Ф.2.1:Ф.2.50!G74) -> 0 | H74: =SUM(Ф.2.1:Ф.2.50!H74) -> 0 | I74: =SUM(Ф.2.1:Ф.2.50!I74) -> 0 | J74: =SUM(Ф.2.1:Ф.2.50!J74) -> 0
A75: Капітальні трансферти органам державного управління інших рівнів | B75: 3220 | C75: 530 | D75: =SUM(Ф.2.1:Ф.2.50!D75) -> 0 | E75: =SUM(Ф.2.1:Ф.2.50!E75) -> 0 | F75: =SUM(Ф.2.1:Ф.2.50!F75) -> 0 | G75: =SUM(Ф.2.1:Ф.2.50!G75) -> 0 | H75: =SUM(Ф.2.1:Ф.2.50!H75) -> 0 | I75: =SUM(Ф.2.1:Ф.2.50!I75) -> 0 | J75: =SUM(Ф.2.1:Ф.2.50!J75) -> 0
A76: Капітальні трансферти урядам іноземних держав та міжнародним організаціям | B76: 3230 | C76: 540 | D76: =SUM(Ф.2.1:Ф.2.50!D76) -> 0 | E76: =SUM(Ф.2.1:Ф.2.50!E76) -> 0 | F76: =SUM(Ф.2.1:Ф.2.50!F76) -> 0 | G76: =SUM(Ф.2.1:Ф.2.50!G76) -> 0 | H76: =SUM(Ф.2.1:Ф.2.50!H76) -> 0 | I76: =SUM(Ф.2.1:Ф.2.50!I76) -> 0 | J76: =SUM(Ф.2.1:Ф.2.50!J76) -> 0
A77: Капітальні трансферти населенню | B77: 3240 | C77: 550 | D77: =SUM(Ф.2.1:Ф.2.50!D77) -> 0 | E77: =SUM(Ф.2.1:Ф.2.50!E77) -> 0 | F77: =SUM(Ф.2.1:Ф.2.50!F77) -> 0 | G77: =SUM(Ф.2.1:Ф.2.50!G77) -> 0 | H77: =SUM(Ф.2.1:Ф.2.50!H77) -> 0 | I77: =SUM(Ф.2.1:Ф.2.50!I77) -> 0 | J77: =SUM(Ф.2.1:Ф.2.50!J77) -> 0
A78: Внутрішнє кредитування | B78: 4100 | C78: 560 | D78: =SUM(Ф.2.1:Ф.2.50!D78) -> 0 | E78: =SUM(Ф.2.1:Ф.2.50!E78) -> 0 | F78: =SUM(Ф.2.1:Ф.2.50!F78) -> 0 | G78: =SUM(Ф.2.1:Ф.2.50!G78) -> 0 | H78: =SUM(Ф.2.1:Ф.2.50!H78) -> 0 | I78: =SUM(Ф.2.1:Ф.2.50!I78) -> 0 | J78: =SUM(Ф.2.1:Ф.2.50!J78) -> 0
A79: Надання внутрішніх кредитів | B79: 4110 | C79: 570 | D79: =SUM(Ф.2.1:Ф.2.50!D79) -> 0 | E79: =SUM(Ф.2.1:Ф.2.50!E79) -> 0 | F79: =SUM(Ф.2.1:Ф.2.50!F79) -> 0 | G79: =SUM(Ф.2.1:Ф.2.50!G79) -> 0 | H79: =SUM(Ф.2.1:Ф.2.50!H79) -> 0 | I79: =SUM(Ф.2.1:Ф.2.50!I79) -> 0 | J79: =SUM(Ф.2.1:Ф.2.50!J79) -> 0
A80: Надання кредитів органам державного управління інших рівнів | B80: 4111 | C80: 580 | D80: =SUM(Ф.2.1:Ф.2.50!D80) -> 0 | E80: =SUM(Ф.2.1:Ф.2.50!E80) -> 0 | F80: =SUM(Ф.2.1:Ф.2.50!F80) -> 0 | G80: =SUM(Ф.2.1:Ф.2.50!G80) -> 0 | H80: =SUM(Ф.2.1:Ф.2.50!H80) -> 0 | I80: =SUM(Ф.2.1:Ф.2.50!I80) -> 0 | J80: =SUM(Ф.2.1:Ф.2.50!J80) -> 0
A81: Надання кредитів підприємствам, установам, організаціям | B81: 4112 | C81: 590 | D81: =SUM(Ф.2.1:Ф.2.50!D81) -> 0 | E81: =SUM(Ф.2.1:Ф.2.50!E81) -> 0 | F81: =SUM(Ф.2.1:Ф.2.50!F81) -> 0 | G81: =SUM(Ф.2.1:Ф.2.50!G81) -> 0 | H81: =SUM(Ф.2.1:Ф.2.50!H81) -> 0 | I81: =SUM(Ф.2.1:Ф.2.50!I81) -> 0 | J81: =SUM(Ф.2.1:Ф.2.50!J81) -> 0
A82: Надання інших внутрішніх кредитів | B82: 4113 | C82: 600 | D82: =SUM(Ф.2.1:Ф.2.50!D82) -> 0 | E82: =SUM(Ф.2.1:Ф.2.50!E82) -> 0 | F82: =SUM(Ф.2.1:Ф.2.50!F82) -> 0 | G82: =SUM(Ф.2.1:Ф.2.50!G82) -> 0 | H82: =SUM(Ф.2.1:Ф.2.50!H82) -> 0 | I82: =SUM(Ф.2.1:Ф.2.50!I82) -> 0 | J82: =SUM(Ф.2.1:Ф.2.50!J82) -> 0
A83: Зовнішнє кредитування | B83: 4200 | C83: 610 | D83: =SUM(Ф.2.1:Ф.2.50!D83) -> 0 | E83: =SUM(Ф.2.1:Ф.2.50!E83) -> 0 | F83: =SUM(Ф.2.1:Ф.2.50!F83) -> 0 | G83: =SUM(Ф.2.1:Ф.2.50!G83) -> 0 | H83: =SUM(Ф.2.1:Ф.2.50!H83) -> 0 | I83: =SUM(Ф.2.1:Ф.2.50!I83) -> 0 | J83: =SUM(Ф.2.1:Ф.2.50!J83) -> 0
A84: Надання зовнішніх кредитів | B84: 4210 | C84: 620 | D84: =SUM(Ф.2.1:Ф.2.50!D84) -> 0 | E84: =SUM(Ф.2.1:Ф.2.50!E84) -> 0 | F84: =SUM(Ф.2.1:Ф.2.50!F84) -> 0 | G84: =SUM(Ф.2.1:Ф.2.50!G84) -> 0 | H84: =SUM(Ф.2.1:Ф.2.50!H84) -> 0 | I84: =SUM(Ф.2.1:Ф.2.50!I84) -> 0 | J84: =SUM(Ф.2.1:Ф.2.50!J84) -> 0
A85: Інші видатки | B85: 5000 | C85: 630 | D85: X | E85: =SUM(Ф.2.1:Ф.2.50!E85) -> 0 | F85: X | G85: X | H85: X | I85: X | J85: X
A86: Нерозподілені видатки | B86: 9000 | C86: 640 | D86: =SUM(Ф.2.1:Ф.2.50!D86) -> 0 | E86: =SUM(Ф.2.1:Ф.2.50!E86) -> 0 | F86: =SUM(Ф.2.1:Ф.2.50!F86) -> 0 | G86: =SUM(Ф.2.1:Ф.2.50!G86) -> 0 | H86: =SUM(Ф.2.1:Ф.2.50!H86) -> 0 | I86: =SUM(Ф.2.1:Ф.2.50!I86) -> 0 | J86: =SUM(Ф.2.1:Ф.2.50!J86) -> 0
A99: 1 Заповнюється розпорядниками бюджетних коштів.
A100: =ЗАПОЛНИТЬ!F30 -> Ректор | G100: =ЗАПОЛНИТЬ!F26 -> В.В.Снітинський
D101: (підпис) | G101: (ініціали, прізвище)
A102: =ЗАПОЛНИТЬ!F31 -> Головний бухгалтер | G102: =ЗАПОЛНИТЬ!F28 -> Г.І.Козлова
A103: =ЗАПОЛНИТЬ!C19 -> "12" січня 2016 року | D103: (підпис) | G103: (ініціали, прізвище)
A104: *До запровадження програмно-цільового методу складання та виконання місцевих бюджетів проставляються код та назва тимчасової класифікації видатків та кредитування місцевих бюджетів.

Sheet Ф.2.1 (hidden)
H1: Додаток 4 до Порядку складання фінансової, бюджетної та іншої звітності розпорядниками та одержувачами бюджетних коштів
A4: ЗВІТ
A5: =IF(ЗАПОЛНИТЬ!$F$7=1,CONCATENATE(шапки!A2),CONCATENATE(шапки!A2,шапки!C2)) -> про надходження та використання коштів загального фонду (форма | G5: =IF(ЗАПОЛНИТЬ!$F$7=1,шапки!C2,шапки!D2) -> №2д, | H5: =IF(ЗАПОЛНИТЬ!$F$7=1,шапки!D2,"") -> №2м)
A6: =CONCATENATE("за ",ЗАПОЛНИТЬ!$B$17," ",ЗАПОЛНИТЬ!$C$17) -> за 2015 р.
J7: коди
A9: Установа | B9: =ЗАПОЛНИТЬ!B3 -> Львівський національний аграрний університет | I9: за ЄДРПОУ | J9: =ЗАПОЛНИТЬ!B13 -> 00493735
A10: Територія | B10: =ЗАПОЛНИТЬ!B5 -> м.Дубляни Жовківського р-ну Львівської обл. | I10: за КОАТУУ | J10: =ЗАПОЛНИТЬ!B14 -> 4622710200
A11: Організаційно-правова форма господарювання | B11: =ЗАПОЛНИТЬ!D15 -> Державна організація (установа, заклад) | I11: за КОПФГ | J11: =ЗАПОЛНИТЬ!B15 -> 425
A12: Код та назва відомчої класифікації видатків та кредитування державного бюджету | D12: =ЗАПОЛНИТЬ!H9 -> 220 | E12: =IF(D12>0,VLOOKUP(D12,'ДовидникКВК(ГОС)'!A:B,2,FALSE),"") -> Міністерство освіти і науки України
A13: Код та назва програмної класифікації видатків та кредитування державного бюджету | D13: 2201160 | E13: =IF(D13>0,VLOOKUP(D13,ДовидникКПК!B:C,2,FALSE),"") -> Підготовка кадрів вищими навчальними закладами ІІІ і ІV рівнів акредитації та забезпечення діяльності їх баз практики
A14: Код та назва типової відомчої класифікації видатків та кредитування місцевих бюджетів | D14: =ЗАПОЛНИТЬ!H10 -> - | E14: =ЗАПОЛНИТЬ!I10 -> -
A15: Код та назва програмної класифікації видатків та кредитування місцевих бюджетів (код та назва Типової програмної класифікації видатків та кредитування місцевих бюджетів / Тимчасової класифікації видатків та кредитування для бюджетів місцевого самоврядування, які не застосовують програмно-цільового методу)* | E15: =IF(D15>0,VLOOKUP(D15,ДовидникКФК!A:B,2,FALSE),"") -> 
A16: Періодичність: квартальна, річна
A17: Одиниця виміру: грн. коп.
A19: Показники | B19: КЕКВ та/або ККК | C19: Код рядка | D19: Затверджено на звітний рік | E19: Затверджено на звітний період (рік)1 | F19: Залишок на початок звітного року | G19: Надійшло коштів за звітний період (рік) | H19: Касові за звітний період (рік) | I19: Фактичні за звітний період (рік) | J19: Залишок на кінець звітного періоду (року)
A22: 1 | B22: 2 | C22: 3 | D22: 4 | E22: 5 | F22: 6 | G22: 7 | H22: 8 | I22: 9 | J22: 10
A23: Видатки та надання кредитів - усього | B23: Х | C23: 010 | D23: =D24+D58+D78+D83+D86 -> 52903800 | E23: =E26+E29+E32+E33+E37+E44+E45+E85+E53 -> 52903800 | F23: =F24+F58+F78+F83+F86 -> 0 | G23: =G24+G58+G78+G83+G86 -> 52903800 | H23: =H24+H58+H78+H83+H86 -> 52903800 | I23: =I24+I58+I78+I83+I86 -> 52903800 | J23: =F23+G23-H23 -> 0
A24: у тому числі: Поточні видатки | B24: 2000 | C24: 020 | D24: =D25+D30+D46+D49+D53+D57 -> 52903800 | E24: 0 | F24: 0 | G24: 52903800 | H24: 52903800 | I24: 52903800 | J24: =F24+G24-H24 -> 0
A25: Оплата праці і нарахування на заробітну плату | B25: 2100 | C25: 030 | D25: =D26+D29 -> 0 | E25: 0 | F25: =F26+F29 -> 0 | G25: =G26+G29 -> 0 | H25: =H26+H29 -> 0 | I25: =I26+I29 -> 0 | J25: 0
A26: Оплата праці | B26: 2110 | C26: 040 | D26: =SUM(D27:D28) -> 0 | E26: 0 | F26: 0 | G26: 0 | H26: 0 | I26: 0 | J26: 0
A27: Заробітна плата | B27: 2111 | C27: 050 | D27: 0 | E27: 0 | F27: 0 | G27: 0 | H27: 0 | I27: 0 | J27: 0
A28: Грошове забезпечення військовослужбовців | B28: 2112 | C28: 060 | D28: 0 | E28: 0 | F28: 0 | G28: 0 | H28: 0 | I28: 0 | J28: 0
A29: Нарахування на оплату праці | B29: 2120 | C29: 070 | D29: 0 | E29: 0 | F29: 0 | G29: 0 | H29: 0 | I29: 0 | J29: 0
A30: Використання товарів і послуг | B30: 2200 | C30: 080 | D30: =SUM(D31:D37)+D43 -> 52903800 | E30: 0 | F30: =SUM(F31:F37)+F43 -> 0 | G30: =SUM(G31:G37)+G43 -> 52903800 | H30: =SUM(H31:H37)+H43 -> 52903800 | I30: =SUM(I31:I37)+I43 -> 52903800 | J30: 0
A31: Предмети, матеріали, обладнання та інвентар | B31: 2210 | C31: 090 | D31: 0 | E31: 0 | F31: 0 | G31: 0 | H31: 0 | I31: 0 | J31: 0
A32: Медикаменти та перев’язувальні матеріали | B32: 2220 | C32: 100 | D32: 0 | E32: 0 | F32: 0 | G32: 0 | H32: 0 | I32: 0 | J32: 0
A33: Продукти харчування | B33: 2230 | C33: 110 | D33: 0 | E33: 0 | F33: 0 | G33: 0 | H33: 0 | I33: 0 | J33: 0
A34: Оплата послуг (крім комунальних) | B34: 2240 | C34: 120 | D34: 0 | E34: 0 | F34: 0 | G34: 0 | H34: 0 | I34: 0 | J34: 0
A35: Видатки на відрядження | B35: 2250 | C35: 130 | D35: 0 | E35: 0 | F35: 0 | G35: 0 | H35: 0 | I35: 0 | J35: 0
A36: Видатки та заходи спеціального призначення | B36: 2260 | C36: 140 | D36: 0 | E36: 0 | F36: 0 | G36: 0 | H36: 0 | I36: 0 | J36: 0
A37: Оплата комунальних послуг та енергоносіїв | B37: 2270 | C37: 150 | D37: =SUM(D38:D42) -> 0 | E37: 0 | F37: =SUM(F38:F42) -> 0 | G37: =SUM(G38:G42) -> 0 | H37: =SUM(H38:H42) -> 0 | I37: =SUM(I38:I42) -> 0 | J37: 0
A38: Оплата теплопостачання | B38: 2271 | C38: 160 | D38: 0 | E38: 0 | F38: 0 | G38: 0 | H38: 0 | I38: 0 | J38: 0
A39: Оплата водопостачання та водовідведення | B39: 2272 | C39: 170 | D39: 0 | E39: 0 | F39: 0 | G39: 0 | H39: 0 | I39: 0 | J39: 0
A40: Оплата електроенергії | B40: 2273 | C40: 180 | D40: 0 | E40: 0 | F40: 0 | G40: 0 | H40: 0 | I40: 0 | J40: 0
A41: Оплата природного газу | B41: 2274 | C41: 190 | D41: 0 | E41: 0 | F41: 0 | G41: 0 | H41: 0 | I41: 0 | J41: 0
A42: Оплата інших енергоносіїв | B42: 2275 | C42: 200 | D42: 0 | E42: 0 | F42: 0 | G42: 0 | H42: 0 | I42: 0 | J42: 0
A43: Дослідження і розробки, окремі заходи по реалізації державних (регіональних) програм | B43: 2280 | C43: 210 | D43: =SUM(D44:D45) -> 52903800 | E43: 0 | F43: =SUM(F44:F45) -> 0 | G43: =SUM(G44:G45) -> 52903800 | H43: =SUM(H44:H45) -> 52903800 | I43: =SUM(I44:I45) -> 52903800 | J43: 0
A44: Дослідження і розробки, окремі заходи розвитку по реалізації державних (регіональних) програм | B44: 2281 | C44: 220 | D44: 0 | E44: 0 | F44: 0 | G44: 0 | H44: 0 | I44: 0 | J44: 0
A45: Окремі заходи по реалізації державних (регіональних) програм, не віднесені до заходів розвитку | B45: 2282 | C45: 230 | D45: 52903800 | E45: 52903800 | F45: 0 | G45: 52903800 | H45: 52903800 | I45: 52903800 | J45: 0
A46: Обслуговування боргових зобов’язань | B46: 2400 | C46: 240 | D46: =SUM(D47:D48) -> 0 | E46: 0 | F46: 0 | G46: 0 | H46: 0 | I46: 0 | J46: 0
A47: Обслуговування внутрішніх боргових зобов’язань | B47: 2410 | C47: 250 | D47: 0 | E47: 0 | F47: 0 | G47: 0 | H47: 0 | I47: 0 | J47: 0
A48: Обслуговування зовнішніх боргових зобов’язань | B48: 2420 | C48: 260 | D48: 0 | E48: 0 | F48: 0 | G48: 0 | H48: 0 | I48: 0 | J48: 0
A49: Поточні трансферти | B49: 2600 | C49: 270 | D49: =SUM(D50:D52) -> 0 | E49: 0 | F49: 0 | G49: 0 | H49: 0 | I49: 0 | J49: 0
A50: Субсидії та поточні трансферти підприємствам (установам, організаціям) | B50: 2610 | C50: 280 | D50: 0 | E50: 0 | F50: 0 | G50: 0 | H50: 0 | I50: 0 | J50: 0
A51: Поточні трансферти органам державного управління інших рівнів | B51: 2620 | C51: 290 | D51: 0 | E51: 0 | F51: 0 | G51: 0 | H51: 0 | I51: 0 | J51: 0
A52: Поточні трансферти урядам іноземних держав та міжнародним організаціям | B52: 2630 | C52: 300 | D52: 0 | E52: 0 | F52: 0 | G52: 0 | H52: 0 | I52: 0 | J52: 0
A53: Соціальне забезпечення | B53: 2700 | C53: 310 | D53: =SUM(D54:D56) -> 0 | E53: 0 | F53: 0 | G53: 0 | H53: 0 | I53: 0 | J53: 0
A54: Виплата пенсій і допомоги | B54: 2710 | C54: 320 | D54: 0 | E54: 0 | F54: 0 | G54: 0 | H54: 0 | I54: 0 | J54: 0
A55: Стипендії | B55: 2720 | C55: 330 | D55: 0 | E55: 0 | F55: 0 | G55: 0 | H55: 0 | I55: 0 | J55: 0
A56: Інші виплати населенню | B56: 2730 | C56: 340 | D56: 0 | E56: 0 | F56: 0 | G56: 0 | H56: 0 | I56: 0 | J56: 0
A57: Інші поточні видатки | B57: 2800 | C57: 350 | D57: 0 | E57: 0 | F57: 0 | G57: 0 | H57: 0 | I57: 0 | J57: 0
A58: Капітальні видатки | B58: 3000 | C58: 360 | D58: =D59+D73 -> 0 | E58: 0 | F58: 0 | G58: 0 | H58: 0 | I58: 0 | J58: 0
A59: Придбання основного капіталу | B59: 3100 | C59: 370 | D59: =D60+D61+D64+D67+D71+D72 -> 0 | E59: 0 | F59: 0 | G59: 0 | H59: 0 | I59: 0 | J59: 0
A60: Придбання обладнання і предметів довгострокового користування | B60: 3110 | C60: 380 | D60: 0 | E60: 0 | F60: 0 | G60: 0 | H60: 0 | I60: 0 | J60: 0
A61: Капітальне будівництво (придбання) | B61: 3120 | C61: 390 | D61: =SUM(D62:D63) -> 0 | E61: 0 | F61: 0 | G61: 0 | H61: 0 | I61: 0 | J61: 0
A62: Капітальне будівництво (придбання) житла | B62: 3121 | C62: 400 | D62: 0 | E62: 0 | F62: 0 | G62: 0 | H62: 0 | I62: 0 | J62: 0
A63: Капітальне будівництво (придбання) інших об’єктів | B63: 3122 | C63: 410 | D63: 0 | E63: 0 | F63: 0 | G63: 0 | H63: 0 | I63: 0 | J63: 0
A64: Капітальний ремонт | B64: 3130 | C64: 420 | D64: =SUM(D65:D66) -> 0 | E64: 0 | F64: 0 | G64: 0 | H64: 0 | I64: 0 | J64: 0
A65: Капітальний ремонт житлового фонду (приміщень) | B65: 3131 | C65: 430 | D65: 0 | E65: 0 | F65: 0 | G65: 0 | H65: 0 | I65: 0 | J65: 0
A66: Капітальний ремонт інших об’єктів | B66: 3132 | C66: 440 | D66: 0 | E66: 0 | F66: 0 | G66: 0 | H66: 0 | I66: 0 | J66: 0
A67: Реконструкція та реставрація | B67: 3140 | C67: 450 | D67: =SUM(D68:D70) -> 0 | E67: 0 | F67: 0 | G67: 0 | H67: 0 | I67: 0 | J67: 0
A68: Реконструкція житлового фонду (приміщень) | B68: 3141 | C68: 460 | D68: 0 | E68: 0 | F68: 0 | G68: 0 | H68: 0 | I68: 0 | J68: 0
A69: Реконструкція та реставрація інших об’єктів | B69: 3142 | C69: 470 | D69: 0 | E69: 0 | F69: 0 | G69: 0 | H69: 0 | I69: 0 | J69: 0
A70: Реставрація пам’яток культури, історії та архітектури | B70: 3143 | C70: 480 | D70: 0 | E70: 0 | F70: 0 | G70: 0 | H70: 0 | I70: 0 | J70: 0
A71: Створення державних запасів і резервів | B71: 3150 | C71: 490 | D71: 0 | E71: 0 | F71: 0 | G71: 0 | H71: 0 | I71: 0 | J71: 0
A72: Придбання землі та нематеріальних активів | B72: 3160 | C72: 500 | D72: 0 | E72: 0 | F72: 0 | G72: 0 | H72: 0 | I72: 0 | J72: 0
A73: Капітальні трансферти | B73: 3200 | C73: 510 | D73: =SUM(D74:D77) -> 0 | E73: 0 | F73: 0 | G73: 0 | H73: 0 | I73: 0 | J73: 0
A74: Капітальні трансферти підприємствам (установам, організаціям) | B74: 3210 | C74: 520 | D74: 0 | E74: 0 | F74: 0 | G74: 0 | H74: 0 | I74: 0 | J74: 0
A75: Капітальні трансферти органам державного управління інших рівнів | B75: 3220 | C75: 530 | D75: 0 | E75: 0 | F75: 0 | G75: 0 | H75: 0 | I75: 0 | J75: 0
A76: Капітальні трансферти урядам іноземних держав та міжнародним організаціям | B76: 3230 | C76: 540 | D76: 0 | E76: 0 | F76: 0 | G76: 0 | H76: 0 | I76: 0 | J76: 0
A77: Капітальні трансферти населенню | B77: 3240 | C77: 550 | D77: 0 | E77: 0 | F77: 0 | G77: 0 | H77: 0 | I77: 0 | J77: 0
A78: Внутрішнє кредитування | B78: 4100 | C78: 560 | D78: =SUM(D79) -> 0 | E78: 0 | F78: 0 | G78: 0 | H78: 0 | I78: 0 | J78: 0
A79: Надання внутрішніх кредитів | B79: 4110 | C79: 570 | D79: =SUM(D80:D82) -> 0 | E79: 0 | F79: 0 | G79: 0 | H79: 0 | I79: 0 | J79: 0
A80: Надання кредитів органам державного управління інших рівнів | B80: 4111 | C80: 580 | D80: 0 | E80: 0 | F80: 0 | G80: 0 | H80: 0 | I80: 0 | J80: 0
A81: Надання кредитів підприємствам, установам, організаціям | B81: 4112 | C81: 590 | D81: 0 | E81: 0 | F81: 0 | G81: 0 | H81: 0 | I81: 0 | J81: 0
A82: Надання інших внутрішніх кредитів | B82: 4113 | C82: 600 | D82: 0 | E82: 0 | F82: 0 | G82: 0 | H82: 0 | I82: 0 | J82: 0
A83: Зовнішнє кредитування | B83: 4200 | C83: 610 | D83: =D84 -> 0 | E83: 0 | F83: 0 | G83: 0 | H83: 0 | I83: 0 | J83: 0
A84: Надання зовнішніх кредитів | B84: 4210 | C84: 620 | D84: 0 | E84: 0 | F84: 0 | G84: 0 | H84: 0 | I84: 0 | J84: 0
A85: Інші видатки | B85: 5000 | C85: 630 | D85: X | E85: 0 | F85: X | G85: X | H85: X | I85: X | J85: X
A86: Нерозподілені видатки | B86: 9000 | C86: 640 | D86: 0 | E86: 0 | F86: 0 | G86: 0 | H86: 0 | I86: 0 | J86: 0
A99: 1 Заповнюється розпорядниками бюджетних коштів.
A100: =ЗАПОЛНИТЬ!F30 -> Ректор | G100: =ЗАПОЛНИТЬ!F26 -> В.В.Снітинський
D101: (підпис) | G101: (ініціали, прізвище)
A102: =ЗАПОЛНИТЬ!F31 -> Головний бухгалтер | G102: =ЗАПОЛНИТЬ!F28 -> Г.І.Козлова
A103: =ЗАПОЛНИТЬ!C19 -> "12" січня 2016 року | D103: (підпис) | G103: (ініціали, прізвище)
A104: *До запровадження програмно-цільового методу складання та виконання місцевих бюджетів проставляються код та назва тимчасової класифікації видатків та кредитування місцевих бюджетів.

Sheet Ф.2.2 (hidden)
H1: Додаток 4 до Порядку складання фінансової, бюджетної та іншої звітності розпорядниками та одержувачами бюджетних коштів
A4: ЗВІТ
A5: =IF(ЗАПОЛНИТЬ!$F$7=1,CONCATENATE(шапки!A2),CONCATENATE(шапки!A2,шапки!C2)) -> про надходження та використання коштів загального фонду (форма | G5: =IF(ЗАПОЛНИТЬ!$F$7=1,шапки!C2,шапки!D2) -> №2д, | H5: =IF(ЗАПОЛНИТЬ!$F$7=1,шапки!D2,"") -> №2м)
A6: =CONCATENATE("за ",ЗАПОЛНИТЬ!$B$17," ",ЗАПОЛНИТЬ!$C$17) -> за 2015 р.
J7: коди
A9: Установа | B9: =ЗАПОЛНИТЬ!B3 -> Львівський національний аграрний університет | I9: за ЄДРПОУ | J9: =ЗАПОЛНИТЬ!B13 -> 00493735
A10: Територія | B10: =ЗАПОЛНИТЬ!B5 -> м.Дубляни Жовківського р-ну Львівської обл. | I10: за КОАТУУ | J10: =ЗАПОЛНИТЬ!B14 -> 4622710200
A11: Організаційно-правова форма господарювання | B11: =ЗАПОЛНИТЬ!D15 -> Державна організація (установа, заклад) | I11: за КОПФГ | J11: =ЗАПОЛНИТЬ!B15 -> 425
A12: Код та назва відомчої класифікації видатків та кредитування державного бюджету | D12: =ЗАПОЛНИТЬ!H9 -> 220 | E12: =IF(D12>0,VLOOKUP(D12,'ДовидникКВК(ГОС)'!A:B,2,FALSE),"") -> Міністерство освіти і науки України
A13: Код та назва програмної класифікації видатків та кредитування державного бюджету | E13: =IF(D13>0,VLOOKUP(D13,ДовидникКПК!B:C,2,FALSE),"") -> 
A14: Код та назва типової відомчої класифікації видатків та кредитування місцевих бюджетів | D14: =ЗАПОЛНИТЬ!H10 -> - | E14: =ЗАПОЛНИТЬ!I10 -> -
A15: Код та назва програмної класифікації видатків та кредитування місцевих бюджетів (код та назва Типової програмної класифікації видатків та кредитування місцевих бюджетів / Тимчасової класифікації видатків та кредитування для бюджетів місцевого самоврядування, які не застосовують програмно-цільового методу)* | E15: =IF(D15>0,VLOOKUP(D15,ДовидникКФК!A:B,2,FALSE),"") -> 
A16: Періодичність: квартальна, річна
A17: Одиниця виміру: грн. коп.
A19: Показники | B19: КЕКВ та/або ККК | C19: Код рядка | D19: Затверджено на звітний рік | E19: Затверджено на звітний період (рік)1 | F19: Залишок на початок звітного року | G19: Надійшло коштів за звітний період (рік) | H19: Касові за звітний період (рік) | I19: Фактичні за звітний період (рік) | J19: Залишок на кінець звітного періоду (року)
A22: 1 | B22: 2 | C22: 3 | D22: 4 | E22: 5 | F22: 6 | G22: 7 | H22: 8 | I22: 9 | J22: 10
A23: Видатки та надання кредитів - усього | B23: Х | C23: 010 | D23: =D24+D58+D78+D83+D86 -> 0 | E23: =E26+E29+E32+E33+E37+E44+E45+E85+E53 -> 0 | F23: =F24+F58+F78+F83+F86 -> 0 | G23: =G24+G58+G78+G83+G86 -> 0 | H23: =H24+H58+H78+H83+H86 -> 0 | I23: =I24+I58+I78+I83+I86 -> 0 | J23: =F23+G23-H23 -> 0
A24: у тому числі: Поточні видатки | B24: 2000 | C24: 020 | D24: =D25+D30+D46+D49+D53+D57 -> 0 | E24: 0 | F24: 0 | G24: 0 | H24: 0 | I24: 0 | J24: =F24+G24-H24 -> 0
A25: Оплата праці і нарахування на заробітну плату | B25: 2100 | C25: 030 | D25: =D26+D29 -> 0 | E25: 0 | F25: =F26+F29 -> 0 | G25: =G26+G29 -> 0 | H25: =H26+H29 -> 0 | I25: =I26+I29 -> 0 | J25: 0
A26: Оплата праці | B26: 2110 | C26: 040 | D26: =SUM(D27:D28) -> 0 | E26: 0 | F26: 0 | G26: 0 | H26: 0 | I26: 0 | J26: 0
A27: Заробітна плата | B27: 2111 | C27: 050 | D27: 0 | E27: 0 | F27: 0 | G27: 0 | H27: 0 | I27: 0 | J27: 0
A28: Грошове забезпечення військовослужбовців | B28: 2112 | C28: 060 | D28: 0 | E28: 0 | F28: 0 | G28: 0 | H28: 0 | I28: 0 | J28: 0
A29: Нарахування на оплату праці | B29: 2120 | C29: 070 | D29: 0 | E29: 0 | F29: 0 | G29: 0 | H29: 0 | I29: 0 | J29: 0
A30: Використання товарів і послуг | B30: 2200 | C30: 080 | D30: =SUM(D31:D37)+D43 -> 0 | E30: 0 | F30: =SUM(F31:F37)+F43 -> 0 | G30: =SUM(G31:G37)+G43 -> 0 | H30: =SUM(H31:H37)+H43 -> 0 | I30: =SUM(I31:I37)+I43 -> 0 | J30: 0
A31: Предмети, матеріали, обладнання та інвентар | B31: 2210 | C31: 090 | D31: 0 | E31: 0 | F31: 0 | G31: 0 | H31: 0 | I31: 0 | J31: 0
A32: Медикаменти та перев’язувальні матеріали | B32: 2220 | C32: 100 | D32: 0 | E32: 0 | F32: 0 | G32: 0 | H32: 0 | I32: 0 | J32: 0
A33: Продукти харчування | B33: 2230 | C33: 110 | D33: 0 | E33: 0 | F33: 0 | G33: 0 | H33: 0 | I33: 0 | J33: 0
A34: Оплата послуг (крім комунальних) | B34: 2240 | C34: 120 | D34: 0 | E34: 0 | F34: 0 | G34: 0 | H34: 0 | I34: 0 | J34: 0
A35: Видатки на відрядження | B35: 2250 | C35: 130 | D35: 0 | E35: 0 | F35: 0 | G35: 0 | H35: 0 | I35: 0 | J35: 0
A36: Видатки та заходи спеціального призначення | B36: 2260 | C36: 140 | D36: 0 | E36: 0 | F36: 0 | G36: 0 | H36: 0 | I36: 0 | J36: 0
A37: Оплата комунальних послуг та енергоносіїв | B37: 2270 | C37: 150 | D37: =SUM(D38:D42) -> 0 | E37: 0 | F37: =SUM(F38:F42) -> 0 | G37: =SUM(G38:G42) -> 0 | H37: =SUM(H38:H42) -> 0 | I37: =SUM(I38:I42) -> 0 | J37: 0
A38: Оплата теплопостачання | B38: 2271 | C38: 160 | D38: 0 | E38: 0 | F38: 0 | G38: 0 | H38: 0 | I38: 0 | J38: 0
A39: Оплата водопостачання та водовідведення | B39: 2272 | C39: 170 | D39: 0 | E39: 0 | F39: 0 | G39: 0 | H39: 0 | I39: 0 | J39: 0
A40: Оплата електроенергії | B40: 2273 | C40: 180 | D40: 0 | E40: 0 | F40: 0 | G40: 0 | H40: 0 | I40: 0 | J40: 0
A41: Оплата природного газу | B41: 2274 | C41: 190 | D41: 0 | E41: 0 | F41: 0 | G41: 0 | H41: 0 | I41: 0 | J41: 0
A42: Оплата інших енергоносіїв | B42: 2275 | C42: 200 | D42: 0 | E42: 0 | F42: 0 | G42: 0 | H42: 0 | I42: 0 | J42: 0
A43: Дослідження і розробки, окремі заходи по реалізації державних (регіональних) програм | B43: 2280 | C43: 210 | D43: =SUM(D44:D45) -> 0 | E43: 0 | F43: =SUM(F44:F45) -> 0 | G43: =SUM(G44:G45) -> 0 | H43: =SUM(H44:H45) -> 0 | I43: =SUM(I44:I45) -> 0 | J43: 0
A44: Дослідження і розробки, окремі заходи розвитку по реалізації державних (регіональних) програм | B44: 2281 | C44: 220 | D44: 0 | E44: 0 | F44: 0 | G44: 0 | H44: 0 | I44: 0 | J44: 0
A45: Окремі заходи по реалізації державних (регіональних) програм, не віднесені до заходів розвитку | B45: 2282 | C45: 230 | D45: 0 | E45: 0 | F45: 0 | G45: 0 | H45: 0 | I45: 0 | J45: 0
A46: Обслуговування боргових зобов’язань | B46: 2400 | C46: 240 | D46: =SUM(D47:D48) -> 0 | E46: 0 | F46: 0 | G46: 0 | H46: 0 | I46: 0 | J46: 0
A47: Обслуговування внутрішніх боргових зобов’язань | B47: 2410 | C47: 250 | D47: 0 | E47: 0 | F47: 0 | G47: 0 | H47: 0 | I47: 0 | J47: 0
A48: Обслуговування зовнішніх боргових зобов’язань | B48: 2420 | C48: 260 | D48: 0 | E48: 0 | F48: 0 | G48: 0 | H48: 0 | I48: 0 | J48: 0
A49: Поточні трансферти | B49: 2600 | C49: 270 | D49: =SUM(D50:D52) -> 0 | E49: 0 | F49: 0 | G49: 0 | H49: 0 | I49: 0 | J49: 0
A50: Субсидії та поточні трансферти підприємствам (установам, організаціям) | B50: 2610 | C50: 280 | D50: 0 | E50: 0 | F50: 0 | G50: 0 | H50: 0 | I50: 0 | J50: 0
A51: Поточні трансферти органам державного управління інших рівнів | B51: 2620 | C51: 290 | D51: 0 | E51: 0 | F51: 0 | G51: 0 | H51: 0 | I51: 0 | J51: 0
A52: Поточні трансферти урядам іноземних держав та міжнародним організаціям | B52: 2630 | C52: 300 | D52: 0 | E52: 0 | F52: 0 | G52: 0 | H52: 0 | I52: 0 | J52: 0
A53: Соціальне забезпечення | B53: 2700 | C53: 310 | D53: =SUM(D54:D56) -> 0 | E53: 0 | F53: 0 | G53: 0 | H53: 0 | I53: 0 | J53: 0
A54: Виплата пенсій і допомоги | B54: 2710 | C54: 320 | D54: 0 | E54: 0 | F54: 0 | G54: 0 | H54: 0 | I54: 0 | J54: 0
A55: Стипендії | B55: 2720 | C55: 330 | D55: 0 | E55: 0 | F55: 0 | G55: 0 | H55: 0 | I55: 0 | J55: 0
A56: Інші виплати населенню | B56: 2730 | C56: 340 | D56: 0 | E56: 0 | F56: 0 | G56: 0 | H56: 0 | I56: 0 | J56: 0
A57: Інші поточні видатки | B57: 2800 | C57: 350 | D57: 0 | E57: 0 | F57: 0 | G57: 0 | H57: 0 | I57: 0 | J57: 0
A58: Капітальні видатки | B58: 3000 | C58: 360 | D58: =D59+D73 -> 0 | E58: 0 | F58: 0 | G58: 0 | H58: 0 | I58: 0 | J58: 0
A59: Придбання основного капіталу | B59: 3100 | C59: 370 | D59: =D60+D61+D64+D67+D71+D72 -> 0 | E59: 0 | F59: 0 | G59: 0 | H59: 0 | I59: 0 | J59: 0
A60: Придбання обладнання і предметів довгострокового користування | B60: 3110 | C60: 380 | D60: 0 | E60: 0 | F60: 0 | G60: 0 | H60: 0 | I60: 0 | J60: 0
A61: Капітальне будівництво (придбання) | B61: 3120 | C61: 390 | D61: =SUM(D62:D63) -> 0 | E61: 0 | F61: 0 | G61: 0 | H61: 0 | I61: 0 | J61: 0
A62: Капітальне будівництво (придбання) житла | B62: 3121 | C62: 400 | D62: 0 | E62: 0 | F62: 0 | G62: 0 | H62: 0 | I62: 0 | J62: 0
A63: Капітальне будівництво (придбання) інших об’єктів | B63: 3122 | C63: 410 | D63: 0 | E63: 0 | F63: 0 | G63: 0 | H63: 0 | I63: 0 | J63: 0
A64: Капітальний ремонт | B64: 3130 | C64: 420 | D64: =SUM(D65:D66) -> 0 | E64: 0 | F64: 0 | G64: 0 | H64: 0 | I64: 0 | J64: 0
A65: Капітальний ремонт житлового фонду (приміщень) | B65: 3131 | C65: 430 | D65: 0 | E65: 0 | F65: 0 | G65: 0 | H65: 0 | I65: 0 | J65: 0
A66: Капітальний ремонт інших об’єктів | B66: 3132 | C66: 440 | D66: 0 | E66: 0 | F66: 0 | G66: 0 | H66: 0 | I66: 0 | J66: 0
A67: Реконструкція та реставрація | B67: 3140 | C67: 450 | D67: =SUM(D68:D70) -> 0 | E67: 0 | F67: 0 | G67: 0 | H67: 0 | I67: 0 | J67: 0
A68: Реконструкція житлового фонду (приміщень) | B68: 3141 | C68: 460 | D68: 0 | E68: 0 | F68: 0 | G68: 0 | H68: 0 | I68: 0 | J68: 0
A69: Реконструкція та реставрація інших об’єктів | B69: 3142 | C69: 470 | D69: 0 | E69: 0 | F69: 0 | G69: 0 | H69: 0 | I69: 0 | J69: 0
A70: Реставрація пам’яток культури, історії та архітектури | B70: 3143 | C70: 480 | D70: 0 | E70: 0 | F70: 0 | G70: 0 | H70: 0 | I70: 0 | J70: 0
A71: Створення державних запасів і резервів | B71: 3150 | C71: 490 | D71: 0 | E71: 0 | F71: 0 | G71: 0 | H71: 0 | I71: 0 | J71: 0
A72: Придбання землі та нематеріальних активів | B72: 3160 | C72: 500 | D72: 0 | E72: 0 | F72: 0 | G72: 0 | H72: 0 | I72: 0 | J72: 0
A73: Капітальні трансферти | B73: 3200 | C73: 510 | D73: =SUM(D74:D77) -> 0 | E73: 0 | F73: 0 | G73: 0 | H73: 0 | I73: 0 | J73: 0
A74: Капітальні трансферти підприємствам (установам, організаціям) | B74: 3210 | C74: 520 | D74: 0 | E74: 0 | F74: 0 | G74: 0 | H74: 0 | I74: 0 | J74: 0
A75: Капітальні трансферти органам державного управління інших рівнів | B75: 3220 | C75: 530 | D75: 0 | E75: 0 | F75: 0 | G75: 0 | H75: 0 | I75: 0 | J75: 0
A76: Капітальні трансферти урядам іноземних держав та міжнародним організаціям | B76: 3230 | C76: 540 | D76: 0 | E76: 0 | F76: 0 | G76: 0 | H76: 0 | I76: 0 | J76: 0
A77: Капітальні трансферти населенню | B77: 3240 | C77: 550 | D77: 0 | E77: 0 | F77: 0 | G77: 0 | H77: 0 | I77: 0 | J77: 0
A78: Внутрішнє кредитування | B78: 4100 | C78: 560 | D78: =SUM(D79) -> 0 | E78: 0 | F78: 0 | G78: 0 | H78: 0 | I78: 0 | J78: 0
A79: Надання внутрішніх кредитів | B79: 4110 | C79: 570 | D79: =SUM(D80:D82) -> 0 | E79: 0 | F79: 0 | G79: 0 | H79: 0 | I79: 0 | J79: 0
A80: Надання кредитів органам державного управління інших рівнів | B80: 4111 | C80: 580 | D80: 0 | E80: 0 | F80: 0 | G80: 0 | H80: 0 | I80: 0 | J80: 0
A81: Надання кредитів підприємствам, установам, організаціям | B81: 4112 | C81: 590 | D81: 0 | E81: 0 | F81: 0 | G81: 0 | H81: 0 | I81: 0 | J81: 0
A82: Надання інших внутрішніх кредитів | B82: 4113 | C82: 600 | D82: 0 | E82: 0 | F82: 0 | G82: 0 | H82: 0 | I82: 0 | J82: 0
A83: Зовнішнє кредитування | B83: 4200 | C83: 610 | D83: =D84 -> 0 | E83: 0 | F83: 0 | G83: 0 | H83: 0 | I83: 0 | J83: 0
A84: Надання зовнішніх кредитів | B84: 4210 | C84: 620 | D84: 0 | E84: 0 | F84: 0 | G84: 0 | H84: 0 | I84: 0 | J84: 0
A85: Інші видатки | B85: 5000 | C85: 630 | D85: X | E85: 0 | F85: X | G85: X | H85: X | I85: X | J85: X
A86: Нерозподілені видатки | B86: 9000 | C86: 640 | D86: 0 | E86: 0 | F86: 0 | G86: 0 | H86: 0 | I86: 0 | J86: 0
A99: 1 Заповнюється розпорядниками бюджетних коштів.
A100: =ЗАПОЛНИТЬ!F30 -> Ректор | G100: =ЗАПОЛНИТЬ!F26 -> В.В.Снітинський
D101: (підпис) | G101: (ініціали, прізвище)
A102: =ЗАПОЛНИТЬ!F31 -> Головний бухгалтер | G102: =ЗАПОЛНИТЬ!F28 -> Г.І.Козлова
A103: =ЗАПОЛНИТЬ!C19 -> "12" січня 2016 року | D103: (підпис) | G103: (ініціали, прізвище)
A104: *До запровадження програмно-цільового методу складання та виконання місцевих бюджетів проставляються код та назва тимчасової класифікації видатків та кредитування місцевих бюджетів.

Sheet Ф.2.3 (hidden)
H1: Додаток 4 до Порядку складання фінансової, бюджетної та іншої звітності розпорядниками та одержувачами бюджетних коштів
A4: ЗВІТ
A5: =IF(ЗАПОЛНИТЬ!$F$7=1,CONCATENATE(шапки!A2),CONCATENATE(шапки!A2,шапки!C2)) -> про надходження та використання коштів загального фонду (форма | G5: =IF(ЗАПОЛНИТЬ!$F$7=1,шапки!C2,шапки!D2) -> №2д, | H5: =IF(ЗАПОЛНИТЬ!$F$7=1,шапки!D2,"") -> №2м)
A6: =CONCATENATE("за ",ЗАПОЛНИТЬ!$B$17," ",ЗАПОЛНИТЬ!$C$17) -> за 2015 р.
J7: коди
A9: Установа | B9: =ЗАПОЛНИТЬ!B3 -> Львівський національний аграрний університет | I9: за ЄДРПОУ | J9: =ЗАПОЛНИТЬ!B13 -> 00493735
A10: Територія | B10: =ЗАПОЛНИТЬ!B5 -> м.Дубляни Жовківського р-ну Львівської обл. | I10: за КОАТУУ | J10: =ЗАПОЛНИТЬ!B14 -> 4622710200
A11: Організаційно-правова форма господарювання | B11: =ЗАПОЛНИТЬ!D15 -> Державна організація (установа, заклад) | I11: за КОПФГ | J11: =ЗАПОЛНИТЬ!B15 -> 425
A12: Код та назва відомчої класифікації видатків та кредитування державного бюджету | D12: =ЗАПОЛНИТЬ!H9 -> 220 | E12: =IF(D12>0,VLOOKUP(D12,'ДовидникКВК(ГОС)'!A:B,2,FALSE),"") -> Міністерство освіти і науки України
A13: Код та назва програмної класифікації видатків та кредитування державного бюджету | E13: =IF(D13>0,VLOOKUP(D13,ДовидникКПК!B:C,2,FALSE),"") -> 
A14: Код та назва типової відомчої класифікації видатків та кредитування місцевих бюджетів | D14: =ЗАПОЛНИТЬ!H10 -> - | E14: =ЗАПОЛНИТЬ!I10 -> -
A15: Код та назва програмної класифікації видатків та кредитування місцевих бюджетів (код та назва Типової програмної класифікації видатків та кредитування місцевих бюджетів / Тимчасової класифікації видатків та кредитування для бюджетів місцевого самоврядування, які не застосовують програмно-цільового методу)* | E15: =IF(D15>0,VLOOKUP(D15,ДовидникКФК!A:B,2,FALSE),"") -> 
A16: Періодичність: квартальна, річна
A17: Одиниця виміру: грн. коп.
A19: Показники | B19: КЕКВ та/або ККК | C19: Код рядка | D19: Затверджено на звітний рік | E19: Затверджено на звітний період (рік)1 | F19: Залишок на початок звітного року | G19: Надійшло коштів за звітний період (рік) | H19: Касові за звітний період (рік) | I19: Фактичні за звітний період (рік) | J19: Залишок на кінець звітного періоду (року)
A22: 1 | B22: 2 | C22: 3 | D22: 4 | E22: 5 | F22: 6 | G22: 7 | H22: 8 | I22: 9 | J22: 10
A23: Видатки та надання кредитів - усього | B23: Х | C23: 010 | D23: =D24+D58+D78+D83+D86 -> 0 | E23: =E26+E29+E32+E33+E37+E44+E45+E85+E53 -> 0 | F23: =F24+F58+F78+F83+F86 -> 0 | G23: =G24+G58+G78+G83+G86 -> 0 | H23: =H24+H58+H78+H83+H86 -> 0 | I23: =I24+I58+I78+I83+I86 -> 0 | J23: =F23+G23-H23 -> 0
A24: у тому числі: Поточні видатки | B24: 2000 | C24: 020 | D24: =D25+D30+D46+D49+D53+D57 -> 0 | E24: 0 | F24: 0 | G24: 0 | H24: 0 | I24: 0 | J24: =F24+G24-H24 -> 0
A25: Оплата праці і нарахування на заробітну плату | B25: 2100 | C25: 030 | D25: =D26+D29 -> 0 | E25: 0 | F25: =F26+F29 -> 0 | G25: =G26+G29 -> 0 | H25: =H26+H29 -> 0 | I25: =I26+I29 -> 0 | J25: 0
A26: Оплата праці | B26: 2110 | C26: 040 | D26: =SUM(D27:D28) -> 0 | E26: 0 | F26: 0 | G26: 0 | H26: 0 | I26: 0 | J26: 0
A27: Заробітна плата | B27: 2111 | C27: 050 | D27: 0 | E27: 0 | F27: 0 | G27: 0 | H27: 0 | I27: 0 | J27: 0
A28: Грошове забезпечення військовослужбовців | B28: 2112 | C28: 060 | D28: 0 | E28: 0 | F28: 0 | G28: 0 | H28: 0 | I28: 0 | J28: 0
A29: Нарахування на оплату праці | B29: 2120 | C29: 070 | D29: 0 | E29: 0 | F29: 0 | G29: 0 | H29: 0 | I29: 0 | J29: 0
A30: Використання товарів і послуг | B30: 2200 | C30: 080 | D30: =SUM(D31:D37)+D43 -> 0 | E30: 0 | F30: =SUM(F31:F37)+F43 -> 0 | G30: =SUM(G31:G37)+G43 -> 0 | H30: =SUM(H31:H37)+H43 -> 0 | I30: =SUM(I31:I37)+I43 -> 0 | J30: 0
A31: Предмети, матеріали, обладнання та інвентар | B31: 2210 | C31: 090 | D31: 0 | E31: 0 | F31: 0 | G31: 0 | H31: 0 | I31: 0 | J31: 0
A32: Медикаменти та перев’язувальні матеріали | B32: 2220 | C32: 100 | D32: 0 | E32: 0 | F32: 0 | G32: 0 | H32: 0 | I32: 0 | J32: 0
A33: Продукти харчування | B33: 2230 | C33: 110 | D33: 0 | E33: 0 | F33: 0 | G33: 0 | H33: 0 | I33: 0 | J33: 0
A34: Оплата послуг (крім комунальних) | B34: 2240 | C34: 120 | D34: 0 | E34: 0 | F34: 0 | G34: 0 | H34: 0 | I34: 0 | J34: 0
A35: Видатки на відрядження | B35: 2250 | C35: 130 | D35: 0 | E35: 0 | F35: 0 | G35: 0 | H35: 0 | I35: 0 | J35: 0
A36: Видатки та заходи спеціального призначення | B36: 2260 | C36: 140 | D36: 0 | E36: 0 | F36: 0 | G36: 0 | H36: 0 | I36: 0 | J36: 0
A37: Оплата комунальних послуг та енергоносіїв | B37: 2270 | C37: 150 | D37: =SUM(D38:D42) -> 0 | E37: 0 | F37: =SUM(F38:F42) -> 0 | G37: =SUM(G38:G42) -> 0 | H37: =SUM(H38:H42) -> 0 | I37: =SUM(I38:I42) -> 0 | J37: 0
A38: Оплата теплопостачання | B38: 2271 | C38: 160 | D38: 0 | E38: 0 | F38: 0 | G38: 0 | H38: 0 | I38: 0 | J38: 0
A39: Оплата водопостачання та водовідведення | B39: 2272 | C39: 170 | D39: 0 | E39: 0 | F39: 0 | G39: 0 | H39: 0 | I39: 0 | J39: 0
A40: Оплата електроенергії | B40: 2273 | C40: 180 | D40: 0 | E40: 0 | F40: 0 | G40: 0 | H40: 0 | I40: 0 | J40: 0
A41: Оплата природного газу | B41: 2274 | C41: 190 | D41: 0 | E41: 0 | F41: 0 | G41: 0 | H41: 0 | I41: 0 | J41: 0
A42: Оплата інших енергоносіїв | B42: 2275 | C42: 200 | D42: 0 | E42: 0 | F42: 0 | G42: 0 | H42: 0 | I42: 0 | J42: 0
A43: Дослідження і розробки, окремі заходи по реалізації державних (регіональних) програм | B43: 2280 | C43: 210 | D43: =SUM(D44:D45) -> 0 | E43: 0 | F43: =SUM(F44:F45) -> 0 | G43: =SUM(G44:G45) -> 0 | H43: =SUM(H44:H45) -> 0 | I43: =SUM(I44:I45) -> 0 | J43: 0
A44: Дослідження і розробки, окремі заходи розвитку по реалізації державних (регіональних) програм | B44: 2281 | C44: 220 | D44: 0 | E44: 0 | F44: 0 | G44: 0 | H44: 0 | I44: 0 | J44: 0
A45: Окремі заходи по реалізації державних (регіональних) програм, не віднесені до заходів розвитку | B45: 2282 | C45: 230 | D45: 0 | E45: 0 | F45: 0 | G45: 0 | H45: 0 | I45: 0 | J45: 0
A46: Обслуговування боргових зобов’язань | B46: 2400 | C46: 240 | D46: =SUM(D47:D48) -> 0 | E46: 0 | F46: 0 | G46: 0 | H46: 0 | I46: 0 | J46: 0
A47: Обслуговування внутрішніх боргових зобов’язань | B47: 2410 | C47: 250 | D47: 0 | E47: 0 | F47: 0 | G47: 0 | H47: 0 | I47: 0 | J47: 0
A48: Обслуговування зовнішніх боргових зобов’язань | B48: 2420 | C48: 260 | D48: 0 | E48: 0 | F48: 0 | G48: 0 | H48: 0 | I48: 0 | J48: 0
A49: Поточні трансферти | B49: 2600 | C49: 270 | D49: =SUM(D50:D52) -> 0 | E49: 0 | F49: 0 | G49: 0 | H49: 0 | I49: 0 | J49: 0
A50: Субсидії та поточні трансферти підприємствам (установам, організаціям) | B50: 2610 | C50: 280 | D50: 0 | E50: 0 | F50: 0 | G50: 0 | H50: 0 | I50: 0 | J50: 0
A51: Поточні трансферти органам державного управління інших рівнів | B51: 2620 | C51: 290 | D51: 0 | E51: 0 | F51: 0 | G51: 0 | H51: 0 | I51: 0 | J51: 0
A52: Поточні трансферти урядам іноземних держав та міжнародним організаціям | B52: 2630 | C52: 300 | D52: 0 | E52: 0 | F52: 0 | G52: 0 | H52: 0 | I52: 0 | J52: 0
A53: Соціальне забезпечення | B53: 2700 | C53: 310 | D53: =SUM(D54:D56) -> 0 | E53: 0 | F53: 0 | G53: 0 | H53: 0 | I53: 0 | J53: 0
A54: Виплата пенсій і допомоги | B54: 2710 | C54: 320 | D54: 0 | E54: 0 | F54: 0 | G54: 0 | H54: 0 | I54: 0 | J54: 0
A55: Стипендії | B55: 2720 | C55: 330 | D55: 0 | E55: 0 | F55: 0 | G55: 0 | H55: 0 | I55: 0 | J55: 0
A56: Інші виплати населенню | B56: 2730 | C56: 340 | D56: 0 | E56: 0 | F56: 0 | G56: 0 | H56: 0 | I56: 0 | J56: 0
A57: Інші поточні видатки | B57: 2800 | C57: 350 | D57: 0 | E57: 0 | F57: 0 | G57: 0 | H57: 0 | I57: 0 | J57: 0
A58: Капітальні видатки | B58: 3000 | C58: 360 | D58: =D59+D73 -> 0 | E58: 0 | F58: 0 | G58: 0 | H58: 0 | I58: 0 | J58: 0
A59: Придбання основного капіталу | B59: 3100 | C59: 370 | D59: =D60+D61+D64+D67+D71+D72 -> 0 | E59: 0 | F59: 0 | G59: 0 | H59: 0 | I59: 0 | J59: 0
A60: Придбання обладнання і предметів довгострокового користування | B60: 3110 | C60: 380 | D60: 0 | E60: 0 | F60: 0 | G60: 0 | H60: 0 | I60: 0 | J60: 0
A61: Капітальне будівництво (придбання) | B61: 3120 | C61: 390 | D61: =SUM(D62:D63) -> 0 | E61: 0 | F61: 0 | G61: 0 | H61: 0 | I61: 0 | J61: 0
A62: Капітальне будівництво (придбання) житла | B62: 3121 | C62: 400 | D62: 0 | E62: 0 | F62: 0 | G62: 0 | H62: 0 | I62: 0 | J62: 0
A63: Капітальне будівництво (придбання) інших об’єктів | B63: 3122 | C63: 410 | D63: 0 | E63: 0 | F63: 0 | G63: 0 | H63: 0 | I63: 0 | J63: 0
A64: Капітальний ремонт | B64: 3130 | C64: 420 | D64: =SUM(D65:D66) -> 0 | E64: 0 | F64: 0 | G64: 0 | H64: 0 | I64: 0 | J64: 0
A65: Капітальний ремонт житлового фонду (приміщень) | B65: 3131 | C65: 430 | D65: 0 | E65: 0 | F65: 0 | G65: 0 | H65: 0 | I65: 0 | J65: 0
A66: Капітальний ремонт інших об’єктів | B66: 3132 | C66: 440 | D66: 0 | E66: 0 | F66: 0 | G66: 0 | H66: 0 | I66: 0 | J66: 0
A67: Реконструкція та реставрація | B67: 3140 | C67: 450 | D67: =SUM(D68:D70) -> 0 | E67: 0 | F67: 0 | G67: 0 | H67: 0 | I67: 0 | J67: 0
A68: Реконструкція житлового фонду (приміщень) | B68: 3141 | C68: 460 | D68: 0 | E68: 0 | F68: 0 | G68: 0 | H68: 0 | I68: 0 | J68: 0
A69: Реконструкція та реставрація інших об’єктів | B69: 3142 | C69: 470 | D69: 0 | E69: 0 | F69: 0 | G69: 0 | H69: 0 | I69: 0 | J69: 0
A70: Реставрація пам’яток культури, історії та архітектури | B70: 3143 | C70: 480 | D70: 0 | E70: 0 | F70: 0 | G70: 0 | H70: 0 | I70: 0 | J70: 0
A71: Створення державних запасів і резервів | B71: 3150 | C71: 490 | D71: 0 | E71: 0 | F71: 0 | G71: 0 | H71: 0 | I71: 0 | J71: 0
A72: Придбання землі та нематеріальних активів | B72: 3160 | C72: 500 | D72: 0 | E72: 0 | F72: 0 | G72: 0 | H72: 0 | I72: 0 | J72: 0
A73: Капітальні трансферти | B73: 3200 | C73: 510 | D73: =SUM(D74:D77) -> 0 | E73: 0 | F73: 0 | G73: 0 | H73: 0 | I73: 0 | J73: 0
A74: Капітальні трансферти підприємствам (установам, організаціям) | B74: 3210 | C74: 520 | D74: 0 | E74: 0 | F74: 0 | G74: 0 | H74: 0 | I74: 0 | J74: 0
A75: Капітальні трансферти органам державного управління інших рівнів | B75: 3220 | C75: 530 | D75: 0 | E75: 0 | F75: 0 | G75: 0 | H75: 0 | I75: 0 | J75: 0
A76: Капітальні трансферти урядам іноземних держав та міжнародним організаціям | B76: 3230 | C76: 540 | D76: 0 | E76: 0 | F76: 0 | G76: 0 | H76: 0 | I76: 0 | J76: 0
A77: Капітальні трансферти населенню | B77: 3240 | C77: 550 | D77: 0 | E77: 0 | F77: 0 | G77: 0 | H77: 0 | I77: 0 | J77: 0
A78: Внутрішнє кредитування | B78: 4100 | C78: 560 | D78: =SUM(D79) -> 0 | E78: 0 | F78: 0 | G78: 0 | H78: 0 | I78: 0 | J78: 0
A79: Надання внутрішніх кредитів | B79: 4110 | C79: 570 | D79: =SUM(D80:D82) -> 0 | E79: 0 | F79: 0 | G79: 0 | H79: 0 | I79: 0 | J79: 0
A80: Надання кредитів органам державного управління інших рівнів | B80: 4111 | C80: 580 | D80: 0 | E80: 0 | F80: 0 | G80: 0 | H80: 0 | I80: 0 | J80: 0
A81: Надання кредитів підприємствам, установам, організаціям | B81: 4112 | C81: 590 | D81: 0 | E81: 0 | F81: 0 | G81: 0 | H81: 0 | I81: 0 | J81: 0
A82: Надання інших внутрішніх кредитів | B82: 4113 | C82: 600 | D82: 0 | E82: 0 | F82: 0 | G82: 0 | H82: 0 | I82: 0 | J82: 0
A83: Зовнішнє кредитування | B83: 4200 | C83: 610 | D83: =D84 -> 0 | E83: 0 | F83: 0 | G83: 0 | H83: 0 | I83: 0 | J83: 0
A84: Надання зовнішніх кредитів | B84: 4210 | C84: 620 | D84: 0 | E84: 0 | F84: 0 | G84: 0 | H84: 0 | I84: 0 | J84: 0
A85: Інші видатки | B85: 5000 | C85: 630 | D85: X | E85: 0 | F85: X | G85: X | H85: X | I85: X | J85: X
A86: Нерозподілені видатки | B86: 9000 | C86: 640 | D86: 0 | E86: 0 | F86: 0 | G86: 0 | H86: 0 | I86: 0 | J86: 0
A99: 1 Заповнюється розпорядниками бюджетних коштів.
A100: =ЗАПОЛНИТЬ!F30 -> Ректор | G100: =ЗАПОЛНИТЬ!F26 -> В.В.Снітинський
D101: (підпис) | G101: (ініціали, прізвище)
A102: =ЗАПОЛНИТЬ!F31 -> Головний бухгалтер | G102: =ЗАПОЛНИТЬ!F28 -> Г.І.Козлова
A103: =ЗАПОЛНИТЬ!C19 -> "12" січня 2016 року | D103: (підпис) | G103: (ініціали, прізвище)
A104: *До запровадження програмно-цільового методу складання та виконання місцевих бюджетів проставляються код та назва тимчасової класифікації видатків та кредитування місцевих бюджетів.

Sheet Ф.2.4 (hidden)
H1: Додаток 4 до Порядку складання фінансової, бюджетної та іншої звітності розпорядниками та одержувачами бюджетних коштів
A4: ЗВІТ
A5: =IF(ЗАПОЛНИТЬ!$F$7=1,CONCATENATE(шапки!A2),CONCATENATE(шапки!A2,шапки!C2)) -> про надходження та використання коштів загального фонду (форма | G5: =IF(ЗАПОЛНИТЬ!$F$7=1,шапки!C2,шапки!D2) -> №2д, | H5: =IF(ЗАПОЛНИТЬ!$F$7=1,шапки!D2,"") -> №2м)
A6: =CONCATENATE("за ",ЗАПОЛНИТЬ!$B$17," ",ЗАПОЛНИТЬ!$C$17) -> за 2015 р.
J7: коди
A9: Установа | B9: =ЗАПОЛНИТЬ!B3 -> Львівський національний аграрний університет | I9: за ЄДРПОУ | J9: =ЗАПОЛНИТЬ!B13 -> 00493735
A10: Територія | B10: =ЗАПОЛНИТЬ!B5 -> м.Дубляни Жовківського р-ну Львівської обл. | I10: за КОАТУУ | J10: =ЗАПОЛНИТЬ!B14 -> 4622710200
A11: Організаційно-правова форма господарювання | B11: =ЗАПОЛНИТЬ!D15 -> Державна організація (установа, заклад) | I11: за КОПФГ | J11: =ЗАПОЛНИТЬ!B15 -> 425
A12: Код та назва відомчої класифікації видатків та кредитування державного бюджету | D12: =ЗАПОЛНИТЬ!H9 -> 220 | E12: =IF(D12>0,VLOOKUP(D12,'ДовидникКВК(ГОС)'!A:B,2,FALSE),"") -> Міністерство освіти і науки України
A13: Код та назва програмної класифікації видатків та кредитування державного бюджету | E13: =IF(D13>0,VLOOKUP(D13,ДовидникКПК!B:C,2,FALSE),"") -> 
A14: Код та назва типової відомчої класифікації видатків та кредитування місцевих бюджетів | D14: =ЗАПОЛНИТЬ!H10 -> - | E14: =ЗАПОЛНИТЬ!I10 -> -
A15: Код та назва програмної класифікації видатків та кредитування місцевих бюджетів (код та назва Типової програмної класифікації видатків та кредитування місцевих бюджетів / Тимчасової класифікації видатків та кредитування для бюджетів місцевого самоврядування, які не застосовують програмно-цільового методу)* | E15: =IF(D15>0,VLOOKUP(D15,ДовидникКФК!A:B,2,FALSE),"") -> 
A16: Періодичність: квартальна, річна
A17: Одиниця виміру: грн. коп.
A19: Показники | B19: КЕКВ та/або ККК | C19: Код рядка | D19: Затверджено на звітний рік | E19: Затверджено на звітний період (рік)1 | F19: Залишок на початок звітного року | G19: Надійшло коштів за звітний період (рік) | H19: Касові за звітний період (рік) | I19: Фактичні за звітний період (рік) | J19: Залишок на кінець звітного періоду (року)
A22: 1 | B22: 2 | C22: 3 | D22: 4 | E22: 5 | F22: 6 | G22: 7 | H22: 8 | I22: 9 | J22: 10
A23: Видатки та надання кредитів - усього | B23: Х | C23: 010 | D23: =D24+D58+D78+D83+D86 -> 0 | E23: =E26+E29+E32+E33+E37+E44+E45+E85+E53 -> 0 | F23: =F24+F58+F78+F83+F86 -> 0 | G23: =G24+G58+G78+G83+G86 -> 0 | H23: =H24+H58+H78+H83+H86 -> 0 | I23: =I24+I58+I78+I83+I86 -> 0 | J23: =F23+G23-H23 -> 0
A24: у тому числі: Поточні видатки | B24: 2000 | C24: 020 | D24: =D25+D30+D46+D49+D53+D57 -> 0 | E24: 0 | F24: 0 | G24: 0 | H24: 0 | I24: 0 | J24: =F24+G24-H24 -> 0
A25: Оплата праці і нарахування на заробітну плату | B25: 2100 | C25: 030 | D25: =D26+D29 -> 0 | E25: 0 | F25: =F26+F29 -> 0 | G25: =G26+G29 -> 0 | H25: =H26+H29 -> 0 | I25: =I26+I29 -> 0 | J25: 0
A26: Оплата праці | B26: 2110 | C26: 040 | D26: =SUM(D27:D28) -> 0 | E26: 0 | F26: 0 | G26: 0 | H26: 0 | I26: 0 | J26: 0
A27: Заробітна плата | B27: 2111 | C27: 050 | D27: 0 | E27: 0 | F27: 0 | G27: 0 | H27: 0 | I27: 0 | J27: 0
A28: Грошове забезпечення військовослужбовців | B28: 2112 | C28: 060 | D28: 0 | E28: 0 | F28: 0 | G28: 0 | H28: 0 | I28: 0 | J28: 0
A29: Нарахування на оплату праці | B29: 2120 | C29: 070 | D29: 0 | E29: 0 | F29: 0 | G29: 0 | H29: 0 | I29: 0 | J29: 0
A30: Використання товарів і послуг | B30: 2200 | C30: 080 | D30: =SUM(D31:D37)+D43 -> 0 | E30: 0 | F30: =SUM(F31:F37)+F43 -> 0 | G30: =SUM(G31:G37)+G43 -> 0 | H30: =SUM(H31:H37)+H43 -> 0 | I30: =SUM(I31:I37)+I43 -> 0 | J30: 0
A31: Предмети, матеріали, обладнання та інвентар | B31: 2210 | C31: 090 | D31: 0 | E31: 0 | F31: 0 | G31: 0 | H31: 0 | I31: 0 | J31: 0
A32: Медикаменти та перев’язувальні матеріали | B32: 2220 | C32: 100 | D32: 0 | E32: 0 | F32: 0 | G32: 0 | H32: 0 | I32: 0 | J32: 0
A33: Продукти харчування | B33: 2230 | C33: 110 | D33: 0 | E33: 0 | F33: 0 | G33: 0 | H33: 0 | I33: 0 | J33: 0
A34: Оплата послуг (крім комунальних) | B34: 2240 | C34: 120 | D34: 0 | E34: 0 | F34: 0 | G34: 0 | H34: 0 | I34: 0 | J34: 0
A35: Видатки на відрядження | B35: 2250 | C35: 130 | D35: 0 | E35: 0 | F35: 0 | G35: 0 | H35: 0 | I35: 0 | J35: 0
A36: Видатки та заходи спеціального призначення | B36: 2260 | C36: 140 | D36: 0 | E36: 0 | F36: 0 | G36: 0 | H36: 0 | I36: 0 | J36: 0
A37: Оплата комунальних послуг та енергоносіїв | B37: 2270 | C37: 150 | D37: =SUM(D38:D42) -> 0 | E37: 0 | F37: =SUM(F38:F42) -> 0 | G37: =SUM(G38:G42) -> 0 | H37: =SUM(H38:H42) -> 0 | I37: =SUM(I38:I42) -> 0 | J37: 0
A38: Оплата теплопостачання | B38: 2271 | C38: 160 | D38: 0 | E38: 0 | F38: 0 | G38: 0 | H38: 0 | I38: 0 | J38: 0
A39: Оплата водопостачання та водовідведення | B39: 2272 | C39: 170 | D39: 0 | E39: 0 | F39: 0 | G39: 0 | H39: 0 | I39: 0 | J39: 0
A40: Оплата електроенергії | B40: 2273 | C40: 180 | D40: 0 | E40: 0 | F40: 0 | G40: 0 | H40: 0 | I40: 0 | J40: 0
A41: Оплата природного газу | B41: 2274 | C41: 190 | D41: 0 | E41: 0 | F41: 0 | G41: 0 | H41: 0 | I41: 0 | J41: 0
A42: Оплата інших енергоносіїв | B42: 2275 | C42: 200 | D42: 0 | E42: 0 | F42: 0 | G42: 0 | H42: 0 | I42: 0 | J42: 0
A43: Дослідження і розробки, окремі заходи по реалізації державних (регіональних) програм | B43: 2280 | C43: 210 | D43: =SUM(D44:D45) -> 0 | E43: 0 | F43: =SUM(F44:F45) -> 0 | G43: =SUM(G44:G45) -> 0 | H43: =SUM(H44:H45) -> 0 | I43: =SUM(I44:I45) -> 0 | J43: 0
A44: Дослідження і розробки, окремі заходи розвитку по реалізації державних (регіональних) програм | B44: 2281 | C44: 220 | D44: 0 | E44: 0 | F44: 0 | G44: 0 | H44: 0 | I44: 0 | J44: 0
A45: Окремі заходи по реалізації державних (регіональних) програм, не віднесені до заходів розвитку | B45: 2282 | C45: 230 | D45: 0 | E45: 0 | F45: 0 | G45: 0 | H45: 0 | I45: 0 | J45: 0
A46: Обслуговування боргових зобов’язань | B46: 2400 | C46: 240 | D46: =SUM(D47:D48) -> 0 | E46: 0 | F46: 0 | G46: 0 | H46: 0 | I46: 0 | J46: 0
A47: Обслуговування внутрішніх боргових зобов’язань | B47: 2410 | C47: 250 | D47: 0 | E47: 0 | F47: 0 | G47: 0 | H47: 0 | I47: 0 | J47: 0
A48: Обслуговування зовнішніх боргових зобов’язань | B48: 2420 | C48: 260 | D48: 0 | E48: 0 | F48: 0 | G48: 0 | H48: 0 | I48: 0 | J48: 0
A49: Поточні трансферти | B49: 2600 | C49: 270 | D49: =SUM(D50:D52) -> 0 | E49: 0 | F49: 0 | G49: 0 | H49: 0 | I49: 0 | J49: 0
A50: Субсидії та поточні трансферти підприємствам (установам, організаціям) | B50: 2610 | C50: 280 | D50: 0 | E50: 0 | F50: 0 | G50: 0 | H50: 0 | I50: 0 | J50: 0
A51: Поточні трансферти органам державного управління інших рівнів | B51: 2620 | C51: 290 | D51: 0 | E51: 0 | F51: 0 | G51: 0 | H51: 0 | I51: 0 | J51: 0
A52: Поточні трансферти урядам іноземних держав та міжнародним організаціям | B52: 2630 | C52: 300 | D52: 0 | E52: 0 | F52: 0 | G52: 0 | H52: 0 | I52: 0 | J52: 0
A53: Соціальне забезпечення | B53: 2700 | C53: 310 | D53: =SUM(D54:D56) -> 0 | E53: 0 | F53: 0 | G53: 0 | H53: 0 | I53: 0 | J53: 0
A54: Виплата пенсій і допомоги | B54: 2710 | C54: 320 | D54: 0 | E54: 0 | F54: 0 | G54: 0 | H54: 0 | I54: 0 | J54: 0
A55: Стипендії | B55: 2720 | C55: 330 | D55: 0 | E55: 0 | F55: 0 | G55: 0 | H55: 0 | I55: 0 | J55: 0
A56: Інші виплати населенню | B56: 2730 | C56: 340 | D56: 0 | E56: 0 | F56: 0 | G56: 0 | H56: 0 | I56: 0 | J56: 0
A57: Інші поточні видатки | B57: 2800 | C57: 350 | D57: 0 | E57: 0 | F57: 0 | G57: 0 | H57: 0 | I57: 0 | J57: 0
A58: Капітальні видатки | B58: 3000 | C58: 360 | D58: =D59+D73 -> 0 | E58: 0 | F58: 0 | G58: 0 | H58: 0 | I58: 0 | J58: 0
A59: Придбання основного капіталу | B59: 3100 | C59: 370 | D59: =D60+D61+D64+D67+D71+D72 -> 0 | E59: 0 | F59: 0 | G59: 0 | H59: 0 | I59: 0 | J59: 0
A60: Придбання обладнання і предметів довгострокового користування | B60: 3110 | C60: 380 | D60: 0 | E60: 0 | F60: 0 | G60: 0 | H60: 0 | I60: 0 | J60: 0
A61: Капітальне будівництво (придбання) | B61: 3120 | C61: 390 | D61: =SUM(D62:D63) -> 0 | E61: 0 | F61: 0 | G61: 0 | H61: 0 | I61: 0 | J61: 0
A62: Капітальне будівництво (придбання) житла | B62: 3121 | C62: 400 | D62: 0 | E62: 0 | F62: 0 | G62: 0 | H62: 0 | I62: 0 | J62: 0
A63: Капітальне будівництво (придбання) інших об’єктів | B63: 3122 | C63: 410 | D63: 0 | E63: 0 | F63: 0 | G63: 0 | H63: 0 | I63: 0 | J63: 0
A64: Капітальний ремонт | B64: 3130 | C64: 420 | D64: =SUM(D65:D66) -> 0 | E64: 0 | F64: 0 | G64: 0 | H64: 0 | I64: 0 | J64: 0
A65: Капітальний ремонт житлового фонду (приміщень) | B65: 3131 | C65: 430 | D65: 0 | E65: 0 | F65: 0 | G65: 0 | H65: 0 | I65: 0 | J65: 0
A66: Капітальний ремонт інших об’єктів | B66: 3132 | C66: 440 | D66: 0 | E66: 0 | F66: 0 | G66: 0 | H66: 0 | I66: 0 | J66: 0
A67: Реконструкція та реставрація | B67: 3140 | C67: 450 | D67: =SUM(D68:D70) -> 0 | E67: 0 | F67: 0 | G67: 0 | H67: 0 | I67: 0 | J67: 0
A68: Реконструкція житлового фонду (приміщень) | B68: 3141 | C68: 460 | D68: 0 | E68: 0 | F68: 0 | G68: 0 | H68: 0 | I68: 0 | J68: 0
A69: Реконструкція та реставрація інших об’єктів | B69: 3142 | C69: 470 | D69: 0 | E69: 0 | F69: 0 | G69: 0 | H69: 0 | I69: 0 | J69: 0
A70: Реставрація пам’яток культури, історії та архітектури | B70: 3143 | C70: 480 | D70: 0 | E70: 0 | F70: 0 | G70: 0 | H70: 0 | I70: 0 | J70: 0
A71: Створення державних запасів і резервів | B71: 3150 | C71: 490 | D71: 0 | E71: 0 | F71: 0 | G71: 0 | H71: 0 | I71: 0 | J71: 0
A72: Придбання землі та нематеріальних активів | B72: 3160 | C72: 500 | D72: 0 | E72: 0 | F72: 0 | G72: 0 | H72: 0 | I72: 0 | J72: 0
A73: Капітальні трансферти | B73: 3200 | C73: 510 | D73: =SUM(D74:D77) -> 0 | E73: 0 | F73: 0 | G73: 0 | H73: 0 | I73: 0 | J73: 0
A74: Капітальні трансферти підприємствам (установам, організаціям) | B74: 3210 | C74: 520 | D74: 0 | E74: 0 | F74: 0 | G74: 0 | H74: 0 | I74: 0 | J74: 0
A75: Капітальні трансферти органам державного управління інших рівнів | B75: 3220 | C75: 530 | D75: 0 | E75: 0 | F75: 0 | G75: 0 | H75: 0 | I75: 0 | J75: 0
A76: Капітальні трансферти урядам іноземних держав та міжнародним організаціям | B76: 3230 | C76: 540 | D76: 0 | E76: 0 | F76: 0 | G76: 0 | H76: 0 | I76: 0 | J76: 0
A77: Капітальні трансферти населенню | B77: 3240 | C77: 550 | D77: 0 | E77: 0 | F77: 0 | G77: 0 | H77: 0 | I77: 0 | J77: 0
A78: Внутрішнє кредитування | B78: 4100 | C78: 560 | D78: =SUM(D79) -> 0 | E78: 0 | F78: 0 | G78: 0 | H78: 0 | I78: 0 | J78: 0
A79: Надання внутрішніх кредитів | B79: 4110 | C79: 570 | D79: =SUM(D80:D82) -> 0 | E79: 0 | F79: 0 | G79: 0 | H79: 0 | I79: 0 | J79: 0
A80: Надання кредитів органам державного управління інших рівнів | B80: 4111 | C80: 580 | D80: 0 | E80: 0 | F80: 0 | G80: 0 | H80: 0 | I80: 0 | J80: 0
A81: Надання кредитів підприємствам, установам, організаціям | B81: 4112 | C81: 590 | D81: 0 | E81: 0 | F81: 0 | G81: 0 | H81: 0 | I81: 0 | J81: 0
A82: Надання інших внутрішніх кредитів | B82: 4113 | C82: 600 | D82: 0 | E82: 0 | F82: 0 | G82: 0 | H82: 0 | I82: 0 | J82: 0
A83: Зовнішнє кредитування | B83: 4200 | C83: 610 | D83: =D84 -> 0 | E83: 0 | F83: 0 | G83: 0 | H83: 0 | I83: 0 | J83: 0
A84: Надання зовнішніх кредитів | B84: 4210 | C84: 620 | D84: 0 | E84: 0 | F84: 0 | G84: 0 | H84: 0 | I84: 0 | J84: 0
A85: Інші видатки | B85: 5000 | C85: 630 | D85: X | E85: 0 | F85: X | G85: X | H85: X | I85: X | J85: X
A86: Нерозподілені видатки | B86: 9000 | C86: 640 | D86: 0 | E86: 0 | F86: 0 | G86: 0 | H86: 0 | I86: 0 | J86: 0
A99: 1 Заповнюється розпорядниками бюджетних коштів.
A100: =ЗАПОЛНИТЬ!F30 -> Ректор | G100: =ЗАПОЛНИТЬ!F26 -> В.В.Снітинський
D101: (підпис) | G101: (ініціали, прізвище)
A102: =ЗАПОЛНИТЬ!F31 -> Головний бухгалтер | G102: =ЗАПОЛНИТЬ!F28 -> Г.І.Козлова
A103: =ЗАПОЛНИТЬ!C19 -> "12" січня 2016 року | D103: (підпис) | G103: (ініціали, прізвище)
A104: *До запровадження програмно-цільового методу складання та виконання місцевих бюджетів проставляються код та назва тимчасової класифікації видатків та кредитування місцевих бюджетів.

Sheet Ф.2.5 (hidden)
H1: Додаток 4 до Порядку складання фінансової, бюджетної та іншої звітності розпорядниками та одержувачами бюджетних коштів
A4: ЗВІТ
A5: =IF(ЗАПОЛНИТЬ!$F$7=1,CONCATENATE(шапки!A2),CONCATENATE(шапки!A2,шапки!C2)) -> про надходження та використання коштів загального фонду (форма | G5: =IF(ЗАПОЛНИТЬ!$F$7=1,шапки!C2,шапки!D2) -> №2д, | H5: =IF(ЗАПОЛНИТЬ!$F$7=1,шапки!D2,"") -> №2м)
A6: =CONCATENATE("за ",ЗАПОЛНИТЬ!$B$17," ",ЗАПОЛНИТЬ!$C$17) -> за 2015 р.
J7: коди
A9: Установа | B9: =ЗАПОЛНИТЬ!B3 -> Львівський національний аграрний університет | I9: за ЄДРПОУ | J9: =ЗАПОЛНИТЬ!B13 -> 00493735
A10: Територія | B10: =ЗАПОЛНИТЬ!B5 -> м.Дубляни Жовківського р-ну Львівської обл. | I10: за КОАТУУ | J10: =ЗАПОЛНИТЬ!B14 -> 4622710200
A11: Організаційно-правова форма господарювання | B11: =ЗАПОЛНИТЬ!D15 -> Державна організація (установа, заклад) | I11: за КОПФГ | J11: =ЗАПОЛНИТЬ!B15 -> 425
A12: Код та назва відомчої класифікації видатків та кредитування державного бюджету | D12: =ЗАПОЛНИТЬ!H9 -> 220 | E12: =IF(D12>0,VLOOKUP(D12,'ДовидникКВК(ГОС)'!A:B,2,FALSE),"") -> Міністерство освіти і науки України
A13: Код та назва програмної класифікації видатків та кредитування державного бюджету | E13: =IF(D13>0,VLOOKUP(D13,ДовидникКПК!B:C,2,FALSE),"") -> 
A14: Код та назва типової відомчої класифікації видатків та кредитування місцевих бюджетів | D14: =ЗАПОЛНИТЬ!H10 -> - | E14: =ЗАПОЛНИТЬ!I10 -> -
A15: Код та назва програмної класифікації видатків та кредитування місцевих бюджетів (код та назва Типової програмної класифікації видатків та кредитування місцевих бюджетів / Тимчасової класифікації видатків та кредитування для бюджетів місцевого самоврядування, які не застосовують програмно-цільового методу)* | E15: =IF(D15>0,VLOOKUP(D15,ДовидникКФК!A:B,2,FALSE),"") -> 
A16: Періодичність: квартальна, річна
A17: Одиниця виміру: грн. коп.
A19: Показники | B19: КЕКВ та/або ККК | C19: Код рядка | D19: Затверджено на звітний рік | E19: Затверджено на звітний період (рік)1 | F19: Залишок на початок звітного року | G19: Надійшло коштів за звітний період (рік) | H19: Касові за звітний період (рік) | I19: Фактичні за звітний період (рік) | J19: Залишок на кінець звітного періоду (року)
A22: 1 | B22: 2 | C22: 3 | D22: 4 | E22: 5 | F22: 6 | G22: 7 | H22: 8 | I22: 9 | J22: 10
A23: Видатки та надання кредитів - усього | B23: Х | C23: 010 | D23: =D24+D58+D78+D83+D86 -> 0 | E23: =E26+E29+E32+E33+E37+E44+E45+E85+E53 -> 0 | F23: =F24+F58+F78+F83+F86 -> 0 | G23: =G24+G58+G78+G83+G86 -> 0 | H23: =H24+H58+H78+H83+H86 -> 0 | I23: =I24+I58+I78+I83+I86 -> 0 | J23: =F23+G23-H23 -> 0
A24: у тому числі: Поточні видатки | B24: 2000 | C24: 020 | D24: =D25+D30+D46+D49+D53+D57 -> 0 | E24: 0 | F24: 0 | G24: 0 | H24: 0 | I24: 0 | J24: =F24+G24-H24 -> 0
A25: Оплата праці і нарахування на заробітну плату | B25: 2100 | C25: 030 | D25: =D26+D29 -> 0 | E25: 0 | F25: =F26+F29 -> 0 | G25: =G26+G29 -> 0 | H25: =H26+H29 -> 0 | I25: =I26+I29 -> 0 | J25: 0
A26: Оплата праці | B26: 2110 | C26: 040 | D26: =SUM(D27:D28) -> 0 | E26: 0 | F26: 0 | G26: 0 | H26: 0 | I26: 0 | J26: 0
A27: Заробітна плата | B27: 2111 | C27: 050 | D27: 0 | E27: 0 | F27: 0 | G27: 0 | H27: 0 | I27: 0 | J27: 0
A28: Грошове забезпечення військовослужбовців | B28: 2112 | C28: 060 | D28: 0 | E28: 0 | F28: 0 | G28: 0 | H28: 0 | I28: 0 | J28: 0
A29: Нарахування на оплату праці | B29: 2120 | C29: 070 | D29: 0 | E29: 0 | F29: 0 | G29: 0 | H29: 0 | I29: 0 | J29: 0
A30: Використання товарів і послуг | B30: 2200 | C30: 080 | D30: =SUM(D31:D37)+D43 -> 0 | E30: 0 | F30: =SUM(F31:F37)+F43 -> 0 | G30: =SUM(G31:G37)+G43 -> 0 | H30: =SUM(H31:H37)+H43 -> 0 | I30: =SUM(I31:I37)+I43 -> 0 | J30: 0
A31: Предмети, матеріали, обладнання та інвентар | B31: 2210 | C31: 090 | D31: 0 | E31: 0 | F31: 0 | G31: 0 | H31: 0 | I31: 0 | J31: 0
A32: Медикаменти та перев’язувальні матеріали | B32: 2220 | C32: 100 | D32: 0 | E32: 0 | F32: 0 | G32: 0 | H32: 0 | I32: 0 | J32: 0
A33: Продукти харчування | B33: 2230 | C33: 110 | D33: 0 | E33: 0 | F33: 0 | G33: 0 | H33: 0 | I33: 0 | J33: 0
A34: Оплата послуг (крім комунальних) | B34: 2240 | C34: 120 | D34: 0 | E34: 0 | F34: 0 | G34: 0 | H34: 0 | I34: 0 | J34: 0
A35: Видатки на відрядження | B35: 2250 | C35: 130 | D35: 0 | E35: 0 | F35: 0 | G35: 0 | H35: 0 | I35: 0 | J35: 0
A36: Видатки та заходи спеціального призначення | B36: 2260 | C36: 140 | D36: 0 | E36: 0 | F36: 0 | G36: 0 | H36: 0 | I36: 0 | J36: 0
A37: Оплата комунальних послуг та енергоносіїв | B37: 2270 | C37: 150 | D37: =SUM(D38:D42) -> 0 | E37: 0 | F37: =SUM(F38:F42) -> 0 | G37: =SUM(G38:G42) -> 0 | H37: =SUM(H38:H42) -> 0 | I37: =SUM(I38:I42) -> 0 | J37: 0
A38: Оплата теплопостачання | B38: 2271 | C38: 160 | D38: 0 | E38: 0 | F38: 0 | G38: 0 | H38: 0 | I38: 0 | J38: 0
A39: Оплата водопостачання та водовідведення | B39: 2272 | C39: 170 | D39: 0 | E39: 0 | F39: 0 | G39: 0 | H39: 0 | I39: 0 | J39: 0
A40: Оплата електроенергії | B40: 2273 | C40: 180 | D40: 0 | E40: 0 | F40: 0 | G40: 0 | H40: 0 | I40: 0 | J40: 0
A41: Оплата природного газу | B41: 2274 | C41: 190 | D41: 0 | E41: 0 | F41: 0 | G41: 0 | H41: 0 | I41: 0 | J41: 0
A42: Оплата інших енергоносіїв | B42: 2275 | C42: 200 | D42: 0 | E42: 0 | F42: 0 | G42: 0 | H42: 0 | I42: 0 | J42: 0
A43: Дослідження і розробки, окремі заходи по реалізації державних (регіональних) програм | B43: 2280 | C43: 210 | D43: =SUM(D44:D45) -> 0 | E43: 0 | F43: =SUM(F44:F45) -> 0 | G43: =SUM(G44:G45) -> 0 | H43: =SUM(H44:H45) -> 0 | I43: =SUM(I44:I45) -> 0 | J43: 0
A44: Дослідження і розробки, окремі заходи розвитку по реалізації державних (регіональних) програм | B44: 2281 | C44: 220 | D44: 0 | E44: 0 | F44: 0 | G44: 0 | H44: 0 | I44: 0 | J44: 0
A45: Окремі заходи по реалізації державних (регіональних) програм, не віднесені до заходів розвитку | B45: 2282 | C45: 230 | D45: 0 | E45: 0 | F45: 0 | G45: 0 | H45: 0 | I45: 0 | J45: 0
A46: Обслуговування боргових зобов’язань | B46: 2400 | C46: 240 | D46: =SUM(D47:D48) -> 0 | E46: 0 | F46: 0 | G46: 0 | H46: 0 | I46: 0 | J46: 0
A47: Обслуговування внутрішніх боргових зобов’язань | B47: 2410 | C47: 250 | D47: 0 | E47: 0 | F47: 0 | G47: 0 | H47: 0 | I47: 0 | J47: 0
A48: Обслуговування зовнішніх боргових зобов’язань | B48: 2420 | C48: 260 | D48: 0 | E48: 0 | F48: 0 | G48: 0 | H48: 0 | I48: 0 | J48: 0
A49: Поточні трансферти | B49: 2600 | C49: 270 | D49: =SUM(D50:D52) -> 0 | E49: 0 | F49: 0 | G49: 0 | H49: 0 | I49: 0 | J49: 0
A50: Субсидії та поточні трансферти підприємствам (установам, організаціям) | B50: 2610 | C50: 280 | D50: 0 | E50: 0 | F50: 0 | G50: 0 | H50: 0 | I50: 0 | J50: 0
A51: Поточні трансферти органам державного управління інших рівнів | B51: 2620 | C51: 290 | D51: 0 | E51: 0 | F51: 0 | G51: 0 | H51: 0 | I51: 0 | J51: 0
A52: Поточні трансферти урядам іноземних держав та міжнародним організаціям | B52: 2630 | C52: 300 | D52: 0 | E52: 0 | F52: 0 | G52: 0 | H52: 0 | I52: 0 | J52: 0
A53: Соціальне забезпечення | B53: 2700 | C53: 310 | D53: =SUM(D54:D56) -> 0 | E53: 0 | F53: 0 | G53: 0 | H53: 0 | I53: 0 | J53: 0
A54: Виплата пенсій і допомоги | B54: 2710 | C54: 320 | D54: 0 | E54: 0 | F54: 0 | G54: 0 | H54: 0 | I54: 0 | J54: 0
A55: Стипендії | B55: 2720 | C55: 330 | D55: 0 | E55: 0 | F55: 0 | G55: 0 | H55: 0 | I55: 0 | J55: 0
A56: Інші виплати населенню | B56: 2730 | C56: 340 | D56: 0 | E56: 0 | F56: 0 | G56: 0 | H56: 0 | I56: 0 | J56: 0
A57: Інші поточні видатки | B57: 2800 | C57: 350 | D57: 0 | E57: 0 | F57: 0 | G57: 0 | H57: 0 | I57: 0 | J57: 0
A58: Капітальні видатки | B58: 3000 | C58: 360 | D58: =D59+D73 -> 0 | E58: 0 | F58: 0 | G58: 0 | H58: 0 | I58: 0 | J58: 0
A59: Придбання основного капіталу | B59: 3100 | C59: 370 | D59: =D60+D61+D64+D67+D71+D72 -> 0 | E59: 0 | F59: 0 | G59: 0 | H59: 0 | I59: 0 | J59: 0
A60: Придбання обладнання і предметів довгострокового користування | B60: 3110 | C60: 380 | D60: 0 | E60: 0 | F60: 0 | G60: 0 | H60: 0 | I60: 0 | J60: 0
A61: Капітальне будівництво (придбання) | B61: 3120 | C61: 390 | D61: =SUM(D62:D63) -> 0 | E61: 0 | F61: 0 | G61: 0 | H61: 0 | I61: 0 | J61: 0
A62: Капітальне будівництво (придбання) житла | B62: 3121 | C62: 400 | D62: 0 | E62: 0 | F62: 0 | G62: 0 | H62: 0 | I62: 0 | J62: 0
A63: Капітальне будівництво (придбання) інших об’єктів | B63: 3122 | C63: 410 | D63: 0 | E63: 0 | F63: 0 | G63: 0 | H63: 0 | I63: 0 | J63: 0
A64: Капітальний ремонт | B64: 3130 | C64: 420 | D64: =SUM(D65:D66) -> 0 | E64: 0 | F64: 0 | G64: 0 | H64: 0 | I64: 0 | J64: 0
A65: Капітальний ремонт житлового фонду (приміщень) | B65: 3131 | C65: 430 | D65: 0 | E65: 0 | F65: 0 | G65: 0 | H65: 0 | I65: 0 | J65: 0
A66: Капітальний ремонт інших об’єктів | B66: 3132 | C66: 440 | D66: 0 | E66: 0 | F66: 0 | G66: 0 | H66: 0 | I66: 0 | J66: 0
A67: Реконструкція та реставрація | B67: 3140 | C67: 450 | D67: =SUM(D68:D70) -> 0 | E67: 0 | F67: 0 | G67: 0 | H67: 0 | I67: 0 | J67: 0
A68: Реконструкція житлового фонду (приміщень) | B68: 3141 | C68: 460 | D68: 0 | E68: 0 | F68: 0 | G68: 0 | H68: 0 | I68: 0 | J68: 0
A69: Реконструкція та реставрація інших об’єктів | B69: 3142 | C69: 470 | D69: 0 | E69: 0 | F69: 0 | G69: 0 | H69: 0 | I69: 0 | J69: 0
A70: Реставрація пам’яток культури, історії та архітектури | B70: 3143 | C70: 480 | D70: 0 | E70: 0 | F70: 0 | G70: 0 | H70: 0 | I70: 0 | J70: 0
A71: Створення державних запасів і резервів | B71: 3150 | C71: 490 | D71: 0 | E71: 0 | F71: 0 | G71: 0 | H71: 0 | I71: 0 | J71: 0
A72: Придбання землі та нематеріальних активів | B72: 3160 | C72: 500 | D72: 0 | E72: 0 | F72: 0 | G72: 0 | H72: 0 | I72: 0 | J72: 0
A73: Капітальні трансферти | B73: 3200 | C73: 510 | D73: =SUM(D74:D77) -> 0 | E73: 0 | F73: 0 | G73: 0 | H73: 0 | I73: 0 | J73: 0
A74: Капітальні трансферти підприємствам (установам, організаціям) | B74: 3210 | C74: 520 | D74: 0 | E74: 0 | F74: 0 | G74: 0 | H74: 0 | I74: 0 | J74: 0
A75: Капітальні трансферти органам державного управління інших рівнів | B75: 3220 | C75: 530 | D75: 0 | E75: 0 | F75: 0 | G75: 0 | H75: 0 | I75: 0 | J75: 0
A76: Капітальні трансферти урядам іноземних держав та міжнародним організаціям | B76: 3230 | C76: 540 | D76: 0 | E76: 0 | F76: 0 | G76: 0 | H76: 0 | I76: 0 | J76: 0
A77: Капітальні трансферти населенню | B77: 3240 | C77: 550 | D77: 0 | E77: 0 | F77: 0 | G77: 0 | H77: 0 | I77: 0 | J77: 0
A78: Внутрішнє кредитування | B78: 4100 | C78: 560 | D78: =SUM(D79) -> 0 | E78: 0 | F78: 0 | G78: 0 | H78: 0 | I78: 0 | J78: 0
A79: Надання внутрішніх кредитів | B79: 4110 | C79: 570 | D79: =SUM(D80:D82) -> 0 | E79: 0 | F79: 0 | G79: 0 | H79: 0 | I79: 0 | J79: 0
A80: Надання кредитів органам державного управління інших рівнів | B80: 4111 | C80: 580 | D80: 0 | E80: 0 | F80: 0 | G80: 0 | H80: 0 | I80: 0 | J80: 0
A81: Надання кредитів підприємствам, установам, організаціям | B81: 4112 | C81: 590 | D81: 0 | E81: 0 | F81: 0 | G81: 0 | H81: 0 | I81: 0 | J81: 0
A82: Надання інших внутрішніх кредитів | B82: 4113 | C82: 600 | D82: 0 | E82: 0 | F82: 0 | G82: 0 | H82: 0 | I82: 0 | J82: 0
A83: Зовнішнє кредитування | B83: 4200 | C83: 610 | D83: =D84 -> 0 | E83: 0 | F83: 0 | G83: 0 | H83: 0 | I83: 0 | J83: 0
A84: Надання зовнішніх кредитів | B84: 4210 | C84: 620 | D84: 0 | E84: 0 | F84: 0 | G84: 0 | H84: 0 | I84: 0 | J84: 0
A85: Інші видатки | B85: 5000 | C85: 630 | D85: X | E85: 0 | F85: X | G85: X | H85: X | I85: X | J85: X
A86: Нерозподілені видатки | B86: 9000 | C86: 640 | D86: 0 | E86: 0 | F86: 0 | G86: 0 | H86: 0 | I86: 0 | J86: 0
A99: 1 Заповнюється розпорядниками бюджетних коштів.
A100: =ЗАПОЛНИТЬ!F30 -> Ректор | G100: =ЗАПОЛНИТЬ!F26 -> В.В.Снітинський
D101: (підпис) | G101: (ініціали, прізвище)
A102: =ЗАПОЛНИТЬ!F31 -> Головний бухгалтер | G102: =ЗАПОЛНИТЬ!F28 -> Г.І.Козлова
A103: =ЗАПОЛНИТЬ!C19 -> "12" січня 2016 року | D103: (підпис) | G103: (ініціали, прізвище)
A104: *До запровадження програмно-цільового методу складання та виконання місцевих бюджетів проставляються код та назва тимчасової класифікації видатків та кредитування місцевих бюджетів.

Sheet Ф.2.6 (hidden)
H1: Додаток 4 до Порядку складання фінансової, бюджетної та іншої звітності розпорядниками та одержувачами бюджетних коштів
A4: ЗВІТ
A5: =IF(ЗАПОЛНИТЬ!$F$7=1,CONCATENATE(шапки!A2),CONCATENATE(шапки!A2,шапки!C2)) -> про надходження та використання коштів загального фонду (форма | G5: =IF(ЗАПОЛНИТЬ!$F$7=1,шапки!C2,шапки!D2) -> №2д, | H5: =IF(ЗАПОЛНИТЬ!$F$7=1,шапки!D2,"") -> №2м)
A6: =CONCATENATE("за ",ЗАПОЛНИТЬ!$B$17," ",ЗАПОЛНИТЬ!$C$17) -> за 2015 р.
J7: коди
A9: Установа | B9: =ЗАПОЛНИТЬ!B3 -> Львівський національний аграрний університет | I9: за ЄДРПОУ | J9: =ЗАПОЛНИТЬ!B13 -> 00493735
A10: Територія | B10: =ЗАПОЛНИТЬ!B5 -> м.Дубляни Жовківського р-ну Львівської обл. | I10: за КОАТУУ | J10: =ЗАПОЛНИТЬ!B14 -> 4622710200
A11: Організаційно-правова форма господарювання | B11: =ЗАПОЛНИТЬ!D15 -> Державна організація (установа, заклад) | I11: за КОПФГ | J11: =ЗАПОЛНИТЬ!B15 -> 425
A12: Код та назва відомчої класифікації видатків та кредитування державного бюджету | D12: =ЗАПОЛНИТЬ!H9 -> 220 | E12: =IF(D12>0,VLOOKUP(D12,'ДовидникКВК(ГОС)'!A:B,2,FALSE),"") -> Міністерство освіти і науки України
A13: Код та назва програмної класифікації видатків та кредитування державного бюджету | E13: =IF(D13>0,VLOOKUP(D13,ДовидникКПК!B:C,2,FALSE),"") -> 
A14: Код та назва типової відомчої класифікації видатків та кредитування місцевих бюджетів | D14: =ЗАПОЛНИТЬ!H10 -> - | E14: =ЗАПОЛНИТЬ!I10 -> -
A15: Код та назва програмної класифікації видатків та кредитування місцевих бюджетів (код та назва Типової програмної класифікації видатків та кредитування місцевих бюджетів / Тимчасової класифікації видатків та кредитування для бюджетів місцевого самоврядування, які не застосовують програмно-цільового методу)* | E15: =IF(D15>0,VLOOKUP(D15,ДовидникКФК!A:B,2,FALSE),"") -> 
A16: Періодичність: квартальна, річна
A17: Одиниця виміру: грн. коп.
A19: Показники | B19: КЕКВ та/або ККК | C19: Код рядка | D19: Затверджено на звітний рік | E19: Затверджено на звітний період (рік)1 | F19: Залишок на початок звітного року | G19: Надійшло коштів за звітний період (рік) | H19: Касові за звітний період (рік) | I19: Фактичні за звітний період (рік) | J19: Залишок на кінець звітного періоду (року)
A22: 1 | B22: 2 | C22: 3 | D22: 4 | E22: 5 | F22: 6 | G22: 7 | H22: 8 | I22: 9 | J22: 10
A23: Видатки та надання кредитів - усього | B23: Х | C23: 010 | D23: =D24+D58+D78+D83+D86 -> 0 | E23: =E26+E29+E32+E33+E37+E44+E45+E85+E53 -> 0 | F23: =F24+F58+F78+F83+F86 -> 0 | G23: =G24+G58+G78+G83+G86 -> 0 | H23: =H24+H58+H78+H83+H86 -> 0 | I23: =I24+I58+I78+I83+I86 -> 0 | J23: =F23+G23-H23 -> 0
A24: у тому числі: Поточні видатки | B24: 2000 | C24: 020 | D24: =D25+D30+D46+D49+D53+D57 -> 0 | E24: 0 | F24: 0 | G24: 0 | H24: 0 | I24: 0 | J24: =F24+G24-H24 -> 0
A25: Оплата праці і нарахування на заробітну плату | B25: 2100 | C25: 030 | D25: =D26+D29 -> 0 | E25: 0 | F25: =F26+F29 -> 0 | G25: =G26+G29 -> 0 | H25: =H26+H29 -> 0 | I25: =I26+I29 -> 0 | J25: 0
A26: Оплата праці | B26: 2110 | C26: 040 | D26: =SUM(D27:D28) -> 0 | E26: 0 | F26: 0 | G26: 0 | H26: 0 | I26: 0 | J26: 0
A27: Заробітна плата | B27: 2111 | C27: 050 | D27: 0 | E27: 0 | F27: 0 | G27: 0 | H27: 0 | I27: 0 | J27: 0
A28: Грошове забезпечення військовослужбовців | B28: 2112 | C28: 060 | D28: 0 | E28: 0 | F28: 0 | G28: 0 | H28: 0 | I28: 0 | J28: 0
A29: Нарахування на оплату праці | B29: 2120 | C29: 070 | D29: 0 | E29: 0 | F29: 0 | G29: 0 | H29: 0 | I29: 0 | J29: 0
A30: Використання товарів і послуг | B30: 2200 | C30: 080 | D30: =SUM(D31:D37)+D43 -> 0 | E30: 0 | F30: =SUM(F31:F37)+F43 -> 0 | G30: =SUM(G31:G37)+G43 -> 0 | H30: =SUM(H31:H37)+H43 -> 0 | I30: =SUM(I31:I37)+I43 -> 0 | J30: 0
A31: Предмети, матеріали, обладнання та інвентар | B31: 2210 | C31: 090 | D31: 0 | E31: 0 | F31: 0 | G31: 0 | H31: 0 | I31: 0 | J31: 0
A32: Медикаменти та перев’язувальні матеріали | B32: 2220 | C32: 100 | D32: 0 | E32: 0 | F32: 0 | G32: 0 | H32: 0 | I32: 0 | J32: 0
A33: Продукти харчування | B33: 2230 | C33: 110 | D33: 0 | E33: 0 | F33: 0 | G33: 0 | H33: 0 | I33: 0 | J33: 0
A34: Оплата послуг (крім комунальних) | B34: 2240 | C34: 120 | D34: 0 | E34: 0 | F34: 0 | G34: 0 | H34: 0 | I34: 0 | J34: 0
A35: Видатки на відрядження | B35: 2250 | C35: 130 | D35: 0 | E35: 0 | F35: 0 | G35: 0 | H35: 0 | I35: 0 | J35: 0
A36: Видатки та заходи спеціального призначення | B36: 2260 | C36: 140 | D36: 0 | E36: 0 | F36: 0 | G36: 0 | H36: 0 | I36: 0 | J36: 0
A37: Оплата комунальних послуг та енергоносіїв | B37: 2270 | C37: 150 | D37: =SUM(D38:D42) -> 0 | E37: 0 | F37: =SUM(F38:F42) -> 0 | G37: =SUM(G38:G42) -> 0 | H37: =SUM(H38:H42) -> 0 | I37: =SUM(I38:I42) -> 0 | J37: 0
A38: Оплата теплопостачання | B38: 2271 | C38: 160 | D38: 0 | E38: 0 | F38: 0 | G38: 0 | H38: 0 | I38: 0 | J38: 0
A39: Оплата водопостачання та водовідведення | B39: 2272 | C39: 170 | D39: 0 | E39: 0 | F39: 0 | G39: 0 | H39: 0 | I39: 0 | J39: 0
A40: Оплата електроенергії | B40: 2273 | C40: 180 | D40: 0 | E40: 0 | F40: 0 | G40: 0 | H40: 0 | I40: 0 | J40: 0
A41: Оплата природного газу | B41: 2274 | C41: 190 | D41: 0 | E41: 0 | F41: 0 | G41: 0 | H41: 0 | I41: 0 | J41: 0
A42: Оплата інших енергоносіїв | B42: 2275 | C42: 200 | D42: 0 | E42: 0 | F42: 0 | G42: 0 | H42: 0 | I42: 0 | J42: 0
A43: Дослідження і розробки, окремі заходи по реалізації державних (регіональних) програм | B43: 2280 | C43: 210 | D43: =SUM(D44:D45) -> 0 | E43: 0 | F43: =SUM(F44:F45) -> 0 | G43: =SUM(G44:G45) -> 0 | H43: =SUM(H44:H45) -> 0 | I43: =SUM(I44:I45) -> 0 | J43: 0
A44: Дослідження і розробки, окремі заходи розвитку по реалізації державних (регіональних) програм | B44: 2281 | C44: 220 | D44: 0 | E44: 0 | F44: 0 | G44: 0 | H44: 0 | I44: 0 | J44: 0
A45: Окремі заходи по реалізації державних (регіональних) програм, не віднесені до заходів розвитку | B45: 2282 | C45: 230 | D45: 0 | E45: 0 | F45: 0 | G45: 0 | H45: 0 | I45: 0 | J45: 0
A46: Обслуговування боргових зобов’язань | B46: 2400 | C46: 240 | D46: =SUM(D47:D48) -> 0 | E46: 0 | F46: 0 | G46: 0 | H46: 0 | I46: 0 | J46: 0
A47: Обслуговування внутрішніх боргових зобов’язань | B47: 2410 | C47: 250 | D47: 0 | E47: 0 | F47: 0 | G47: 0 | H47: 0 | I47: 0 | J47: 0
A48: Обслуговування зовнішніх боргових зобов’язань | B48: 2420 | C48: 260 | D48: 0 | E48: 0 | F48: 0 | G48: 0 | H48: 0 | I48: 0 | J48: 0
A49: Поточні трансферти | B49: 2600 | C49: 270 | D49: =SUM(D50:D52) -> 0 | E49: 0 | F49: 0 | G49: 0 | H49: 0 | I49: 0 | J49: 0
A50: Субсидії та поточні трансферти підприємствам (установам, організаціям) | B50: 2610 | C50: 280 | D50: 0 | E50: 0 | F50: 0 | G50: 0 | H50: 0 | I50: 0 | J50: 0
A51: Поточні трансферти органам державного управління інших рівнів | B51: 2620 | C51: 290 | D51: 0 | E51: 0 | F51: 0 | G51: 0 | H51: 0 | I51: 0 | J51: 0
A52: Поточні трансферти урядам іноземних держав та міжнародним організаціям | B52: 2630 | C52: 300 | D52: 0 | E52: 0 | F52: 0 | G52: 0 | H52: 0 | I52: 0 | J52: 0
A53: Соціальне забезпечення | B53: 2700 | C53: 310 | D53: =SUM(D54:D56) -> 0 | E53: 0 | F53: 0 | G53: 0 | H53: 0 | I53: 0 | J53: 0
A54: Виплата пенсій і допомоги | B54: 2710 | C54: 320 | D54: 0 | E54: 0 | F54: 0 | G54: 0 | H54: 0 | I54: 0 | J54: 0
A55: Стипендії | B55: 2720 | C55: 330 | D55: 0 | E55: 0 | F55: 0 | G55: 0 | H55: 0 | I55: 0 | J55: 0
A56: Інші виплати населенню | B56: 2730 | C56: 340 | D56: 0 | E56: 0 | F56: 0 | G56: 0 | H56: 0 | I56: 0 | J56: 0
A57: Інші поточні видатки | B57: 2800 | C57: 350 | D57: 0 | E57: 0 | F57: 0 | G57: 0 | H57: 0 | I57: 0 | J57: 0
A58: Капітальні видатки | B58: 3000 | C58: 360 | D58: =D59+D73 -> 0 | E58: 0 | F58: 0 | G58: 0 | H58: 0 | I58: 0 | J58: 0
A59: Придбання основного капіталу | B59: 3100 | C59: 370 | D59: =D60+D61+D64+D67+D71+D72 -> 0 | E59: 0 | F59: 0 | G59: 0 | H59: 0 | I59: 0 | J59: 0
A60: Придбання обладнання і предметів довгострокового користування | B60: 3110 | C60: 380 | D60: 0 | E60: 0 | F60: 0 | G60: 0 | H60: 0 | I60: 0 | J60: 0
A61: Капітальне будівництво (придбання) | B61: 3120 | C61: 390 | D61: =SUM(D62:D63) -> 0 | E61: 0 | F61: 0 | G61: 0 | H61: 0 | I61: 0 | J61: 0
A62: Капітальне будівництво (придбання) житла | B62: 3121 | C62: 400 | D62: 0 | E62: 0 | F62: 0 | G62: 0 | H62: 0 | I62: 0 | J62: 0
A63: Капітальне будівництво (придбання) інших об’єктів | B63: 3122 | C63: 410 | D63: 0 | E63: 0 | F63: 0 | G63: 0 | H63: 0 | I63: 0 | J63: 0
A64: Капітальний ремонт | B64: 3130 | C64: 420 | D64: =SUM(D65:D66) -> 0 | E64: 0 | F64: 0 | G64: 0 | H64: 0 | I64: 0 | J64: 0
A65: Капітальний ремонт житлового фонду (приміщень) | B65: 3131 | C65: 430 | D65: 0 | E65: 0 | F65: 0 | G65: 0 | H65: 0 | I65: 0 | J65: 0
A66: Капітальний ремонт інших об’єктів | B66: 3132 | C66: 440 | D66: 0 | E66: 0 | F66: 0 | G66: 0 | H66: 0 | I66: 0 | J66: 0
A67: Реконструкція та реставрація | B67: 3140 | C67: 450 | D67: =SUM(D68:D70) -> 0 | E67: 0 | F67: 0 | G67: 0 | H67: 0 | I67: 0 | J67: 0
A68: Реконструкція житлового фонду (приміщень) | B68: 3141 | C68: 460 | D68: 0 | E68: 0 | F68: 0 | G68: 0 | H68: 0 | I68: 0 | J68: 0
A69: Реконструкція та реставрація інших об’єктів | B69: 3142 | C69: 470 | D69: 0 | E69: 0 | F69: 0 | G69: 0 | H69: 0 | I69: 0 | J69: 0
A70: Реставрація пам’яток культури, історії та архітектури | B70: 3143 | C70: 480 | D70: 0 | E70: 0 | F70: 0 | G70: 0 | H70: 0 | I70: 0 | J70: 0
A71: Створення державних запасів і резервів | B71: 3150 | C71: 490 | D71: 0 | E71: 0 | F71: 0 | G71: 0 | H71: 0 | I71: 0 | J71: 0
A72: Придбання землі та нематеріальних активів | B72: 3160 | C72: 500 | D72: 0 | E72: 0 | F72: 0 | G72: 0 | H72: 0 | I72: 0 | J72: 0
A73: Капітальні трансферти | B73: 3200 | C73: 510 | D73: =SUM(D74:D77) -> 0 | E73: 0 | F73: 0 | G73: 0 | H73: 0 | I73: 0 | J73: 0
A74: Капітальні трансферти підприємствам (установам, організаціям) | B74: 3210 | C74: 520 | D74: 0 | E74: 0 | F74: 0 | G74: 0 | H74: 0 | I74: 0 | J74: 0
A75: Капітальні трансферти органам державного управління інших рівнів | B75: 3220 | C75: 530 | D75: 0 | E75: 0 | F75: 0 | G75: 0 | H75: 0 | I75: 0 | J75: 0
A76: Капітальні трансферти урядам іноземних держав та міжнародним організаціям | B76: 3230 | C76: 540 | D76: 0 | E76: 0 | F76: 0 | G76: 0 | H76: 0 | I76: 0 | J76: 0
A77: Капітальні трансферти населенню | B77: 3240 | C77: 550 | D77: 0 | E77: 0 | F77: 0 | G77: 0 | H77: 0 | I77: 0 | J77: 0
A78: Внутрішнє кредитування | B78: 4100 | C78: 560 | D78: =SUM(D79) -> 0 | E78: 0 | F78: 0 | G78: 0 | H78: 0 | I78: 0 | J78: 0
A79: Надання внутрішніх кредитів | B79: 4110 | C79: 570 | D79: =SUM(D80:D82) -> 0 | E79: 0 | F79: 0 | G79: 0 | H79: 0 | I79: 0 | J79: 0
A80: Надання кредитів органам державного управління інших рівнів | B80: 4111 | C80: 580 | D80: 0 | E80: 0 | F80: 0 | G80: 0 | H80: 0 | I80: 0 | J80: 0
A81: Надання кредитів підприємствам, установам, організаціям | B81: 4112 | C81: 590 | D81: 0 | E81: 0 | F81: 0 | G81: 0 | H81: 0 | I81: 0 | J81: 0
A82: Надання інших внутрішніх кредитів | B82: 4113 | C82: 600 | D82: 0 | E82: 0 | F82: 0 | G82: 0 | H82: 0 | I82: 0 | J82: 0
A83: Зовнішнє кредитування | B83: 4200 | C83: 610 | D83: =D84 -> 0 | E83: 0 | F83: 0 | G83: 0 | H83: 0 | I83: 0 | J83: 0
A84: Надання зовнішніх кредитів | B84: 4210 | C84: 620 | D84: 0 | E84: 0 | F84: 0 | G84: 0 | H84: 0 | I84: 0 | J84: 0
A85: Інші видатки | B85: 5000 | C85: 630 | D85: X | E85: 0 | F85: X | G85: X | H85: X | I85: X | J85: X
A86: Нерозподілені видатки | B86: 9000 | C86: 640 | D86: 0 | E86: 0 | F86: 0 | G86: 0 | H86: 0 | I86: 0 | J86: 0
A99: 1 Заповнюється розпорядниками бюджетних коштів.
A100: =ЗАПОЛНИТЬ!F30 -> Ректор | G100: =ЗАПОЛНИТЬ!F26 -> В.В.Снітинський
D101: (підпис) | G101: (ініціали, прізвище)
A102: =ЗАПОЛНИТЬ!F31 -> Головний бухгалтер | G102: =ЗАПОЛНИТЬ!F28 -> Г.І.Козлова
A103: =ЗАПОЛНИТЬ!C19 -> "12" січня 2016 року | D103: (підпис) | G103: (ініціали, прізвище)
A104: *До запровадження програмно-цільового методу складання та виконання місцевих бюджетів проставляються код та назва тимчасової класифікації видатків та кредитування місцевих бюджетів.

Sheet Ф.2.7 (hidden)
H1: Додаток 4 до Порядку складання фінансової, бюджетної та іншої звітності розпорядниками та одержувачами бюджетних коштів
A4: ЗВІТ
A5: =IF(ЗАПОЛНИТЬ!$F$7=1,CONCATENATE(шапки!A2),CONCATENATE(шапки!A2,шапки!C2)) -> про надходження та використання коштів загального фонду (форма | G5: =IF(ЗАПОЛНИТЬ!$F$7=1,шапки!C2,шапки!D2) -> №2д, | H5: =IF(ЗАПОЛНИТЬ!$F$7=1,шапки!D2,"") -> №2м)
A6: =CONCATENATE("за ",ЗАПОЛНИТЬ!$B$17," ",ЗАПОЛНИТЬ!$C$17) -> за 2015 р.
J7: коди
A9: Установа | B9: =ЗАПОЛНИТЬ!B3 -> Львівський національний аграрний університет | I9: за ЄДРПОУ | J9: =ЗАПОЛНИТЬ!B13 -> 00493735
A10: Територія | B10: =ЗАПОЛНИТЬ!B5 -> м.Дубляни Жовківського р-ну Львівської обл. | I10: за КОАТУУ | J10: =ЗАПОЛНИТЬ!B14 -> 4622710200
A11: Організаційно-правова форма господарювання | B11: =ЗАПОЛНИТЬ!D15 -> Державна організація (установа, заклад) | I11: за КОПФГ | J11: =ЗАПОЛНИТЬ!B15 -> 425
A12: Код та назва відомчої класифікації видатків та кредитування державного бюджету | D12: =ЗАПОЛНИТЬ!H9 -> 220 | E12: =IF(D12>0,VLOOKUP(D12,'ДовидникКВК(ГОС)'!A:B,2,FALSE),"") -> Міністерство освіти і науки України
A13: Код та назва програмної класифікації видатків та кредитування державного бюджету | E13: =IF(D13>0,VLOOKUP(D13,ДовидникКПК!B:C,2,FALSE),"") -> 
A14: Код та назва типової відомчої класифікації видатків та кредитування місцевих бюджетів | D14: =ЗАПОЛНИТЬ!H10 -> - | E14: =ЗАПОЛНИТЬ!I10 -> -
A15: Код та назва програмної класифікації видатків та кредитування місцевих бюджетів (код та назва Типової програмної класифікації видатків та кредитування місцевих бюджетів / Тимчасової класифікації видатків та кредитування для бюджетів місцевого самоврядування, які не застосовують програмно-цільового методу)* | E15: =IF(D15>0,VLOOKUP(D15,ДовидникКФК!A:B,2,FALSE),"") -> 
A16: Періодичність: квартальна, річна
A17: Одиниця виміру: грн. коп.
A19: Показники | B19: КЕКВ та/або ККК | C19: Код рядка | D19: Затверджено на звітний рік | E19: Затверджено на звітний період (рік)1 | F19: Залишок на початок звітного року | G19: Надійшло коштів за звітний період (рік) | H19: Касові за звітний період (рік) | I19: Фактичні за звітний період (рік) | J19: Залишок на кінець звітного періоду (року)
A22: 1 | B22: 2 | C22: 3 | D22: 4 | E22: 5 | F22: 6 | G22: 7 | H22: 8 | I22: 9 | J22: 10
A23: Видатки та надання кредитів - усього | B23: Х | C23: 010 | D23: =D24+D58+D78+D83+D86 -> 0 | E23: =E26+E29+E32+E33+E37+E44+E45+E85+E53 -> 0 | F23: =F24+F58+F78+F83+F86 -> 0 | G23: =G24+G58+G78+G83+G86 -> 0 | H23: =H24+H58+H78+H83+H86 -> 0 | I23: =I24+I58+I78+I83+I86 -> 0 | J23: =F23+G23-H23 -> 0
A24: у тому числі: Поточні видатки | B24: 2000 | C24: 020 | D24: =D25+D30+D46+D49+D53+D57 -> 0 | E24: 0 | F24: 0 | G24: 0 | H24: 0 | I24: 0 | J24: =F24+G24-H24 -> 0
A25: Оплата праці і нарахування на заробітну плату | B25: 2100 | C25: 030 | D25: =D26+D29 -> 0 | E25: 0 | F25: =F26+F29 -> 0 | G25: =G26+G29 -> 0 | H25: =H26+H29 -> 0 | I25: =I26+I29 -> 0 | J25: 0
A26: Оплата праці | B26: 2110 | C26: 040 | D26: =SUM(D27:D28) -> 0 | E26: 0 | F26: 0 | G26: 0 | H26: 0 | I26: 0 | J26: 0
A27: Заробітна плата | B27: 2111 | C27: 050 | D27: 0 | E27: 0 | F27: 0 | G27: 0 | H27: 0 | I27: 0 | J27: 0
A28: Грошове забезпечення військовослужбовців | B28: 2112 | C28: 060 | D28: 0 | E28: 0 | F28: 0 | G28: 0 | H28: 0 | I28: 0 | J28: 0
A29: Нарахування на оплату праці | B29: 2120 | C29: 070 | D29: 0 | E29: 0 | F29: 0 | G29: 0 | H29: 0 | I29: 0 | J29: 0
A30: Використання товарів і послуг | B30: 2200 | C30: 080 | D30: =SUM(D31:D37)+D43 -> 0 | E30: 0 | F30: =SUM(F31:F37)+F43 -> 0 | G30: =SUM(G31:G37)+G43 -> 0 | H30: =SUM(H31:H37)+H43 -> 0 | I30: =SUM(I31:I37)+I43 -> 0 | J30: 0
A31: Предмети, матеріали, обладнання та інвентар | B31: 2210 | C31: 090 | D31: 0 | E31: 0 | F31: 0 | G31: 0 | H31: 0 | I31: 0 | J31: 0
A32: Медикаменти та перев’язувальні матеріали | B32: 2220 | C32: 100 | D32: 0 | E32: 0 | F32: 0 | G32: 0 | H32: 0 | I32: 0 | J32: 0
A33: Продукти харчування | B33: 2230 | C33: 110 | D33: 0 | E33: 0 | F33: 0 | G33: 0 | H33: 0 | I33: 0 | J33: 0
A34: Оплата послуг (крім комунальних) | B34: 2240 | C34: 120 | D34: 0 | E34: 0 | F34: 0 | G34: 0 | H34: 0 | I34: 0 | J34: 0
A35: Видатки на відрядження | B35: 2250 | C35: 130 | D35: 0 | E35: 0 | F35: 0 | G35: 0 | H35: 0 | I35: 0 | J35: 0
A36: Видатки та заходи спеціального призначення | B36: 2260 | C36: 140 | D36: 0 | E36: 0 | F36: 0 | G36: 0 | H36: 0 | I36: 0 | J36: 0
A37: Оплата комунальних послуг та енергоносіїв | B37: 2270 | C37: 150 | D37: =SUM(D38:D42) -> 0 | E37: 0 | F37: =SUM(F38:F42) -> 0 | G37: =SUM(G38:G42) -> 0 | H37: =SUM(H38:H42) -> 0 | I37: =SUM(I38:I42) -> 0 | J37: 0
A38: Оплата теплопостачання | B38: 2271 | C38: 160 | D38: 0 | E38: 0 | F38: 0 | G38: 0 | H38: 0 | I38: 0 | J38: 0
A39: Оплата водопостачання та водовідведення | B39: 2272 | C39: 170 | D39: 0 | E39: 0 | F39: 0 | G39: 0 | H39: 0 | I39: 0 | J39: 0
A40: Оплата електроенергії | B40: 2273 | C40: 180 | D40: 0 | E40: 0 | F40: 0 | G40: 0 | H40: 0 | I40: 0 | J40: 0
A41: Оплата природного газу | B41: 2274 | C41: 190 | D41: 0 | E41: 0 | F41: 0 | G41: 0 | H41: 0 | I41: 0 | J41: 0
A42: Оплата інших енергоносіїв | B42: 2275 | C42: 200 | D42: 0 | E42: 0 | F42: 0 | G42: 0 | H42: 0 | I42: 0 | J42: 0
A43: Дослідження і розробки, окремі заходи по реалізації державних (регіональних) програм | B43: 2280 | C43: 210 | D43: =SUM(D44:D45) -> 0 | E43: 0 | F43: =SUM(F44:F45) -> 0 | G43: =SUM(G44:G45) -> 0 | H43: =SUM(H44:H45) -> 0 | I43: =SUM(I44:I45) -> 0 | J43: 0
A44: Дослідження і розробки, окремі заходи розвитку по реалізації державних (регіональних) програм | B44: 2281 | C44: 220 | D44: 0 | E44: 0 | F44: 0 | G44: 0 | H44: 0 | I44: 0 | J44: 0
A45: Окремі заходи по реалізації державних (регіональних) програм, не віднесені до заходів розвитку | B45: 2282 | C45: 230 | D45: 0 | E45: 0 | F45: 0 | G45: 0 | H45: 0 | I45: 0 | J45: 0
A46: Обслуговування боргових зобов’язань | B46: 2400 | C46: 240 | D46: =SUM(D47:D48) -> 0 | E46: 0 | F46: 0 | G46: 0 | H46: 0 | I46: 0 | J46: 0
A47: Обслуговування внутрішніх боргових зобов’язань | B47: 2410 | C47: 250 | D47: 0 | E47: 0 | F47: 0 | G47: 0 | H47: 0 | I47: 0 | J47: 0
A48: Обслуговування зовнішніх боргових зобов’язань | B48: 2420 | C48: 260 | D48: 0 | E48: 0 | F48: 0 | G48: 0 | H48: 0 | I48: 0 | J48: 0
A49: Поточні трансферти | B49: 2600 | C49: 270 | D49: =SUM(D50:D52) -> 0 | E49: 0 | F49: 0 | G49: 0 | H49: 0 | I49: 0 | J49: 0
A50: Субсидії та поточні трансферти підприємствам (установам, організаціям) | B50: 2610 | C50: 280 | D50: 0 | E50: 0 | F50: 0 | G50: 0 | H50: 0 | I50: 0 | J50: 0
A51: Поточні трансферти органам державного управління інших рівнів | B51: 2620 | C51: 290 | D51: 0 | E51: 0 | F51: 0 | G51: 0 | H51: 0 | I51: 0 | J51: 0
A52: Поточні трансферти урядам іноземних держав та міжнародним організаціям | B52: 2630 | C52: 300 | D52: 0 | E52: 0 | F52: 0 | G52: 0 | H52: 0 | I52: 0 | J52: 0
A53: Соціальне забезпечення | B53: 2700 | C53: 310 | D53: =SUM(D54:D56) -> 0 | E53: 0 | F53: 0 | G53: 0 | H53: 0 | I53: 0 | J53: 0
A54: Виплата пенсій і допомоги | B54: 2710 | C54: 320 | D54: 0 | E54: 0 | F54: 0 | G54: 0 | H54: 0 | I54: 0 | J54: 0
A55: Стипендії | B55: 2720 | C55: 330 | D55: 0 | E55: 0 | F55: 0 | G55: 0 | H55: 0 | I55: 0 | J55: 0
A56: Інші виплати населенню | B56: 2730 | C56: 340 | D56: 0 | E56: 0 | F56: 0 | G56: 0 | H56: 0 | I56: 0 | J56: 0
A57: Інші поточні видатки | B57: 2800 | C57: 350 | D57: 0 | E57: 0 | F57: 0 | G57: 0 | H57: 0 | I57: 0 | J57: 0
A58: Капітальні видатки | B58: 3000 | C58: 360 | D58: =D59+D73 -> 0 | E58: 0 | F58: 0 | G58: 0 | H58: 0 | I58: 0 | J58: 0
A59: Придбання основного капіталу | B59: 3100 | C59: 370 | D59: =D60+D61+D64+D67+D71+D72 -> 0 | E59: 0 | F59: 0 | G59: 0 | H59: 0 | I59: 0 | J59: 0
A60: Придбання обладнання і предметів довгострокового користування | B60: 3110 | C60: 380 | D60: 0 | E60: 0 | F60: 0 | G60: 0 | H60: 0 | I60: 0 | J60: 0
A61: Капітальне будівництво (придбання) | B61: 3120 | C61: 390 | D61: =SUM(D62:D63) -> 0 | E61: 0 | F61: 0 | G61: 0 | H61: 0 | I61: 0 | J61: 0
A62: Капітальне будівництво (придбання) житла | B62: 3121 | C62: 400 | D62: 0 | E62: 0 | F62: 0 | G62: 0 | H62: 0 | I62: 0 | J62: 0
A63: Капітальне будівництво (придбання) інших об’єктів | B63: 3122 | C63: 410 | D63: 0 | E63: 0 | F63: 0 | G63: 0 | H63: 0 | I63: 0 | J63: 0
A64: Капітальний ремонт | B64: 3130 | C64: 420 | D64: =SUM(D65:D66) -> 0 | E64: 0 | F64: 0 | G64: 0 | H64: 0 | I64: 0 | J64: 0
A65: Капітальний ремонт житлового фонду (приміщень) | B65: 3131 | C65: 430 | D65: 0 | E65: 0 | F65: 0 | G65: 0 | H65: 0 | I65: 0 | J65: 0
A66: Капітальний ремонт інших об’єктів | B66: 3132 | C66: 440 | D66: 0 | E66: 0 | F66: 0 | G66: 0 | H66: 0 | I66: 0 | J66: 0
A67: Реконструкція та реставрація | B67: 3140 | C67: 450 | D67: =SUM(D68:D70) -> 0 | E67: 0 | F67: 0 | G67: 0 | H67: 0 | I67: 0 | J67: 0
A68: Реконструкція житлового фонду (приміщень) | B68: 3141 | C68: 460 | D68: 0 | E68: 0 | F68: 0 | G68: 0 | H68: 0 | I68: 0 | J68: 0
A69: Реконструкція та реставрація інших об’єктів | B69: 3142 | C69: 470 | D69: 0 | E69: 0 | F69: 0 | G69: 0 | H69: 0 | I69: 0 | J69: 0
A70: Реставрація пам’яток культури, історії та архітектури | B70: 3143 | C70: 480 | D70: 0 | E70: 0 | F70: 0 | G70: 0 | H70: 0 | I70: 0 | J70: 0
A71: Створення державних запасів і резервів | B71: 3150 | C71: 490 | D71: 0 | E71: 0 | F71: 0 | G71: 0 | H71: 0 | I71: 0 | J71: 0
A72: Придбання землі та нематеріальних активів | B72: 3160 | C72: 500 | D72: 0 | E72: 0 | F72: 0 | G72: 0 | H72: 0 | I72: 0 | J72: 0
A73: Капітальні трансферти | B73: 3200 | C73: 510 | D73: =SUM(D74:D77) -> 0 | E73: 0 | F73: 0 | G73: 0 | H73: 0 | I73: 0 | J73: 0
A74: Капітальні трансферти підприємствам (установам, організаціям) | B74: 3210 | C74: 520 | D74: 0 | E74: 0 | F74: 0 | G74: 0 | H74: 0 | I74: 0 | J74: 0
A75: Капітальні трансферти органам державного управління інших рівнів | B75: 3220 | C75: 530 | D75: 0 | E75: 0 | F75: 0 | G75: 0 | H75: 0 | I75: 0 | J75: 0
A76: Капітальні трансферти урядам іноземних держав та міжнародним організаціям | B76: 3230 | C76: 540 | D76: 0 | E76: 0 | F76: 0 | G76: 0 | H76: 0 | I76: 0 | J76: 0
A77: Капітальні трансферти населенню | B77: 3240 | C77: 550 | D77: 0 | E77: 0 | F77: 0 | G77: 0 | H77: 0 | I77: 0 | J77: 0
A78: Внутрішнє кредитування | B78: 4100 | C78: 560 | D78: =SUM(D79) -> 0 | E78: 0 | F78: 0 | G78: 0 | H78: 0 | I78: 0 | J78: 0
A79: Надання внутрішніх кредитів | B79: 4110 | C79: 570 | D79: =SUM(D80:D82) -> 0 | E79: 0 | F79: 0 | G79: 0 | H79: 0 | I79: 0 | J79: 0
A80: Надання кредитів органам державного управління інших рівнів | B80: 4111 | C80: 580 | D80: 0 | E80: 0 | F80: 0 | G80: 0 | H80: 0 | I80: 0 | J80: 0
A81: Надання кредитів підприємствам, установам, організаціям | B81: 4112 | C81: 590 | D81: 0 | E81: 0 | F81: 0 | G81: 0 | H81: 0 | I81: 0 | J81: 0
A82: Надання інших внутрішніх кредитів | B82: 4113 | C82: 600 | D82: 0 | E82: 0 | F82: 0 | G82: 0 | H82: 0 | I82: 0 | J82: 0
A83: Зовнішнє кредитування | B83: 4200 | C83: 610 | D83: =D84 -> 0 | E83: 0 | F83: 0 | G83: 0 | H83: 0 | I83: 0 | J83: 0
A84: Надання зовнішніх кредитів | B84: 4210 | C84: 620 | D84: 0 | E84: 0 | F84: 0 | G84: 0 | H84: 0 | I84: 0 | J84: 0
A85: Інші видатки | B85: 5000 | C85: 630 | D85: X | E85: 0 | F85: X | G85: X | H85: X | I85: X | J85: X
A86: Нерозподілені видатки | B86: 9000 | C86: 640 | D86: 0 | E86: 0 | F86: 0 | G86: 0 | H86: 0 | I86: 0 | J86: 0
A99: 1 Заповнюється розпорядниками бюджетних коштів.
A100: =ЗАПОЛНИТЬ!F30 -> Ректор | G100: =ЗАПОЛНИТЬ!F26 -> В.В.Снітинський
D101: (підпис) | G101: (ініціали, прізвище)
A102: =ЗАПОЛНИТЬ!F31 -> Головний бухгалтер | G102: =ЗАПОЛНИТЬ!F28 -> Г.І.Козлова
A103: =ЗАПОЛНИТЬ!C19 -> "12" січня 2016 року | D103: (підпис) | G103: (ініціали, прізвище)
A104: *До запровадження програмно-цільового методу складання та виконання місцевих бюджетів проставляються код та назва тимчасової класифікації видатків та кредитування місцевих бюджетів.

Sheet Ф.2.8 (hidden)
H1: Додаток 4 до Порядку складання фінансової, бюджетної та іншої звітності розпорядниками та одержувачами бюджетних коштів
A4: ЗВІТ
A5: =IF(ЗАПОЛНИТЬ!$F$7=1,CONCATENATE(шапки!A2),CONCATENATE(шапки!A2,шапки!C2)) -> про надходження та використання коштів загального фонду (форма | G5: =IF(ЗАПОЛНИТЬ!$F$7=1,шапки!C2,шапки!D2) -> №2д, | H5: =IF(ЗАПОЛНИТЬ!$F$7=1,шапки!D2,"") -> №2м)
A6: =CONCATENATE("за ",ЗАПОЛНИТЬ!$B$17," ",ЗАПОЛНИТЬ!$C$17) -> за 2015 р.
J7: коди
A9: Установа | B9: =ЗАПОЛНИТЬ!B3 -> Львівський національний аграрний університет | I9: за ЄДРПОУ | J9: =ЗАПОЛНИТЬ!B13 -> 00493735
A10: Територія | B10: =ЗАПОЛНИТЬ!B5 -> м.Дубляни Жовківського р-ну Львівської обл. | I10: за КОАТУУ | J10: =ЗАПОЛНИТЬ!B14 -> 4622710200
A11: Організаційно-правова форма господарювання | B11: =ЗАПОЛНИТЬ!D15 -> Державна організація (установа, заклад) | I11: за КОПФГ | J11: =ЗАПОЛНИТЬ!B15 -> 425
A12: Код та назва відомчої класифікації видатків та кредитування державного бюджету | D12: =ЗАПОЛНИТЬ!H9 -> 220 | E12: =IF(D12>0,VLOOKUP(D12,'ДовидникКВК(ГОС)'!A:B,2,FALSE),"") -> Міністерство освіти і науки України
A13: Код та назва програмної класифікації видатків та кредитування державного бюджету | E13: =IF(D13>0,VLOOKUP(D13,ДовидникКПК!B:C,2,FALSE),"") -> 
A14: Код та назва типової відомчої класифікації видатків та кредитування місцевих бюджетів | D14: =ЗАПОЛНИТЬ!H10 -> - | E14: =ЗАПОЛНИТЬ!I10 -> -
A15: Код та назва програмної класифікації видатків та кредитування місцевих бюджетів (код та назва Типової програмної класифікації видатків та кредитування місцевих бюджетів / Тимчасової класифікації видатків та кредитування для бюджетів місцевого самоврядування, які не застосовують програмно-цільового методу)* | E15: =IF(D15>0,VLOOKUP(D15,ДовидникКФК!A:B,2,FALSE),"") -> 
A16: Періодичність: квартальна, річна
A17: Одиниця виміру: грн. коп.
A19: Показники | B19: КЕКВ та/або ККК | C19: Код рядка | D19: Затверджено на звітний рік | E19: Затверджено на звітний період (рік)1 | F19: Залишок на початок звітного року | G19: Надійшло коштів за звітний період (рік) | H19: Касові за звітний період (рік) | I19: Фактичні за звітний період (рік) | J19: Залишок на кінець звітного періоду (року)
A22: 1 | B22: 2 | C22: 3 | D22: 4 | E22: 5 | F22: 6 | G22: 7 | H22: 8 | I22: 9 | J22: 10
A23: Видатки та надання кредитів - усього | B23: Х | C23: 010 | D23: =D24+D58+D78+D83+D86 -> 0 | E23: =E26+E29+E32+E33+E37+E44+E45+E85+E53 -> 0 | F23: =F24+F58+F78+F83+F86 -> 0 | G23: =G24+G58+G78+G83+G86 -> 0 | H23: =H24+H58+H78+H83+H86 -> 0 | I23: =I24+I58+I78+I83+I86 -> 0 | J23: =F23+G23-H23 -> 0
A24: у тому числі: Поточні видатки | B24: 2000 | C24: 020 | D24: =D25+D30+D46+D49+D53+D57 -> 0 | E24: 0 | F24: 0 | G24: 0 | H24: 0 | I24: 0 | J24: =F24+G24-H24 -> 0
A25: Оплата праці і нарахування на заробітну плату | B25: 2100 | C25: 030 | D25: =D26+D29 -> 0 | E25: 0 | F25: =F26+F29 -> 0 | G25: =G26+G29 -> 0 | H25: =H26+H29 -> 0 | I25: =I26+I29 -> 0 | J25: 0
A26: Оплата праці | B26: 2110 | C26: 040 | D26: =SUM(D27:D28) -> 0 | E26: 0 | F26: 0 | G26: 0 | H26: 0 | I26: 0 | J26: 0
A27: Заробітна плата | B27: 2111 | C27: 050 | D27: 0 | E27: 0 | F27: 0 | G27: 0 | H27: 0 | I27: 0 | J27: 0
A28: Грошове забезпечення військовослужбовців | B28: 2112 | C28: 060 | D28: 0 | E28: 0 | F28: 0 | G28: 0 | H28: 0 | I28: 0 | J28: 0
A29: Нарахування на оплату праці | B29: 2120 | C29: 070 | D29: 0 | E29: 0 | F29: 0 | G29: 0 | H29: 0 | I29: 0 | J29: 0
A30: Використання товарів і послуг | B30: 2200 | C30: 080 | D30: =SUM(D31:D37)+D43 -> 0 | E30: 0 | F30: =SUM(F31:F37)+F43 -> 0 | G30: =SUM(G31:G37)+G43 -> 0 | H30: =SUM(H31:H37)+H43 -> 0 | I30: =SUM(I31:I37)+I43 -> 0 | J30: 0
A31: Предмети, матеріали, обладнання та інвентар | B31: 2210 | C31: 090 | D31: 0 | E31: 0 | F31: 0 | G31: 0 | H31: 0 | I31: 0 | J31: 0
A32: Медикаменти та перев’язувальні матеріали | B32: 2220 | C32: 100 | D32: 0 | E32: 0 | F32: 0 | G32: 0 | H32: 0 | I32: 0 | J32: 0
A33: Продукти харчування | B33: 2230 | C33: 110 | D33: 0 | E33: 0 | F33: 0 | G33: 0 | H33: 0 | I33: 0 | J33: 0
A34: Оплата послуг (крім комунальних) | B34: 2240 | C34: 120 | D34: 0 | E34: 0 | F34: 0 | G34: 0 | H34: 0 | I34: 0 | J34: 0
A35: Видатки на відрядження | B35: 2250 | C35: 130 | D35: 0 | E35: 0 | F35: 0 | G35: 0 | H35: 0 | I35: 0 | J35: 0
A36: Видатки та заходи спеціального призначення | B36: 2260 | C36: 140 | D36: 0 | E36: 0 | F36: 0 | G36: 0 | H36: 0 | I36: 0 | J36: 0
A37: Оплата комунальних послуг та енергоносіїв | B37: 2270 | C37: 150 | D37: =SUM(D38:D42) -> 0 | E37: 0 | F37: =SUM(F38:F42) -> 0 | G37: =SUM(G38:G42) -> 0 | H37: =SUM(H38:H42) -> 0 | I37: =SUM(I38:I42) -> 0 | J37: 0
A38: Оплата теплопостачання | B38: 2271 | C38: 160 | D38: 0 | E38: 0 | F38: 0 | G38: 0 | H38: 0 | I38: 0 | J38: 0
A39: Оплата водопостачання та водовідведення | B39: 2272 | C39: 170 | D39: 0 | E39: 0 | F39: 0 | G39: 0 | H39: 0 | I39: 0 | J39: 0
A40: Оплата електроенергії | B40: 2273 | C40: 180 | D40: 0 | E40: 0 | F40: 0 | G40: 0 | H40: 0 | I40: 0 | J40: 0
A41: Оплата природного газу | B41: 2274 | C41: 190 | D41: 0 | E41: 0 | F41: 0 | G41: 0 | H41: 0 | I41: 0 | J41: 0
A42: Оплата інших енергоносіїв | B42: 2275 | C42: 200 | D42: 0 | E42: 0 | F42: 0 | G42: 0 | H42: 0 | I42: 0 | J42: 0
A43: Дослідження і розробки, окремі заходи по реалізації державних (регіональних) програм | B43: 2280 | C43: 210 | D43: =SUM(D44:D45) -> 0 | E43: 0 | F43: =SUM(F44:F45) -> 0 | G43: =SUM(G44:G45) -> 0 | H43: =SUM(H44:H45) -> 0 | I43: =SUM(I44:I45) -> 0 | J43: 0
A44: Дослідження і розробки, окремі заходи розвитку по реалізації державних (регіональних) програм | B44: 2281 | C44: 220 | D44: 0 | E44: 0 | F44: 0 | G44: 0 | H44: 0 | I44: 0 | J44: 0
A45: Окремі заходи по реалізації державних (регіональних) програм, не віднесені до заходів розвитку | B45: 2282 | C45: 230 | D45: 0 | E45: 0 | F45: 0 | G45: 0 | H45: 0 | I45: 0 | J45: 0
A46: Обслуговування боргових зобов’язань | B46: 2400 | C46: 240 | D46: =SUM(D47:D48) -> 0 | E46: 0 | F46: 0 | G46: 0 | H46: 0 | I46: 0 | J46: 0
A47: Обслуговування внутрішніх боргових зобов’язань | B47: 2410 | C47: 250 | D47: 0 | E47: 0 | F47: 0 | G47: 0 | H47: 0 | I47: 0 | J47: 0
A48: Обслуговування зовнішніх боргових зобов’язань | B48: 2420 | C48: 260 | D48: 0 | E48: 0 | F48: 0 | G48: 0 | H48: 0 | I48: 0 | J48: 0
A49: Поточні трансферти | B49: 2600 | C49: 270 | D49: =SUM(D50:D52) -> 0 | E49: 0 | F49: 0 | G49: 0 | H49: 0 | I49: 0 | J49: 0
A50: Субсидії та поточні трансферти підприємствам (установам, організаціям) | B50: 2610 | C50: 280 | D50: 0 | E50: 0 | F50: 0 | G50: 0 | H50: 0 | I50: 0 | J50: 0
A51: Поточні трансферти органам державного управління інших рівнів | B51: 2620 | C51: 290 | D51: 0 | E51: 0 | F51: 0 | G51: 0 | H51: 0 | I51: 0 | J51: 0
A52: Поточні трансферти урядам іноземних держав та міжнародним організаціям | B52: 2630 | C52: 300 | D52: 0 | E52: 0 | F52: 0 | G52: 0 | H52: 0 | I52: 0 | J52: 0
A53: Соціальне забезпечення | B53: 2700 | C53: 310 | D53: =SUM(D54:D56) -> 0 | E53: 0 | F53: 0 | G53: 0 | H53: 0 | I53: 0 | J53: 0
A54: Виплата пенсій і допомоги | B54: 2710 | C54: 320 | D54: 0 | E54: 0 | F54: 0 | G54: 0 | H54: 0 | I54: 0 | J54: 0
A55: Стипендії | B55: 2720 | C55: 330 | D55: 0 | E55: 0 | F55: 0 | G55: 0 | H55: 0 | I55: 0 | J55: 0
A56: Інші виплати населенню | B56: 2730 | C56: 340 | D56: 0 | E56: 0 | F56: 0 | G56: 0 | H56: 0 | I56: 0 | J56: 0
A57: Інші поточні видатки | B57: 2800 | C57: 350 | D57: 0 | E57: 0 | F57: 0 | G57: 0 | H57: 0 | I57: 0 | J57: 0
A58: Капітальні видатки | B58: 3000 | C58: 360 | D58: =D59+D73 -> 0 | E58: 0 | F58: 0 | G58: 0 | H58: 0 | I58: 0 | J58: 0
A59: Придбання основного капіталу | B59: 3100 | C59: 370 | D59: =D60+D61+D64+D67+D71+D72 -> 0 | E59: 0 | F59: 0 | G59: 0 | H59: 0 | I59: 0 | J59: 0
A60: Придбання обладнання і предметів довгострокового користування | B60: 3110 | C60: 380 | D60: 0 | E60: 0 | F60: 0 | G60: 0 | H60: 0 | I60: 0 | J60: 0
A61: Капітальне будівництво (придбання) | B61: 3120 | C61: 390 | D61: =SUM(D62:D63) -> 0 | E61: 0 | F61: 0 | G61: 0 | H61: 0 | I61: 0 | J61: 0
A62: Капітальне будівництво (придбання) житла | B62: 3121 | C62: 400 | D62: 0 | E62: 0 | F62: 0 | G62: 0 | H62: 0 | I62: 0 | J62: 0
A63: Капітальне будівництво (придбання) інших об’єктів | B63: 3122 | C63: 410 | D63: 0 | E63: 0 | F63: 0 | G63: 0 | H63: 0 | I63: 0 | J63: 0
A64: Капітальний ремонт | B64: 3130 | C64: 420 | D64: =SUM(D65:D66) -> 0 | E64: 0 | F64: 0 | G64: 0 | H64: 0 | I64: 0 | J64: 0
A65: Капітальний ремонт житлового фонду (приміщень) | B65: 3131 | C65: 430 | D65: 0 | E65: 0 | F65: 0 | G65: 0 | H65: 0 | I65: 0 | J65: 0
A66: Капітальний ремонт інших об’єктів | B66: 3132 | C66: 440 | D66: 0 | E66: 0 | F66: 0 | G66: 0 | H66: 0 | I66: 0 | J66: 0
A67: Реконструкція та реставрація | B67: 3140 | C67: 450 | D67: =SUM(D68:D70) -> 0 | E67: 0 | F67: 0 | G67: 0 | H67: 0 | I67: 0 | J67: 0
A68: Реконструкція житлового фонду (приміщень) | B68: 3141 | C68: 460 | D68: 0 | E68: 0 | F68: 0 | G68: 0 | H68: 0 | I68: 0 | J68: 0
A69: Реконструкція та реставрація інших об’єктів | B69: 3142 | C69: 470 | D69: 0 | E69: 0 | F69: 0 | G69: 0 | H69: 0 | I69: 0 | J69: 0
A70: Реставрація пам’яток культури, історії та архітектури | B70: 3143 | C70: 480 | D70: 0 | E70: 0 | F70: 0 | G70: 0 | H70: 0 | I70: 0 | J70: 0
A71: Створення державних запасів і резервів | B71: 3150 | C71: 490 | D71: 0 | E71: 0 | F71: 0 | G71: 0 | H71: 0 | I71: 0 | J71: 0
A72: Придбання землі та нематеріальних активів | B72: 3160 | C72: 500 | D72: 0 | E72: 0 | F72: 0 | G72: 0 | H72: 0 | I72: 0 | J72: 0
A73: Капітальні трансферти | B73: 3200 | C73: 510 | D73: =SUM(D74:D77) -> 0 | E73: 0 | F73: 0 | G73: 0 | H73: 0 | I73: 0 | J73: 0
A74: Капітальні трансферти підприємствам (установам, організаціям) | B74: 3210 | C74: 520 | D74: 0 | E74: 0 | F74: 0 | G74: 0 | H74: 0 | I74: 0 | J74: 0
A75: Капітальні трансферти органам державного управління інших рівнів | B75: 3220 | C75: 530 | D75: 0 | E75: 0 | F75: 0 | G75: 0 | H75: 0 | I75: 0 | J75: 0
A76: Капітальні трансферти урядам іноземних держав та міжнародним організаціям | B76: 3230 | C76: 540 | D76: 0 | E76: 0 | F76: 0 | G76: 0 | H76: 0 | I76: 0 | J76: 0
A77: Капітальні трансферти населенню | B77: 3240 | C77: 550 | D77: 0 | E77: 0 | F77: 0 | G77: 0 | H77: 0 | I77: 0 | J77: 0
A78: Внутрішнє кредитування | B78: 4100 | C78: 560 | D78: =SUM(D79) -> 0 | E78: 0 | F78: 0 | G78: 0 | H78: 0 | I78: 0 | J78: 0
A79: Надання внутрішніх кредитів | B79: 4110 | C79: 570 | D79: =SUM(D80:D82) -> 0 | E79: 0 | F79: 0 | G79: 0 | H79: 0 | I79: 0 | J79: 0
A80: Надання кредитів органам державного управління інших рівнів | B80: 4111 | C80: 580 | D80: 0 | E80: 0 | F80: 0 | G80: 0 | H80: 0 | I80: 0 | J80: 0
A81: Надання кредитів підприємствам, установам, організаціям | B81: 4112 | C81: 590 | D81: 0 | E81: 0 | F81: 0 | G81: 0 | H81: 0 | I81: 0 | J81: 0
A82: Надання інших внутрішніх кредитів | B82: 4113 | C82: 600 | D82: 0 | E82: 0 | F82: 0 | G82: 0 | H82: 0 | I82: 0 | J82: 0
A83: Зовнішнє кредитування | B83: 4200 | C83: 610 | D83: =D84 -> 0 | E83: 0 | F83: 0 | G83: 0 | H83: 0 | I83: 0 | J83: 0
A84: Надання зовнішніх кредитів | B84: 4210 | C84: 620 | D84: 0 | E84: 0 | F84: 0 | G84: 0 | H84: 0 | I84: 0 | J84: 0
A85: Інші видатки | B85: 5000 | C85: 630 | D85: X | E85: 0 | F85: X | G85: X | H85: X | I85: X | J85: X
A86: Нерозподілені видатки | B86: 9000 | C86: 640 | D86: 0 | E86: 0 | F86: 0 | G86: 0 | H86: 0 | I86: 0 | J86: 0
A99: 1 Заповнюється розпорядниками бюджетних коштів.
A100: =ЗАПОЛНИТЬ!F30 -> Ректор | G100: =ЗАПОЛНИТЬ!F26 -> В.В.Снітинський
D101: (підпис) | G101: (ініціали, прізвище)
A102: =ЗАПОЛНИТЬ!F31 -> Головний бухгалтер | G102: =ЗАПОЛНИТЬ!F28 -> Г.І.Козлова
A103: =ЗАПОЛНИТЬ!C19 -> "12" січня 2016 року | D103: (підпис) | G103: (ініціали, прізвище)
A104: *До запровадження програмно-цільового методу складання та виконання місцевих бюджетів проставляються код та назва тимчасової класифікації видатків та кредитування місцевих бюджетів.

Sheet Ф.2.9 (hidden)
H1: Додаток 4 до Порядку складання фінансової, бюджетної та іншої звітності розпорядниками та одержувачами бюджетних коштів
A4: ЗВІТ
A5: =IF(ЗАПОЛНИТЬ!$F$7=1,CONCATENATE(шапки!A2),CONCATENATE(шапки!A2,шапки!C2)) -> про надходження та використання коштів загального фонду (форма | G5: =IF(ЗАПОЛНИТЬ!$F$7=1,шапки!C2,шапки!D2) -> №2д, | H5: =IF(ЗАПОЛНИТЬ!$F$7=1,шапки!D2,"") -> №2м)
A6: =CONCATENATE("за ",ЗАПОЛНИТЬ!$B$17," ",ЗАПОЛНИТЬ!$C$17) -> за 2015 р.
J7: коди
A9: Установа | B9: =ЗАПОЛНИТЬ!B3 -> Львівський національний аграрний університет | I9: за ЄДРПОУ | J9: =ЗАПОЛНИТЬ!B13 -> 00493735
A10: Територія | B10: =ЗАПОЛНИТЬ!B5 -> м.Дубляни Жовківського р-ну Львівської обл. | I10: за КОАТУУ | J10: =ЗАПОЛНИТЬ!B14 -> 4622710200
A11: Організаційно-правова форма господарювання | B11: =ЗАПОЛНИТЬ!D15 -> Державна організація (установа, заклад) | I11: за КОПФГ | J11: =ЗАПОЛНИТЬ!B15 -> 425
A12: Код та назва відомчої класифікації видатків та кредитування державного бюджету | D12: =ЗАПОЛНИТЬ!H9 -> 220 | E12: =IF(D12>0,VLOOKUP(D12,'ДовидникКВК(ГОС)'!A:B,2,FALSE),"") -> Міністерство освіти і науки України
A13: Код та назва програмної класифікації видатків та кредитування державного бюджету | E13: =IF(D13>0,VLOOKUP(D13,ДовидникКПК!B:C,2,FALSE),"") -> 
A14: Код та назва типової відомчої класифікації видатків та кредитування місцевих бюджетів | D14: =ЗАПОЛНИТЬ!H10 -> - | E14: =ЗАПОЛНИТЬ!I10 -> -
A15: Код та назва програмної класифікації видатків та кредитування місцевих бюджетів (код та назва Типової програмної класифікації видатків та кредитування місцевих бюджетів / Тимчасової класифікації видатків та кредитування для бюджетів місцевого самоврядування, які не застосовують програмно-цільового методу)* | E15: =IF(D15>0,VLOOKUP(D15,ДовидникКФК!A:B,2,FALSE),"") -> 
A16: Періодичність: квартальна, річна
A17: Одиниця виміру: грн. коп.
A19: Показники | B19: КЕКВ та/або ККК | C19: Код рядка | D19: Затверджено на звітний рік | E19: Затверджено на звітний період (рік)1 | F19: Залишок на початок звітного року | G19: Надійшло коштів за звітний період (рік) | H19: Касові за звітний період (рік) | I19: Фактичні за звітний період (рік) | J19: Залишок на кінець звітного періоду (року)
A22: 1 | B22: 2 | C22: 3 | D22: 4 | E22: 5 | F22: 6 | G22: 7 | H22: 8 | I22: 9 | J22: 10
A23: Видатки та надання кредитів - усього | B23: Х | C23: 010 | D23: =D24+D58+D78+D83+D86 -> 0 | E23: =E26+E29+E32+E33+E37+E44+E45+E85+E53 -> 0 | F23: =F24+F58+F78+F83+F86 -> 0 | G23: =G24+G58+G78+G83+G86 -> 0 | H23: =H24+H58+H78+H83+H86 -> 0 | I23: =I24+I58+I78+I83+I86 -> 0 | J23: =F23+G23-H23 -> 0
A24: у тому числі: Поточні видатки | B24: 2000 | C24: 020 | D24: =D25+D30+D46+D49+D53+D57 -> 0 | E24: 0 | F24: 0 | G24: 0 | H24: 0 | I24: 0 | J24: =F24+G24-H24 -> 0
A25: Оплата праці і нарахування на заробітну плату | B25: 2100 | C25: 030 | D25: =D26+D29 -> 0 | E25: 0 | F25: =F26+F29 -> 0 | G25: =G26+G29 -> 0 | H25: =H26+H29 -> 0 | I25: =I26+I29 -> 0 | J25: 0
A26: Оплата праці | B26: 2110 | C26: 040 | D26: =SUM(D27:D28) -> 0 | E26: 0 | F26: 0 | G26: 0 | H26: 0 | I26: 0 | J26: 0
A27: Заробітна плата | B27: 2111 | C27: 050 | D27: 0 | E27: 0 | F27: 0 | G27: 0 | H27: 0 | I27: 0 | J27: 0
A28: Грошове забезпечення військовослужбовців | B28: 2112 | C28: 060 | D28: 0 | E28: 0 | F28: 0 | G28: 0 | H28: 0 | I28: 0 | J28: 0
A29: Нарахування на оплату праці | B29: 2120 | C29: 070 | D29: 0 | E29: 0 | F29: 0 | G29: 0 | H29: 0 | I29: 0 | J29: 0
A30: Використання товарів і послуг | B30: 2200 | C30: 080 | D30: =SUM(D31:D37)+D43 -> 0 | E30: 0 | F30: =SUM(F31:F37)+F43 -> 0 | G30: =SUM(G31:G37)+G43 -> 0 | H30: =SUM(H31:H37)+H43 -> 0 | I30: =SUM(I31:I37)+I43 -> 0 | J30: 0
A31: Предмети, матеріали, обладнання та інвентар | B31: 2210 | C31: 090 | D31: 0 | E31: 0 | F31: 0 | G31: 0 | H31: 0 | I31: 0 | J31: 0
A32: Медикаменти та перев’язувальні матеріали | B32: 2220 | C32: 100 | D32: 0 | E32: 0 | F32: 0 | G32: 0 | H32: 0 | I32: 0 | J32: 0
A33: Продукти харчування | B33: 2230 | C33: 110 | D33: 0 | E33: 0 | F33: 0 | G33: 0 | H33: 0 | I33: 0 | J33: 0
A34: Оплата послуг (крім комунальних) | B34: 2240 | C34: 120 | D34: 0 | E34: 0 | F34: 0 | G34: 0 | H34: 0 | I34: 0 | J34: 0
A35: Видатки на відрядження | B35: 2250 | C35: 130 | D35: 0 | E35: 0 | F35: 0 | G35: 0 | H35: 0 | I35: 0 | J35: 0
A36: Видатки та заходи спеціального призначення | B36: 2260 | C36: 140 | D36: 0 | E36: 0 | F36: 0 | G36: 0 | H36: 0 | I36: 0 | J36: 0
A37: Оплата комунальних послуг та енергоносіїв | B37: 2270 | C37: 150 | D37: =SUM(D38:D42) -> 0 | E37: 0 | F37: =SUM(F38:F42) -> 0 | G37: =SUM(G38:G42) -> 0 | H37: =SUM(H38:H42) -> 0 | I37: =SUM(I38:I42) -> 0 | J37: 0
A38: Оплата теплопостачання | B38: 2271 | C38: 160 | D38: 0 | E38: 0 | F38: 0 | G38: 0 | H38: 0 | I38: 0 | J38: 0
A39: Оплата водопостачання та водовідведення | B39: 2272 | C39: 170 | D39: 0 | E39: 0 | F39: 0 | G39: 0 | H39: 0 | I39: 0 | J39: 0
A40: Оплата електроенергії | B40: 2273 | C40: 180 | D40: 0 | E40: 0 | F40: 0 | G40: 0 | H40: 0 | I40: 0 | J40: 0
A41: Оплата природного газу | B41: 2274 | C41: 190 | D41: 0 | E41: 0 | F41: 0 | G41: 0 | H41: 0 | I41: 0 | J41: 0
A42: Оплата інших енергоносіїв | B42: 2275 | C42: 200 | D42: 0 | E42: 0 | F42: 0 | G42: 0 | H42: 0 | I42: 0 | J42: 0
A43: Дослідження і розробки, окремі заходи по реалізації державних (регіональних) програм | B43: 2280 | C43: 210 | D43: =SUM(D44:D45) -> 0 | E43: 0 | F43: =SUM(F44:F45) -> 0 | G43: =SUM(G44:G45) -> 0 | H43: =SUM(H44:H45) -> 0 | I43: =SUM(I44:I45) -> 0 | J43: 0
A44: Дослідження і розробки, окремі заходи розвитку по реалізації державних (регіональних) програм | B44: 2281 | C44: 220 | D44: 0 | E44: 0 | F44: 0 | G44: 0 | H44: 0 | I44: 0 | J44: 0
A45: Окремі заходи по реалізації державних (регіональних) програм, не віднесені до заходів розвитку | B45: 2282 | C45: 230 | D45: 0 | E45: 0 | F45: 0 | G45: 0 | H45: 0 | I45: 0 | J45: 0
A46: Обслуговування боргових зобов’язань | B46: 2400 | C46: 240 | D46: =SUM(D47:D48) -> 0 | E46: 0 | F46: 0 | G46: 0 | H46: 0 | I46: 0 | J46: 0
A47: Обслуговування внутрішніх боргових зобов’язань | B47: 2410 | C47: 250 | D47: 0 | E47: 0 | F47: 0 | G47: 0 | H47: 0 | I47: 0 | J47: 0
A48: Обслуговування зовнішніх боргових зобов’язань | B48: 2420 | C48: 260 | D48: 0 | E48: 0 | F48: 0 | G48: 0 | H48: 0 | I48: 0 | J48: 0
A49: Поточні трансферти | B49: 2600 | C49: 270 | D49: =SUM(D50:D52) -> 0 | E49: 0 | F49: 0 | G49: 0 | H49: 0 | I49: 0 | J49: 0
A50: Субсидії та поточні трансферти підприємствам (установам, організаціям) | B50: 2610 | C50: 280 | D50: 0 | E50: 0 | F50: 0 | G50: 0 | H50: 0 | I50: 0 | J50: 0
A51: Поточні трансферти органам державного управління інших рівнів | B51: 2620 | C51: 290 | D51: 0 | E51: 0 | F51: 0 | G51: 0 | H51: 0 | I51: 0 | J51: 0
A52: Поточні трансферти урядам іноземних держав та міжнародним організаціям | B52: 2630 | C52: 300 | D52: 0 | E52: 0 | F52: 0 | G52: 0 | H52: 0 | I52: 0 | J52: 0
A53: Соціальне забезпечення | B53: 2700 | C53: 310 | D53: =SUM(D54:D56) -> 0 | E53: 0 | F53: 0 | G53: 0 | H53: 0 | I53: 0 | J53: 0
A54: Виплата пенсій і допомоги | B54: 2710 | C54: 320 | D54: 0 | E54: 0 | F54: 0 | G54: 0 | H54: 0 | I54: 0 | J54: 0
A55: Стипендії | B55: 2720 | C55: 330 | D55: 0 | E55: 0 | F55: 0 | G55: 0 | H55: 0 | I55: 0 | J55: 0
A56: Інші виплати населенню | B56: 2730 | C56: 340 | D56: 0 | E56: 0 | F56: 0 | G56: 0 | H56: 0 | I56: 0 | J56: 0
A57: Інші поточні видатки | B57: 2800 | C57: 350 | D57: 0 | E57: 0 | F57: 0 | G57: 0 | H57: 0 | I57: 0 | J57: 0
A58: Капітальні видатки | B58: 3000 | C58: 360 | D58: =D59+D73 -> 0 | E58: 0 | F58: 0 | G58: 0 | H58: 0 | I58: 0 | J58: 0
A59: Придбання основного капіталу | B59: 3100 | C59: 370 | D59: =D60+D61+D64+D67+D71+D72 -> 0 | E59: 0 | F59: 0 | G59: 0 | H59: 0 | I59: 0 | J59: 0
A60: Придбання обладнання і предметів довгострокового користування | B60: 3110 | C60: 380 | D60: 0 | E60: 0 | F60: 0 | G60: 0 | H60: 0 | I60: 0 | J60: 0
A61: Капітальне будівництво (придбання) | B61: 3120 | C61: 390 | D61: =SUM(D62:D63) -> 0 | E61: 0 | F61: 0 | G61: 0 | H61: 0 | I61: 0 | J61: 0
A62: Капітальне будівництво (придбання) житла | B62: 3121 | C62: 400 | D62: 0 | E62: 0 | F62: 0 | G62: 0 | H62: 0 | I62: 0 | J62: 0
A63: Капітальне будівництво (придбання) інших об’єктів | B63: 3122 | C63: 410 | D63: 0 | E63: 0 | F63: 0 | G63: 0 | H63: 0 | I63: 0 | J63: 0
A64: Капітальний ремонт | B64: 3130 | C64: 420 | D64: =SUM(D65:D66) -> 0 | E64: 0 | F64: 0 | G64: 0 | H64: 0 | I64: 0 | J64: 0
A65: Капітальний ремонт житлового фонду (приміщень) | B65: 3131 | C65: 430 | D65: 0 | E65: 0 | F65: 0 | G65: 0 | H65: 0 | I65: 0 | J65: 0
A66: Капітальний ремонт інших об’єктів | B66: 3132 | C66: 440 | D66: 0 | E66: 0 | F66: 0 | G66: 0 | H66: 0 | I66: 0 | J66: 0
A67: Реконструкція та реставрація | B67: 3140 | C67: 450 | D67: =SUM(D68:D70) -> 0 | E67: 0 | F67: 0 | G67: 0 | H67: 0 | I67: 0 | J67: 0
A68: Реконструкція житлового фонду (приміщень) | B68: 3141 | C68: 460 | D68: 0 | E68: 0 | F68: 0 | G68: 0 | H68: 0 | I68: 0 | J68: 0
A69: Реконструкція та реставрація інших об’єктів | B69: 3142 | C69: 470 | D69: 0 | E69: 0 | F69: 0 | G69: 0 | H69: 0 | I69: 0 | J69: 0
A70: Реставрація пам’яток культури, історії та архітектури | B70: 3143 | C70: 480 | D70: 0 | E70: 0 | F70: 0 | G70: 0 | H70: 0 | I70: 0 | J70: 0
A71: Створення державних запасів і резервів | B71: 3150 | C71: 490 | D71: 0 | E71: 0 | F71: 0 | G71: 0 | H71: 0 | I71: 0 | J71: 0
A72: Придбання землі та нематеріальних активів | B72: 3160 | C72: 500 | D72: 0 | E72: 0 | F72: 0 | G72: 0 | H72: 0 | I72: 0 | J72: 0
A73: Капітальні трансферти | B73: 3200 | C73: 510 | D73: =SUM(D74:D77) -> 0 | E73: 0 | F73: 0 | G73: 0 | H73: 0 | I73: 0 | J73: 0
A74: Капітальні трансферти підприємствам (установам, організаціям) | B74: 3210 | C74: 520 | D74: 0 | E74: 0 | F74: 0 | G74: 0 | H74: 0 | I74: 0 | J74: 0
A75: Капітальні трансферти органам державного управління інших рівнів | B75: 3220 | C75: 530 | D75: 0 | E75: 0 | F75: 0 | G75: 0 | H75: 0 | I75: 0 | J75: 0
A76: Капітальні трансферти урядам іноземних держав та міжнародним організаціям | B76: 3230 | C76: 540 | D76: 0 | E76: 0 | F76: 0 | G76: 0 | H76: 0 | I76: 0 | J76: 0
A77: Капітальні трансферти населенню | B77: 3240 | C77: 550 | D77: 0 | E77: 0 | F77: 0 | G77: 0 | H77: 0 | I77: 0 | J77: 0
A78: Внутрішнє кредитування | B78: 4100 | C78: 560 | D78: =SUM(D79) -> 0 | E78: 0 | F78: 0 | G78: 0 | H78: 0 | I78: 0 | J78: 0
A79: Надання внутрішніх кредитів | B79: 4110 | C79: 570 | D79: =SUM(D80:D82) -> 0 | E79: 0 | F79: 0 | G79: 0 | H79: 0 | I79: 0 | J79: 0
A80: Надання кредитів органам державного управління інших рівнів | B80: 4111 | C80: 580 | D80: 0 | E80: 0 | F80: 0 | G80: 0 | H80: 0 | I80: 0 | J80: 0
A81: Надання кредитів підприємствам, установам, організаціям | B81: 4112 | C81: 590 | D81: 0 | E81: 0 | F81: 0 | G81: 0 | H81: 0 | I81: 0 | J81: 0
A82: Надання інших внутрішніх кредитів | B82: 4113 | C82: 600 | D82: 0 | E82: 0 | F82: 0 | G82: 0 | H82: 0 | I82: 0 | J82: 0
A83: Зовнішнє кредитування | B83: 4200 | C83: 610 | D83: =D84 -> 0 | E83: 0 | F83: 0 | G83: 0 | H83: 0 | I83: 0 | J83: 0
A84: Надання зовнішніх кредитів | B84: 4210 | C84: 620 | D84: 0 | E84: 0 | F84: 0 | G84: 0 | H84: 0 | I84: 0 | J84: 0
A85: Інші видатки | B85: 5000 | C85: 630 | D85: X | E85: 0 | F85: X | G85: X | H85: X | I85: X | J85: X
A86: Нерозподілені видатки | B86: 9000 | C86: 640 | D86: 0 | E86: 0 | F86: 0 | G86: 0 | H86: 0 | I86: 0 | J86: 0
A99: 1 Заповнюється розпорядниками бюджетних коштів.
A100: =ЗАПОЛНИТЬ!F30 -> Ректор | G100: =ЗАПОЛНИТЬ!F26 -> В.В.Снітинський
D101: (підпис) | G101: (ініціали, прізвище)
A102: =ЗАПОЛНИТЬ!F31 -> Головний бухгалтер | G102: =ЗАПОЛНИТЬ!F28 -> Г.І.Козлова
A103: =ЗАПОЛНИТЬ!C19 -> "12" січня 2016 року | D103: (підпис) | G103: (ініціали, прізвище)
A104: *До запровадження програмно-цільового методу складання та виконання місцевих бюджетів проставляються код та назва тимчасової класифікації видатків та кредитування місцевих бюджетів.

Sheet Ф.2.10 (hidden)
H1: Додаток 4 до Порядку складання фінансової, бюджетної та іншої звітності розпорядниками та одержувачами бюджетних коштів
A4: ЗВІТ
A5: =IF(ЗАПОЛНИТЬ!$F$7=1,CONCATENATE(шапки!A2),CONCATENATE(шапки!A2,шапки!C2)) -> про надходження та використання коштів загального фонду (форма | G5: =IF(ЗАПОЛНИТЬ!$F$7=1,шапки!C2,шапки!D2) -> №2д, | H5: =IF(ЗАПОЛНИТЬ!$F$7=1,шапки!D2,"") -> №2м)
A6: =CONCATENATE("за ",ЗАПОЛНИТЬ!$B$17," ",ЗАПОЛНИТЬ!$C$17) -> за 2015 р.
J7: коди
A9: Установа | B9: =ЗАПОЛНИТЬ!B3 -> Львівський національний аграрний університет | I9: за ЄДРПОУ | J9: =ЗАПОЛНИТЬ!B13 -> 00493735
A10: Територія | B10: =ЗАПОЛНИТЬ!B5 -> м.Дубляни Жовківського р-ну Львівської обл. | I10: за КОАТУУ | J10: =ЗАПОЛНИТЬ!B14 -> 4622710200
A11: Організаційно-правова форма господарювання | B11: =ЗАПОЛНИТЬ!D15 -> Державна організація (установа, заклад) | I11: за КОПФГ | J11: =ЗАПОЛНИТЬ!B15 -> 425
A12: Код та назва відомчої класифікації видатків та кредитування державного бюджету | D12: =ЗАПОЛНИТЬ!H9 -> 220 | E12: =IF(D12>0,VLOOKUP(D12,'ДовидникКВК(ГОС)'!A:B,2,FALSE),"") -> Міністерство освіти і науки України
A13: Код та назва програмної класифікації видатків та кредитування державного бюджету | E13: =IF(D13>0,VLOOKUP(D13,ДовидникКПК!B:C,2,FALSE),"") -> 
A14: Код та назва типової відомчої класифікації видатків та кредитування місцевих бюджетів | D14: =ЗАПОЛНИТЬ!H10 -> - | E14: =ЗАПОЛНИТЬ!I10 -> -
A15: Код та назва програмної класифікації видатків та кредитування місцевих бюджетів (код та назва Типової програмної класифікації видатків та кредитування місцевих бюджетів / Тимчасової класифікації видатків та кредитування для бюджетів місцевого самоврядування, які не застосовують програмно-цільового методу)* | E15: =IF(D15>0,VLOOKUP(D15,ДовидникКФК!A:B,2,FALSE),"") -> 
A16: Періодичність: квартальна, річна
A17: Одиниця виміру: грн. коп.
A19: Показники | B19: КЕКВ та/або ККК | C19: Код рядка | D19: Затверджено на звітний рік | E19: Затверджено на звітний період (рік)1 | F19: Залишок на початок звітного року | G19: Надійшло коштів за звітний період (рік) | H19: Касові за звітний період (рік) | I19: Фактичні за звітний період (рік) | J19: Залишок на кінець звітного періоду (року)
A22: 1 | B22: 2 | C22: 3 | D22: 4 | E22: 5 | F22: 6 | G22: 7 | H22: 8 | I22: 9 | J22: 10
A23: Видатки та надання кредитів - усього | B23: Х | C23: 010 | D23: =D24+D58+D78+D83+D86 -> 0 | E23: =E26+E29+E32+E33+E37+E44+E45+E85+E53 -> 0 | F23: =F24+F58+F78+F83+F86 -> 0 | G23: =G24+G58+G78+G83+G86 -> 0 | H23: =H24+H58+H78+H83+H86 -> 0 | I23: =I24+I58+I78+I83+I86 -> 0 | J23: =F23+G23-H23 -> 0
A24: у тому числі: Поточні видатки | B24: 2000 | C24: 020 | D24: =D25+D30+D46+D49+D53+D57 -> 0 | E24: 0 | F24: 0 | G24: 0 | H24: 0 | I24: 0 | J24: =F24+G24-H24 -> 0
A25: Оплата праці і нарахування на заробітну плату | B25: 2100 | C25: 030 | D25: =D26+D29 -> 0 | E25: 0 | F25: =F26+F29 -> 0 | G25: =G26+G29 -> 0 | H25: =H26+H29 -> 0 | I25: =I26+I29 -> 0 | J25: 0
A26: Оплата праці | B26: 2110 | C26: 040 | D26: =SUM(D27:D28) -> 0 | E26: 0 | F26: 0 | G26: 0 | H26: 0 | I26: 0 | J26: 0
A27: Заробітна плата | B27: 2111 | C27: 050 | D27: 0 | E27: 0 | F27: 0 | G27: 0 | H27: 0 | I27: 0 | J27: 0
A28: Грошове забезпечення військовослужбовців | B28: 2112 | C28: 060 | D28: 0 | E28: 0 | F28: 0 | G28: 0 | H28: 0 | I28: 0 | J28: 0
A29: Нарахування на оплату праці | B29: 2120 | C29: 070 | D29: 0 | E29: 0 | F29: 0 | G29: 0 | H29: 0 | I29: 0 | J29: 0
A30: Використання товарів і послуг | B30: 2200 | C30: 080 | D30: =SUM(D31:D37)+D43 -> 0 | E30: 0 | F30: =SUM(F31:F37)+F43 -> 0 | G30: =SUM(G31:G37)+G43 -> 0 | H30: =SUM(H31:H37)+H43 -> 0 | I30: =SUM(I31:I37)+I43 -> 0 | J30: 0
A31: Предмети, матеріали, обладнання та інвентар | B31: 2210 | C31: 090 | D31: 0 | E31: 0 | F31: 0 | G31: 0 | H31: 0 | I31: 0 | J31: 0
A32: Медикаменти та перев’язувальні матеріали | B32: 2220 | C32: 100 | D32: 0 | E32: 0 | F32: 0 | G32: 0 | H32: 0 | I32: 0 | J32: 0
A33: Продукти харчування | B33: 2230 | C33: 110 | D33: 0 | E33: 0 | F33: 0 | G33: 0 | H33: 0 | I33: 0 | J33: 0
A34: Оплата послуг (крім комунальних) | B34: 2240 | C34: 120 | D34: 0 | E34: 0 | F34: 0 | G34: 0 | H34: 0 | I34: 0 | J34: 0
A35: Видатки на відрядження | B35: 2250 | C35: 130 | D35: 0 | E35: 0 | F35: 0 | G35: 0 | H35: 0 | I35: 0 | J35: 0
A36: Видатки та заходи спеціального призначення | B36: 2260 | C36: 140 | D36: 0 | E36: 0 | F36: 0 | G36: 0 | H36: 0 | I36: 0 | J36: 0
A37: Оплата комунальних послуг та енергоносіїв | B37: 2270 | C37: 150 | D37: =SUM(D38:D42) -> 0 | E37: 0 | F37: =SUM(F38:F42) -> 0 | G37: =SUM(G38:G42) -> 0 | H37: =SUM(H38:H42) -> 0 | I37: =SUM(I38:I42) -> 0 | J37: 0
A38: Оплата теплопостачання | B38: 2271 | C38: 160 | D38: 0 | E38: 0 | F38: 0 | G38: 0 | H38: 0 | I38: 0 | J38: 0
A39: Оплата водопостачання та водовідведення | B39: 2272 | C39: 170 | D39: 0 | E39: 0 | F39: 0 | G39: 0 | H39: 0 | I39: 0 | J39: 0
A40: Оплата електроенергії | B40: 2273 | C40: 180 | D40: 0 | E40: 0 | F40: 0 | G40: 0 | H40: 0 | I40: 0 | J40: 0
A41: Оплата природного газу | B41: 2274 | C41: 190 | D41: 0 | E41: 0 | F41: 0 | G41: 0 | H41: 0 | I41: 0 | J41: 0
A42: Оплата інших енергоносіїв | B42: 2275 | C42: 200 | D42: 0 | E42: 0 | F42: 0 | G42: 0 | H42: 0 | I42: 0 | J42: 0
A43: Дослідження і розробки, окремі заходи по реалізації державних (регіональних) програм | B43: 2280 | C43: 210 | D43: =SUM(D44:D45) -> 0 | E43: 0 | F43: =SUM(F44:F45) -> 0 | G43: =SUM(G44:G45) -> 0 | H43: =SUM(H44:H45) -> 0 | I43: =SUM(I44:I45) -> 0 | J43: 0
A44: Дослідження і розробки, окремі заходи розвитку по реалізації державних (регіональних) програм | B44: 2281 | C44: 220 | D44: 0 | E44: 0 | F44: 0 | G44: 0 | H44: 0 | I44: 0 | J44: 0
A45: Окремі заходи по реалізації державних (регіональних) програм, не віднесені до заходів розвитку | B45: 2282 | C45: 230 | D45: 0 | E45: 0 | F45: 0 | G45: 0 | H45: 0 | I45: 0 | J45: 0
A46: Обслуговування боргових зобов’язань | B46: 2400 | C46: 240 | D46: =SUM(D47:D48) -> 0 | E46: 0 | F46: 0 | G46: 0 | H46: 0 | I46: 0 | J46: 0
A47: Обслуговування внутрішніх боргових зобов’язань | B47: 2410 | C47: 250 | D47: 0 | E47: 0 | F47: 0 | G47: 0 | H47: 0 | I47: 0 | J47: 0
A48: Обслуговування зовнішніх боргових зобов’язань | B48: 2420 | C48: 260 | D48: 0 | E48: 0 | F48: 0 | G48: 0 | H48: 0 | I48: 0 | J48: 0
A49: Поточні трансферти | B49: 2600 | C49: 270 | D49: =SUM(D50:D52) -> 0 | E49: 0 | F49: 0 | G49: 0 | H49: 0 | I49: 0 | J49: 0
A50: Субсидії та поточні трансферти підприємствам (установам, організаціям) | B50: 2610 | C50: 280 | D50: 0 | E50: 0 | F50: 0 | G50: 0 | H50: 0 | I50: 0 | J50: 0
A51: Поточні трансферти органам державного управління інших рівнів | B51: 2620 | C51: 290 | D51: 0 | E51: 0 | F51: 0 | G51: 0 | H51: 0 | I51: 0 | J51: 0
A52: Поточні трансферти урядам іноземних держав та міжнародним організаціям | B52: 2630 | C52: 300 | D52: 0 | E52: 0 | F52: 0 | G52: 0 | H52: 0 | I52: 0 | J52: 0
A53: Соціальне забезпечення | B53: 2700 | C53: 310 | D53: =SUM(D54:D56) -> 0 | E53: 0 | F53: 0 | G53: 0 | H53: 0 | I53: 0 | J53: 0
A54: Виплата пенсій і допомоги | B54: 2710 | C54: 320 | D54: 0 | E54: 0 | F54: 0 | G54: 0 | H54: 0 | I54: 0 | J54: 0
A55: Стипендії | B55: 2720 | C55: 330 | D55: 0 | E55: 0 | F55: 0 | G55: 0 | H55: 0 | I55: 0 | J55: 0
A56: Інші виплати населенню | B56: 2730 | C56: 340 | D56: 0 | E56: 0 | F56: 0 | G56: 0 | H56: 0 | I56: 0 | J56: 0
A57: Інші поточні видатки | B57: 2800 | C57: 350 | D57: 0 | E57: 0 | F57: 0 | G57: 0 | H57: 0 | I57: 0 | J57: 0
A58: Капітальні видатки | B58: 3000 | C58: 360 | D58: =D59+D73 -> 0 | E58: 0 | F58: 0 | G58: 0 | H58: 0 | I58: 0 | J58: 0
A59: Придбання основного капіталу | B59: 3100 | C59: 370 | D59: =D60+D61+D64+D67+D71+D72 -> 0 | E59: 0 | F59: 0 | G59: 0 | H59: 0 | I59: 0 | J59: 0
A60: Придбання обладнання і предметів довгострокового користування | B60: 3110 | C60: 380 | D60: 0 | E60: 0 | F60: 0 | G60: 0 | H60: 0 | I60: 0 | J60: 0
A61: Капітальне будівництво (придбання) | B61: 3120 | C61: 390 | D61: =SUM(D62:D63) -> 0 | E61: 0 | F61: 0 | G61: 0 | H61: 0 | I61: 0 | J61: 0
A62: Капітальне будівництво (придбання) житла | B62: 3121 | C62: 400 | D62: 0 | E62: 0 | F62: 0 | G62: 0 | H62: 0 | I62: 0 | J62: 0
A63: Капітальне будівництво (придбання) інших об’єктів | B63: 3122 | C63: 410 | D63: 0 | E63: 0 | F63: 0 | G63: 0 | H63: 0 | I63: 0 | J63: 0
A64: Капітальний ремонт | B64: 3130 | C64: 420 | D64: =SUM(D65:D66) -> 0 | E64: 0 | F64: 0 | G64: 0 | H64: 0 | I64: 0 | J64: 0
A65: Капітальний ремонт житлового фонду (приміщень) | B65: 3131 | C65: 430 | D65: 0 | E65: 0 | F65: 0 | G65: 0 | H65: 0 | I65: 0 | J65: 0
A66: Капітальний ремонт інших об’єктів | B66: 3132 | C66: 440 | D66: 0 | E66: 0 | F66: 0 | G66: 0 | H66: 0 | I66: 0 | J66: 0
A67: Реконструкція та реставрація | B67: 3140 | C67: 450 | D67: =SUM(D68:D70) -> 0 | E67: 0 | F67: 0 | G67: 0 | H67: 0 | I67: 0 | J67: 0
A68: Реконструкція житлового фонду (приміщень) | B68: 3141 | C68: 460 | D68: 0 | E68: 0 | F68: 0 | G68: 0 | H68: 0 | I68: 0 | J68: 0
A69: Реконструкція та реставрація інших об’єктів | B69: 3142 | C69: 470 | D69: 0 | E69: 0 | F69: 0 | G69: 0 | H69: 0 | I69: 0 | J69: 0
A70: Реставрація пам’яток культури, історії та архітектури | B70: 3143 | C70: 480 | D70: 0 | E70: 0 | F70: 0 | G70: 0 | H70: 0 | I70: 0 | J70: 0
A71: Створення державних запасів і резервів | B71: 3150 | C71: 490 | D71: 0 | E71: 0 | F71: 0 | G71: 0 | H71: 0 | I71: 0 | J71: 0
A72: Придбання землі та нематеріальних активів | B72: 3160 | C72: 500 | D72: 0 | E72: 0 | F72: 0 | G72: 0 | H72: 0 | I72: 0 | J72: 0
A73: Капітальні трансферти | B73: 3200 | C73: 510 | D73: =SUM(D74:D77) -> 0 | E73: 0 | F73: 0 | G73: 0 | H73: 0 | I73: 0 | J73: 0
A74: Капітальні трансферти підприємствам (установам, організаціям) | B74: 3210 | C74: 520 | D74: 0 | E74: 0 | F74: 0 | G74: 0 | H74: 0 | I74: 0 | J74: 0
A75: Капітальні трансферти органам державного управління інших рівнів | B75: 3220 | C75: 530 | D75: 0 | E75: 0 | F75: 0 | G75: 0 | H75: 0 | I75: 0 | J75: 0
A76: Капітальні трансферти урядам іноземних держав та міжнародним організаціям | B76: 3230 | C76: 540 | D76: 0 | E76: 0 | F76: 0 | G76: 0 | H76: 0 | I76: 0 | J76: 0
A77: Капітальні трансферти населенню | B77: 3240 | C77: 550 | D77: 0 | E77: 0 | F77: 0 | G77: 0 | H77: 0 | I77: 0 | J77: 0
A78: Внутрішнє кредитування | B78: 4100 | C78: 560 | D78: =SUM(D79) -> 0 | E78: 0 | F78: 0 | G78: 0 | H78: 0 | I78: 0 | J78: 0
A79: Надання внутрішніх кредитів | B79: 4110 | C79: 570 | D79: =SUM(D80:D82) -> 0 | E79: 0 | F79: 0 | G79: 0 | H79: 0 | I79: 0 | J79: 0
A80: Надання кредитів органам державного управління інших рівнів | B80: 4111 | C80: 580 | D80: 0 | E80: 0 | F80: 0 | G80: 0 | H80: 0 | I80: 0 | J80: 0
A81: Надання кредитів підприємствам, установам, організаціям | B81: 4112 | C81: 590 | D81: 0 | E81: 0 | F81: 0 | G81: 0 | H81: 0 | I81: 0 | J81: 0
A82: Надання інших внутрішніх кредитів | B82: 4113 | C82: 600 | D82: 0 | E82: 0 | F82: 0 | G82: 0 | H82: 0 | I82: 0 | J82: 0
A83: Зовнішнє кредитування | B83: 4200 | C83: 610 | D83: =D84 -> 0 | E83: 0 | F83: 0 | G83: 0 | H83: 0 | I83: 0 | J83: 0
A84: Надання зовнішніх кредитів | B84: 4210 | C84: 620 | D84: 0 | E84: 0 | F84: 0 | G84: 0 | H84: 0 | I84: 0 | J84: 0
A85: Інші видатки | B85: 5000 | C85: 630 | D85: X | E85: 0 | F85: X | G85: X | H85: X | I85: X | J85: X
A86: Нерозподілені видатки | B86: 9000 | C86: 640 | D86: 0 | E86: 0 | F86: 0 | G86: 0 | H86: 0 | I86: 0 | J86: 0
A99: 1 Заповнюється розпорядниками бюджетних коштів.
A100: =ЗАПОЛНИТЬ!F30 -> Ректор | G100: =ЗАПОЛНИТЬ!F26 -> В.В.Снітинський
D101: (підпис) | G101: (ініціали, прізвище)
A102: =ЗАПОЛНИТЬ!F31 -> Головний бухгалтер | G102: =ЗАПОЛНИТЬ!F28 -> Г.І.Козлова
A103: =ЗАПОЛНИТЬ!C19 -> "12" січня 2016 року | D103: (підпис) | G103: (ініціали, прізвище)
A104: *До запровадження програмно-цільового методу складання та виконання місцевих бюджетів проставляються код та назва тимчасової класифікації видатків та кредитування місцевих бюджетів.

Sheet Ф.2.11 (hidden)
H1: Додаток 4 до Порядку складання фінансової, бюджетної та іншої звітності розпорядниками та одержувачами бюджетних коштів
A4: ЗВІТ
A5: =IF(ЗАПОЛНИТЬ!$F$7=1,CONCATENATE(шапки!A2),CONCATENATE(шапки!A2,шапки!C2)) -> про надходження та використання коштів загального фонду (форма | G5: =IF(ЗАПОЛНИТЬ!$F$7=1,шапки!C2,шапки!D2) -> №2д, | H5: =IF(ЗАПОЛНИТЬ!$F$7=1,шапки!D2,"") -> №2м)
A6: =CONCATENATE("за ",ЗАПОЛНИТЬ!$B$17," ",ЗАПОЛНИТЬ!$C$17) -> за 2015 р.
J7: коди
A9: Установа | B9: =ЗАПОЛНИТЬ!B3 -> Львівський національний аграрний університет | I9: за ЄДРПОУ | J9: =ЗАПОЛНИТЬ!B13 -> 00493735
A10: Територія | B10: =ЗАПОЛНИТЬ!B5 -> м.Дубляни Жовківського р-ну Львівської обл. | I10: за КОАТУУ | J10: =ЗАПОЛНИТЬ!B14 -> 4622710200
A11: Організаційно-правова форма господарювання | B11: =ЗАПОЛНИТЬ!D15 -> Державна організація (установа, заклад) | I11: за КОПФГ | J11: =ЗАПОЛНИТЬ!B15 -> 425
A12: Код та назва відомчої класифікації видатків та кредитування державного бюджету | D12: =ЗАПОЛНИТЬ!H9 -> 220 | E12: =IF(D12>0,VLOOKUP(D12,'ДовидникКВК(ГОС)'!A:B,2,FALSE),"") -> Міністерство освіти і науки України
A13: Код та назва програмної класифікації видатків та кредитування державного бюджету | E13: =IF(D13>0,VLOOKUP(D13,ДовидникКПК!B:C,2,FALSE),"") -> 
A14: Код та назва типової відомчої класифікації видатків та кредитування місцевих бюджетів | D14: =ЗАПОЛНИТЬ!H10 -> - | E14: =ЗАПОЛНИТЬ!I10 -> -
A15: Код та назва програмної класифікації видатків та кредитування місцевих бюджетів (код та назва Типової програмної класифікації видатків та кредитування місцевих бюджетів / Тимчасової класифікації видатків та кредитування для бюджетів місцевого самоврядування, які не застосовують програмно-цільового методу)* | E15: =IF(D15>0,VLOOKUP(D15,ДовидникКФК!A:B,2,FALSE),"") -> 
A16: Періодичність: квартальна, річна
A17: Одиниця виміру: грн. коп.
A19: Показники | B19: КЕКВ та/або ККК | C19: Код рядка | D19: Затверджено на звітний рік | E19: Затверджено на звітний період (рік)1 | F19: Залишок на початок звітного року | G19: Надійшло коштів за звітний період (рік) | H19: Касові за звітний період (рік) | I19: Фактичні за звітний період (рік) | J19: Залишок на кінець звітного періоду (року)
A22: 1 | B22: 2 | C22: 3 | D22: 4 | E22: 5 | F22: 6 | G22: 7 | H22: 8 | I22: 9 | J22: 10
A23: Видатки та надання кредитів - усього | B23: Х | C23: 010 | D23: =D24+D58+D78+D83+D86 -> 0 | E23: =E26+E29+E32+E33+E37+E44+E45+E85+E53 -> 0 | F23: =F24+F58+F78+F83+F86 -> 0 | G23: =G24+G58+G78+G83+G86 -> 0 | H23: =H24+H58+H78+H83+H86 -> 0 | I23: =I24+I58+I78+I83+I86 -> 0 | J23: =F23+G23-H23 -> 0
A24: у тому числі: Поточні видатки | B24: 2000 | C24: 020 | D24: =D25+D30+D46+D49+D53+D57 -> 0 | E24: 0 | F24: 0 | G24: 0 | H24: 0 | I24: 0 | J24: =F24+G24-H24 -> 0
A25: Оплата праці і нарахування на заробітну плату | B25: 2100 | C25: 030 | D25: =D26+D29 -> 0 | E25: 0 | F25: =F26+F29 -> 0 | G25: =G26+G29 -> 0 | H25: =H26+H29 -> 0 | I25: =I26+I29 -> 0 | J25: 0
A26: Оплата праці | B26: 2110 | C26: 040 | D26: =SUM(D27:D28) -> 0 | E26: 0 | F26: 0 | G26: 0 | H26: 0 | I26: 0 | J26: 0
A27: Заробітна плата | B27: 2111 | C27: 050 | D27: 0 | E27: 0 | F27: 0 | G27: 0 | H27: 0 | I27: 0 | J27: 0
A28: Грошове забезпечення військовослужбовців | B28: 2112 | C28: 060 | D28: 0 | E28: 0 | F28: 0 | G28: 0 | H28: 0 | I28: 0 | J28: 0
A29: Нарахування на оплату праці | B29: 2120 | C29: 070 | D29: 0 | E29: 0 | F29: 0 | G29: 0 | H29: 0 | I29: 0 | J29: 0
A30: Використання товарів і послуг | B30: 2200 | C30: 080 | D30: =SUM(D31:D37)+D43 -> 0 | E30: 0 | F30: =SUM(F31:F37)+F43 -> 0 | G30: =SUM(G31:G37)+G43 -> 0 | H30: =SUM(H31:H37)+H43 -> 0 | I30: =SUM(I31:I37)+I43 -> 0 | J30: 0
A31: Предмети, матеріали, обладнання та інвентар | B31: 2210 | C31: 090 | D31: 0 | E31: 0 | F31: 0 | G31: 0 | H31: 0 | I31: 0 | J31: 0
A32: Медикаменти та перев’язувальні матеріали | B32: 2220 | C32: 100 | D32: 0 | E32: 0 | F32: 0 | G32: 0 | H32: 0 | I32: 0 | J32: 0
A33: Продукти харчування | B33: 2230 | C33: 110 | D33: 0 | E33: 0 | F33: 0 | G33: 0 | H33: 0 | I33: 0 | J33: 0
A34: Оплата послуг (крім комунальних) | B34: 2240 | C34: 120 | D34: 0 | E34: 0 | F34: 0 | G34: 0 | H34: 0 | I34: 0 | J34: 0
A35: Видатки на відрядження | B35: 2250 | C35: 130 | D35: 0 | E35: 0 | F35: 0 | G35: 0 | H35: 0 | I35: 0 | J35: 0
A36: Видатки та заходи спеціального призначення | B36: 2260 | C36: 140 | D36: 0 | E36: 0 | F36: 0 | G36: 0 | H36: 0 | I36: 0 | J36: 0
A37: Оплата комунальних послуг та енергоносіїв | B37: 2270 | C37: 150 | D37: =SUM(D38:D42) -> 0 | E37: 0 | F37: =SUM(F38:F42) -> 0 | G37: =SUM(G38:G42) -> 0 | H37: =SUM(H38:H42) -> 0 | I37: =SUM(I38:I42) -> 0 | J37: 0
A38: Оплата теплопостачання | B38: 2271 | C38: 160 | D38: 0 | E38: 0 | F38: 0 | G38: 0 | H38: 0 | I38: 0 | J38: 0
A39: Оплата водопостачання та водовідведення | B39: 2272 | C39: 170 | D39: 0 | E39: 0 | F39: 0 | G39: 0 | H39: 0 | I39: 0 | J39: 0
A40: Оплата електроенергії | B40: 2273 | C40: 180 | D40: 0 | E40: 0 | F40: 0 | G40: 0 | H40: 0 | I40: 0 | J40: 0
A41: Оплата природного газу | B41: 2274 | C41: 190 | D41: 0 | E41: 0 | F41: 0 | G41: 0 | H41: 0 | I41: 0 | J41: 0
A42: Оплата інших енергоносіїв | B42: 2275 | C42: 200 | D42: 0 | E42: 0 | F42: 0 | G42: 0 | H42: 0 | I42: 0 | J42: 0
A43: Дослідження і розробки, окремі заходи по реалізації державних (регіональних) програм | B43: 2280 | C43: 210 | D43: =SUM(D44:D45) -> 0 | E43: 0 | F43: =SUM(F44:F45) -> 0 | G43: =SUM(G44:G45) -> 0 | H43: =SUM(H44:H45) -> 0 | I43: =SUM(I44:I45) -> 0 | J43: 0
A44: Дослідження і розробки, окремі заходи розвитку по реалізації державних (регіональних) програм | B44: 2281 | C44: 220 | D44: 0 | E44: 0 | F44: 0 | G44: 0 | H44: 0 | I44: 0 | J44: 0
A45: Окремі заходи по реалізації державних (регіональних) програм, не віднесені до заходів розвитку | B45: 2282 | C45: 230 | D45: 0 | E45: 0 | F45: 0 | G45: 0 | H45: 0 | I45: 0 | J45: 0
A46: Обслуговування боргових зобов’язань | B46: 2400 | C46: 240 | D46: =SUM(D47:D48) -> 0 | E46: 0 | F46: 0 | G46: 0 | H46: 0 | I46: 0 | J46: 0
A47: Обслуговування внутрішніх боргових зобов’язань | B47: 2410 | C47: 250 | D47: 0 | E47: 0 | F47: 0 | G47: 0 | H47: 0 | I47: 0 | J47: 0
A48: Обслуговування зовнішніх боргових зобов’язань | B48: 2420 | C48: 260 | D48: 0 | E48: 0 | F48: 0 | G48: 0 | H48: 0 | I48: 0 | J48: 0
A49: Поточні трансферти | B49: 2600 | C49: 270 | D49: =SUM(D50:D52) -> 0 | E49: 0 | F49: 0 | G49: 0 | H49: 0 | I49: 0 | J49: 0
A50: Субсидії та поточні трансферти підприємствам (установам, організаціям) | B50: 2610 | C50: 280 | D50: 0 | E50: 0 | F50: 0 | G50: 0 | H50: 0 | I50: 0 | J50: 0
A51: Поточні трансферти органам державного управління інших рівнів | B51: 2620 | C51: 290 | D51: 0 | E51: 0 | F51: 0 | G51: 0 | H51: 0 | I51: 0 | J51: 0
A52: Поточні трансферти урядам іноземних держав та міжнародним організаціям | B52: 2630 | C52: 300 | D52: 0 | E52: 0 | F52: 0 | G52: 0 | H52: 0 | I52: 0 | J52: 0
A53: Соціальне забезпечення | B53: 2700 | C53: 310 | D53: =SUM(D54:D56) -> 0 | E53: 0 | F53: 0 | G53: 0 | H53: 0 | I53: 0 | J53: 0
A54: Виплата пенсій і допомоги | B54: 2710 | C54: 320 | D54: 0 | E54: 0 | F54: 0 | G54: 0 | H54: 0 | I54: 0 | J54: 0
A55: Стипендії | B55: 2720 | C55: 330 | D55: 0 | E55: 0 | F55: 0 | G55: 0 | H55: 0 | I55: 0 | J55: 0
A56: Інші виплати населенню | B56: 2730 | C56: 340 | D56: 0 | E56: 0 | F56: 0 | G56: 0 | H56: 0 | I56: 0 | J56: 0
A57: Інші поточні видатки | B57: 2800 | C57: 350 | D57: 0 | E57: 0 | F57: 0 | G57: 0 | H57: 0 | I57: 0 | J57: 0
A58: Капітальні видатки | B58: 3000 | C58: 360 | D58: =D59+D73 -> 0 | E58: 0 | F58: 0 | G58: 0 | H58: 0 | I58: 0 | J58: 0
A59: Придбання основного капіталу | B59: 3100 | C59: 370 | D59: =D60+D61+D64+D67+D71+D72 -> 0 | E59: 0 | F59: 0 | G59: 0 | H59: 0 | I59: 0 | J59: 0
A60: Придбання обладнання і предметів довгострокового користування | B60: 3110 | C60: 380 | D60: 0 | E60: 0 | F60: 0 | G60: 0 | H60: 0 | I60: 0 | J60: 0
A61: Капітальне будівництво (придбання) | B61: 3120 | C61: 390 | D61: =SUM(D62:D63) -> 0 | E61: 0 | F61: 0 | G61: 0 | H61: 0 | I61: 0 | J61: 0
A62: Капітальне будівництво (придбання) житла | B62: 3121 | C62: 400 | D62: 0 | E62: 0 | F62: 0 | G62: 0 | H62: 0 | I62: 0 | J62: 0
A63: Капітальне будівництво (придбання) інших об’єктів | B63: 3122 | C63: 410 | D63: 0 | E63: 0 | F63: 0 | G63: 0 | H63: 0 | I63: 0 | J63: 0
A64: Капітальний ремонт | B64: 3130 | C64: 420 | D64: =SUM(D65:D66) -> 0 | E64: 0 | F64: 0 | G64: 0 | H64: 0 | I64: 0 | J64: 0
A65: Капітальний ремонт житлового фонду (приміщень) | B65: 3131 | C65: 430 | D65: 0 | E65: 0 | F65: 0 | G65: 0 | H65: 0 | I65: 0 | J65: 0
A66: Капітальний ремонт інших об’єктів | B66: 3132 | C66: 440 | D66: 0 | E66: 0 | F66: 0 | G66: 0 | H66: 0 | I66: 0 | J66: 0
A67: Реконструкція та реставрація | B67: 3140 | C67: 450 | D67: =SUM(D68:D70) -> 0 | E67: 0 | F67: 0 | G67: 0 | H67: 0 | I67: 0 | J67: 0
A68: Реконструкція житлового фонду (приміщень) | B68: 3141 | C68: 460 | D68: 0 | E68: 0 | F68: 0 | G68: 0 | H68: 0 | I68: 0 | J68: 0
A69: Реконструкція та реставрація інших об’єктів | B69: 3142 | C69: 470 | D69: 0 | E69: 0 | F69: 0 | G69: 0 | H69: 0 | I69: 0 | J69: 0
A70: Реставрація пам’яток культури, історії та архітектури | B70: 3143 | C70: 480 | D70: 0 | E70: 0 | F70: 0 | G70: 0 | H70: 0 | I70: 0 | J70: 0
A71: Створення державних запасів і резервів | B71: 3150 | C71: 490 | D71: 0 | E71: 0 | F71: 0 | G71: 0 | H71: 0 | I71: 0 | J71: 0
A72: Придбання землі та нематеріальних активів | B72: 3160 | C72: 500 | D72: 0 | E72: 0 | F72: 0 | G72: 0 | H72: 0 | I72: 0 | J72: 0
A73: Капітальні трансферти | B73: 3200 | C73: 510 | D73: =SUM(D74:D77) -> 0 | E73: 0 | F73: 0 | G73: 0 | H73: 0 | I73: 0 | J73: 0
A74: Капітальні трансферти підприємствам (установам, організаціям) | B74: 3210 | C74: 520 | D74: 0 | E74: 0 | F74: 0 | G74: 0 | H74: 0 | I74: 0 | J74: 0
A75: Капітальні трансферти органам державного управління інших рівнів | B75: 3220 | C75: 530 | D75: 0 | E75: 0 | F75: 0 | G75: 0 | H75: 0 | I75: 0 | J75: 0
A76: Капітальні трансферти урядам іноземних держав та міжнародним організаціям | B76: 3230 | C76: 540 | D76: 0 | E76: 0 | F76: 0 | G76: 0 | H76: 0 | I76: 0 | J76: 0
A77: Капітальні трансферти населенню | B77: 3240 | C77: 550 | D77: 0 | E77: 0 | F77: 0 | G77: 0 | H77: 0 | I77: 0 | J77: 0
A78: Внутрішнє кредитування | B78: 4100 | C78: 560 | D78: =SUM(D79) -> 0 | E78: 0 | F78: 0 | G78: 0 | H78: 0 | I78: 0 | J78: 0
A79: Надання внутрішніх кредитів | B79: 4110 | C79: 570 | D79: =SUM(D80:D82) -> 0 | E79: 0 | F79: 0 | G79: 0 | H79: 0 | I79: 0 | J79: 0
A80: Надання кредитів органам державного управління інших рівнів | B80: 4111 | C80: 580 | D80: 0 | E80: 0 | F80: 0 | G80: 0 | H80: 0 | I80: 0 | J80: 0
A81: Надання кредитів підприємствам, установам, організаціям | B81: 4112 | C81: 590 | D81: 0 | E81: 0 | F81: 0 | G81: 0 | H81: 0 | I81: 0 | J81: 0
A82: Надання інших внутрішніх кредитів | B82: 4113 | C82: 600 | D82: 0 | E82: 0 | F82: 0 | G82: 0 | H82: 0 | I82: 0 | J82: 0
A83: Зовнішнє кредитування | B83: 4200 | C83: 610 | D83: =D84 -> 0 | E83: 0 | F83: 0 | G83: 0 | H83: 0 | I83: 0 | J83: 0
A84: Надання зовнішніх кредитів | B84: 4210 | C84: 620 | D84: 0 | E84: 0 | F84: 0 | G84: 0 | H84: 0 | I84: 0 | J84: 0
A85: Інші видатки | B85: 5000 | C85: 630 | D85: X | E85: 0 | F85: X | G85: X | H85: X | I85: X | J85: X
A86: Нерозподілені видатки | B86: 9000 | C86: 640 | D86: 0 | E86: 0 | F86: 0 | G86: 0 | H86: 0 | I86: 0 | J86: 0
A99: 1 Заповнюється розпорядниками бюджетних коштів.
A100: =ЗАПОЛНИТЬ!F30 -> Ректор | G100: =ЗАПОЛНИТЬ!F26 -> В.В.Снітинський
D101: (підпис) | G101: (ініціали, прізвище)
A102: =ЗАПОЛНИТЬ!F31 -> Головний бухгалтер | G102: =ЗАПОЛНИТЬ!F28 -> Г.І.Козлова
A103: =ЗАПОЛНИТЬ!C19 -> "12" січня 2016 року | D103: (підпис) | G103: (ініціали, прізвище)
A104: *До запровадження програмно-цільового методу складання та виконання місцевих бюджетів проставляються код та назва тимчасової класифікації видатків та кредитування місцевих бюджетів.

Sheet Ф.2.12 (hidden)
H1: Додаток 4 до Порядку складання фінансової, бюджетної та іншої звітності розпорядниками та одержувачами бюджетних коштів
A4: ЗВІТ
A5: =IF(ЗАПОЛНИТЬ!$F$7=1,CONCATENATE(шапки!A2),CONCATENATE(шапки!A2,шапки!C2)) -> про надходження та використання коштів загального фонду (форма | G5: =IF(ЗАПОЛНИТЬ!$F$7=1,шапки!C2,шапки!D2) -> №2д, | H5: =IF(ЗАПОЛНИТЬ!$F$7=1,шапки!D2,"") -> №2м)
A6: =CONCATENATE("за ",ЗАПОЛНИТЬ!$B$17," ",ЗАПОЛНИТЬ!$C$17) -> за 2015 р.
J7: коди
A9: Установа | B9: =ЗАПОЛНИТЬ!B3 -> Львівський національний аграрний університет | I9: за ЄДРПОУ | J9: =ЗАПОЛНИТЬ!B13 -> 00493735
A10: Територія | B10: =ЗАПОЛНИТЬ!B5 -> м.Дубляни Жовківського р-ну Львівської обл. | I10: за КОАТУУ | J10: =ЗАПОЛНИТЬ!B14 -> 4622710200
A11: Організаційно-правова форма господарювання | B11: =ЗАПОЛНИТЬ!D15 -> Державна організація (установа, заклад) | I11: за КОПФГ | J11: =ЗАПОЛНИТЬ!B15 -> 425
A12: Код та назва відомчої класифікації видатків та кредитування державного бюджету | D12: =ЗАПОЛНИТЬ!H9 -> 220 | E12: =IF(D12>0,VLOOKUP(D12,'ДовидникКВК(ГОС)'!A:B,2,FALSE),"") -> Міністерство освіти і науки України
A13: Код та назва програмної класифікації видатків та кредитування державного бюджету | E13: =IF(D13>0,VLOOKUP(D13,ДовидникКПК!B:C,2,FALSE),"") -> 
A14: Код та назва типової відомчої класифікації видатків та кредитування місцевих бюджетів | D14: =ЗАПОЛНИТЬ!H10 -> - | E14: =ЗАПОЛНИТЬ!I10 -> -
A15: Код та назва програмної класифікації видатків та кредитування місцевих бюджетів (код та назва Типової програмної класифікації видатків та кредитування місцевих бюджетів / Тимчасової класифікації видатків та кредитування для бюджетів місцевого самоврядування, які не застосовують програмно-цільового методу)* | E15: =IF(D15>0,VLOOKUP(D15,ДовидникКФК!A:B,2,FALSE),"") -> 
A16: Періодичність: квартальна, річна
A17: Одиниця виміру: грн. коп.
A19: Показники | B19: КЕКВ та/або ККК | C19: Код рядка | D19: Затверджено на звітний рік | E19: Затверджено на звітний період (рік)1 | F19: Залишок на початок звітного року | G19: Надійшло коштів за звітний період (рік) | H19: Касові за звітний період (рік) | I19: Фактичні за звітний період (рік) | J19: Залишок на кінець звітного періоду (року)
A22: 1 | B22: 2 | C22: 3 | D22: 4 | E22: 5 | F22: 6 | G22: 7 | H22: 8 | I22: 9 | J22: 10
A23: Видатки та надання кредитів - усього | B23: Х | C23: 010 | D23: =D24+D58+D78+D83+D86 -> 0 | E23: =E26+E29+E32+E33+E37+E44+E45+E85+E53 -> 0 | F23: =F24+F58+F78+F83+F86 -> 0 | G23: =G24+G58+G78+G83+G86 -> 0 | H23: =H24+H58+H78+H83+H86 -> 0 | I23: =I24+I58+I78+I83+I86 -> 0 | J23: =F23+G23-H23 -> 0
A24: у тому числі: Поточні видатки | B24: 2000 | C24: 020 | D24: =D25+D30+D46+D49+D53+D57 -> 0 | E24: 0 | F24: 0 | G24: 0 | H24: 0 | I24: 0 | J24: =F24+G24-H24 -> 0
A25: Оплата праці і нарахування на заробітну плату | B25: 2100 | C25: 030 | D25: =D26+D29 -> 0 | E25: 0 | F25: =F26+F29 -> 0 | G25: =G26+G29 -> 0 | H25: =H26+H29 -> 0 | I25: =I26+I29 -> 0 | J25: 0
A26: Оплата праці | B26: 2110 | C26: 040 | D26: =SUM(D27:D28) -> 0 | E26: 0 | F26: 0 | G26: 0 | H26: 0 | I26: 0 | J26: 0
A27: Заробітна плата | B27: 2111 | C27: 050 | D27: 0 | E27: 0 | F27: 0 | G27: 0 | H27: 0 | I27: 0 | J27: 0
A28: Грошове забезпечення військовослужбовців | B28: 2112 | C28: 060 | D28: 0 | E28: 0 | F28: 0 | G28: 0 | H28: 0 | I28: 0 | J28: 0
A29: Нарахування на оплату праці | B29: 2120 | C29: 070 | D29: 0 | E29: 0 | F29: 0 | G29: 0 | H29: 0 | I29: 0 | J29: 0
A30: Використання товарів і послуг | B30: 2200 | C30: 080 | D30: =SUM(D31:D37)+D43 -> 0 | E30: 0 | F30: =SUM(F31:F37)+F43 -> 0 | G30: =SUM(G31:G37)+G43 -> 0 | H30: =SUM(H31:H37)+H43 -> 0 | I30: =SUM(I31:I37)+I43 -> 0 | J30: 0
A31: Предмети, матеріали, обладнання та інвентар | B31: 2210 | C31: 090 | D31: 0 | E31: 0 | F31: 0 | G31: 0 | H31: 0 | I31: 0 | J31: 0
A32: Медикаменти та перев’язувальні матеріали | B32: 2220 | C32: 100 | D32: 0 | E32: 0 | F32: 0 | G32: 0 | H32: 0 | I32: 0 | J32: 0
A33: Продукти харчування | B33: 2230 | C33: 110 | D33: 0 | E33: 0 | F33: 0 | G33: 0 | H33: 0 | I33: 0 | J33: 0
A34: Оплата послуг (крім комунальних) | B34: 2240 | C34: 120 | D34: 0 | E34: 0 | F34: 0 | G34: 0 | H34: 0 | I34: 0 | J34: 0
A35: Видатки на відрядження | B35: 2250 | C35: 130 | D35: 0 | E35: 0 | F35: 0 | G35: 0 | H35: 0 | I35: 0 | J35: 0
A36: Видатки та заходи спеціального призначення | B36: 2260 | C36: 140 | D36: 0 | E36: 0 | F36: 0 | G36: 0 | H36: 0 | I36: 0 | J36: 0
A37: Оплата комунальних послуг та енергоносіїв | B37: 2270 | C37: 150 | D37: =SUM(D38:D42) -> 0 | E37: 0 | F37: =SUM(F38:F42) -> 0 | G37: =SUM(G38:G42) -> 0 | H37: =SUM(H38:H42) -> 0 | I37: =SUM(I38:I42) -> 0 | J37: 0
A38: Оплата теплопостачання | B38: 2271 | C38: 160 | D38: 0 | E38: 0 | F38: 0 | G38: 0 | H38: 0 | I38: 0 | J38: 0
A39: Оплата водопостачання та водовідведення | B39: 2272 | C39: 170 | D39: 0 | E39: 0 | F39: 0 | G39: 0 | H39: 0 | I39: 0 | J39: 0
A40: Оплата електроенергії | B40: 2273 | C40: 180 | D40: 0 | E40: 0 | F40: 0 | G40: 0 | H40: 0 | I40: 0 | J40: 0
A41: Оплата природного газу | B41: 2274 | C41: 190 | D41: 0 | E41: 0 | F41: 0 | G41: 0 | H41: 0 | I41: 0 | J41: 0
A42: Оплата інших енергоносіїв | B42: 2275 | C42: 200 | D42: 0 | E42: 0 | F42: 0 | G42: 0 | H42: 0 | I42: 0 | J42: 0
A43: Дослідження і розробки, окремі заходи по реалізації державних (регіональних) програм | B43: 2280 | C43: 210 | D43: =SUM(D44:D45) -> 0 | E43: 0 | F43: =SUM(F44:F45) -> 0 | G43: =SUM(G44:G45) -> 0 | H43: =SUM(H44:H45) -> 0 | I43: =SUM(I44:I45) -> 0 | J43: 0
A44: Дослідження і розробки, окремі заходи розвитку по реалізації державних (регіональних) програм | B44: 2281 | C44: 220 | D44: 0 | E44: 0 | F44: 0 | G44: 0 | H44: 0 | I44: 0 | J44: 0
A45: Окремі заходи по реалізації державних (регіональних) програм, не віднесені до заходів розвитку | B45: 2282 | C45: 230 | D45: 0 | E45: 0 | F45: 0 | G45: 0 | H45: 0 | I45: 0 | J45: 0
A46: Обслуговування боргових зобов’язань | B46: 2400 | C46: 240 | D46: =SUM(D47:D48) -> 0 | E46: 0 | F46: 0 | G46: 0 | H46: 0 | I46: 0 | J46: 0
A47: Обслуговування внутрішніх боргових зобов’язань | B47: 2410 | C47: 250 | D47: 0 | E47: 0 | F47: 0 | G47: 0 | H47: 0 | I47: 0 | J47: 0
A48: Обслуговування зовнішніх боргових зобов’язань | B48: 2420 | C48: 260 | D48: 0 | E48: 0 | F48: 0 | G48: 0 | H48: 0 | I48: 0 | J48: 0
A49: Поточні трансферти | B49: 2600 | C49: 270 | D49: =SUM(D50:D52) -> 0 | E49: 0 | F49: 0 | G49: 0 | H49: 0 | I49: 0 | J49: 0
A50: Субсидії та поточні трансферти підприємствам (установам, організаціям) | B50: 2610 | C50: 280 | D50: 0 | E50: 0 | F50: 0 | G50: 0 | H50: 0 | I50: 0 | J50: 0
A51: Поточні трансферти органам державного управління інших рівнів | B51: 2620 | C51: 290 | D51: 0 | E51: 0 | F51: 0 | G51: 0 | H51: 0 | I51: 0 | J51: 0
A52: Поточні трансферти урядам іноземних держав та міжнародним організаціям | B52: 2630 | C52: 300 | D52: 0 | E52: 0 | F52: 0 | G52: 0 | H52: 0 | I52: 0 | J52: 0
A53: Соціальне забезпечення | B53: 2700 | C53: 310 | D53: =SUM(D54:D56) -> 0 | E53: 0 | F53: 0 | G53: 0 | H53: 0 | I53: 0 | J53: 0
A54: Виплата пенсій і допомоги | B54: 2710 | C54: 320 | D54: 0 | E54: 0 | F54: 0 | G54: 0 | H54: 0 | I54: 0 | J54: 0
A55: Стипендії | B55: 2720 | C55: 330 | D55: 0 | E55: 0 | F55: 0 | G55: 0 | H55: 0 | I55: 0 | J55: 0
A56: Інші виплати населенню | B56: 2730 | C56: 340 | D56: 0 | E56: 0 | F56: 0 | G56: 0 | H56: 0 | I56: 0 | J56: 0
A57: Інші поточні видатки | B57: 2800 | C57: 350 | D57: 0 | E57: 0 | F57: 0 | G57: 0 | H57: 0 | I57: 0 | J57: 0
A58: Капітальні видатки | B58: 3000 | C58: 360 | D58: =D59+D73 -> 0 | E58: 0 | F58: 0 | G58: 0 | H58: 0 | I58: 0 | J58: 0
A59: Придбання основного капіталу | B59: 3100 | C59: 370 | D59: =D60+D61+D64+D67+D71+D72 -> 0 | E59: 0 | F59: 0 | G59: 0 | H59: 0 | I59: 0 | J59: 0
A60: Придбання обладнання і предметів довгострокового користування | B60: 3110 | C60: 380 | D60: 0 | E60: 0 | F60: 0 | G60: 0 | H60: 0 | I60: 0 | J60: 0
A61: Капітальне будівництво (придбання) | B61: 3120 | C61: 390 | D61: =SUM(D62:D63) -> 0 | E61: 0 | F61: 0 | G61: 0 | H61: 0 | I61: 0 | J61: 0
A62: Капітальне будівництво (придбання) житла | B62: 3121 | C62: 400 | D62: 0 | E62: 0 | F62: 0 | G62: 0 | H62: 0 | I62: 0 | J62: 0
A63: Капітальне будівництво (придбання) інших об’єктів | B63: 3122 | C63: 410 | D63: 0 | E63: 0 | F63: 0 | G63: 0 | H63: 0 | I63: 0 | J63: 0
A64: Капітальний ремонт | B64: 3130 | C64: 420 | D64: =SUM(D65:D66) -> 0 | E64: 0 | F64: 0 | G64: 0 | H64: 0 | I64: 0 | J64: 0
A65: Капітальний ремонт житлового фонду (приміщень) | B65: 3131 | C65: 430 | D65: 0 | E65: 0 | F65: 0 | G65: 0 | H65: 0 | I65: 0 | J65: 0
A66: Капітальний ремонт інших об’єктів | B66: 3132 | C66: 440 | D66: 0 | E66: 0 | F66: 0 | G66: 0 | H66: 0 | I66: 0 | J66: 0
A67: Реконструкція та реставрація | B67: 3140 | C67: 450 | D67: =SUM(D68:D70) -> 0 | E67: 0 | F67: 0 | G67: 0 | H67: 0 | I67: 0 | J67: 0
A68: Реконструкція житлового фонду (приміщень) | B68: 3141 | C68: 460 | D68: 0 | E68: 0 | F68: 0 | G68: 0 | H68: 0 | I68: 0 | J68: 0
A69: Реконструкція та реставрація інших об’єктів | B69: 3142 | C69: 470 | D69: 0 | E69: 0 | F69: 0 | G69: 0 | H69: 0 | I69: 0 | J69: 0
A70: Реставрація пам’яток культури, історії та архітектури | B70: 3143 | C70: 480 | D70: 0 | E70: 0 | F70: 0 | G70: 0 | H70: 0 | I70: 0 | J70: 0
A71: Створення державних запасів і резервів | B71: 3150 | C71: 490 | D71: 0 | E71: 0 | F71: 0 | G71: 0 | H71: 0 | I71: 0 | J71: 0
A72: Придбання землі та нематеріальних активів | B72: 3160 | C72: 500 | D72: 0 | E72: 0 | F72: 0 | G72: 0 | H72: 0 | I72: 0 | J72: 0
A73: Капітальні трансферти | B73: 3200 | C73: 510 | D73: =SUM(D74:D77) -> 0 | E73: 0 | F73: 0 | G73: 0 | H73: 0 | I73: 0 | J73: 0
A74: Капітальні трансферти підприємствам (установам, організаціям) | B74: 3210 | C74: 520 | D74: 0 | E74: 0 | F74: 0 | G74: 0 | H74: 0 | I74: 0 | J74: 0
A75: Капітальні трансферти органам державного управління інших рівнів | B75: 3220 | C75: 530 | D75: 0 | E75: 0 | F75: 0 | G75: 0 | H75: 0 | I75: 0 | J75: 0
A76: Капітальні трансферти урядам іноземних держав та міжнародним організаціям | B76: 3230 | C76: 540 | D76: 0 | E76: 0 | F76: 0 | G76: 0 | H76: 0 | I76: 0 | J76: 0
A77: Капітальні трансферти населенню | B77: 3240 | C77: 550 | D77: 0 | E77: 0 | F77: 0 | G77: 0 | H77: 0 | I77: 0 | J77: 0
A78: Внутрішнє кредитування | B78: 4100 | C78: 560 | D78: =SUM(D79) -> 0 | E78: 0 | F78: 0 | G78: 0 | H78: 0 | I78: 0 | J78: 0
A79: Надання внутрішніх кредитів | B79: 4110 | C79: 570 | D79: =SUM(D80:D82) -> 0 | E79: 0 | F79: 0 | G79: 0 | H79: 0 | I79: 0 | J79: 0
A80: Надання кредитів органам державного управління інших рівнів | B80: 4111 | C80: 580 | D80: 0 | E80: 0 | F80: 0 | G80: 0 | H80: 0 | I80: 0 | J80: 0
A81: Надання кредитів підприємствам, установам, організаціям | B81: 4112 | C81: 590 | D81: 0 | E81: 0 | F81: 0 | G81: 0 | H81: 0 | I81: 0 | J81: 0
A82: Надання інших внутрішніх кредитів | B82: 4113 | C82: 600 | D82: 0 | E82: 0 | F82: 0 | G82: 0 | H82: 0 | I82: 0 | J82: 0
A83: Зовнішнє кредитування | B83: 4200 | C83: 610 | D83: =D84 -> 0 | E83: 0 | F83: 0 | G83: 0 | H83: 0 | I83: 0 | J83: 0
A84: Надання зовнішніх кредитів | B84: 4210 | C84: 620 | D84: 0 | E84: 0 | F84: 0 | G84: 0 | H84: 0 | I84: 0 | J84: 0
A85: Інші видатки | B85: 5000 | C85: 630 | D85: X | E85: 0 | F85: X | G85: X | H85: X | I85: X | J85: X
A86: Нерозподілені видатки | B86: 9000 | C86: 640 | D86: 0 | E86: 0 | F86: 0 | G86: 0 | H86: 0 | I86: 0 | J86: 0
A99: 1 Заповнюється розпорядниками бюджетних коштів.
A100: =ЗАПОЛНИТЬ!F30 -> Ректор | G100: =ЗАПОЛНИТЬ!F26 -> В.В.Снітинський
D101: (підпис) | G101: (ініціали, прізвище)
A102: =ЗАПОЛНИТЬ!F31 -> Головний бухгалтер | G102: =ЗАПОЛНИТЬ!F28 -> Г.І.Козлова
A103: =ЗАПОЛНИТЬ!C19 -> "12" січня 2016 року | D103: (підпис) | G103: (ініціали, прізвище)
A104: *До запровадження програмно-цільового методу складання та виконання місцевих бюджетів проставляються код та назва тимчасової класифікації видатків та кредитування місцевих бюджетів.

Sheet Ф.2.13 (hidden)
H1: Додаток 4 до Порядку складання фінансової, бюджетної та іншої звітності розпорядниками та одержувачами бюджетних коштів
A4: ЗВІТ
A5: =IF(ЗАПОЛНИТЬ!$F$7=1,CONCATENATE(шапки!A2),CONCATENATE(шапки!A2,шапки!C2)) -> про надходження та використання коштів загального фонду (форма | G5: =IF(ЗАПОЛНИТЬ!$F$7=1,шапки!C2,шапки!D2) -> №2д, | H5: =IF(ЗАПОЛНИТЬ!$F$7=1,шапки!D2,"") -> №2м)
A6: =CONCATENATE("за ",ЗАПОЛНИТЬ!$B$17," ",ЗАПОЛНИТЬ!$C$17) -> за 2015 р.
J7: коди
A9: Установа | B9: =ЗАПОЛНИТЬ!B3 -> Львівський національний аграрний університет | I9: за ЄДРПОУ | J9: =ЗАПОЛНИТЬ!B13 -> 00493735
A10: Територія | B10: =ЗАПОЛНИТЬ!B5 -> м.Дубляни Жовківського р-ну Львівської обл. | I10: за КОАТУУ | J10: =ЗАПОЛНИТЬ!B14 -> 4622710200
A11: Організаційно-правова форма господарювання | B11: =ЗАПОЛНИТЬ!D15 -> Державна організація (установа, заклад) | I11: за КОПФГ | J11: =ЗАПОЛНИТЬ!B15 -> 425
A12: Код та назва відомчої класифікації видатків та кредитування державного бюджету | D12: =ЗАПОЛНИТЬ!H9 -> 220 | E12: =IF(D12>0,VLOOKUP(D12,'ДовидникКВК(ГОС)'!A:B,2,FALSE),"") -> Міністерство освіти і науки України
A13: Код та назва програмної класифікації видатків та кредитування державного бюджету | E13: =IF(D13>0,VLOOKUP(D13,ДовидникКПК!B:C,2,FALSE),"") -> 
A14: Код та назва типової відомчої класифікації видатків та кредитування місцевих бюджетів | D14: =ЗАПОЛНИТЬ!H10 -> - | E14: =ЗАПОЛНИТЬ!I10 -> -
A15: Код та назва програмної класифікації видатків та кредитування місцевих бюджетів (код та назва Типової програмної класифікації видатків та кредитування місцевих бюджетів / Тимчасової класифікації видатків та кредитування для бюджетів місцевого самоврядування, які не застосовують програмно-цільового методу)* | E15: =IF(D15>0,VLOOKUP(D15,ДовидникКФК!A:B,2,FALSE),"") -> 
A16: Періодичність: квартальна, річна
A17: Одиниця виміру: грн. коп.
A19: Показники | B19: КЕКВ та/або ККК | C19: Код рядка | D19: Затверджено на звітний рік | E19: Затверджено на звітний період (рік)1 | F19: Залишок на початок звітного року | G19: Надійшло коштів за звітний період (рік) | H19: Касові за звітний період (рік) | I19: Фактичні за звітний період (рік) | J19: Залишок на кінець звітного періоду (року)
A22: 1 | B22: 2 | C22: 3 | D22: 4 | E22: 5 | F22: 6 | G22: 7 | H22: 8 | I22: 9 | J22: 10
A23: Видатки та надання кредитів - усього | B23: Х | C23: 010 | D23: =D24+D58+D78+D83+D86 -> 0 | E23: =E26+E29+E32+E33+E37+E44+E45+E85+E53 -> 0 | F23: =F24+F58+F78+F83+F86 -> 0 | G23: =G24+G58+G78+G83+G86 -> 0 | H23: =H24+H58+H78+H83+H86 -> 0 | I23: =I24+I58+I78+I83+I86 -> 0 | J23: =F23+G23-H23 -> 0
A24: у тому числі: Поточні видатки | B24: 2000 | C24: 020 | D24: =D25+D30+D46+D49+D53+D57 -> 0 | E24: 0 | F24: 0 | G24: 0 | H24: 0 | I24: 0 | J24: =F24+G24-H24 -> 0
A25: Оплата праці і нарахування на заробітну плату | B25: 2100 | C25: 030 | D25: =D26+D29 -> 0 | E25: 0 | F25: =F26+F29 -> 0 | G25: =G26+G29 -> 0 | H25: =H26+H29 -> 0 | I25: =I26+I29 -> 0 | J25: 0
A26: Оплата праці | B26: 2110 | C26: 040 | D26: =SUM(D27:D28) -> 0 | E26: 0 | F26: 0 | G26: 0 | H26: 0 | I26: 0 | J26: 0
A27: Заробітна плата | B27: 2111 | C27: 050 | D27: 0 | E27: 0 | F27: 0 | G27: 0 | H27: 0 | I27: 0 | J27: 0
A28: Грошове забезпечення військовослужбовців | B28: 2112 | C28: 060 | D28: 0 | E28: 0 | F28: 0 | G28: 0 | H28: 0 | I28: 0 | J28: 0
A29: Нарахування на оплату праці | B29: 2120 | C29: 070 | D29: 0 | E29: 0 | F29: 0 | G29: 0 | H29: 0 | I29: 0 | J29: 0
A30: Використання товарів і послуг | B30: 2200 | C30: 080 | D30: =SUM(D31:D37)+D43 -> 0 | E30: 0 | F30: =SUM(F31:F37)+F43 -> 0 | G30: =SUM(G31:G37)+G43 -> 0 | H30: =SUM(H31:H37)+H43 -> 0 | I30: =SUM(I31:I37)+I43 -> 0 | J30: 0
A31: Предмети, матеріали, обладнання та інвентар | B31: 2210 | C31: 090 | D31: 0 | E31: 0 | F31: 0 | G31: 0 | H31: 0 | I31: 0 | J31: 0
A32: Медикаменти та перев’язувальні матеріали | B32: 2220 | C32: 100 | D32: 0 | E32: 0 | F32: 0 | G32: 0 | H32: 0 | I32: 0 | J32: 0
A33: Продукти харчування | B33: 2230 | C33: 110 | D33: 0 | E33: 0 | F33: 0 | G33: 0 | H33: 0 | I33: 0 | J33: 0
A34: Оплата послуг (крім комунальних) | B34: 2240 | C34: 120 | D34: 0 | E34: 0 | F34: 0 | G34: 0 | H34: 0 | I34: 0 | J34: 0
A35: Видатки на відрядження | B35: 2250 | C35: 130 | D35: 0 | E35: 0 | F35: 0 | G35: 0 | H35: 0 | I35: 0 | J35: 0
A36: Видатки та заходи спеціального призначення | B36: 2260 | C36: 140 | D36: 0 | E36: 0 | F36: 0 | G36: 0 | H36: 0 | I36: 0 | J36: 0
A37: Оплата комунальних послуг та енергоносіїв | B37: 2270 | C37: 150 | D37: =SUM(D38:D42) -> 0 | E37: 0 | F37: =SUM(F38:F42) -> 0 | G37: =SUM(G38:G42) -> 0 | H37: =SUM(H38:H42) -> 0 | I37: =SUM(I38:I42) -> 0 | J37: 0
A38: Оплата теплопостачання | B38: 2271 | C38: 160 | D38: 0 | E38: 0 | F38: 0 | G38: 0 | H38: 0 | I38: 0 | J38: 0
A39: Оплата водопостачання та водовідведення | B39: 2272 | C39: 170 | D39: 0 | E39: 0 | F39: 0 | G39: 0 | H39: 0 | I39: 0 | J39: 0
A40: Оплата електроенергії | B40: 2273 | C40: 180 | D40: 0 | E40: 0 | F40: 0 | G40: 0 | H40: 0 | I40: 0 | J40: 0
A41: Оплата природного газу | B41: 2274 | C41: 190 | D41: 0 | E41: 0 | F41: 0 | G41: 0 | H41: 0 | I41: 0 | J41: 0
A42: Оплата інших енергоносіїв | B42: 2275 | C42: 200 | D42: 0 | E42: 0 | F42: 0 | G42: 0 | H42: 0 | I42: 0 | J42: 0
A43: Дослідження і розробки, окремі заходи по реалізації державних (регіональних) програм | B43: 2280 | C43: 210 | D43: =SUM(D44:D45) -> 0 | E43: 0 | F43: =SUM(F44:F45) -> 0 | G43: =SUM(G44:G45) -> 0 | H43: =SUM(H44:H45) -> 0 | I43: =SUM(I44:I45) -> 0 | J43: 0
A44: Дослідження і розробки, окремі заходи розвитку по реалізації державних (регіональних) програм | B44: 2281 | C44: 220 | D44: 0 | E44: 0 | F44: 0 | G44: 0 | H44: 0 | I44: 0 | J44: 0
A45: Окремі заходи по реалізації державних (регіональних) програм, не віднесені до заходів розвитку | B45: 2282 | C45: 230 | D45: 0 | E45: 0 | F45: 0 | G45: 0 | H45: 0 | I45: 0 | J45: 0
A46: Обслуговування боргових зобов’язань | B46: 2400 | C46: 240 | D46: =SUM(D47:D48) -> 0 | E46: 0 | F46: 0 | G46: 0 | H46: 0 | I46: 0 | J46: 0
A47: Обслуговування внутрішніх боргових зобов’язань | B47: 2410 | C47: 250 | D47: 0 | E47: 0 | F47: 0 | G47: 0 | H47: 0 | I47: 0 | J47: 0
A48: Обслуговування зовнішніх боргових зобов’язань | B48: 2420 | C48: 260 | D48: 0 | E48: 0 | F48: 0 | G48: 0 | H48: 0 | I48: 0 | J48: 0
A49: Поточні трансферти | B49: 2600 | C49: 270 | D49: =SUM(D50:D52) -> 0 | E49: 0 | F49: 0 | G49: 0 | H49: 0 | I49: 0 | J49: 0
A50: Субсидії та поточні трансферти підприємствам (установам, організаціям) | B50: 2610 | C50: 280 | D50: 0 | E50: 0 | F50: 0 | G50: 0 | H50: 0 | I50: 0 | J50: 0
A51: Поточні трансферти органам державного управління інших рівнів | B51: 2620 | C51: 290 | D51: 0 | E51: 0 | F51: 0 | G51: 0 | H51: 0 | I51: 0 | J51: 0
A52: Поточні трансферти урядам іноземних держав та міжнародним організаціям | B52: 2630 | C52: 300 | D52: 0 | E52: 0 | F52: 0 | G52: 0 | H52: 0 | I52: 0 | J52: 0
A53: Соціальне забезпечення | B53: 2700 | C53: 310 | D53: =SUM(D54:D56) -> 0 | E53: 0 | F53: 0 | G53: 0 | H53: 0 | I53: 0 | J53: 0
A54: Виплата пенсій і допомоги | B54: 2710 | C54: 320 | D54: 0 | E54: 0 | F54: 0 | G54: 0 | H54: 0 | I54: 0 | J54: 0
A55: Стипендії | B55: 2720 | C55: 330 | D55: 0 | E55: 0 | F55: 0 | G55: 0 | H55: 0 | I55: 0 | J55: 0
A56: Інші виплати населенню | B56: 2730 | C56: 340 | D56: 0 | E56: 0 | F56: 0 | G56: 0 | H56: 0 | I56: 0 | J56: 0
A57: Інші поточні видатки | B57: 2800 | C57: 350 | D57: 0 | E57: 0 | F57: 0 | G57: 0 | H57: 0 | I57: 0 | J57: 0
A58: Капітальні видатки | B58: 3000 | C58: 360 | D58: =D59+D73 -> 0 | E58: 0 | F58: 0 | G58: 0 | H58: 0 | I58: 0 | J58: 0
A59: Придбання основного капіталу | B59: 3100 | C59: 370 | D59: =D60+D61+D64+D67+D71+D72 -> 0 | E59: 0 | F59: 0 | G59: 0 | H59: 0 | I59: 0 | J59: 0
A60: Придбання обладнання і предметів довгострокового користування | B60: 3110 | C60: 380 | D60: 0 | E60: 0 | F60: 0 | G60: 0 | H60: 0 | I60: 0 | J60: 0
A61: Капітальне будівництво (придбання) | B61: 3120 | C61: 390 | D61: =SUM(D62:D63) -> 0 | E61: 0 | F61: 0 | G61: 0 | H61: 0 | I61: 0 | J61: 0
A62: Капітальне будівництво (придбання) житла | B62: 3121 | C62: 400 | D62: 0 | E62: 0 | F62: 0 | G62: 0 | H62: 0 | I62: 0 | J62: 0
A63: Капітальне будівництво (придбання) інших об’єктів | B63: 3122 | C63: 410 | D63: 0 | E63: 0 | F63: 0 | G63: 0 | H63: 0 | I63: 0 | J63: 0
A64: Капітальний ремонт | B64: 3130 | C64: 420 | D64: =SUM(D65:D66) -> 0 | E64: 0 | F64: 0 | G64: 0 | H64: 0 | I64: 0 | J64: 0
A65: Капітальний ремонт житлового фонду (приміщень) | B65: 3131 | C65: 430 | D65: 0 | E65: 0 | F65: 0 | G65: 0 | H65: 0 | I65: 0 | J65: 0
A66: Капітальний ремонт інших об’єктів | B66: 3132 | C66: 440 | D66: 0 | E66: 0 | F66: 0 | G66: 0 | H66: 0 | I66: 0 | J66: 0
A67: Реконструкція та реставрація | B67: 3140 | C67: 450 | D67: =SUM(D68:D70) -> 0 | E67: 0 | F67: 0 | G67: 0 | H67: 0 | I67: 0 | J67: 0
A68: Реконструкція житлового фонду (приміщень) | B68: 3141 | C68: 460 | D68: 0 | E68: 0 | F68: 0 | G68: 0 | H68: 0 | I68: 0 | J68: 0
A69: Реконструкція та реставрація інших об’єктів | B69: 3142 | C69: 470 | D69: 0 | E69: 0 | F69: 0 | G69: 0 | H69: 0 | I69: 0 | J69: 0
A70: Реставрація пам’яток культури, історії та архітектури | B70: 3143 | C70: 480 | D70: 0 | E70: 0 | F70: 0 | G70: 0 | H70: 0 | I70: 0 | J70: 0
A71: Створення державних запасів і резервів | B71: 3150 | C71: 490 | D71: 0 | E71: 0 | F71: 0 | G71: 0 | H71: 0 | I71: 0 | J71: 0
A72: Придбання землі та нематеріальних активів | B72: 3160 | C72: 500 | D72: 0 | E72: 0 | F72: 0 | G72: 0 | H72: 0 | I72: 0 | J72: 0
A73: Капітальні трансферти | B73: 3200 | C73: 510 | D73: =SUM(D74:D77) -> 0 | E73: 0 | F73: 0 | G73: 0 | H73: 0 | I73: 0 | J73: 0
A74: Капітальні трансферти підприємствам (установам, організаціям) | B74: 3210 | C74: 520 | D74: 0 | E74: 0 | F74: 0 | G74: 0 | H74: 0 | I74: 0 | J74: 0
A75: Капітальні трансферти органам державного управління інших рівнів | B75: 3220 | C75: 530 | D75: 0 | E75: 0 | F75: 0 | G75: 0 | H75: 0 | I75: 0 | J75: 0
A76: Капітальні трансферти урядам іноземних держав та міжнародним організаціям | B76: 3230 | C76: 540 | D76: 0 | E76: 0 | F76: 0 | G76: 0 | H76: 0 | I76: 0 | J76: 0
A77: Капітальні трансферти населенню | B77: 3240 | C77: 550 | D77: 0 | E77: 0 | F77: 0 | G77: 0 | H77: 0 | I77: 0 | J77: 0
A78: Внутрішнє кредитування | B78: 4100 | C78: 560 | D78: =SUM(D79) -> 0 | E78: 0 | F78: 0 | G78: 0 | H78: 0 | I78: 0 | J78: 0
A79: Надання внутрішніх кредитів | B79: 4110 | C79: 570 | D79: =SUM(D80:D82) -> 0 | E79: 0 | F79: 0 | G79: 0 | H79: 0 | I79: 0 | J79: 0
A80: Надання кредитів органам державного управління інших рівнів | B80: 4111 | C80: 580 | D80: 0 | E80: 0 | F80: 0 | G80: 0 | H80: 0 | I80: 0 | J80: 0
A81: Надання кредитів підприємствам, установам, організаціям | B81: 4112 | C81: 590 | D81: 0 | E81: 0 | F81: 0 | G81: 0 | H81: 0 | I81: 0 | J81: 0
A82: Надання інших внутрішніх кредитів | B82: 4113 | C82: 600 | D82: 0 | E82: 0 | F82: 0 | G82: 0 | H82: 0 | I82: 0 | J82: 0
A83: Зовнішнє кредитування | B83: 4200 | C83: 610 | D83: =D84 -> 0 | E83: 0 | F83: 0 | G83: 0 | H83: 0 | I83: 0 | J83: 0
A84: Надання зовнішніх кредитів | B84: 4210 | C84: 620 | D84: 0 | E84: 0 | F84: 0 | G84: 0 | H84: 0 | I84: 0 | J84: 0
A85: Інші видатки | B85: 5000 | C85: 630 | D85: X | E85: 0 | F85: X | G85: X | H85: X | I85: X | J85: X
A86: Нерозподілені видатки | B86: 9000 | C86: 640 | D86: 0 | E86: 0 | F86: 0 | G86: 0 | H86: 0 | I86: 0 | J86: 0
A99: 1 Заповнюється розпорядниками бюджетних коштів.
A100: =ЗАПОЛНИТЬ!F30 -> Ректор | G100: =ЗАПОЛНИТЬ!F26 -> В.В.Снітинський
D101: (підпис) | G101: (ініціали, прізвище)
A102: =ЗАПОЛНИТЬ!F31 -> Головний бухгалтер | G102: =ЗАПОЛНИТЬ!F28 -> Г.І.Козлова
A103: =ЗАПОЛНИТЬ!C19 -> "12" січня 2016 року | D103: (підпис) | G103: (ініціали, прізвище)
A104: *До запровадження програмно-цільового методу складання та виконання місцевих бюджетів проставляються код та назва тимчасової класифікації видатків та кредитування місцевих бюджетів.

Sheet Ф.2.14 (hidden)
H1: Додаток 4 до Порядку складання фінансової, бюджетної та іншої звітності розпорядниками та одержувачами бюджетних коштів
A4: ЗВІТ
A5: =IF(ЗАПОЛНИТЬ!$F$7=1,CONCATENATE(шапки!A2),CONCATENATE(шапки!A2,шапки!C2)) -> про надходження та використання коштів загального фонду (форма | G5: =IF(ЗАПОЛНИТЬ!$F$7=1,шапки!C2,шапки!D2) -> №2д, | H5: =IF(ЗАПОЛНИТЬ!$F$7=1,шапки!D2,"") -> №2м)
A6: =CONCATENATE("за ",ЗАПОЛНИТЬ!$B$17," ",ЗАПОЛНИТЬ!$C$17) -> за 2015 р.
J7: коди
A9: Установа | B9: =ЗАПОЛНИТЬ!B3 -> Львівський національний аграрний університет | I9: за ЄДРПОУ | J9: =ЗАПОЛНИТЬ!B13 -> 00493735
A10: Територія | B10: =ЗАПОЛНИТЬ!B5 -> м.Дубляни Жовківського р-ну Львівської обл. | I10: за КОАТУУ | J10: =ЗАПОЛНИТЬ!B14 -> 4622710200
A11: Організаційно-правова форма господарювання | B11: =ЗАПОЛНИТЬ!D15 -> Державна організація (установа, заклад) | I11: за КОПФГ | J11: =ЗАПОЛНИТЬ!B15 -> 425
A12: Код та назва відомчої класифікації видатків та кредитування державного бюджету | D12: =ЗАПОЛНИТЬ!H9 -> 220 | E12: =IF(D12>0,VLOOKUP(D12,'ДовидникКВК(ГОС)'!A:B,2,FALSE),"") -> Міністерство освіти і науки України
A13: Код та назва програмної класифікації видатків та кредитування державного бюджету | E13: =IF(D13>0,VLOOKUP(D13,ДовидникКПК!B:C,2,FALSE),"") -> 
A14: Код та назва типової відомчої класифікації видатків та кредитування місцевих бюджетів | D14: =ЗАПОЛНИТЬ!H10 -> - | E14: =ЗАПОЛНИТЬ!I10 -> -
A15: Код та назва програмної класифікації видатків та кредитування місцевих бюджетів (код та назва Типової програмної класифікації видатків та кредитування місцевих бюджетів / Тимчасової класифікації видатків та кредитування для бюджетів місцевого самоврядування, які не застосовують програмно-цільового методу)* | E15: =IF(D15>0,VLOOKUP(D15,ДовидникКФК!A:B,2,FALSE),"") -> 
A16: Періодичність: квартальна, річна
A17: Одиниця виміру: грн. коп.
A19: Показники | B19: КЕКВ та/або ККК | C19: Код рядка | D19: Затверджено на звітний рік | E19: Затверджено на звітний період (рік)1 | F19: Залишок на початок звітного року | G19: Надійшло коштів за звітний період (рік) | H19: Касові за звітний період (рік) | I19: Фактичні за звітний період (рік) | J19: Залишок на кінець звітного періоду (року)
A22: 1 | B22: 2 | C22: 3 | D22: 4 | E22: 5 | F22: 6 | G22: 7 | H22: 8 | I22: 9 | J22: 10
A23: Видатки та надання кредитів - усього | B23: Х | C23: 010 | D23: =D24+D58+D78+D83+D86 -> 0 | E23: =E26+E29+E32+E33+E37+E44+E45+E85+E53 -> 0 | F23: =F24+F58+F78+F83+F86 -> 0 | G23: =G24+G58+G78+G83+G86 -> 0 | H23: =H24+H58+H78+H83+H86 -> 0 | I23: =I24+I58+I78+I83+I86 -> 0 | J23: =F23+G23-H23 -> 0
A24: у тому числі: Поточні видатки | B24: 2000 | C24: 020 | D24: =D25+D30+D46+D49+D53+D57 -> 0 | E24: 0 | F24: 0 | G24: 0 | H24: 0 | I24: 0 | J24: =F24+G24-H24 -> 0
A25: Оплата праці і нарахування на заробітну плату | B25: 2100 | C25: 030 | D25: =D26+D29 -> 0 | E25: 0 | F25: =F26+F29 -> 0 | G25: =G26+G29 -> 0 | H25: =H26+H29 -> 0 | I25: =I26+I29 -> 0 | J25: 0
A26: Оплата праці | B26: 2110 | C26: 040 | D26: =SUM(D27:D28) -> 0 | E26: 0 | F26: 0 | G26: 0 | H26: 0 | I26: 0 | J26: 0
A27: Заробітна плата | B27: 2111 | C27: 050 | D27: 0 | E27: 0 | F27: 0 | G27: 0 | H27: 0 | I27: 0 | J27: 0
A28: Грошове забезпечення військовослужбовців | B28: 2112 | C28: 060 | D28: 0 | E28: 0 | F28: 0 | G28: 0 | H28: 0 | I28: 0 | J28: 0
A29: Нарахування на оплату праці | B29: 2120 | C29: 070 | D29: 0 | E29: 0 | F29: 0 | G29: 0 | H29: 0 | I29: 0 | J29: 0
A30: Використання товарів і послуг | B30: 2200 | C30: 080 | D30: =SUM(D31:D37)+D43 -> 0 | E30: 0 | F30: =SUM(F31:F37)+F43 -> 0 | G30: =SUM(G31:G37)+G43 -> 0 | H30: =SUM(H31:H37)+H43 -> 0 | I30: =SUM(I31:I37)+I43 -> 0 | J30: 0
A31: Предмети, матеріали, обладнання та інвентар | B31: 2210 | C31: 090 | D31: 0 | E31: 0 | F31: 0 | G31: 0 | H31: 0 | I31: 0 | J31: 0
A32: Медикаменти та перев’язувальні матеріали | B32: 2220 | C32: 100 | D32: 0 | E32: 0 | F32: 0 | G32: 0 | H32: 0 | I32: 0 | J32: 0
A33: Продукти харчування | B33: 2230 | C33: 110 | D33: 0 | E33: 0 | F33: 0 | G33: 0 | H33: 0 | I33: 0 | J33: 0
A34: Оплата послуг (крім комунальних) | B34: 2240 | C34: 120 | D34: 0 | E34: 0 | F34: 0 | G34: 0 | H34: 0 | I34: 0 | J34: 0
A35: Видатки на відрядження | B35: 2250 | C35: 130 | D35: 0 | E35: 0 | F35: 0 | G35: 0 | H35: 0 | I35: 0 | J35: 0
A36: Видатки та заходи спеціального призначення | B36: 2260 | C36: 140 | D36: 0 | E36: 0 | F36: 0 | G36: 0 | H36: 0 | I36: 0 | J36: 0
A37: Оплата комунальних послуг та енергоносіїв | B37: 2270 | C37: 150 | D37: =SUM(D38:D42) -> 0 | E37: 0 | F37: =SUM(F38:F42) -> 0 | G37: =SUM(G38:G42) -> 0 | H37: =SUM(H38:H42) -> 0 | I37: =SUM(I38:I42) -> 0 | J37: 0
A38: Оплата теплопостачання | B38: 2271 | C38: 160 | D38: 0 | E38: 0 | F38: 0 | G38: 0 | H38: 0 | I38: 0 | J38: 0
A39: Оплата водопостачання та водовідведення | B39: 2272 | C39: 170 | D39: 0 | E39: 0 | F39: 0 | G39: 0 | H39: 0 | I39: 0 | J39: 0
A40: Оплата електроенергії | B40: 2273 | C40: 180 | D40: 0 | E40: 0 | F40: 0 | G40: 0 | H40: 0 | I40: 0 | J40: 0
A41: Оплата природного газу | B41: 2274 | C41: 190 | D41: 0 | E41: 0 | F41: 0 | G41: 0 | H41: 0 | I41: 0 | J41: 0
A42: Оплата інших енергоносіїв | B42: 2275 | C42: 200 | D42: 0 | E42: 0 | F42: 0 | G42: 0 | H42: 0 | I42: 0 | J42: 0
A43: Дослідження і розробки, окремі заходи по реалізації державних (регіональних) програм | B43: 2280 | C43: 210 | D43: =SUM(D44:D45) -> 0 | E43: 0 | F43: =SUM(F44:F45) -> 0 | G43: =SUM(G44:G45) -> 0 | H43: =SUM(H44:H45) -> 0 | I43: =SUM(I44:I45) -> 0 | J43: 0
A44: Дослідження і розробки, окремі заходи розвитку по реалізації державних (регіональних) програм | B44: 2281 | C44: 220 | D44: 0 | E44: 0 | F44: 0 | G44: 0 | H44: 0 | I44: 0 | J44: 0
A45: Окремі заходи по реалізації державних (регіональних) програм, не віднесені до заходів розвитку | B45: 2282 | C45: 230 | D45: 0 | E45: 0 | F45: 0 | G45: 0 | H45: 0 | I45: 0 | J45: 0
A46: Обслуговування боргових зобов’язань | B46: 2400 | C46: 240 | D46: =SUM(D47:D48) -> 0 | E46: 0 | F46: 0 | G46: 0 | H46: 0 | I46: 0 | J46: 0
A47: Обслуговування внутрішніх боргових зобов’язань | B47: 2410 | C47: 250 | D47: 0 | E47: 0 | F47: 0 | G47: 0 | H47: 0 | I47: 0 | J47: 0
A48: Обслуговування зовнішніх боргових зобов’язань | B48: 2420 | C48: 260 | D48: 0 | E48: 0 | F48: 0 | G48: 0 | H48: 0 | I48: 0 | J48: 0
A49: Поточні трансферти | B49: 2600 | C49: 270 | D49: =SUM(D50:D52) -> 0 | E49: 0 | F49: 0 | G49: 0 | H49: 0 | I49: 0 | J49: 0
A50: Субсидії та поточні трансферти підприємствам (установам, організаціям) | B50: 2610 | C50: 280 | D50: 0 | E50: 0 | F50: 0 | G50: 0 | H50: 0 | I50: 0 | J50: 0
A51: Поточні трансферти органам державного управління інших рівнів | B51: 2620 | C51: 290 | D51: 0 | E51: 0 | F51: 0 | G51: 0 | H51: 0 | I51: 0 | J51: 0
A52: Поточні трансферти урядам іноземних держав та міжнародним організаціям | B52: 2630 | C52: 300 | D52: 0 | E52: 0 | F52: 0 | G52: 0 | H52: 0 | I52: 0 | J52: 0
A53: Соціальне забезпечення | B53: 2700 | C53: 310 | D53: =SUM(D54:D56) -> 0 | E53: 0 | F53: 0 | G53: 0 | H53: 0 | I53: 0 | J53: 0
A54: Виплата пенсій і допомоги | B54: 2710 | C54: 320 | D54: 0 | E54: 0 | F54: 0 | G54: 0 | H54: 0 | I54: 0 | J54: 0
A55: Стипендії | B55: 2720 | C55: 330 | D55: 0 | E55: 0 | F55: 0 | G55: 0 | H55: 0 | I55: 0 | J55: 0
A56: Інші виплати населенню | B56: 2730 | C56: 340 | D56: 0 | E56: 0 | F56: 0 | G56: 0 | H56: 0 | I56: 0 | J56: 0
A57: Інші поточні видатки | B57: 2800 | C57: 350 | D57: 0 | E57: 0 | F57: 0 | G57: 0 | H57: 0 | I57: 0 | J57: 0
A58: Капітальні видатки | B58: 3000 | C58: 360 | D58: =D59+D73 -> 0 | E58: 0 | F58: 0 | G58: 0 | H58: 0 | I58: 0 | J58: 0
A59: Придбання основного капіталу | B59: 3100 | C59: 370 | D59: =D60+D61+D64+D67+D71+D72 -> 0 | E59: 0 | F59: 0 | G59: 0 | H59: 0 | I59: 0 | J59: 0
A60: Придбання обладнання і предметів довгострокового користування | B60: 3110 | C60: 380 | D60: 0 | E60: 0 | F60: 0 | G60: 0 | H60: 0 | I60: 0 | J60: 0
A61: Капітальне будівництво (придбання) | B61: 3120 | C61: 390 | D61: =SUM(D62:D63) -> 0 | E61: 0 | F61: 0 | G61: 0 | H61: 0 | I61: 0 | J61: 0
A62: Капітальне будівництво (придбання) житла | B62: 3121 | C62: 400 | D62: 0 | E62: 0 | F62: 0 | G62: 0 | H62: 0 | I62: 0 | J62: 0
A63: Капітальне будівництво (придбання) інших об’єктів | B63: 3122 | C63: 410 | D63: 0 | E63: 0 | F63: 0 | G63: 0 | H63: 0 | I63: 0 | J63: 0
A64: Капітальний ремонт | B64: 3130 | C64: 420 | D64: =SUM(D65:D66) -> 0 | E64: 0 | F64: 0 | G64: 0 | H64: 0 | I64: 0 | J64: 0
A65: Капітальний ремонт житлового фонду (приміщень) | B65: 3131 | C65: 430 | D65: 0 | E65: 0 | F65: 0 | G65: 0 | H65: 0 | I65: 0 | J65: 0
A66: Капітальний ремонт інших об’єктів | B66: 3132 | C66: 440 | D66: 0 | E66: 0 | F66: 0 | G66: 0 | H66: 0 | I66: 0 | J66: 0
A67: Реконструкція та реставрація | B67: 3140 | C67: 450 | D67: =SUM(D68:D70) -> 0 | E67: 0 | F67: 0 | G67: 0 | H67: 0 | I67: 0 | J67: 0
A68: Реконструкція житлового фонду (приміщень) | B68: 3141 | C68: 460 | D68: 0 | E68: 0 | F68: 0 | G68: 0 | H68: 0 | I68: 0 | J68: 0
A69: Реконструкція та реставрація інших об’єктів | B69: 3142 | C69: 470 | D69: 0 | E69: 0 | F69: 0 | G69: 0 | H69: 0 | I69: 0 | J69: 0
A70: Реставрація пам’яток культури, історії та архітектури | B70: 3143 | C70: 480 | D70: 0 | E70: 0 | F70: 0 | G70: 0 | H70: 0 | I70: 0 | J70: 0
A71: Створення державних запасів і резервів | B71: 3150 | C71: 490 | D71: 0 | E71: 0 | F71: 0 | G71: 0 | H71: 0 | I71: 0 | J71: 0
A72: Придбання землі та нематеріальних активів | B72: 3160 | C72: 500 | D72: 0 | E72: 0 | F72: 0 | G72: 0 | H72: 0 | I72: 0 | J72: 0
A73: Капітальні трансферти | B73: 3200 | C73: 510 | D73: =SUM(D74:D77) -> 0 | E73: 0 | F73: 0 | G73: 0 | H73: 0 | I73: 0 | J73: 0
A74: Капітальні трансферти підприємствам (установам, організаціям) | B74: 3210 | C74: 520 | D74: 0 | E74: 0 | F74: 0 | G74: 0 | H74: 0 | I74: 0 | J74: 0
A75: Капітальні трансферти органам державного управління інших рівнів | B75: 3220 | C75: 530 | D75: 0 | E75: 0 | F75: 0 | G75: 0 | H75: 0 | I75: 0 | J75: 0
A76: Капітальні трансферти урядам іноземних держав та міжнародним організаціям | B76: 3230 | C76: 540 | D76: 0 | E76: 0 | F76: 0 | G76: 0 | H76: 0 | I76: 0 | J76: 0
A77: Капітальні трансферти населенню | B77: 3240 | C77: 550 | D77: 0 | E77: 0 | F77: 0 | G77: 0 | H77: 0 | I77: 0 | J77: 0
A78: Внутрішнє кредитування | B78: 4100 | C78: 560 | D78: =SUM(D79) -> 0 | E78: 0 | F78: 0 | G78: 0 | H78: 0 | I78: 0 | J78: 0
A79: Надання внутрішніх кредитів | B79: 4110 | C79: 570 | D79: =SUM(D80:D82) -> 0 | E79: 0 | F79: 0 | G79: 0 | H79: 0 | I79: 0 | J79: 0
A80: Надання кредитів органам державного управління інших рівнів | B80: 4111 | C80: 580 | D80: 0 | E80: 0 | F80: 0 | G80: 0 | H80: 0 | I80: 0 | J80: 0
A81: Надання кредитів підприємствам, установам, організаціям | B81: 4112 | C81: 590 | D81: 0 | E81: 0 | F81: 0 | G81: 0 | H81: 0 | I81: 0 | J81: 0
A82: Надання інших внутрішніх кредитів | B82: 4113 | C82: 600 | D82: 0 | E82: 0 | F82: 0 | G82: 0 | H82: 0 | I82: 0 | J82: 0
A83: Зовнішнє кредитування | B83: 4200 | C83: 610 | D83: =D84 -> 0 | E83: 0 | F83: 0 | G83: 0 | H83: 0 | I83: 0 | J83: 0
A84: Надання зовнішніх кредитів | B84: 4210 | C84: 620 | D84: 0 | E84: 0 | F84: 0 | G84: 0 | H84: 0 | I84: 0 | J84: 0
A85: Інші видатки | B85: 5000 | C85: 630 | D85: X | E85: 0 | F85: X | G85: X | H85: X | I85: X | J85: X
A86: Нерозподілені видатки | B86: 9000 | C86: 640 | D86: 0 | E86: 0 | F86: 0 | G86: 0 | H86: 0 | I86: 0 | J86: 0
A99: 1 Заповнюється розпорядниками бюджетних коштів.
A100: =ЗАПОЛНИТЬ!F30 -> Ректор | G100: =ЗАПОЛНИТЬ!F26 -> В.В.Снітинський
D101: (підпис) | G101: (ініціали, прізвище)
A102: =ЗАПОЛНИТЬ!F31 -> Головний бухгалтер | G102: =ЗАПОЛНИТЬ!F28 -> Г.І.Козлова
A103: =ЗАПОЛНИТЬ!C19 -> "12" січня 2016 року | D103: (підпис) | G103: (ініціали, прізвище)
A104: *До запровадження програмно-цільового методу складання та виконання місцевих бюджетів проставляються код та назва тимчасової класифікації видатків та кредитування місцевих бюджетів.

Sheet Ф.2.15 (hidden)
H1: Додаток 4 до Порядку складання фінансової, бюджетної та іншої звітності розпорядниками та одержувачами бюджетних коштів
A4: ЗВІТ
A5: =IF(ЗАПОЛНИТЬ!$F$7=1,CONCATENATE(шапки!A2),CONCATENATE(шапки!A2,шапки!C2)) -> про надходження та використання коштів загального фонду (форма | G5: =IF(ЗАПОЛНИТЬ!$F$7=1,шапки!C2,шапки!D2) -> №2д, | H5: =IF(ЗАПОЛНИТЬ!$F$7=1,шапки!D2,"") -> №2м)
A6: =CONCATENATE("за ",ЗАПОЛНИТЬ!$B$17," ",ЗАПОЛНИТЬ!$C$17) -> за 2015 р.
J7: коди
A9: Установа | B9: =ЗАПОЛНИТЬ!B3 -> Львівський національний аграрний університет | I9: за ЄДРПОУ | J9: =ЗАПОЛНИТЬ!B13 -> 00493735
A10: Територія | B10: =ЗАПОЛНИТЬ!B5 -> м.Дубляни Жовківського р-ну Львівської обл. | I10: за КОАТУУ | J10: =ЗАПОЛНИТЬ!B14 -> 4622710200
A11: Організаційно-правова форма господарювання | B11: =ЗАПОЛНИТЬ!D15 -> Державна організація (установа, заклад) | I11: за КОПФГ | J11: =ЗАПОЛНИТЬ!B15 -> 425
A12: Код та назва відомчої класифікації видатків та кредитування державного бюджету | D12: =ЗАПОЛНИТЬ!H9 -> 220 | E12: =IF(D12>0,VLOOKUP(D12,'ДовидникКВК(ГОС)'!A:B,2,FALSE),"") -> Міністерство освіти і науки України
A13: Код та назва програмної класифікації видатків та кредитування державного бюджету | E13: =IF(D13>0,VLOOKUP(D13,ДовидникКПК!B:C,2,FALSE),"") -> 
A14: Код та назва типової відомчої класифікації видатків та кредитування місцевих бюджетів | D14: =ЗАПОЛНИТЬ!H10 -> - | E14: =ЗАПОЛНИТЬ!I10 -> -
A15: Код та назва програмної класифікації видатків та кредитування місцевих бюджетів (код та назва Типової програмної класифікації видатків та кредитування місцевих бюджетів / Тимчасової класифікації видатків та кредитування для бюджетів місцевого самоврядування, які не застосовують програмно-цільового методу)* | E15: =IF(D15>0,VLOOKUP(D15,ДовидникКФК!A:B,2,FALSE),"") -> 
A16: Періодичність: квартальна, річна
A17: Одиниця виміру: грн. коп.
A19: Показники | B19: КЕКВ та/або ККК | C19: Код рядка | D19: Затверджено на звітний рік | E19: Затверджено на звітний період (рік)1 | F19: Залишок на початок звітного року | G19: Надійшло коштів за звітний період (рік) | H19: Касові за звітний період (рік) | I19: Фактичні за звітний період (рік) | J19: Залишок на кінець звітного періоду (року)
A22: 1 | B22: 2 | C22: 3 | D22: 4 | E22: 5 | F22: 6 | G22: 7 | H22: 8 | I22: 9 | J22: 10
A23: Видатки та надання кредитів - усього | B23: Х | C23: 010 | D23: =D24+D58+D78+D83+D86 -> 0 | E23: =E26+E29+E32+E33+E37+E44+E45+E85+E53 -> 0 | F23: =F24+F58+F78+F83+F86 -> 0 | G23: =G24+G58+G78+G83+G86 -> 0 | H23: =H24+H58+H78+H83+H86 -> 0 | I23: =I24+I58+I78+I83+I86 -> 0 | J23: =F23+G23-H23 -> 0
A24: у тому числі: Поточні видатки | B24: 2000 | C24: 020 | D24: =D25+D30+D46+D49+D53+D57 -> 0 | E24: 0 | F24: 0 | G24: 0 | H24: 0 | I24: 0 | J24: =F24+G24-H24 -> 0
A25: Оплата праці і нарахування на заробітну плату | B25: 2100 | C25: 030 | D25: =D26+D29 -> 0 | E25: 0 | F25: =F26+F29 -> 0 | G25: =G26+G29 -> 0 | H25: =H26+H29 -> 0 | I25: =I26+I29 -> 0 | J25: 0
A26: Оплата праці | B26: 2110 | C26: 040 | D26: =SUM(D27:D28) -> 0 | E26: 0 | F26: 0 | G26: 0 | H26: 0 | I26: 0 | J26: 0
A27: Заробітна плата | B27: 2111 | C27: 050 | D27: 0 | E27: 0 | F27: 0 | G27: 0 | H27: 0 | I27: 0 | J27: 0
A28: Грошове забезпечення військовослужбовців | B28: 2112 | C28: 060 | D28: 0 | E28: 0 | F28: 0 | G28: 0 | H28: 0 | I28: 0 | J28: 0
A29: Нарахування на оплату праці | B29: 2120 | C29: 070 | D29: 0 | E29: 0 | F29: 0 | G29: 0 | H29: 0 | I29: 0 | J29: 0
A30: Використання товарів і послуг | B30: 2200 | C30: 080 | D30: =SUM(D31:D37)+D43 -> 0 | E30: 0 | F30: =SUM(F31:F37)+F43 -> 0 | G30: =SUM(G31:G37)+G43 -> 0 | H30: =SUM(H31:H37)+H43 -> 0 | I30: =SUM(I31:I37)+I43 -> 0 | J30: 0
A31: Предмети, матеріали, обладнання та інвентар | B31: 2210 | C31: 090 | D31: 0 | E31: 0 | F31: 0 | G31: 0 | H31: 0 | I31: 0 | J31: 0
A32: Медикаменти та перев’язувальні матеріали | B32: 2220 | C32: 100 | D32: 0 | E32: 0 | F32: 0 | G32: 0 | H32: 0 | I32: 0 | J32: 0
A33: Продукти харчування | B33: 2230 | C33: 110 | D33: 0 | E33: 0 | F33: 0 | G33: 0 | H33: 0 | I33: 0 | J33: 0
A34: Оплата послуг (крім комунальних) | B34: 2240 | C34: 120 | D34: 0 | E34: 0 | F34: 0 | G34: 0 | H34: 0 | I34: 0 | J34: 0
A35: Видатки на відрядження | B35: 2250 | C35: 130 | D35: 0 | E35: 0 | F35: 0 | G35: 0 | H35: 0 | I35: 0 | J35: 0
A36: Видатки та заходи спеціального призначення | B36: 2260 | C36: 140 | D36: 0 | E36: 0 | F36: 0 | G36: 0 | H36: 0 | I36: 0 | J36: 0
A37: Оплата комунальних послуг та енергоносіїв | B37: 2270 | C37: 150 | D37: =SUM(D38:D42) -> 0 | E37: 0 | F37: =SUM(F38:F42) -> 0 | G37: =SUM(G38:G42) -> 0 | H37: =SUM(H38:H42) -> 0 | I37: =SUM(I38:I42) -> 0 | J37: 0
A38: Оплата теплопостачання | B38: 2271 | C38: 160 | D38: 0 | E38: 0 | F38: 0 | G38: 0 | H38: 0 | I38: 0 | J38: 0
A39: Оплата водопостачання та водовідведення | B39: 2272 | C39: 170 | D39: 0 | E39: 0 | F39: 0 | G39: 0 | H39: 0 | I39: 0 | J39: 0
A40: Оплата електроенергії | B40: 2273 | C40: 180 | D40: 0 | E40: 0 | F40: 0 | G40: 0 | H40: 0 | I40: 0 | J40: 0
A41: Оплата природного газу | B41: 2274 | C41: 190 | D41: 0 | E41: 0 | F41: 0 | G41: 0 | H41: 0 | I41: 0 | J41: 0
A42: Оплата інших енергоносіїв | B42: 2275 | C42: 200 | D42: 0 | E42: 0 | F42: 0 | G42: 0 | H42: 0 | I42: 0 | J42: 0
A43: Дослідження і розробки, окремі заходи по реалізації державних (регіональних) програм | B43: 2280 | C43: 210 | D43: =SUM(D44:D45) -> 0 | E43: 0 | F43: =SUM(F44:F45) -> 0 | G43: =SUM(G44:G45) -> 0 | H43: =SUM(H44:H45) -> 0 | I43: =SUM(I44:I45) -> 0 | J43: 0
A44: Дослідження і розробки, окремі заходи розвитку по реалізації державних (регіональних) програм | B44: 2281 | C44: 220 | D44: 0 | E44: 0 | F44: 0 | G44: 0 | H44: 0 | I44: 0 | J44: 0
A45: Окремі заходи по реалізації державних (регіональних) програм, не віднесені до заходів розвитку | B45: 2282 | C45: 230 | D45: 0 | E45: 0 | F45: 0 | G45: 0 | H45: 0 | I45: 0 | J45: 0
A46: Обслуговування боргових зобов’язань | B46: 2400 | C46: 240 | D46: =SUM(D47:D48) -> 0 | E46: 0 | F46: 0 | G46: 0 | H46: 0 | I46: 0 | J46: 0
A47: Обслуговування внутрішніх боргових зобов’язань | B47: 2410 | C47: 250 | D47: 0 | E47: 0 | F47: 0 | G47: 0 | H47: 0 | I47: 0 | J47: 0
A48: Обслуговування зовнішніх боргових зобов’язань | B48: 2420 | C48: 260 | D48: 0 | E48: 0 | F48: 0 | G48: 0 | H48: 0 | I48: 0 | J48: 0
A49: Поточні трансферти | B49: 2600 | C49: 270 | D49: =SUM(D50:D52) -> 0 | E49: 0 | F49: 0 | G49: 0 | H49: 0 | I49: 0 | J49: 0
A50: Субсидії та поточні трансферти підприємствам (установам, організаціям) | B50: 2610 | C50: 280 | D50: 0 | E50: 0 | F50: 0 | G50: 0 | H50: 0 | I50: 0 | J50: 0
A51: Поточні трансферти органам державного управління інших рівнів | B51: 2620 | C51: 290 | D51: 0 | E51: 0 | F51: 0 | G51: 0 | H51: 0 | I51: 0 | J51: 0
A52: Поточні трансферти урядам іноземних держав та міжнародним організаціям | B52: 2630 | C52: 300 | D52: 0 | E52: 0 | F52: 0 | G52: 0 | H52: 0 | I52: 0 | J52: 0
A53: Соціальне забезпечення | B53: 2700 | C53: 310 | D53: =SUM(D54:D56) -> 0 | E53: 0 | F53: 0 | G53: 0 | H53: 0 | I53: 0 | J53: 0
A54: Виплата пенсій і допомоги | B54: 2710 | C54: 320 | D54: 0 | E54: 0 | F54: 0 | G54: 0 | H54: 0 | I54: 0 | J54: 0
A55: Стипендії | B55: 2720 | C55: 330 | D55: 0 | E55: 0 | F55: 0 | G55: 0 | H55: 0 | I55: 0 | J55: 0
A56: Інші виплати населенню | B56: 2730 | C56: 340 | D56: 0 | E56: 0 | F56: 0 | G56: 0 | H56: 0 | I56: 0 | J56: 0
A57: Інші поточні видатки | B57: 2800 | C57: 350 | D57: 0 | E57: 0 | F57: 0 | G57: 0 | H57: 0 | I57: 0 | J57: 0
A58: Капітальні видатки | B58: 3000 | C58: 360 | D58: =D59+D73 -> 0 | E58: 0 | F58: 0 | G58: 0 | H58: 0 | I58: 0 | J58: 0
A59: Придбання основного капіталу | B59: 3100 | C59: 370 | D59: =D60+D61+D64+D67+D71+D72 -> 0 | E59: 0 | F59: 0 | G59: 0 | H59: 0 | I59: 0 | J59: 0
A60: Придбання обладнання і предметів довгострокового користування | B60: 3110 | C60: 380 | D60: 0 | E60: 0 | F60: 0 | G60: 0 | H60: 0 | I60: 0 | J60: 0
A61: Капітальне будівництво (придбання) | B61: 3120 | C61: 390 | D61: =SUM(D62:D63) -> 0 | E61: 0 | F61: 0 | G61: 0 | H61: 0 | I61: 0 | J61: 0
A62: Капітальне будівництво (придбання) житла | B62: 3121 | C62: 400 | D62: 0 | E62: 0 | F62: 0 | G62: 0 | H62: 0 | I62: 0 | J62: 0
A63: Капітальне будівництво (придбання) інших об’єктів | B63: 3122 | C63: 410 | D63: 0 | E63: 0 | F63: 0 | G63: 0 | H63: 0 | I63: 0 | J63: 0
A64: Капітальний ремонт | B64: 3130 | C64: 420 | D64: =SUM(D65:D66) -> 0 | E64: 0 | F64: 0 | G64: 0 | H64: 0 | I64: 0 | J64: 0
A65: Капітальний ремонт житлового фонду (приміщень) | B65: 3131 | C65: 430 | D65: 0 | E65: 0 | F65: 0 | G65: 0 | H65: 0 | I65: 0 | J65: 0
A66: Капітальний ремонт інших об’єктів | B66: 3132 | C66: 440 | D66: 0 | E66: 0 | F66: 0 | G66: 0 | H66: 0 | I66: 0 | J66: 0
A67: Реконструкція та реставрація | B67: 3140 | C67: 450 | D67: =SUM(D68:D70) -> 0 | E67: 0 | F67: 0 | G67: 0 | H67: 0 | I67: 0 | J67: 0
A68: Реконструкція житлового фонду (приміщень) | B68: 3141 | C68: 460 | D68: 0 | E68: 0 | F68: 0 | G68: 0 | H68: 0 | I68: 0 | J68: 0
A69: Реконструкція та реставрація інших об’єктів | B69: 3142 | C69: 470 | D69: 0 | E69: 0 | F69: 0 | G69: 0 | H69: 0 | I69: 0 | J69: 0
A70: Реставрація пам’яток культури, історії та архітектури | B70: 3143 | C70: 480 | D70: 0 | E70: 0 | F70: 0 | G70: 0 | H70: 0 | I70: 0 | J70: 0
A71: Створення державних запасів і резервів | B71: 3150 | C71: 490 | D71: 0 | E71: 0 | F71: 0 | G71: 0 | H71: 0 | I71: 0 | J71: 0
A72: Придбання землі та нематеріальних активів | B72: 3160 | C72: 500 | D72: 0 | E72: 0 | F72: 0 | G72: 0 | H72: 0 | I72: 0 | J72: 0
A73: Капітальні трансферти | B73: 3200 | C73: 510 | D73: =SUM(D74:D77) -> 0 | E73: 0 | F73: 0 | G73: 0 | H73: 0 | I73: 0 | J73: 0
A74: Капітальні трансферти підприємствам (установам, організаціям) | B74: 3210 | C74: 520 | D74: 0 | E74: 0 | F74: 0 | G74: 0 | H74: 0 | I74: 0 | J74: 0
A75: Капітальні трансферти органам державного управління інших рівнів | B75: 3220 | C75: 530 | D75: 0 | E75: 0 | F75: 0 | G75: 0 | H75: 0 | I75: 0 | J75: 0
A76: Капітальні трансферти урядам іноземних держав та міжнародним організаціям | B76: 3230 | C76: 540 | D76: 0 | E76: 0 | F76: 0 | G76: 0 | H76: 0 | I76: 0 | J76: 0
A77: Капітальні трансферти населенню | B77: 3240 | C77: 550 | D77: 0 | E77: 0 | F77: 0 | G77: 0 | H77: 0 | I77: 0 | J77: 0
A78: Внутрішнє кредитування | B78: 4100 | C78: 560 | D78: =SUM(D79) -> 0 | E78: 0 | F78: 0 | G78: 0 | H78: 0 | I78: 0 | J78: 0
A79: Надання внутрішніх кредитів | B79: 4110 | C79: 570 | D79: =SUM(D80:D82) -> 0 | E79: 0 | F79: 0 | G79: 0 | H79: 0 | I79: 0 | J79: 0
A80: Надання кредитів органам державного управління інших рівнів | B80: 4111 | C80: 580 | D80: 0 | E80: 0 | F80: 0 | G80: 0 | H80: 0 | I80: 0 | J80: 0
A81: Надання кредитів підприємствам, установам, організаціям | B81: 4112 | C81: 590 | D81: 0 | E81: 0 | F81: 0 | G81: 0 | H81: 0 | I81: 0 | J81: 0
A82: Надання інших внутрішніх кредитів | B82: 4113 | C82: 600 | D82: 0 | E82: 0 | F82: 0 | G82: 0 | H82: 0 | I82: 0 | J82: 0
A83: Зовнішнє кредитування | B83: 4200 | C83: 610 | D83: =D84 -> 0 | E83: 0 | F83: 0 | G83: 0 | H83: 0 | I83: 0 | J83: 0
A84: Надання зовнішніх кредитів | B84: 4210 | C84: 620 | D84: 0 | E84: 0 | F84: 0 | G84: 0 | H84: 0 | I84: 0 | J84: 0
A85: Інші видатки | B85: 5000 | C85: 630 | D85: X | E85: 0 | F85: X | G85: X | H85: X | I85: X | J85: X
A86: Нерозподілені видатки | B86: 9000 | C86: 640 | D86: 0 | E86: 0 | F86: 0 | G86: 0 | H86: 0 | I86: 0 | J86: 0
A99: 1 Заповнюється розпорядниками бюджетних коштів.
A100: =ЗАПОЛНИТЬ!F30 -> Ректор | G100: =ЗАПОЛНИТЬ!F26 -> В.В.Снітинський
D101: (підпис) | G101: (ініціали, прізвище)
A102: =ЗАПОЛНИТЬ!F31 -> Головний бухгалтер | G102: =ЗАПОЛНИТЬ!F28 -> Г.І.Козлова
A103: =ЗАПОЛНИТЬ!C19 -> "12" січня 2016 року | D103: (підпис) | G103: (ініціали, прізвище)
A104: *До запровадження програмно-цільового методу складання та виконання місцевих бюджетів проставляються код та назва тимчасової класифікації видатків та кредитування місцевих бюджетів.

Sheet Ф.2.16 (hidden)
H1: Додаток 4 до Порядку складання фінансової, бюджетної та іншої звітності розпорядниками та одержувачами бюджетних коштів
A4: ЗВІТ
A5: =IF(ЗАПОЛНИТЬ!$F$7=1,CONCATENATE(шапки!A2),CONCATENATE(шапки!A2,шапки!C2)) -> про надходження та використання коштів загального фонду (форма | G5: =IF(ЗАПОЛНИТЬ!$F$7=1,шапки!C2,шапки!D2) -> №2д, | H5: =IF(ЗАПОЛНИТЬ!$F$7=1,шапки!D2,"") -> №2м)
A6: =CONCATENATE("за ",ЗАПОЛНИТЬ!$B$17," ",ЗАПОЛНИТЬ!$C$17) -> за 2015 р.
J7: коди
A9: Установа | B9: =ЗАПОЛНИТЬ!B3 -> Львівський національний аграрний університет | I9: за ЄДРПОУ | J9: =ЗАПОЛНИТЬ!B13 -> 00493735
A10: Територія | B10: =ЗАПОЛНИТЬ!B5 -> м.Дубляни Жовківського р-ну Львівської обл. | I10: за КОАТУУ | J10: =ЗАПОЛНИТЬ!B14 -> 4622710200
A11: Організаційно-правова форма господарювання | B11: =ЗАПОЛНИТЬ!D15 -> Державна організація (установа, заклад) | I11: за КОПФГ | J11: =ЗАПОЛНИТЬ!B15 -> 425
A12: Код та назва відомчої класифікації видатків та кредитування державного бюджету | D12: =ЗАПОЛНИТЬ!H9 -> 220 | E12: =IF(D12>0,VLOOKUP(D12,'ДовидникКВК(ГОС)'!A:B,2,FALSE),"") -> Міністерство освіти і науки України
A13: Код та назва програмної класифікації видатків та кредитування державного бюджету | E13: =IF(D13>0,VLOOKUP(D13,ДовидникКПК!B:C,2,FALSE),"") -> 
A14: Код та назва типової відомчої класифікації видатків та кредитування місцевих бюджетів | D14: =ЗАПОЛНИТЬ!H10 -> - | E14: =ЗАПОЛНИТЬ!I10 -> -
A15: Код та назва програмної класифікації видатків та кредитування місцевих бюджетів (код та назва Типової програмної класифікації видатків та кредитування місцевих бюджетів / Тимчасової класифікації видатків та кредитування для бюджетів місцевого самоврядування, які не застосовують програмно-цільового методу)* | E15: =IF(D15>0,VLOOKUP(D15,ДовидникКФК!A:B,2,FALSE),"") -> 
A16: Періодичність: квартальна, річна
A17: Одиниця виміру: грн. коп.
A19: Показники | B19: КЕКВ та/або ККК | C19: Код рядка | D19: Затверджено на звітний рік | E19: Затверджено на звітний період (рік)1 | F19: Залишок на початок звітного року | G19: Надійшло коштів за звітний період (рік) | H19: Касові за звітний період (рік) | I19: Фактичні за звітний період (рік) | J19: Залишок на кінець звітного періоду (року)
A22: 1 | B22: 2 | C22: 3 | D22: 4 | E22: 5 | F22: 6 | G22: 7 | H22: 8 | I22: 9 | J22: 10
A23: Видатки та надання кредитів - усього | B23: Х | C23: 010 | D23: =D24+D58+D78+D83+D86 -> 0 | E23: =E26+E29+E32+E33+E37+E44+E45+E85+E53 -> 0 | F23: =F24+F58+F78+F83+F86 -> 0 | G23: =G24+G58+G78+G83+G86 -> 0 | H23: =H24+H58+H78+H83+H86 -> 0 | I23: =I24+I58+I78+I83+I86 -> 0 | J23: =F23+G23-H23 -> 0
A24: у тому числі: Поточні видатки | B24: 2000 | C24: 020 | D24: =D25+D30+D46+D49+D53+D57 -> 0 | E24: 0 | F24: 0 | G24: 0 | H24: 0 | I24: 0 | J24: =F24+G24-H24 -> 0
A25: Оплата праці і нарахування на заробітну плату | B25: 2100 | C25: 030 | D25: =D26+D29 -> 0 | E25: 0 | F25: =F26+F29 -> 0 | G25: =G26+G29 -> 0 | H25: =H26+H29 -> 0 | I25: =I26+I29 -> 0 | J25: 0
A26: Оплата праці | B26: 2110 | C26: 040 | D26: =SUM(D27:D28) -> 0 | E26: 0 | F26: 0 | G26: 0 | H26: 0 | I26: 0 | J26: 0
A27: Заробітна плата | B27: 2111 | C27: 050 | D27: 0 | E27: 0 | F27: 0 | G27: 0 | H27: 0 | I27: 0 | J27: 0
A28: Грошове забезпечення військовослужбовців | B28: 2112 | C28: 060 | D28: 0 | E28: 0 | F28: 0 | G28: 0 | H28: 0 | I28: 0 | J28: 0
A29: Нарахування на оплату праці | B29: 2120 | C29: 070 | D29: 0 | E29: 0 | F29: 0 | G29: 0 | H29: 0 | I29: 0 | J29: 0
A30: Використання товарів і послуг | B30: 2200 | C30: 080 | D30: =SUM(D31:D37)+D43 -> 0 | E30: 0 | F30: =SUM(F31:F37)+F43 -> 0 | G30: =SUM(G31:G37)+G43 -> 0 | H30: =SUM(H31:H37)+H43 -> 0 | I30: =SUM(I31:I37)+I43 -> 0 | J30: 0
A31: Предмети, матеріали, обладнання та інвентар | B31: 2210 | C31: 090 | D31: 0 | E31: 0 | F31: 0 | G31: 0 | H31: 0 | I31: 0 | J31: 0
A32: Медикаменти та перев’язувальні матеріали | B32: 2220 | C32: 100 | D32: 0 | E32: 0 | F32: 0 | G32: 0 | H32: 0 | I32: 0 | J32: 0
A33: Продукти харчування | B33: 2230 | C33: 110 | D33: 0 | E33: 0 | F33: 0 | G33: 0 | H33: 0 | I33: 0 | J33: 0
A34: Оплата послуг (крім комунальних) | B34: 2240 | C34: 120 | D34: 0 | E34: 0 | F34: 0 | G34: 0 | H34: 0 | I34: 0 | J34: 0
A35: Видатки на відрядження | B35: 2250 | C35: 130 | D35: 0 | E35: 0 | F35: 0 | G35: 0 | H35: 0 | I35: 0 | J35: 0
A36: Видатки та заходи спеціального призначення | B36: 2260 | C36: 140 | D36: 0 | E36: 0 | F36: 0 | G36: 0 | H36: 0 | I36: 0 | J36: 0
A37: Оплата комунальних послуг та енергоносіїв | B37: 2270 | C37: 150 | D37: =SUM(D38:D42) -> 0 | E37: 0 | F37: =SUM(F38:F42) -> 0 | G37: =SUM(G38:G42) -> 0 | H37: =SUM(H38:H42) -> 0 | I37: =SUM(I38:I42) -> 0 | J37: 0
A38: Оплата теплопостачання | B38: 2271 | C38: 160 | D38: 0 | E38: 0 | F38: 0 | G38: 0 | H38: 0 | I38: 0 | J38: 0
A39: Оплата водопостачання та водовідведення | B39: 2272 | C39: 170 | D39: 0 | E39: 0 | F39: 0 | G39: 0 | H39: 0 | I39: 0 | J39: 0
A40: Оплата електроенергії | B40: 2273 | C40: 180 | D40: 0 | E40: 0 | F40: 0 | G40: 0 | H40: 0 | I40: 0 | J40: 0
A41: Оплата природного газу | B41: 2274 | C41: 190 | D41: 0 | E41: 0 | F41: 0 | G41: 0 | H41: 0 | I41: 0 | J41: 0
A42: Оплата інших енергоносіїв | B42: 2275 | C42: 200 | D42: 0 | E42: 0 | F42: 0 | G42: 0 | H42: 0 | I42: 0 | J42: 0
A43: Дослідження і розробки, окремі заходи по реалізації державних (регіональних) програм | B43: 2280 | C43: 210 | D43: =SUM(D44:D45) -> 0 | E43: 0 | F43: =SUM(F44:F45) -> 0 | G43: =SUM(G44:G45) -> 0 | H43: =SUM(H44:H45) -> 0 | I43: =SUM(I44:I45) -> 0 | J43: 0
A44: Дослідження і розробки, окремі заходи розвитку по реалізації державних (регіональних) програм | B44: 2281 | C44: 220 | D44: 0 | E44: 0 | F44: 0 | G44: 0 | H44: 0 | I44: 0 | J44: 0
A45: Окремі заходи по реалізації державних (регіональних) програм, не віднесені до заходів розвитку | B45: 2282 | C45: 230 | D45: 0 | E45: 0 | F45: 0 | G45: 0 | H45: 0 | I45: 0 | J45: 0
A46: Обслуговування боргових зобов’язань | B46: 2400 | C46: 240 | D46: =SUM(D47:D48) -> 0 | E46: 0 | F46: 0 | G46: 0 | H46: 0 | I46: 0 | J46: 0
A47: Обслуговування внутрішніх боргових зобов’язань | B47: 2410 | C47: 250 | D47: 0 | E47: 0 | F47: 0 | G47: 0 | H47: 0 | I47: 0 | J47: 0
A48: Обслуговування зовнішніх боргових зобов’язань | B48: 2420 | C48: 260 | D48: 0 | E48: 0 | F48: 0 | G48: 0 | H48: 0 | I48: 0 | J48: 0
A49: Поточні трансферти | B49: 2600 | C49: 270 | D49: =SUM(D50:D52) -> 0 | E49: 0 | F49: 0 | G49: 0 | H49: 0 | I49: 0 | J49: 0
A50: Субсидії та поточні трансферти підприємствам (установам, організаціям) | B50: 2610 | C50: 280 | D50: 0 | E50: 0 | F50: 0 | G50: 0 | H50: 0 | I50: 0 | J50: 0
A51: Поточні трансферти органам державного управління інших рівнів | B51: 2620 | C51: 290 | D51: 0 | E51: 0 | F51: 0 | G51: 0 | H51: 0 | I51: 0 | J51: 0
A52: Поточні трансферти урядам іноземних держав та міжнародним організаціям | B52: 2630 | C52: 300 | D52: 0 | E52: 0 | F52: 0 | G52: 0 | H52: 0 | I52: 0 | J52: 0
A53: Соціальне забезпечення | B53: 2700 | C53: 310 | D53: =SUM(D54:D56) -> 0 | E53: 0 | F53: 0 | G53: 0 | H53: 0 | I53: 0 | J53: 0
A54: Виплата пенсій і допомоги | B54: 2710 | C54: 320 | D54: 0 | E54: 0 | F54: 0 | G54: 0 | H54: 0 | I54: 0 | J54: 0
A55: Стипендії | B55: 2720 | C55: 330 | D55: 0 | E55: 0 | F55: 0 | G55: 0 | H55: 0 | I55: 0 | J55: 0
A56: Інші виплати населенню | B56: 2730 | C56: 340 | D56: 0 | E56: 0 | F56: 0 | G56: 0 | H56: 0 | I56: 0 | J56: 0
A57: Інші поточні видатки | B57: 2800 | C57: 350 | D57: 0 | E57: 0 | F57: 0 | G57: 0 | H57: 0 | I57: 0 | J57: 0
A58: Капітальні видатки | B58: 3000 | C58: 360 | D58: =D59+D73 -> 0 | E58: 0 | F58: 0 | G58: 0 | H58: 0 | I58: 0 | J58: 0
A59: Придбання основного капіталу | B59: 3100 | C59: 370 | D59: =D60+D61+D64+D67+D71+D72 -> 0 | E59: 0 | F59: 0 | G59: 0 | H59: 0 | I59: 0 | J59: 0
A60: Придбання обладнання і предметів довгострокового користування | B60: 3110 | C60: 380 | D60: 0 | E60: 0 | F60: 0 | G60: 0 | H60: 0 | I60: 0 | J60: 0
A61: Капітальне будівництво (придбання) | B61: 3120 | C61: 390 | D61: =SUM(D62:D63) -> 0 | E61: 0 | F61: 0 | G61: 0 | H61: 0 | I61: 0 | J61: 0
A62: Капітальне будівництво (придбання) житла | B62: 3121 | C62: 400 | D62: 0 | E62: 0 | F62: 0 | G62: 0 | H62: 0 | I62: 0 | J62: 0
A63: Капітальне будівництво (придбання) інших об’єктів | B63: 3122 | C63: 410 | D63: 0 | E63: 0 | F63: 0 | G63: 0 | H63: 0 | I63: 0 | J63: 0
A64: Капітальний ремонт | B64: 3130 | C64: 420 | D64: =SUM(D65:D66) -> 0 | E64: 0 | F64: 0 | G64: 0 | H64: 0 | I64: 0 | J64: 0
A65: Капітальний ремонт житлового фонду (приміщень) | B65: 3131 | C65: 430 | D65: 0 | E65: 0 | F65: 0 | G65: 0 | H65: 0 | I65: 0 | J65: 0
A66: Капітальний ремонт інших об’єктів | B66: 3132 | C66: 440 | D66: 0 | E66: 0 | F66: 0 | G66: 0 | H66: 0 | I66: 0 | J66: 0
A67: Реконструкція та реставрація | B67: 3140 | C67: 450 | D67: =SUM(D68:D70) -> 0 | E67: 0 | F67: 0 | G67: 0 | H67: 0 | I67: 0 | J67: 0
A68: Реконструкція житлового фонду (приміщень) | B68: 3141 | C68: 460 | D68: 0 | E68: 0 | F68: 0 | G68: 0 | H68: 0 | I68: 0 | J68: 0
A69: Реконструкція та реставрація інших об’єктів | B69: 3142 | C69: 470 | D69: 0 | E69: 0 | F69: 0 | G69: 0 | H69: 0 | I69: 0 | J69: 0
A70: Реставрація пам’яток культури, історії та архітектури | B70: 3143 | C70: 480 | D70: 0 | E70: 0 | F70: 0 | G70: 0 | H70: 0 | I70: 0 | J70: 0
A71: Створення державних запасів і резервів | B71: 3150 | C71: 490 | D71: 0 | E71: 0 | F71: 0 | G71: 0 | H71: 0 | I71: 0 | J71: 0
A72: Придбання землі та нематеріальних активів | B72: 3160 | C72: 500 | D72: 0 | E72: 0 | F72: 0 | G72: 0 | H72: 0 | I72: 0 | J72: 0
A73: Капітальні трансферти | B73: 3200 | C73: 510 | D73: =SUM(D74:D77) -> 0 | E73: 0 | F73: 0 | G73: 0 | H73: 0 | I73: 0 | J73: 0
A74: Капітальні трансферти підприємствам (установам, організаціям) | B74: 3210 | C74: 520 | D74: 0 | E74: 0 | F74: 0 | G74: 0 | H74: 0 | I74: 0 | J74: 0
A75: Капітальні трансферти органам державного управління інших рівнів | B75: 3220 | C75: 530 | D75: 0 | E75: 0 | F75: 0 | G75: 0 | H75: 0 | I75: 0 | J75: 0
A76: Капітальні трансферти урядам іноземних держав та міжнародним організаціям | B76: 3230 | C76: 540 | D76: 0 | E76: 0 | F76: 0 | G76: 0 | H76: 0 | I76: 0 | J76: 0
A77: Капітальні трансферти населенню | B77: 3240 | C77: 550 | D77: 0 | E77: 0 | F77: 0 | G77: 0 | H77: 0 | I77: 0 | J77: 0
A78: Внутрішнє кредитування | B78: 4100 | C78: 560 | D78: =SUM(D79) -> 0 | E78: 0 | F78: 0 | G78: 0 | H78: 0 | I78: 0 | J78: 0
A79: Надання внутрішніх кредитів | B79: 4110 | C79: 570 | D79: =SUM(D80:D82) -> 0 | E79: 0 | F79: 0 | G79: 0 | H79: 0 | I79: 0 | J79: 0
A80: Надання кредитів органам державного управління інших рівнів | B80: 4111 | C80: 580 | D80: 0 | E80: 0 | F80: 0 | G80: 0 | H80: 0 | I80: 0 | J80: 0
A81: Надання кредитів підприємствам, установам, організаціям | B81: 4112 | C81: 590 | D81: 0 | E81: 0 | F81: 0 | G81: 0 | H81: 0 | I81: 0 | J81: 0
A82: Надання інших внутрішніх кредитів | B82: 4113 | C82: 600 | D82: 0 | E82: 0 | F82: 0 | G82: 0 | H82: 0 | I82: 0 | J82: 0
A83: Зовнішнє кредитування | B83: 4200 | C83: 610 | D83: =D84 -> 0 | E83: 0 | F83: 0 | G83: 0 | H83: 0 | I83: 0 | J83: 0
A84: Надання зовнішніх кредитів | B84: 4210 | C84: 620 | D84: 0 | E84: 0 | F84: 0 | G84: 0 | H84: 0 | I84: 0 | J84: 0
A85: Інші видатки | B85: 5000 | C85: 630 | D85: X | E85: 0 | F85: X | G85: X | H85: X | I85: X | J85: X
A86: Нерозподілені видатки | B86: 9000 | C86: 640 | D86: 0 | E86: 0 | F86: 0 | G86: 0 | H86: 0 | I86: 0 | J86: 0
A99: 1 Заповнюється розпорядниками бюджетних коштів.
A100: =ЗАПОЛНИТЬ!F30 -> Ректор | G100: =ЗАПОЛНИТЬ!F26 -> В.В.Снітинський
D101: (підпис) | G101: (ініціали, прізвище)
A102: =ЗАПОЛНИТЬ!F31 -> Головний бухгалтер | G102: =ЗАПОЛНИТЬ!F28 -> Г.І.Козлова
A103: =ЗАПОЛНИТЬ!C19 -> "12" січня 2016 року | D103: (підпис) | G103: (ініціали, прізвище)
A104: *До запровадження програмно-цільового методу складання та виконання місцевих бюджетів проставляються код та назва тимчасової класифікації видатків та кредитування місцевих бюджетів.

Sheet Ф.2.17 (hidden)
H1: Додаток 4 до Порядку складання фінансової, бюджетної та іншої звітності розпорядниками та одержувачами бюджетних коштів
A4: ЗВІТ
A5: =IF(ЗАПОЛНИТЬ!$F$7=1,CONCATENATE(шапки!A2),CONCATENATE(шапки!A2,шапки!C2)) -> про надходження та використання коштів загального фонду (форма | G5: =IF(ЗАПОЛНИТЬ!$F$7=1,шапки!C2,шапки!D2) -> №2д, | H5: =IF(ЗАПОЛНИТЬ!$F$7=1,шапки!D2,"") -> №2м)
A6: =CONCATENATE("за ",ЗАПОЛНИТЬ!$B$17," ",ЗАПОЛНИТЬ!$C$17) -> за 2015 р.
J7: коди
A9: Установа | B9: =ЗАПОЛНИТЬ!B3 -> Львівський національний аграрний університет | I9: за ЄДРПОУ | J9: =ЗАПОЛНИТЬ!B13 -> 00493735
A10: Територія | B10: =ЗАПОЛНИТЬ!B5 -> м.Дубляни Жовківського р-ну Львівської обл. | I10: за КОАТУУ | J10: =ЗАПОЛНИТЬ!B14 -> 4622710200
A11: Організаційно-правова форма господарювання | B11: =ЗАПОЛНИТЬ!D15 -> Державна організація (установа, заклад) | I11: за КОПФГ | J11: =ЗАПОЛНИТЬ!B15 -> 425
A12: Код та назва відомчої класифікації видатків та кредитування державного бюджету | D12: =ЗАПОЛНИТЬ!H9 -> 220 | E12: =IF(D12>0,VLOOKUP(D12,'ДовидникКВК(ГОС)'!A:B,2,FALSE),"") -> Міністерство освіти і науки України
A13: Код та назва програмної класифікації видатків та кредитування державного бюджету | E13: =IF(D13>0,VLOOKUP(D13,ДовидникКПК!B:C,2,FALSE),"") -> 
A14: Код та назва типової відомчої класифікації видатків та кредитування місцевих бюджетів | D14: =ЗАПОЛНИТЬ!H10 -> - | E14: =ЗАПОЛНИТЬ!I10 -> -
A15: Код та назва програмної класифікації видатків та кредитування місцевих бюджетів (код та назва Типової програмної класифікації видатків та кредитування місцевих бюджетів / Тимчасової класифікації видатків та кредитування для бюджетів місцевого самоврядування, які не застосовують програмно-цільового методу)* | E15: =IF(D15>0,VLOOKUP(D15,ДовидникКФК!A:B,2,FALSE),"") -> 
A16: Періодичність: квартальна, річна
A17: Одиниця виміру: грн. коп.
A19: Показники | B19: КЕКВ та/або ККК | C19: Код рядка | D19: Затверджено на звітний рік | E19: Затверджено на звітний період (рік)1 | F19: Залишок на початок звітного року | G19: Надійшло коштів за звітний період (рік) | H19: Касові за звітний період (рік) | I19: Фактичні за звітний період (рік) | J19: Залишок на кінець звітного періоду (року)
A22: 1 | B22: 2 | C22: 3 | D22: 4 | E22: 5 | F22: 6 | G22: 7 | H22: 8 | I22: 9 | J22: 10
A23: Видатки та надання кредитів - усього | B23: Х | C23: 010 | D23: =D24+D58+D78+D83+D86 -> 0 | E23: =E26+E29+E32+E33+E37+E44+E45+E85+E53 -> 0 | F23: =F24+F58+F78+F83+F86 -> 0 | G23: =G24+G58+G78+G83+G86 -> 0 | H23: =H24+H58+H78+H83+H86 -> 0 | I23: =I24+I58+I78+I83+I86 -> 0 | J23: =F23+G23-H23 -> 0
A24: у тому числі: Поточні видатки | B24: 2000 | C24: 020 | D24: =D25+D30+D46+D49+D53+D57 -> 0 | E24: 0 | F24: 0 | G24: 0 | H24: 0 | I24: 0 | J24: =F24+G24-H24 -> 0
A25: Оплата праці і нарахування на заробітну плату | B25: 2100 | C25: 030 | D25: =D26+D29 -> 0 | E25: 0 | F25: =F26+F29 -> 0 | G25: =G26+G29 -> 0 | H25: =H26+H29 -> 0 | I25: =I26+I29 -> 0 | J25: 0
A26: Оплата праці | B26: 2110 | C26: 040 | D26: =SUM(D27:D28) -> 0 | E26: 0 | F26: 0 | G26: 0 | H26: 0 | I26: 0 | J26: 0
A27: Заробітна плата | B27: 2111 | C27: 050 | D27: 0 | E27: 0 | F27: 0 | G27: 0 | H27: 0 | I27: 0 | J27: 0
A28: Грошове забезпечення військовослужбовців | B28: 2112 | C28: 060 | D28: 0 | E28: 0 | F28: 0 | G28: 0 | H28: 0 | I28: 0 | J28: 0
A29: Нарахування на оплату праці | B29: 2120 | C29: 070 | D29: 0 | E29: 0 | F29: 0 | G29: 0 | H29: 0 | I29: 0 | J29: 0
A30: Використання товарів і послуг | B30: 2200 | C30: 080 | D30: =SUM(D31:D37)+D43 -> 0 | E30: 0 | F30: =SUM(F31:F37)+F43 -> 0 | G30: =SUM(G31:G37)+G43 -> 0 | H30: =SUM(H31:H37)+H43 -> 0 | I30: =SUM(I31:I37)+I43 -> 0 | J30: 0
A31: Предмети, матеріали, обладнання та інвентар | B31: 2210 | C31: 090 | D31: 0 | E31: 0 | F31: 0 | G31: 0 | H31: 0 | I31: 0 | J31: 0
A32: Медикаменти та перев’язувальні матеріали | B32: 2220 | C32: 100 | D32: 0 | E32: 0 | F32: 0 | G32: 0 | H32: 0 | I32: 0 | J32: 0
A33: Продукти харчування | B33: 2230 | C33: 110 | D33: 0 | E33: 0 | F33: 0 | G33: 0 | H33: 0 | I33: 0 | J33: 0
A34: Оплата послуг (крім комунальних) | B34: 2240 | C34: 120 | D34: 0 | E34: 0 | F34: 0 | G34: 0 | H34: 0 | I34: 0 | J34: 0
A35: Видатки на відрядження | B35: 2250 | C35: 130 | D35: 0 | E35: 0 | F35: 0 | G35: 0 | H35: 0 | I35: 0 | J35: 0
A36: Видатки та заходи спеціального призначення | B36: 2260 | C36: 140 | D36: 0 | E36: 0 | F36: 0 | G36: 0 | H36: 0 | I36: 0 | J36: 0
A37: Оплата комунальних послуг та енергоносіїв | B37: 2270 | C37: 150 | D37: =SUM(D38:D42) -> 0 | E37: 0 | F37: =SUM(F38:F42) -> 0 | G37: =SUM(G38:G42) -> 0 | H37: =SUM(H38:H42) -> 0 | I37: =SUM(I38:I42) -> 0 | J37: 0
A38: Оплата теплопостачання | B38: 2271 | C38: 160 | D38: 0 | E38: 0 | F38: 0 | G38: 0 | H38: 0 | I38: 0 | J38: 0
A39: Оплата водопостачання та водовідведення | B39: 2272 | C39: 170 | D39: 0 | E39: 0 | F39: 0 | G39: 0 | H39: 0 | I39: 0 | J39: 0
A40: Оплата електроенергії | B40: 2273 | C40: 180 | D40: 0 | E40: 0 | F40: 0 | G40: 0 | H40: 0 | I40: 0 | J40: 0
A41: Оплата природного газу | B41: 2274 | C41: 190 | D41: 0 | E41: 0 | F41: 0 | G41: 0 | H41: 0 | I41: 0 | J41: 0
A42: Оплата інших енергоносіїв | B42: 2275 | C42: 200 | D42: 0 | E42: 0 | F42: 0 | G42: 0 | H42: 0 | I42: 0 | J42: 0
A43: Дослідження і розробки, окремі заходи по реалізації державних (регіональних) програм | B43: 2280 | C43: 210 | D43: =SUM(D44:D45) -> 0 | E43: 0 | F43: =SUM(F44:F45) -> 0 | G43: =SUM(G44:G45) -> 0 | H43: =SUM(H44:H45) -> 0 | I43: =SUM(I44:I45) -> 0 | J43: 0
A44: Дослідження і розробки, окремі заходи розвитку по реалізації державних (регіональних) програм | B44: 2281 | C44: 220 | D44: 0 | E44: 0 | F44: 0 | G44: 0 | H44: 0 | I44: 0 | J44: 0
A45: Окремі заходи по реалізації державних (регіональних) програм, не віднесені до заходів розвитку | B45: 2282 | C45: 230 | D45: 0 | E45: 0 | F45: 0 | G45: 0 | H45: 0 | I45: 0 | J45: 0
A46: Обслуговування боргових зобов’язань | B46: 2400 | C46: 240 | D46: =SUM(D47:D48) -> 0 | E46: 0 | F46: 0 | G46: 0 | H46: 0 | I46: 0 | J46: 0
A47: Обслуговування внутрішніх боргових зобов’язань | B47: 2410 | C47: 250 | D47: 0 | E47: 0 | F47: 0 | G47: 0 | H47: 0 | I47: 0 | J47: 0
A48: Обслуговування зовнішніх боргових зобов’язань | B48: 2420 | C48: 260 | D48: 0 | E48: 0 | F48: 0 | G48: 0 | H48: 0 | I48: 0 | J48: 0
A49: Поточні трансферти | B49: 2600 | C49: 270 | D49: =SUM(D50:D52) -> 0 | E49: 0 | F49: 0 | G49: 0 | H49: 0 | I49: 0 | J49: 0
A50: Субсидії та поточні трансферти підприємствам (установам, організаціям) | B50: 2610 | C50: 280 | D50: 0 | E50: 0 | F50: 0 | G50: 0 | H50: 0 | I50: 0 | J50: 0
A51: Поточні трансферти органам державного управління інших рівнів | B51: 2620 | C51: 290 | D51: 0 | E51: 0 | F51: 0 | G51: 0 | H51: 0 | I51: 0 | J51: 0
A52: Поточні трансферти урядам іноземних держав та міжнародним організаціям | B52: 2630 | C52: 300 | D52: 0 | E52: 0 | F52: 0 | G52: 0 | H52: 0 | I52: 0 | J52: 0
A53: Соціальне забезпечення | B53: 2700 | C53: 310 | D53: =SUM(D54:D56) -> 0 | E53: 0 | F53: 0 | G53: 0 | H53: 0 | I53: 0 | J53: 0
A54: Виплата пенсій і допомоги | B54: 2710 | C54: 320 | D54: 0 | E54: 0 | F54: 0 | G54: 0 | H54: 0 | I54: 0 | J54: 0
A55: Стипендії | B55: 2720 | C55: 330 | D55: 0 | E55: 0 | F55: 0 | G55: 0 | H55: 0 | I55: 0 | J55: 0
A56: Інші виплати населенню | B56: 2730 | C56: 340 | D56: 0 | E56: 0 | F56: 0 | G56: 0 | H56: 0 | I56: 0 | J56: 0
A57: Інші поточні видатки | B57: 2800 | C57: 350 | D57: 0 | E57: 0 | F57: 0 | G57: 0 | H57: 0 | I57: 0 | J57: 0
A58: Капітальні видатки | B58: 3000 | C58: 360 | D58: =D59+D73 -> 0 | E58: 0 | F58: 0 | G58: 0 | H58: 0 | I58: 0 | J58: 0
A59: Придбання основного капіталу | B59: 3100 | C59: 370 | D59: =D60+D61+D64+D67+D71+D72 -> 0 | E59: 0 | F59: 0 | G59: 0 | H59: 0 | I59: 0 | J59: 0
A60: Придбання обладнання і предметів довгострокового користування | B60: 3110 | C60: 380 | D60: 0 | E60: 0 | F60: 0 | G60: 0 | H60: 0 | I60: 0 | J60: 0
A61: Капітальне будівництво (придбання) | B61: 3120 | C61: 390 | D61: =SUM(D62:D63) -> 0 | E61: 0 | F61: 0 | G61: 0 | H61: 0 | I61: 0 | J61: 0
A62: Капітальне будівництво (придбання) житла | B62: 3121 | C62: 400 | D62: 0 | E62: 0 | F62: 0 | G62: 0 | H62: 0 | I62: 0 | J62: 0
A63: Капітальне будівництво (придбання) інших об’єктів | B63: 3122 | C63: 410 | D63: 0 | E63: 0 | F63: 0 | G63: 0 | H63: 0 | I63: 0 | J63: 0
A64: Капітальний ремонт | B64: 3130 | C64: 420 | D64: =SUM(D65:D66) -> 0 | E64: 0 | F64: 0 | G64: 0 | H64: 0 | I64: 0 | J64: 0
A65: Капітальний ремонт житлового фонду (приміщень) | B65: 3131 | C65: 430 | D65: 0 | E65: 0 | F65: 0 | G65: 0 | H65: 0 | I65: 0 | J65: 0
A66: Капітальний ремонт інших об’єктів | B66: 3132 | C66: 440 | D66: 0 | E66: 0 | F66: 0 | G66: 0 | H66: 0 | I66: 0 | J66: 0
A67: Реконструкція та реставрація | B67: 3140 | C67: 450 | D67: =SUM(D68:D70) -> 0 | E67: 0 | F67: 0 | G67: 0 | H67: 0 | I67: 0 | J67: 0
A68: Реконструкція житлового фонду (приміщень) | B68: 3141 | C68: 460 | D68: 0 | E68: 0 | F68: 0 | G68: 0 | H68: 0 | I68: 0 | J68: 0
A69: Реконструкція та реставрація інших об’єктів | B69: 3142 | C69: 470 | D69: 0 | E69: 0 | F69: 0 | G69: 0 | H69: 0 | I69: 0 | J69: 0
A70: Реставрація пам’яток культури, історії та архітектури | B70: 3143 | C70: 480 | D70: 0 | E70: 0 | F70: 0 | G70: 0 | H70: 0 | I70: 0 | J70: 0
A71: Створення державних запасів і резервів | B71: 3150 | C71: 490 | D71: 0 | E71: 0 | F71: 0 | G71: 0 | H71: 0 | I71: 0 | J71: 0
A72: Придбання землі та нематеріальних активів | B72: 3160 | C72: 500 | D72: 0 | E72: 0 | F72: 0 | G72: 0 | H72: 0 | I72: 0 | J72: 0
A73: Капітальні трансферти | B73: 3200 | C73: 510 | D73: =SUM(D74:D77) -> 0 | E73: 0 | F73: 0 | G73: 0 | H73: 0 | I73: 0 | J73: 0
A74: Капітальні трансферти підприємствам (установам, організаціям) | B74: 3210 | C74: 520 | D74: 0 | E74: 0 | F74: 0 | G74: 0 | H74: 0 | I74: 0 | J74: 0
A75: Капітальні трансферти органам державного управління інших рівнів | B75: 3220 | C75: 530 | D75: 0 | E75: 0 | F75: 0 | G75: 0 | H75: 0 | I75: 0 | J75: 0
A76: Капітальні трансферти урядам іноземних держав та міжнародним організаціям | B76: 3230 | C76: 540 | D76: 0 | E76: 0 | F76: 0 | G76: 0 | H76: 0 | I76: 0 | J76: 0
A77: Капітальні трансферти населенню | B77: 3240 | C77: 550 | D77: 0 | E77: 0 | F77: 0 | G77: 0 | H77: 0 | I77: 0 | J77: 0
A78: Внутрішнє кредитування | B78: 4100 | C78: 560 | D78: =SUM(D79) -> 0 | E78: 0 | F78: 0 | G78: 0 | H78: 0 | I78: 0 | J78: 0
A79: Надання внутрішніх кредитів | B79: 4110 | C79: 570 | D79: =SUM(D80:D82) -> 0 | E79: 0 | F79: 0 | G79: 0 | H79: 0 | I79: 0 | J79: 0
A80: Надання кредитів органам державного управління інших рівнів | B80: 4111 | C80: 580 | D80: 0 | E80: 0 | F80: 0 | G80: 0 | H80: 0 | I80: 0 | J80: 0
A81: Надання кредитів підприємствам, установам, організаціям | B81: 4112 | C81: 590 | D81: 0 | E81: 0 | F81: 0 | G81: 0 | H81: 0 | I81: 0 | J81: 0
A82: Надання інших внутрішніх кредитів | B82: 4113 | C82: 600 | D82: 0 | E82: 0 | F82: 0 | G82: 0 | H82: 0 | I82: 0 | J82: 0
A83: Зовнішнє кредитування | B83: 4200 | C83: 610 | D83: =D84 -> 0 | E83: 0 | F83: 0 | G83: 0 | H83: 0 | I83: 0 | J83: 0
A84: Надання зовнішніх кредитів | B84: 4210 | C84: 620 | D84: 0 | E84: 0 | F84: 0 | G84: 0 | H84: 0 | I84: 0 | J84: 0
A85: Інші видатки | B85: 5000 | C85: 630 | D85: X | E85: 0 | F85: X | G85: X | H85: X | I85: X | J85: X
A86: Нерозподілені видатки | B86: 9000 | C86: 640 | D86: 0 | E86: 0 | F86: 0 | G86: 0 | H86: 0 | I86: 0 | J86: 0
A99: 1 Заповнюється розпорядниками бюджетних коштів.
A100: =ЗАПОЛНИТЬ!F30 -> Ректор | G100: =ЗАПОЛНИТЬ!F26 -> В.В.Снітинський
D101: (підпис) | G101: (ініціали, прізвище)
A102: =ЗАПОЛНИТЬ!F31 -> Головний бухгалтер | G102: =ЗАПОЛНИТЬ!F28 -> Г.І.Козлова
A103: =ЗАПОЛНИТЬ!C19 -> "12" січня 2016 року | D103: (підпис) | G103: (ініціали, прізвище)
A104: *До запровадження програмно-цільового методу складання та виконання місцевих бюджетів проставляються код та назва тимчасової класифікації видатків та кредитування місцевих бюджетів.

Sheet Ф.2.18 (hidden)
H1: Додаток 4 до Порядку складання фінансової, бюджетної та іншої звітності розпорядниками та одержувачами бюджетних коштів
A4: ЗВІТ
A5: =IF(ЗАПОЛНИТЬ!$F$7=1,CONCATENATE(шапки!A2),CONCATENATE(шапки!A2,шапки!C2)) -> про надходження та використання коштів загального фонду (форма | G5: =IF(ЗАПОЛНИТЬ!$F$7=1,шапки!C2,шапки!D2) -> №2д, | H5: =IF(ЗАПОЛНИТЬ!$F$7=1,шапки!D2,"") -> №2м)
A6: =CONCATENATE("за ",ЗАПОЛНИТЬ!$B$17," ",ЗАПОЛНИТЬ!$C$17) -> за 2015 р.
J7: коди
A9: Установа | B9: =ЗАПОЛНИТЬ!B3 -> Львівський національний аграрний університет | I9: за ЄДРПОУ | J9: =ЗАПОЛНИТЬ!B13 -> 00493735
A10: Територія | B10: =ЗАПОЛНИТЬ!B5 -> м.Дубляни Жовківського р-ну Львівської обл. | I10: за КОАТУУ | J10: =ЗАПОЛНИТЬ!B14 -> 4622710200
A11: Організаційно-правова форма господарювання | B11: =ЗАПОЛНИТЬ!D15 -> Державна організація (установа, заклад) | I11: за КОПФГ | J11: =ЗАПОЛНИТЬ!B15 -> 425
A12: Код та назва відомчої класифікації видатків та кредитування державного бюджету | D12: =ЗАПОЛНИТЬ!H9 -> 220 | E12: =IF(D12>0,VLOOKUP(D12,'ДовидникКВК(ГОС)'!A:B,2,FALSE),"") -> Міністерство освіти і науки України
A13: Код та назва програмної класифікації видатків та кредитування державного бюджету | E13: =IF(D13>0,VLOOKUP(D13,ДовидникКПК!B:C,2,FALSE),"") -> 
A14: Код та назва типової відомчої класифікації видатків та кредитування місцевих бюджетів | D14: =ЗАПОЛНИТЬ!H10 -> - | E14: =ЗАПОЛНИТЬ!I10 -> -
A15: Код та назва програмної класифікації видатків та кредитування місцевих бюджетів (код та назва Типової програмної класифікації видатків та кредитування місцевих бюджетів / Тимчасової класифікації видатків та кредитування для бюджетів місцевого самоврядування, які не застосовують програмно-цільового методу)* | E15: =IF(D15>0,VLOOKUP(D15,ДовидникКФК!A:B,2,FALSE),"") -> 
A16: Періодичність: квартальна, річна
A17: Одиниця виміру: грн. коп.
A19: Показники | B19: КЕКВ та/або ККК | C19: Код рядка | D19: Затверджено на звітний рік | E19: Затверджено на звітний період (рік)1 | F19: Залишок на початок звітного року | G19: Надійшло коштів за звітний період (рік) | H19: Касові за звітний період (рік) | I19: Фактичні за звітний період (рік) | J19: Залишок на кінець звітного періоду (року)
A22: 1 | B22: 2 | C22: 3 | D22: 4 | E22: 5 | F22: 6 | G22: 7 | H22: 8 | I22: 9 | J22: 10
A23: Видатки та надання кредитів - усього | B23: Х | C23: 010 | D23: =D24+D58+D78+D83+D86 -> 0 | E23: =E26+E29+E32+E33+E37+E44+E45+E85+E53 -> 0 | F23: =F24+F58+F78+F83+F86 -> 0 | G23: =G24+G58+G78+G83+G86 -> 0 | H23: =H24+H58+H78+H83+H86 -> 0 | I23: =I24+I58+I78+I83+I86 -> 0 | J23: =F23+G23-H23 -> 0
A24: у тому числі: Поточні видатки | B24: 2000 | C24: 020 | D24: =D25+D30+D46+D49+D53+D57 -> 0 | E24: 0 | F24: 0 | G24: 0 | H24: 0 | I24: 0 | J24: =F24+G24-H24 -> 0
A25: Оплата праці і нарахування на заробітну плату | B25: 2100 | C25: 030 | D25: =D26+D29 -> 0 | E25: 0 | F25: =F26+F29 -> 0 | G25: =G26+G29 -> 0 | H25: =H26+H29 -> 0 | I25: =I26+I29 -> 0 | J25: 0
A26: Оплата праці | B26: 2110 | C26: 040 | D26: =SUM(D27:D28) -> 0 | E26: 0 | F26: 0 | G26: 0 | H26: 0 | I26: 0 | J26: 0
A27: Заробітна плата | B27: 2111 | C27: 050 | D27: 0 | E27: 0 | F27: 0 | G27: 0 | H27: 0 | I27: 0 | J27: 0
A28: Грошове забезпечення військовослужбовців | B28: 2112 | C28: 060 | D28: 0 | E28: 0 | F28: 0 | G28: 0 | H28: 0 | I28: 0 | J28: 0
A29: Нарахування на оплату праці | B29: 2120 | C29: 070 | D29: 0 | E29: 0 | F29: 0 | G29: 0 | H29: 0 | I29: 0 | J29: 0
A30: Використання товарів і послуг | B30: 2200 | C30: 080 | D30: =SUM(D31:D37)+D43 -> 0 | E30: 0 | F30: =SUM(F31:F37)+F43 -> 0 | G30: =SUM(G31:G37)+G43 -> 0 | H30: =SUM(H31:H37)+H43 -> 0 | I30: =SUM(I31:I37)+I43 -> 0 | J30: 0
A31: Предмети, матеріали, обладнання та інвентар | B31: 2210 | C31: 090 | D31: 0 | E31: 0 | F31: 0 | G31: 0 | H31: 0 | I31: 0 | J31: 0
A32: Медикаменти та перев’язувальні матеріали | B32: 2220 | C32: 100 | D32: 0 | E32: 0 | F32: 0 | G32: 0 | H32: 0 | I32: 0 | J32: 0
A33: Продукти харчування | B33: 2230 | C33: 110 | D33: 0 | E33: 0 | F33: 0 | G33: 0 | H33: 0 | I33: 0 | J33: 0
A34: Оплата послуг (крім комунальних) | B34: 2240 | C34: 120 | D34: 0 | E34: 0 | F34: 0 | G34: 0 | H34: 0 | I34: 0 | J34: 0
A35: Видатки на відрядження | B35: 2250 | C35: 130 | D35: 0 | E35: 0 | F35: 0 | G35: 0 | H35: 0 | I35: 0 | J35: 0
A36: Видатки та заходи спеціального призначення | B36: 2260 | C36: 140 | D36: 0 | E36: 0 | F36: 0 | G36: 0 | H36: 0 | I36: 0 | J36: 0
A37: Оплата комунальних послуг та енергоносіїв | B37: 2270 | C37: 150 | D37: =SUM(D38:D42) -> 0 | E37: 0 | F37: =SUM(F38:F42) -> 0 | G37: =SUM(G38:G42) -> 0 | H37: =SUM(H38:H42) -> 0 | I37: =SUM(I38:I42) -> 0 | J37: 0
A38: Оплата теплопостачання | B38: 2271 | C38: 160 | D38: 0 | E38: 0 | F38: 0 | G38: 0 | H38: 0 | I38: 0 | J38: 0
A39: Оплата водопостачання та водовідведення | B39: 2272 | C39: 170 | D39: 0 | E39: 0 | F39: 0 | G39: 0 | H39: 0 | I39: 0 | J39: 0
A40: Оплата електроенергії | B40: 2273 | C40: 180 | D40: 0 | E40: 0 | F40: 0 | G40: 0 | H40: 0 | I40: 0 | J40: 0
A41: Оплата природного газу | B41: 2274 | C41: 190 | D41: 0 | E41: 0 | F41: 0 | G41: 0 | H41: 0 | I41: 0 | J41: 0
A42: Оплата інших енергоносіїв | B42: 2275 | C42: 200 | D42: 0 | E42: 0 | F42: 0 | G42: 0 | H42: 0 | I42: 0 | J42: 0
A43: Дослідження і розробки, окремі заходи по реалізації державних (регіональних) програм | B43: 2280 | C43: 210 | D43: =SUM(D44:D45) -> 0 | E43: 0 | F43: =SUM(F44:F45) -> 0 | G43: =SUM(G44:G45) -> 0 | H43: =SUM(H44:H45) -> 0 | I43: =SUM(I44:I45) -> 0 | J43: 0
A44: Дослідження і розробки, окремі заходи розвитку по реалізації державних (регіональних) програм | B44: 2281 | C44: 220 | D44: 0 | E44: 0 | F44: 0 | G44: 0 | H44: 0 | I44: 0 | J44: 0
A45: Окремі заходи по реалізації державних (регіональних) програм, не віднесені до заходів розвитку | B45: 2282 | C45: 230 | D45: 0 | E45: 0 | F45: 0 | G45: 0 | H45: 0 | I45: 0 | J45: 0
A46: Обслуговування боргових зобов’язань | B46: 2400 | C46: 240 | D46: =SUM(D47:D48) -> 0 | E46: 0 | F46: 0 | G46: 0 | H46: 0 | I46: 0 | J46: 0
A47: Обслуговування внутрішніх боргових зобов’язань | B47: 2410 | C47: 250 | D47: 0 | E47: 0 | F47: 0 | G47: 0 | H47: 0 | I47: 0 | J47: 0
A48: Обслуговування зовнішніх боргових зобов’язань | B48: 2420 | C48: 260 | D48: 0 | E48: 0 | F48: 0 | G48: 0 | H48: 0 | I48: 0 | J48: 0
A49: Поточні трансферти | B49: 2600 | C49: 270 | D49: =SUM(D50:D52) -> 0 | E49: 0 | F49: 0 | G49: 0 | H49: 0 | I49: 0 | J49: 0
A50: Субсидії та поточні трансферти підприємствам (установам, організаціям) | B50: 2610 | C50: 280 | D50: 0 | E50: 0 | F50: 0 | G50: 0 | H50: 0 | I50: 0 | J50: 0
A51: Поточні трансферти органам державного управління інших рівнів | B51: 2620 | C51: 290 | D51: 0 | E51: 0 | F51: 0 | G51: 0 | H51: 0 | I51: 0 | J51: 0
A52: Поточні трансферти урядам іноземних держав та міжнародним організаціям | B52: 2630 | C52: 300 | D52: 0 | E52: 0 | F52: 0 | G52: 0 | H52: 0 | I52: 0 | J52: 0
A53: Соціальне забезпечення | B53: 2700 | C53: 310 | D53: =SUM(D54:D56) -> 0 | E53: 0 | F53: 0 | G53: 0 | H53: 0 | I53: 0 | J53: 0
A54: Виплата пенсій і допомоги | B54: 2710 | C54: 320 | D54: 0 | E54: 0 | F54: 0 | G54: 0 | H54: 0 | I54: 0 | J54: 0
A55: Стипендії | B55: 2720 | C55: 330 | D55: 0 | E55: 0 | F55: 0 | G55: 0 | H55: 0 | I55: 0 | J55: 0
A56: Інші виплати населенню | B56: 2730 | C56: 340 | D56: 0 | E56: 0 | F56: 0 | G56: 0 | H56: 0 | I56: 0 | J56: 0
A57: Інші поточні видатки | B57: 2800 | C57: 350 | D57: 0 | E57: 0 | F57: 0 | G57: 0 | H57: 0 | I57: 0 | J57: 0
A58: Капітальні видатки | B58: 3000 | C58: 360 | D58: =D59+D73 -> 0 | E58: 0 | F58: 0 | G58: 0 | H58: 0 | I58: 0 | J58: 0
A59: Придбання основного капіталу | B59: 3100 | C59: 370 | D59: =D60+D61+D64+D67+D71+D72 -> 0 | E59: 0 | F59: 0 | G59: 0 | H59: 0 | I59: 0 | J59: 0
A60: Придбання обладнання і предметів довгострокового користування | B60: 3110 | C60: 380 | D60: 0 | E60: 0 | F60: 0 | G60: 0 | H60: 0 | I60: 0 | J60: 0
A61: Капітальне будівництво (придбання) | B61: 3120 | C61: 390 | D61: =SUM(D62:D63) -> 0 | E61: 0 | F61: 0 | G61: 0 | H61: 0 | I61: 0 | J61: 0
A62: Капітальне будівництво (придбання) житла | B62: 3121 | C62: 400 | D62: 0 | E62: 0 | F62: 0 | G62: 0 | H62: 0 | I62: 0 | J62: 0
A63: Капітальне будівництво (придбання) інших об’єктів | B63: 3122 | C63: 410 | D63: 0 | E63: 0 | F63: 0 | G63: 0 | H63: 0 | I63: 0 | J63: 0
A64: Капітальний ремонт | B64: 3130 | C64: 420 | D64: =SUM(D65:D66) -> 0 | E64: 0 | F64: 0 | G64: 0 | H64: 0 | I64: 0 | J64: 0
A65: Капітальний ремонт житлового фонду (приміщень) | B65: 3131 | C65: 430 | D65: 0 | E65: 0 | F65: 0 | G65: 0 | H65: 0 | I65: 0 | J65: 0
A66: Капітальний ремонт інших об’єктів | B66: 3132 | C66: 440 | D66: 0 | E66: 0 | F66: 0 | G66: 0 | H66: 0 | I66: 0 | J66: 0
A67: Реконструкція та реставрація | B67: 3140 | C67: 450 | D67: =SUM(D68:D70) -> 0 | E67: 0 | F67: 0 | G67: 0 | H67: 0 | I67: 0 | J67: 0
A68: Реконструкція житлового фонду (приміщень) | B68: 3141 | C68: 460 | D68: 0 | E68: 0 | F68: 0 | G68: 0 | H68: 0 | I68: 0 | J68: 0
A69: Реконструкція та реставрація інших об’єктів | B69: 3142 | C69: 470 | D69: 0 | E69: 0 | F69: 0 | G69: 0 | H69: 0 | I69: 0 | J69: 0
A70: Реставрація пам’яток культури, історії та архітектури | B70: 3143 | C70: 480 | D70: 0 | E70: 0 | F70: 0 | G70: 0 | H70: 0 | I70: 0 | J70: 0
A71: Створення державних запасів і резервів | B71: 3150 | C71: 490 | D71: 0 | E71: 0 | F71: 0 | G71: 0 | H71: 0 | I71: 0 | J71: 0
A72: Придбання землі та нематеріальних активів | B72: 3160 | C72: 500 | D72: 0 | E72: 0 | F72: 0 | G72: 0 | H72: 0 | I72: 0 | J72: 0
A73: Капітальні трансферти | B73: 3200 | C73: 510 | D73: =SUM(D74:D77) -> 0 | E73: 0 | F73: 0 | G73: 0 | H73: 0 | I73: 0 | J73: 0
A74: Капітальні трансферти підприємствам (установам, організаціям) | B74: 3210 | C74: 520 | D74: 0 | E74: 0 | F74: 0 | G74: 0 | H74: 0 | I74: 0 | J74: 0
A75: Капітальні трансферти органам державного управління інших рівнів | B75: 3220 | C75: 530 | D75: 0 | E75: 0 | F75: 0 | G75: 0 | H75: 0 | I75: 0 | J75: 0
A76: Капітальні трансферти урядам іноземних держав та міжнародним організаціям | B76: 3230 | C76: 540 | D76: 0 | E76: 0 | F76: 0 | G76: 0 | H76: 0 | I76: 0 | J76: 0
A77: Капітальні трансферти населенню | B77: 3240 | C77: 550 | D77: 0 | E77: 0 | F77: 0 | G77: 0 | H77: 0 | I77: 0 | J77: 0
A78: Внутрішнє кредитування | B78: 4100 | C78: 560 | D78: =SUM(D79) -> 0 | E78: 0 | F78: 0 | G78: 0 | H78: 0 | I78: 0 | J78: 0
A79: Надання внутрішніх кредитів | B79: 4110 | C79: 570 | D79: =SUM(D80:D82) -> 0 | E79: 0 | F79: 0 | G79: 0 | H79: 0 | I79: 0 | J79: 0
A80: Надання кредитів органам державного управління інших рівнів | B80: 4111 | C80: 580 | D80: 0 | E80: 0 | F80: 0 | G80: 0 | H80: 0 | I80: 0 | J80: 0
A81: Надання кредитів підприємствам, установам, організаціям | B81: 4112 | C81: 590 | D81: 0 | E81: 0 | F81: 0 | G81: 0 | H81: 0 | I81: 0 | J81: 0
A82: Надання інших внутрішніх кредитів | B82: 4113 | C82: 600 | D82: 0 | E82: 0 | F82: 0 | G82: 0 | H82: 0 | I82: 0 | J82: 0
A83: Зовнішнє кредитування | B83: 4200 | C83: 610 | D83: =D84 -> 0 | E83: 0 | F83: 0 | G83: 0 | H83: 0 | I83: 0 | J83: 0
A84: Надання зовнішніх кредитів | B84: 4210 | C84: 620 | D84: 0 | E84: 0 | F84: 0 | G84: 0 | H84: 0 | I84: 0 | J84: 0
A85: Інші видатки | B85: 5000 | C85: 630 | D85: X | E85: 0 | F85: X | G85: X | H85: X | I85: X | J85: X
A86: Нерозподілені видатки | B86: 9000 | C86: 640 | D86: 0 | E86: 0 | F86: 0 | G86: 0 | H86: 0 | I86: 0 | J86: 0
A99: 1 Заповнюється розпорядниками бюджетних коштів.
A100: =ЗАПОЛНИТЬ!F30 -> Ректор | G100: =ЗАПОЛНИТЬ!F26 -> В.В.Снітинський
D101: (підпис) | G101: (ініціали, прізвище)
A102: =ЗАПОЛНИТЬ!F31 -> Головний бухгалтер | G102: =ЗАПОЛНИТЬ!F28 -> Г.І.Козлова
A103: =ЗАПОЛНИТЬ!C19 -> "12" січня 2016 року | D103: (підпис) | G103: (ініціали, прізвище)
A104: *До запровадження програмно-цільового методу складання та виконання місцевих бюджетів проставляються код та назва тимчасової класифікації видатків та кредитування місцевих бюджетів.

Sheet Ф.2.19 (hidden)
H1: Додаток 4 до Порядку складання фінансової, бюджетної та іншої звітності розпорядниками та одержувачами бюджетних коштів
A4: ЗВІТ
A5: =IF(ЗАПОЛНИТЬ!$F$7=1,CONCATENATE(шапки!A2),CONCATENATE(шапки!A2,шапки!C2)) -> про надходження та використання коштів загального фонду (форма | G5: =IF(ЗАПОЛНИТЬ!$F$7=1,шапки!C2,шапки!D2) -> №2д, | H5: =IF(ЗАПОЛНИТЬ!$F$7=1,шапки!D2,"") -> №2м)
A6: =CONCATENATE("за ",ЗАПОЛНИТЬ!$B$17," ",ЗАПОЛНИТЬ!$C$17) -> за 2015 р.
J7: коди
A9: Установа | B9: =ЗАПОЛНИТЬ!B3 -> Львівський національний аграрний університет | I9: за ЄДРПОУ | J9: =ЗАПОЛНИТЬ!B13 -> 00493735
A10: Територія | B10: =ЗАПОЛНИТЬ!B5 -> м.Дубляни Жовківського р-ну Львівської обл. | I10: за КОАТУУ | J10: =ЗАПОЛНИТЬ!B14 -> 4622710200
A11: Організаційно-правова форма господарювання | B11: =ЗАПОЛНИТЬ!D15 -> Державна організація (установа, заклад) | I11: за КОПФГ | J11: =ЗАПОЛНИТЬ!B15 -> 425
A12: Код та назва відомчої класифікації видатків та кредитування державного бюджету | D12: =ЗАПОЛНИТЬ!H9 -> 220 | E12: =IF(D12>0,VLOOKUP(D12,'ДовидникКВК(ГОС)'!A:B,2,FALSE),"") -> Міністерство освіти і науки України
A13: Код та назва програмної класифікації видатків та кредитування державного бюджету | E13: =IF(D13>0,VLOOKUP(D13,ДовидникКПК!B:C,2,FALSE),"") -> 
A14: Код та назва типової відомчої класифікації видатків та кредитування місцевих бюджетів | D14: =ЗАПОЛНИТЬ!H10 -> - | E14: =ЗАПОЛНИТЬ!I10 -> -
A15: Код та назва програмної класифікації видатків та кредитування місцевих бюджетів (код та назва Типової програмної класифікації видатків та кредитування місцевих бюджетів / Тимчасової класифікації видатків та кредитування для бюджетів місцевого самоврядування, які не застосовують програмно-цільового методу)* | E15: =IF(D15>0,VLOOKUP(D15,ДовидникКФК!A:B,2,FALSE),"") -> 
A16: Періодичність: квартальна, річна
A17: Одиниця виміру: грн. коп.
A19: Показники | B19: КЕКВ та/або ККК | C19: Код рядка | D19: Затверджено на звітний рік | E19: Затверджено на звітний період (рік)1 | F19: Залишок на початок звітного року | G19: Надійшло коштів за звітний період (рік) | H19: Касові за звітний період (рік) | I19: Фактичні за звітний період (рік) | J19: Залишок на кінець звітного періоду (року)
A22: 1 | B22: 2 | C22: 3 | D22: 4 | E22: 5 | F22: 6 | G22: 7 | H22: 8 | I22: 9 | J22: 10
A23: Видатки та надання кредитів - усього | B23: Х | C23: 010 | D23: =D24+D58+D78+D83+D86 -> 0 | E23: =E26+E29+E32+E33+E37+E44+E45+E85+E53 -> 0 | F23: =F24+F58+F78+F83+F86 -> 0 | G23: =G24+G58+G78+G83+G86 -> 0 | H23: =H24+H58+H78+H83+H86 -> 0 | I23: =I24+I58+I78+I83+I86 -> 0 | J23: =F23+G23-H23 -> 0
A24: у тому числі: Поточні видатки | B24: 2000 | C24: 020 | D24: =D25+D30+D46+D49+D53+D57 -> 0 | E24: 0 | F24: 0 | G24: 0 | H24: 0 | I24: 0 | J24: =F24+G24-H24 -> 0
A25: Оплата праці і нарахування на заробітну плату | B25: 2100 | C25: 030 | D25: =D26+D29 -> 0 | E25: 0 | F25: =F26+F29 -> 0 | G25: =G26+G29 -> 0 | H25: =H26+H29 -> 0 | I25: =I26+I29 -> 0 | J25: 0
A26: Оплата праці | B26: 2110 | C26: 040 | D26: =SUM(D27:D28) -> 0 | E26: 0 | F26: 0 | G26: 0 | H26: 0 | I26: 0 | J26: 0
A27: Заробітна плата | B27: 2111 | C27: 050 | D27: 0 | E27: 0 | F27: 0 | G27: 0 | H27: 0 | I27: 0 | J27: 0
A28: Грошове забезпечення військовослужбовців | B28: 2112 | C28: 060 | D28: 0 | E28: 0 | F28: 0 | G28: 0 | H28: 0 | I28: 0 | J28: 0
A29: Нарахування на оплату праці | B29: 2120 | C29: 070 | D29: 0 | E29: 0 | F29: 0 | G29: 0 | H29: 0 | I29: 0 | J29: 0
A30: Використання товарів і послуг | B30: 2200 | C30: 080 | D30: =SUM(D31:D37)+D43 -> 0 | E30: 0 | F30: =SUM(F31:F37)+F43 -> 0 | G30: =SUM(G31:G37)+G43 -> 0 | H30: =SUM(H31:H37)+H43 -> 0 | I30: =SUM(I31:I37)+I43 -> 0 | J30: 0
A31: Предмети, матеріали, обладнання та інвентар | B31: 2210 | C31: 090 | D31: 0 | E31: 0 | F31: 0 | G31: 0 | H31: 0 | I31: 0 | J31: 0
A32: Медикаменти та перев’язувальні матеріали | B32: 2220 | C32: 100 | D32: 0 | E32: 0 | F32: 0 | G32: 0 | H32: 0 | I32: 0 | J32: 0
A33: Продукти харчування | B33: 2230 | C33: 110 | D33: 0 | E33: 0 | F33: 0 | G33: 0 | H33: 0 | I33: 0 | J33: 0
A34: Оплата послуг (крім комунальних) | B34: 2240 | C34: 120 | D34: 0 | E34: 0 | F34: 0 | G34: 0 | H34: 0 | I34: 0 | J34: 0
A35: Видатки на відрядження | B35: 2250 | C35: 130 | D35: 0 | E35: 0 | F35: 0 | G35: 0 | H35: 0 | I35: 0 | J35: 0
A36: Видатки та заходи спеціального призначення | B36: 2260 | C36: 140 | D36: 0 | E36: 0 | F36: 0 | G36: 0 | H36: 0 | I36: 0 | J36: 0
A37: Оплата комунальних послуг та енергоносіїв | B37: 2270 | C37: 150 | D37: =SUM(D38:D42) -> 0 | E37: 0 | F37: =SUM(F38:F42) -> 0 | G37: =SUM(G38:G42) -> 0 | H37: =SUM(H38:H42) -> 0 | I37: =SUM(I38:I42) -> 0 | J37: 0
A38: Оплата теплопостачання | B38: 2271 | C38: 160 | D38: 0 | E38: 0 | F38: 0 | G38: 0 | H38: 0 | I38: 0 | J38: 0
A39: Оплата водопостачання та водовідведення | B39: 2272 | C39: 170 | D39: 0 | E39: 0 | F39: 0 | G39: 0 | H39: 0 | I39: 0 | J39: 0
A40: Оплата електроенергії | B40: 2273 | C40: 180 | D40: 0 | E40: 0 | F40: 0 | G40: 0 | H40: 0 | I40: 0 | J40: 0
A41: Оплата природного газу | B41: 2274 | C41: 190 | D41: 0 | E41: 0 | F41: 0 | G41: 0 | H41: 0 | I41: 0 | J41: 0
A42: Оплата інших енергоносіїв | B42: 2275 | C42: 200 | D42: 0 | E42: 0 | F42: 0 | G42: 0 | H42: 0 | I42: 0 | J42: 0
A43: Дослідження і розробки, окремі заходи по реалізації державних (регіональних) програм | B43: 2280 | C43: 210 | D43: =SUM(D44:D45) -> 0 | E43: 0 | F43: =SUM(F44:F45) -> 0 | G43: =SUM(G44:G45) -> 0 | H43: =SUM(H44:H45) -> 0 | I43: =SUM(I44:I45) -> 0 | J43: 0
A44: Дослідження і розробки, окремі заходи розвитку по реалізації державних (регіональних) програм | B44: 2281 | C44: 220 | D44: 0 | E44: 0 | F44: 0 | G44: 0 | H44: 0 | I44: 0 | J44: 0
A45: Окремі заходи по реалізації державних (регіональних) програм, не віднесені до заходів розвитку | B45: 2282 | C45: 230 | D45: 0 | E45: 0 | F45: 0 | G45: 0 | H45: 0 | I45: 0 | J45: 0
A46: Обслуговування боргових зобов’язань | B46: 2400 | C46: 240 | D46: =SUM(D47:D48) -> 0 | E46: 0 | F46: 0 | G46: 0 | H46: 0 | I46: 0 | J46: 0
A47: Обслуговування внутрішніх боргових зобов’язань | B47: 2410 | C47: 250 | D47: 0 | E47: 0 | F47: 0 | G47: 0 | H47: 0 | I47: 0 | J47: 0
A48: Обслуговування зовнішніх боргових зобов’язань | B48: 2420 | C48: 260 | D48: 0 | E48: 0 | F48: 0 | G48: 0 | H48: 0 | I48: 0 | J48: 0
A49: Поточні трансферти | B49: 2600 | C49: 270 | D49: =SUM(D50:D52) -> 0 | E49: 0 | F49: 0 | G49: 0 | H49: 0 | I49: 0 | J49: 0
A50: Субсидії та поточні трансферти підприємствам (установам, організаціям) | B50: 2610 | C50: 280 | D50: 0 | E50: 0 | F50: 0 | G50: 0 | H50: 0 | I50: 0 | J50: 0
A51: Поточні трансферти органам державного управління інших рівнів | B51: 2620 | C51: 290 | D51: 0 | E51: 0 | F51: 0 | G51: 0 | H51: 0 | I51: 0 | J51: 0
A52: Поточні трансферти урядам іноземних держав та міжнародним організаціям | B52: 2630 | C52: 300 | D52: 0 | E52: 0 | F52: 0 | G52: 0 | H52: 0 | I52: 0 | J52: 0
A53: Соціальне забезпечення | B53: 2700 | C53: 310 | D53: =SUM(D54:D56) -> 0 | E53: 0 | F53: 0 | G53: 0 | H53: 0 | I53: 0 | J53: 0
A54: Виплата пенсій і допомоги | B54: 2710 | C54: 320 | D54: 0 | E54: 0 | F54: 0 | G54: 0 | H54: 0 | I54: 0 | J54: 0
A55: Стипендії | B55: 2720 | C55: 330 | D55: 0 | E55: 0 | F55: 0 | G55: 0 | H55: 0 | I55: 0 | J55: 0
A56: Інші виплати населенню | B56: 2730 | C56: 340 | D56: 0 | E56: 0 | F56: 0 | G56: 0 | H56: 0 | I56: 0 | J56: 0
A57: Інші поточні видатки | B57: 2800 | C57: 350 | D57: 0 | E57: 0 | F57: 0 | G57: 0 | H57: 0 | I57: 0 | J57: 0
A58: Капітальні видатки | B58: 3000 | C58: 360 | D58: =D59+D73 -> 0 | E58: 0 | F58: 0 | G58: 0 | H58: 0 | I58: 0 | J58: 0
A59: Придбання основного капіталу | B59: 3100 | C59: 370 | D59: =D60+D61+D64+D67+D71+D72 -> 0 | E59: 0 | F59: 0 | G59: 0 | H59: 0 | I59: 0 | J59: 0
A60: Придбання обладнання і предметів довгострокового користування | B60: 3110 | C60: 380 | D60: 0 | E60: 0 | F60: 0 | G60: 0 | H60: 0 | I60: 0 | J60: 0
A61: Капітальне будівництво (придбання) | B61: 3120 | C61: 390 | D61: =SUM(D62:D63) -> 0 | E61: 0 | F61: 0 | G61: 0 | H61: 0 | I61: 0 | J61: 0
A62: Капітальне будівництво (придбання) житла | B62: 3121 | C62: 400 | D62: 0 | E62: 0 | F62: 0 | G62: 0 | H62: 0 | I62: 0 | J62: 0
A63: Капітальне будівництво (придбання) інших об’єктів | B63: 3122 | C63: 410 | D63: 0 | E63: 0 | F63: 0 | G63: 0 | H63: 0 | I63: 0 | J63: 0
A64: Капітальний ремонт | B64: 3130 | C64: 420 | D64: =SUM(D65:D66) -> 0 | E64: 0 | F64: 0 | G64: 0 | H64: 0 | I64: 0 | J64: 0
A65: Капітальний ремонт житлового фонду (приміщень) | B65: 3131 | C65: 430 | D65: 0 | E65: 0 | F65: 0 | G65: 0 | H65: 0 | I65: 0 | J65: 0
A66: Капітальний ремонт інших об’єктів | B66: 3132 | C66: 440 | D66: 0 | E66: 0 | F66: 0 | G66: 0 | H66: 0 | I66: 0 | J66: 0
A67: Реконструкція та реставрація | B67: 3140 | C67: 450 | D67: =SUM(D68:D70) -> 0 | E67: 0 | F67: 0 | G67: 0 | H67: 0 | I67: 0 | J67: 0
A68: Реконструкція житлового фонду (приміщень) | B68: 3141 | C68: 460 | D68: 0 | E68: 0 | F68: 0 | G68: 0 | H68: 0 | I68: 0 | J68: 0
A69: Реконструкція та реставрація інших об’єктів | B69: 3142 | C69: 470 | D69: 0 | E69: 0 | F69: 0 | G69: 0 | H69: 0 | I69: 0 | J69: 0
A70: Реставрація пам’яток культури, історії та архітектури | B70: 3143 | C70: 480 | D70: 0 | E70: 0 | F70: 0 | G70: 0 | H70: 0 | I70: 0 | J70: 0
A71: Створення державних запасів і резервів | B71: 3150 | C71: 490 | D71: 0 | E71: 0 | F71: 0 | G71: 0 | H71: 0 | I71: 0 | J71: 0
A72: Придбання землі та нематеріальних активів | B72: 3160 | C72: 500 | D72: 0 | E72: 0 | F72: 0 | G72: 0 | H72: 0 | I72: 0 | J72: 0
A73: Капітальні трансферти | B73: 3200 | C73: 510 | D73: =SUM(D74:D77) -> 0 | E73: 0 | F73: 0 | G73: 0 | H73: 0 | I73: 0 | J73: 0
A74: Капітальні трансферти підприємствам (установам, організаціям) | B74: 3210 | C74: 520 | D74: 0 | E74: 0 | F74: 0 | G74: 0 | H74: 0 | I74: 0 | J74: 0
A75: Капітальні трансферти органам державного управління інших рівнів | B75: 3220 | C75: 530 | D75: 0 | E75: 0 | F75: 0 | G75: 0 | H75: 0 | I75: 0 | J75: 0
A76: Капітальні трансферти урядам іноземних держав та міжнародним організаціям | B76: 3230 | C76: 540 | D76: 0 | E76: 0 | F76: 0 | G76: 0 | H76: 0 | I76: 0 | J76: 0
A77: Капітальні трансферти населенню | B77: 3240 | C77: 550 | D77: 0 | E77: 0 | F77: 0 | G77: 0 | H77: 0 | I77: 0 | J77: 0
A78: Внутрішнє кредитування | B78: 4100 | C78: 560 | D78: =SUM(D79) -> 0 | E78: 0 | F78: 0 | G78: 0 | H78: 0 | I78: 0 | J78: 0
A79: Надання внутрішніх кредитів | B79: 4110 | C79: 570 | D79: =SUM(D80:D82) -> 0 | E79: 0 | F79: 0 | G79: 0 | H79: 0 | I79: 0 | J79: 0
A80: Надання кредитів органам державного управління інших рівнів | B80: 4111 | C80: 580 | D80: 0 | E80: 0 | F80: 0 | G80: 0 | H80: 0 | I80: 0 | J80: 0
A81: Надання кредитів підприємствам, установам, організаціям | B81: 4112 | C81: 590 | D81: 0 | E81: 0 | F81: 0 | G81: 0 | H81: 0 | I81: 0 | J81: 0
A82: Надання інших внутрішніх кредитів | B82: 4113 | C82: 600 | D82: 0 | E82: 0 | F82: 0 | G82: 0 | H82: 0 | I82: 0 | J82: 0
A83: Зовнішнє кредитування | B83: 4200 | C83: 610 | D83: =D84 -> 0 | E83: 0 | F83: 0 | G83: 0 | H83: 0 | I83: 0 | J83: 0
A84: Надання зовнішніх кредитів | B84: 4210 | C84: 620 | D84: 0 | E84: 0 | F84: 0 | G84: 0 | H84: 0 | I84: 0 | J84: 0
A85: Інші видатки | B85: 5000 | C85: 630 | D85: X | E85: 0 | F85: X | G85: X | H85: X | I85: X | J85: X
A86: Нерозподілені видатки | B86: 9000 | C86: 640 | D86: 0 | E86: 0 | F86: 0 | G86: 0 | H86: 0 | I86: 0 | J86: 0
A99: 1 Заповнюється розпорядниками бюджетних коштів.
A100: =ЗАПОЛНИТЬ!F30 -> Ректор | G100: =ЗАПОЛНИТЬ!F26 -> В.В.Снітинський
D101: (підпис) | G101: (ініціали, прізвище)
A102: =ЗАПОЛНИТЬ!F31 -> Головний бухгалтер | G102: =ЗАПОЛНИТЬ!F28 -> Г.І.Козлова
A103: =ЗАПОЛНИТЬ!C19 -> "12" січня 2016 року | D103: (підпис) | G103: (ініціали, прізвище)
A104: *До запровадження програмно-цільового методу складання та виконання місцевих бюджетів проставляються код та назва тимчасової класифікації видатків та кредитування місцевих бюджетів.

Sheet Ф.2.20 (hidden)
H1: Додаток 4 до Порядку складання фінансової, бюджетної та іншої звітності розпорядниками та одержувачами бюджетних коштів
A4: ЗВІТ
A5: =IF(ЗАПОЛНИТЬ!$F$7=1,CONCATENATE(шапки!A2),CONCATENATE(шапки!A2,шапки!C2)) -> про надходження та використання коштів загального фонду (форма | G5: =IF(ЗАПОЛНИТЬ!$F$7=1,шапки!C2,шапки!D2) -> №2д, | H5: =IF(ЗАПОЛНИТЬ!$F$7=1,шапки!D2,"") -> №2м)
A6: =CONCATENATE("за ",ЗАПОЛНИТЬ!$B$17," ",ЗАПОЛНИТЬ!$C$17) -> за 2015 р.
J7: коди
A9: Установа | B9: =ЗАПОЛНИТЬ!B3 -> Львівський національний аграрний університет | I9: за ЄДРПОУ | J9: =ЗАПОЛНИТЬ!B13 -> 00493735
A10: Територія | B10: =ЗАПОЛНИТЬ!B5 -> м.Дубляни Жовківського р-ну Львівської обл. | I10: за КОАТУУ | J10: =ЗАПОЛНИТЬ!B14 -> 4622710200
A11: Організаційно-правова форма господарювання | B11: =ЗАПОЛНИТЬ!D15 -> Державна організація (установа, заклад) | I11: за КОПФГ | J11: =ЗАПОЛНИТЬ!B15 -> 425
A12: Код та назва відомчої класифікації видатків та кредитування державного бюджету | D12: =ЗАПОЛНИТЬ!H9 -> 220 | E12: =IF(D12>0,VLOOKUP(D12,'ДовидникКВК(ГОС)'!A:B,2,FALSE),"") -> Міністерство освіти і науки України
A13: Код та назва програмної класифікації видатків та кредитування державного бюджету | E13: =IF(D13>0,VLOOKUP(D13,ДовидникКПК!B:C,2,FALSE),"") -> 
A14: Код та назва типової відомчої класифікації видатків та кредитування місцевих бюджетів | D14: =ЗАПОЛНИТЬ!H10 -> - | E14: =ЗАПОЛНИТЬ!I10 -> -
A15: Код та назва програмної класифікації видатків та кредитування місцевих бюджетів (код та назва Типової програмної класифікації видатків та кредитування місцевих бюджетів / Тимчасової класифікації видатків та кредитування для бюджетів місцевого самоврядування, які не застосовують програмно-цільового методу)* | E15: =IF(D15>0,VLOOKUP(D15,ДовидникКФК!A:B,2,FALSE),"") -> 
A16: Періодичність: квартальна, річна
A17: Одиниця виміру: грн. коп.
A19: Показники | B19: КЕКВ та/або ККК | C19: Код рядка | D19: Затверджено на звітний рік | E19: Затверджено на звітний період (рік)1 | F19: Залишок на початок звітного року | G19: Надійшло коштів за звітний період (рік) | H19: Касові за звітний період (рік) | I19: Фактичні за звітний період (рік) | J19: Залишок на кінець звітного періоду (року)
A22: 1 | B22: 2 | C22: 3 | D22: 4 | E22: 5 | F22: 6 | G22: 7 | H22: 8 | I22: 9 | J22: 10
A23: Видатки та надання кредитів - усього | B23: Х | C23: 010 | D23: =D24+D58+D78+D83+D86 -> 0 | E23: =E26+E29+E32+E33+E37+E44+E45+E85+E53 -> 0 | F23: =F24+F58+F78+F83+F86 -> 0 | G23: =G24+G58+G78+G83+G86 -> 0 | H23: =H24+H58+H78+H83+H86 -> 0 | I23: =I24+I58+I78+I83+I86 -> 0 | J23: =F23+G23-H23 -> 0
A24: у тому числі: Поточні видатки | B24: 2000 | C24: 020 | D24: =D25+D30+D46+D49+D53+D57 -> 0 | E24: 0 | F24: 0 | G24: 0 | H24: 0 | I24: 0 | J24: =F24+G24-H24 -> 0
A25: Оплата праці і нарахування на заробітну плату | B25: 2100 | C25: 030 | D25: =D26+D29 -> 0 | E25: 0 | F25: =F26+F29 -> 0 | G25: =G26+G29 -> 0 | H25: =H26+H29 -> 0 | I25: =I26+I29 -> 0 | J25: 0
A26: Оплата праці | B26: 2110 | C26: 040 | D26: =SUM(D27:D28) -> 0 | E26: 0 | F26: 0 | G26: 0 | H26: 0 | I26: 0 | J26: 0
A27: Заробітна плата | B27: 2111 | C27: 050 | D27: 0 | E27: 0 | F27: 0 | G27: 0 | H27: 0 | I27: 0 | J27: 0
A28: Грошове забезпечення військовослужбовців | B28: 2112 | C28: 060 | D28: 0 | E28: 0 | F28: 0 | G28: 0 | H28: 0 | I28: 0 | J28: 0
A29: Нарахування на оплату праці | B29: 2120 | C29: 070 | D29: 0 | E29: 0 | F29: 0 | G29: 0 | H29: 0 | I29: 0 | J29: 0
A30: Використання товарів і послуг | B30: 2200 | C30: 080 | D30: =SUM(D31:D37)+D43 -> 0 | E30: 0 | F30: =SUM(F31:F37)+F43 -> 0 | G30: =SUM(G31:G37)+G43 -> 0 | H30: =SUM(H31:H37)+H43 -> 0 | I30: =SUM(I31:I37)+I43 -> 0 | J30: 0
A31: Предмети, матеріали, обладнання та інвентар | B31: 2210 | C31: 090 | D31: 0 | E31: 0 | F31: 0 | G31: 0 | H31: 0 | I31: 0 | J31: 0
A32: Медикаменти та перев’язувальні матеріали | B32: 2220 | C32: 100 | D32: 0 | E32: 0 | F32: 0 | G32: 0 | H32: 0 | I32: 0 | J32: 0
A33: Продукти харчування | B33: 2230 | C33: 110 | D33: 0 | E33: 0 | F33: 0 | G33: 0 | H33: 0 | I33: 0 | J33: 0
A34: Оплата послуг (крім комунальних) | B34: 2240 | C34: 120 | D34: 0 | E34: 0 | F34: 0 | G34: 0 | H34: 0 | I34: 0 | J34: 0
A35: Видатки на відрядження | B35: 2250 | C35: 130 | D35: 0 | E35: 0 | F35: 0 | G35: 0 | H35: 0 | I35: 0 | J35: 0
A36: Видатки та заходи спеціального призначення | B36: 2260 | C36: 140 | D36: 0 | E36: 0 | F36: 0 | G36: 0 | H36: 0 | I36: 0 | J36: 0
A37: Оплата комунальних послуг та енергоносіїв | B37: 2270 | C37: 150 | D37: =SUM(D38:D42) -> 0 | E37: 0 | F37: =SUM(F38:F42) -> 0 | G37: =SUM(G38:G42) -> 0 | H37: =SUM(H38:H42) -> 0 | I37: =SUM(I38:I42) -> 0 | J37: 0
A38: Оплата теплопостачання | B38: 2271 | C38: 160 | D38: 0 | E38: 0 | F38: 0 | G38: 0 | H38: 0 | I38: 0 | J38: 0
A39: Оплата водопостачання та водовідведення | B39: 2272 | C39: 170 | D39: 0 | E39: 0 | F39: 0 | G39: 0 | H39: 0 | I39: 0 | J39: 0
A40: Оплата електроенергії | B40: 2273 | C40: 180 | D40: 0 | E40: 0 | F40: 0 | G40: 0 | H40: 0 | I40: 0 | J40: 0
A41: Оплата природного газу | B41: 2274 | C41: 190 | D41: 0 | E41: 0 | F41: 0 | G41: 0 | H41: 0 | I41: 0 | J41: 0
A42: Оплата інших енергоносіїв | B42: 2275 | C42: 200 | D42: 0 | E42: 0 | F42: 0 | G42: 0 | H42: 0 | I42: 0 | J42: 0
A43: Дослідження і розробки, окремі заходи по реалізації державних (регіональних) програм | B43: 2280 | C43: 210 | D43: =SUM(D44:D45) -> 0 | E43: 0 | F43: =SUM(F44:F45) -> 0 | G43: =SUM(G44:G45) -> 0 | H43: =SUM(H44:H45) -> 0 | I43: =SUM(I44:I45) -> 0 | J43: 0
A44: Дослідження і розробки, окремі заходи розвитку по реалізації державних (регіональних) програм | B44: 2281 | C44: 220 | D44: 0 | E44: 0 | F44: 0 | G44: 0 | H44: 0 | I44: 0 | J44: 0
A45: Окремі заходи по реалізації державних (регіональних) програм, не віднесені до заходів розвитку | B45: 2282 | C45: 230 | D45: 0 | E45: 0 | F45: 0 | G45: 0 | H45: 0 | I45: 0 | J45: 0
A46: Обслуговування боргових зобов’язань | B46: 2400 | C46: 240 | D46: =SUM(D47:D48) -> 0 | E46: 0 | F46: 0 | G46: 0 | H46: 0 | I46: 0 | J46: 0
A47: Обслуговування внутрішніх боргових зобов’язань | B47: 2410 | C47: 250 | D47: 0 | E47: 0 | F47: 0 | G47: 0 | H47: 0 | I47: 0 | J47: 0
A48: Обслуговування зовнішніх боргових зобов’язань | B48: 2420 | C48: 260 | D48: 0 | E48: 0 | F48: 0 | G48: 0 | H48: 0 | I48: 0 | J48: 0
A49: Поточні трансферти | B49: 2600 | C49: 270 | D49: =SUM(D50:D52) -> 0 | E49: 0 | F49: 0 | G49: 0 | H49: 0 | I49: 0 | J49: 0
A50: Субсидії та поточні трансферти підприємствам (установам, організаціям) | B50: 2610 | C50: 280 | D50: 0 | E50: 0 | F50: 0 | G50: 0 | H50: 0 | I50: 0 | J50: 0
A51: Поточні трансферти органам державного управління інших рівнів | B51: 2620 | C51: 290 | D51: 0 | E51: 0 | F51: 0 | G51: 0 | H51: 0 | I51: 0 | J51: 0
A52: Поточні трансферти урядам іноземних держав та міжнародним організаціям | B52: 2630 | C52: 300 | D52: 0 | E52: 0 | F52: 0 | G52: 0 | H52: 0 | I52: 0 | J52: 0
A53: Соціальне забезпечення | B53: 2700 | C53: 310 | D53: =SUM(D54:D56) -> 0 | E53: 0 | F53: 0 | G53: 0 | H53: 0 | I53: 0 | J53: 0
A54: Виплата пенсій і допомоги | B54: 2710 | C54: 320 | D54: 0 | E54: 0 | F54: 0 | G54: 0 | H54: 0 | I54: 0 | J54: 0
A55: Стипендії | B55: 2720 | C55: 330 | D55: 0 | E55: 0 | F55: 0 | G55: 0 | H55: 0 | I55: 0 | J55: 0
A56: Інші виплати населенню | B56: 2730 | C56: 340 | D56: 0 | E56: 0 | F56: 0 | G56: 0 | H56: 0 | I56: 0 | J56: 0
A57: Інші поточні видатки | B57: 2800 | C57: 350 | D57: 0 | E57: 0 | F57: 0 | G57: 0 | H57: 0 | I57: 0 | J57: 0
A58: Капітальні видатки | B58: 3000 | C58: 360 | D58: =D59+D73 -> 0 | E58: 0 | F58: 0 | G58: 0 | H58: 0 | I58: 0 | J58: 0
A59: Придбання основного капіталу | B59: 3100 | C59: 370 | D59: =D60+D61+D64+D67+D71+D72 -> 0 | E59: 0 | F59: 0 | G59: 0 | H59: 0 | I59: 0 | J59: 0
A60: Придбання обладнання і предметів довгострокового користування | B60: 3110 | C60: 380 | D60: 0 | E60: 0 | F60: 0 | G60: 0 | H60: 0 | I60: 0 | J60: 0
A61: Капітальне будівництво (придбання) | B61: 3120 | C61: 390 | D61: =SUM(D62:D63) -> 0 | E61: 0 | F61: 0 | G61: 0 | H61: 0 | I61: 0 | J61: 0
A62: Капітальне будівництво (придбання) житла | B62: 3121 | C62: 400 | D62: 0 | E62: 0 | F62: 0 | G62: 0 | H62: 0 | I62: 0 | J62: 0
A63: Капітальне будівництво (придбання) інших об’єктів | B63: 3122 | C63: 410 | D63: 0 | E63: 0 | F63: 0 | G63: 0 | H63: 0 | I63: 0 | J63: 0
A64: Капітальний ремонт | B64: 3130 | C64: 420 | D64: =SUM(D65:D66) -> 0 | E64: 0 | F64: 0 | G64: 0 | H64: 0 | I64: 0 | J64: 0
A65: Капітальний ремонт житлового фонду (приміщень) | B65: 3131 | C65: 430 | D65: 0 | E65: 0 | F65: 0 | G65: 0 | H65: 0 | I65: 0 | J65: 0
A66: Капітальний ремонт інших об’єктів | B66: 3132 | C66: 440 | D66: 0 | E66: 0 | F66: 0 | G66: 0 | H66: 0 | I66: 0 | J66: 0
A67: Реконструкція та реставрація | B67: 3140 | C67: 450 | D67: =SUM(D68:D70) -> 0 | E67: 0 | F67: 0 | G67: 0 | H67: 0 | I67: 0 | J67: 0
A68: Реконструкція житлового фонду (приміщень) | B68: 3141 | C68: 460 | D68: 0 | E68: 0 | F68: 0 | G68: 0 | H68: 0 | I68: 0 | J68: 0
A69: Реконструкція та реставрація інших об’єктів | B69: 3142 | C69: 470 | D69: 0 | E69: 0 | F69: 0 | G69: 0 | H69: 0 | I69: 0 | J69: 0
A70: Реставрація пам’яток культури, історії та архітектури | B70: 3143 | C70: 480 | D70: 0 | E70: 0 | F70: 0 | G70: 0 | H70: 0 | I70: 0 | J70: 0
A71: Створення державних запасів і резервів | B71: 3150 | C71: 490 | D71: 0 | E71: 0 | F71: 0 | G71: 0 | H71: 0 | I71: 0 | J71: 0
A72: Придбання землі та нематеріальних активів | B72: 3160 | C72: 500 | D72: 0 | E72: 0 | F72: 0 | G72: 0 | H72: 0 | I72: 0 | J72: 0
A73: Капітальні трансферти | B73: 3200 | C73: 510 | D73: =SUM(D74:D77) -> 0 | E73: 0 | F73: 0 | G73: 0 | H73: 0 | I73: 0 | J73: 0
A74: Капітальні трансферти підприємствам (установам, організаціям) | B74: 3210 | C74: 520 | D74: 0 | E74: 0 | F74: 0 | G74: 0 | H74: 0 | I74: 0 | J74: 0
A75: Капітальні трансферти органам державного управління інших рівнів | B75: 3220 | C75: 530 | D75: 0 | E75: 0 | F75: 0 | G75: 0 | H75: 0 | I75: 0 | J75: 0
A76: Капітальні трансферти урядам іноземних держав та міжнародним організаціям | B76: 3230 | C76: 540 | D76: 0 | E76: 0 | F76: 0 | G76: 0 | H76: 0 | I76: 0 | J76: 0
A77: Капітальні трансферти населенню | B77: 3240 | C77: 550 | D77: 0 | E77: 0 | F77: 0 | G77: 0 | H77: 0 | I77: 0 | J77: 0
A78: Внутрішнє кредитування | B78: 4100 | C78: 560 | D78: =SUM(D79) -> 0 | E78: 0 | F78: 0 | G78: 0 | H78: 0 | I78: 0 | J78: 0
A79: Надання внутрішніх кредитів | B79: 4110 | C79: 570 | D79: =SUM(D80:D82) -> 0 | E79: 0 | F79: 0 | G79: 0 | H79: 0 | I79: 0 | J79: 0
A80: Надання кредитів органам державного управління інших рівнів | B80: 4111 | C80: 580 | D80: 0 | E80: 0 | F80: 0 | G80: 0 | H80: 0 | I80: 0 | J80: 0
A81: Надання кредитів підприємствам, установам, організаціям | B81: 4112 | C81: 590 | D81: 0 | E81: 0 | F81: 0 | G81: 0 | H81: 0 | I81: 0 | J81: 0
A82: Надання інших внутрішніх кредитів | B82: 4113 | C82: 600 | D82: 0 | E82: 0 | F82: 0 | G82: 0 | H82: 0 | I82: 0 | J82: 0
A83: Зовнішнє кредитування | B83: 4200 | C83: 610 | D83: =D84 -> 0 | E83: 0 | F83: 0 | G83: 0 | H83: 0 | I83: 0 | J83: 0
A84: Надання зовнішніх кредитів | B84: 4210 | C84: 620 | D84: 0 | E84: 0 | F84: 0 | G84: 0 | H84: 0 | I84: 0 | J84: 0
A85: Інші видатки | B85: 5000 | C85: 630 | D85: X | E85: 0 | F85: X | G85: X | H85: X | I85: X | J85: X
A86: Нерозподілені видатки | B86: 9000 | C86: 640 | D86: 0 | E86: 0 | F86: 0 | G86: 0 | H86: 0 | I86: 0 | J86: 0
A99: 1 Заповнюється розпорядниками бюджетних коштів.
A100: =ЗАПОЛНИТЬ!F30 -> Ректор | G100: =ЗАПОЛНИТЬ!F26 -> В.В.Снітинський
D101: (підпис) | G101: (ініціали, прізвище)
A102: =ЗАПОЛНИТЬ!F31 -> Головний бухгалтер | G102: =ЗАПОЛНИТЬ!F28 -> Г.І.Козлова
A103: =ЗАПОЛНИТЬ!C19 -> "12" січня 2016 року | D103: (підпис) | G103: (ініціали, прізвище)
A104: *До запровадження програмно-цільового методу складання та виконання місцевих бюджетів проставляються код та назва тимчасової класифікації видатків та кредитування місцевих бюджетів.

Sheet Ф.2.21 (hidden)
H1: Додаток 4 до Порядку складання фінансової, бюджетної та іншої звітності розпорядниками та одержувачами бюджетних коштів
A4: ЗВІТ
A5: =IF(ЗАПОЛНИТЬ!$F$7=1,CONCATENATE(шапки!A2),CONCATENATE(шапки!A2,шапки!C2)) -> про надходження та використання коштів загального фонду (форма | G5: =IF(ЗАПОЛНИТЬ!$F$7=1,шапки!C2,шапки!D2) -> №2д, | H5: =IF(ЗАПОЛНИТЬ!$F$7=1,шапки!D2,"") -> №2м)
A6: =CONCATENATE("за ",ЗАПОЛНИТЬ!$B$17," ",ЗАПОЛНИТЬ!$C$17) -> за 2015 р.
J7: коди
A9: Установа | B9: =ЗАПОЛНИТЬ!B3 -> Львівський національний аграрний університет | I9: за ЄДРПОУ | J9: =ЗАПОЛНИТЬ!B13 -> 00493735
A10: Територія | B10: =ЗАПОЛНИТЬ!B5 -> м.Дубляни Жовківського р-ну Львівської обл. | I10: за КОАТУУ | J10: =ЗАПОЛНИТЬ!B14 -> 4622710200
A11: Організаційно-правова форма господарювання | B11: =ЗАПОЛНИТЬ!D15 -> Державна організація (установа, заклад) | I11: за КОПФГ | J11: =ЗАПОЛНИТЬ!B15 -> 425
A12: Код та назва відомчої класифікації видатків та кредитування державного бюджету | D12: =ЗАПОЛНИТЬ!H9 -> 220 | E12: =IF(D12>0,VLOOKUP(D12,'ДовидникКВК(ГОС)'!A:B,2,FALSE),"") -> Міністерство освіти і науки України
A13: Код та назва програмної класифікації видатків та кредитування державного бюджету | E13: =IF(D13>0,VLOOKUP(D13,ДовидникКПК!B:C,2,FALSE),"") -> 
A14: Код та назва типової відомчої класифікації видатків та кредитування місцевих бюджетів | D14: =ЗАПОЛНИТЬ!H10 -> - | E14: =ЗАПОЛНИТЬ!I10 -> -
A15: Код та назва програмної класифікації видатків та кредитування місцевих бюджетів (код та назва Типової програмної класифікації видатків та кредитування місцевих бюджетів / Тимчасової класифікації видатків та кредитування для бюджетів місцевого самоврядування, які не застосовують програмно-цільового методу)* | E15: =IF(D15>0,VLOOKUP(D15,ДовидникКФК!A:B,2,FALSE),"") -> 
A16: Періодичність: квартальна, річна
A17: Одиниця виміру: грн. коп.
A19: Показники | B19: КЕКВ та/або ККК | C19: Код рядка | D19: Затверджено на звітний рік | E19: Затверджено на звітний період (рік)1 | F19: Залишок на початок звітного року | G19: Надійшло коштів за звітний період (рік) | H19: Касові за звітний період (рік) | I19: Фактичні за звітний період (рік) | J19: Залишок на кінець звітного періоду (року)
A22: 1 | B22: 2 | C22: 3 | D22: 4 | E22: 5 | F22: 6 | G22: 7 | H22: 8 | I22: 9 | J22: 10
A23: Видатки та надання кредитів - усього | B23: Х | C23: 010 | D23: =D24+D58+D78+D83+D86 -> 0 | E23: =E26+E29+E32+E33+E37+E44+E45+E85+E53 -> 0 | F23: =F24+F58+F78+F83+F86 -> 0 | G23: =G24+G58+G78+G83+G86 -> 0 | H23: =H24+H58+H78+H83+H86 -> 0 | I23: =I24+I58+I78+I83+I86 -> 0 | J23: =F23+G23-H23 -> 0
A24: у тому числі: Поточні видатки | B24: 2000 | C24: 020 | D24: =D25+D30+D46+D49+D53+D57 -> 0 | E24: 0 | F24: 0 | G24: 0 | H24: 0 | I24: 0 | J24: =F24+G24-H24 -> 0
A25: Оплата праці і нарахування на заробітну плату | B25: 2100 | C25: 030 | D25: =D26+D29 -> 0 | E25: 0 | F25: =F26+F29 -> 0 | G25: =G26+G29 -> 0 | H25: =H26+H29 -> 0 | I25: =I26+I29 -> 0 | J25: 0
A26: Оплата праці | B26: 2110 | C26: 040 | D26: =SUM(D27:D28) -> 0 | E26: 0 | F26: 0 | G26: 0 | H26: 0 | I26: 0 | J26: 0
A27: Заробітна плата | B27: 2111 | C27: 050 | D27: 0 | E27: 0 | F27: 0 | G27: 0 | H27: 0 | I27: 0 | J27: 0
A28: Грошове забезпечення військовослужбовців | B28: 2112 | C28: 060 | D28: 0 | E28: 0 | F28: 0 | G28: 0 | H28: 0 | I28: 0 | J28: 0
A29: Нарахування на оплату праці | B29: 2120 | C29: 070 | D29: 0 | E29: 0 | F29: 0 | G29: 0 | H29: 0 | I29: 0 | J29: 0
A30: Використання товарів і послуг | B30: 2200 | C30: 080 | D30: =SUM(D31:D37)+D43 -> 0 | E30: 0 | F30: =SUM(F31:F37)+F43 -> 0 | G30: =SUM(G31:G37)+G43 -> 0 | H30: =SUM(H31:H37)+H43 -> 0 | I30: =SUM(I31:I37)+I43 -> 0 | J30: 0
A31: Предмети, матеріали, обладнання та інвентар | B31: 2210 | C31: 090 | D31: 0 | E31: 0 | F31: 0 | G31: 0 | H31: 0 | I31: 0 | J31: 0
A32: Медикаменти та перев’язувальні матеріали | B32: 2220 | C32: 100 | D32: 0 | E32: 0 | F32: 0 | G32: 0 | H32: 0 | I32: 0 | J32: 0
A33: Продукти харчування | B33: 2230 | C33: 110 | D33: 0 | E33: 0 | F33: 0 | G33: 0 | H33: 0 | I33: 0 | J33: 0
A34: Оплата послуг (крім комунальних) | B34: 2240 | C34: 120 | D34: 0 | E34: 0 | F34: 0 | G34: 0 | H34: 0 | I34: 0 | J34: 0
A35: Видатки на відрядження | B35: 2250 | C35: 130 | D35: 0 | E35: 0 | F35: 0 | G35: 0 | H35: 0 | I35: 0 | J35: 0
A36: Видатки та заходи спеціального призначення | B36: 2260 | C36: 140 | D36: 0 | E36: 0 | F36: 0 | G36: 0 | H36: 0 | I36: 0 | J36: 0
A37: Оплата комунальних послуг та енергоносіїв | B37: 2270 | C37: 150 | D37: =SUM(D38:D42) -> 0 | E37: 0 | F37: =SUM(F38:F42) -> 0 | G37: =SUM(G38:G42) -> 0 | H37: =SUM(H38:H42) -> 0 | I37: =SUM(I38:I42) -> 0 | J37: 0
A38: Оплата теплопостачання | B38: 2271 | C38: 160 | D38: 0 | E38: 0 | F38: 0 | G38: 0 | H38: 0 | I38: 0 | J38: 0
A39: Оплата водопостачання та водовідведення | B39: 2272 | C39: 170 | D39: 0 | E39: 0 | F39: 0 | G39: 0 | H39: 0 | I39: 0 | J39: 0
A40: Оплата електроенергії | B40: 2273 | C40: 180 | D40: 0 | E40: 0 | F40: 0 | G40: 0 | H40: 0 | I40: 0 | J40: 0
A41: Оплата природного газу | B41: 2274 | C41: 190 | D41: 0 | E41: 0 | F41: 0 | G41: 0 | H41: 0 | I41: 0 | J41: 0
A42: Оплата інших енергоносіїв | B42: 2275 | C42: 200 | D42: 0 | E42: 0 | F42: 0 | G42: 0 | H42: 0 | I42: 0 | J42: 0
